Workbook

Sheet Résumé (hidden)
C6: Porteur | E6: =VLOOKUP("SquaregoLab",FabLabs[],7,FALSE) -> Joris Navarro
C7: Contact | E7: =VLOOKUP("SquaregoLab",FabLabs[],8,FALSE) -> contact@squaregolab.com
C8: Structure juridique | E8: =VLOOKUP("SquaregoLab",FabLabs[],4,FALSE) -> Inconnue
C10: Localisation | E10: =VLOOKUP("SquaregoLab",FabLabs[],2,FALSE) -> Perpignan
C11: Etablissement | E11: =Pilotage!D5&" m²" -> 0 m²
C13: Employés | E13: =ROUND(Pilotage!E68,2) & " ETP" -> 4 ETP
C15: Clients abonnés | E15: =CA!I36&" abonnés" -> 0 abonnés
C17: Budget initial | E17: ='Plan financier initial'!E39 -> 9571
C18: Point mort | E18: =ROUND(Calculs!C29,0)&" j" -> 684 j

Sheet Pilotage
C2: Pilotage
B4: Locaux | F4: Fonds | K4: Scenario achats | L4: Eco | M4: 0
C5: Surface locaux | D5: 0 | G5: ARE | H5: 1631
C6: Prix m² HT annuel | D6: 0 | G6: Fin de versement de l'ARE | H6: 2015-08-01 | K6: DAT | L6: Taux max
C7: Loyer mensuel HT calc | D7: =Loyers!F10 -> 0 | G7: Nb mois restant | H7: =(YEAR(H6)-YEAR(TODAY()))*12+MONTH(H6)-MONTH(TODAY()) -> 5
C8: Charges (elec /chauff) | D8: 0 | G8: Taux ARCE | H8: 0 | K8: Ventes
C9: Nb mois de cautions | D9: 0 | G9: ARCE | H9: =H5*H8*(H7-3) -> 0 | L9: NB semaines de fermeture | M9: 3
C10: Taux de référence Perpignan | D10: 0.3434 | G10: Fond propre | H10: 10000 | L10: Semaines d'ouverture | M10: =D42-M9 -> 49
C11: Surface dédié au coworking | D11: 0 | G11: Apports en nature | H11: 0 | L11: Jours ouvrés | M11: =(D42-M9)*E94 -> 294
G12: Apports associés | H12: 0 | L12: Nb heures location par an | M12: =($D$42-$M$9)*Pilotage!$E$93 -> 2156
B13: Divers | G13: Financement participatif | H13: ='Plan financier initial'!I17 -> 0 | L13: Nb heures OpenLabs par an | M13: =($D$42-$M$9)*Pilotage!$E$92 -> 392
C14: TVA | D14: 0.2 | G14: Contreparties | H14: 0.02 | L14: Ratio loc adhérent | M14: 0.33
C15: TTC -> HT | D15: =(100/(100+100*Pilotage!$D$14)) -> 0.8333333333 | G15: Part plate-forme | H15: 0.08 | L15: Ratio loc tarif réduit | M15: 0.33
C16: Taux $ vers € | D16: =(TRIM(CLEAN(SUBSTITUTE(Change!E6,".",",")))) -> 0,7467 | G16: Objectif | H16: =H13*(1+H14)*(1+H15) -> 0 | I16: Ecart A0 | L16: Ratio loc entreprise | M16: 0.33
C17: Aléas | D17: 0.02 | G17: Compte courant d'associés | H17: 0 | I17: ='Plan financier initial'!I41 -> 429 | L17: Tarif réduit | M17: 0.1
C18: Taux d'amortissement linéaire | D18: 0.2 | G18: Financements participatifs | H18: 0 | L18: Remise adhérent | M18: 0.2
C19: Impôt IS ? (0 ou 1) | D19: 1 | G19: Autres fonds (NACRE, fondations) | H19: 0 | I19: Sub. D'exploit | L19: Marge de revente du stock | M19: 0.1
C20: TMO S1 2014 | D20: 0.0228 | G20: Financements privés/sponsors | H20: 0 | I20: 0 | L20: Marge sur les produits finis | M20: 0
B21: Banque | G21: Prêts d'honneur | H21: 0
C22: Taux d'intérêt annuel | D22: 0.04 | G22: PCE | H22: 0 | M22: Année 0 | N22: Année 1 | O22: Année 2 | P22: Année 3 | Q22: Année 4 | R22: Année 5
C23: Durée en année | D23: 15 | G23: BFR | H23: 0 | I23: =H23-I17 -> -429 | L23: Renouvellement des consommables | N23: 0.25 | O23: 0.25 | P23: 0.25 | Q23: 0.25 | R23: 0.25
C24: Périodicité (nb fois/an, 4 = trimest.) | D24: 4 | L24: Renouvellement des équipements | N24: 0.1 | O24: 0.1 | P24: 0.2 | Q24: 0.2 | R24: 0.2
C25: Paiement (0=fin/1=début) | D25: 0 | F25: Prestations | G25: Tarifs horaires | H25: Quantités | I25: ratio /abon | J25: h/sem | L25: Augmentation salaires | N25: 0.03 | O25: 0.03 | P25: 0.03 | Q25: 0.03 | R25: 0.03
C26: Date de début du remboursement | D26: =DATE(2014,10,1) -> 2014-10-01 | F26: Formations | G26: 0 | H26: 0 | I26: 0 | J26: =H26/(D$42-M$9) -> 0 | L26: Estim. des ventes du stock | M26: 1 | N26: 2 | O26: 2 | P26: 2 | Q26: 1 | R26: 1.1
C27: ="Montant d'une échéance ("&12/D24&" mois)" -> Montant d'une échéance (3 mois) | D27: =Emprunt!C12 -> 0 | F27: Presta(conseil, accomp) | G27: 0 | H27: 0 | I27: 0 | J27: =H27/(D$42-M$9) -> 0 | L27: Transf. du stock en produit | M27: 0 | N27: 0 | O27: 0 | P27: 0 | Q27: 0 | R27: 0
C28: Coût total | D28: =Emprunt!C13 -> 0 | F28: Cours collectifs | G28: 0 | H28: 0 | J28: =H28/M10 -> 0 | L28: Prog. ventes du stock | M28: =PRODUCT($M26:M26) -> 1 | N28: 1.5 | O28: 2 | P28: 2 | Q28: 2 | R28: 2
C29: Capital emprunté | D29: 0 | F29: Privatisation du fablab | G29: 0 | H29: 0 | J29: =H29/(D$42-M$9) -> 0 | L29: Progr. des ventes de produits | M29: =PRODUCT($M27:M27) -> 0 | N29: =PRODUCT($M27:N27) -> 0 | O29: =PRODUCT($M27:O27) -> 0 | P29: =PRODUCT($M27:P27) -> 0 | Q29: =PRODUCT($M27:Q27) -> 0 | R29: =PRODUCT($M27:R27) -> 0
C30: Besoins (-BI-BFR) perm. couverts | D30: =D29/('Plan de financement à 6 ans'!E40-'Plan de financement à 6 ans'!E26-'Plan de financement à 6 ans'!E13) -> 0 | F30: Location à emporter Impr.3D | G30: 0 | H30: 0 | J30: =H30/8/(D$42-M$9) -> 0 | L30: Stock avant excercice | M30: 100 | N30: =INT(M33+$M$30*N35) -> 220 | O30: =N33+INT($M$30*O35) -> 438 | P30: =O33+INT($M$30*P35) -> 876 | Q30: =P33+INT($M$30*Q35) -> 872 | R30: =Q33+INT($M$30*R35) -> 960
C31: Couverture maximale | D31: 0.7 | F31: Location bureau(0,5j) | G31: 0 | H31: 0 | L31: Stock vendu | M31: =M30*M28 -> 100 | N31: =INT(M31*N26) -> 200 | O31: 400 | P31: 800 | Q31: 800 | R31: 880
C32: Maximum empruntable | D32: =('Plan de financement à 6 ans'!E40-'Plan de financement à 6 ans'!E26-'Plan de financement à 6 ans'!E13)*Pilotage!D31 -> 6699.7 | L32: Produits vendu | M32: =M30*M27 -> 0 | N32: 0 | O32: 0 | P32: 0 | Q32: 0 | R32: 0
C33: Capital idéal à emprunter | D33: =IF('Plan financier initial'!E39-SUM('Plan financier initial'!I16,'Plan financier initial'!I33,'Plan financier initial'!I7) > 0, 'Plan financier initial'!E39-SUM('Plan financier initial'!I7,'Plan financier initial'!I33,'Plan financier initial'!I16), 0) -> 0 | F33: Adhésions | G33: Prix année | H33: Quantités | L33: Stock après excercice | M33: =M30-M31-M32 -> 0 | N33: 20 | O33: 38 | P33: 76 | Q33: 72 | R33: 80
F34: Starter | G34: 0 | H34: 0 | I34: =Hypothèses!M36 -> 96 | J34: Calculé | L34: Restockage idéal | N34: =IF((N31+N32-M33)/100<0,0,(N31+N32-M33)/100) -> 2 | O34: =IF((O31+O32-N33)/100<0,0,(O31+O32-N33)/100) -> 3.8 | P34: =IF((P31+P32-O33)/100<0,0,(P31+P32-O33)/100) -> 7.62 | Q34: =IF((Q31+Q32-P33)/100<0,0,(Q31+Q32-P33)/100) -> 7.24 | R34: =IF((R31+R32-Q33)/100<0,0,(R31+R32-Q33)/100) -> 8.08
B35: Salaires | F35: Maker | G35: 0 | H35: 0 | I35: =ROUND(AVERAGE(I34,Hypothèses!G114),0) -> 98 | J35: Hypothèse | L35: Renouvellement du stock | N35: =N34*110% -> 2.2 | O35: =O34*110% -> 4.18 | P35: =P34*110% -> 8.382 | Q35: =Q34*110% -> 7.964 | R35: =R34*110% -> 8.888
C36: Taux Smic horaire brut 2014 | D36: 9.53 | F36: Startup | G36: 0 | H36: 0 | I36: =IF(I35="",I34,I35) -> 98 | J36: Conseillé | L36: Estim des ventes de presta | M36: 1 | N36: 1.3 | O36: 1.2 | P36: 1 | Q36: 1.05 | R36: 1.1
C37: Taux Ch. Salariales | D37: 0.22 | F37: Pro | G37: 0 | H37: 0 | I37: 50 | J37: Utilisé | L37: Progression des prestations | M37: =PRODUCT($M36:M36) -> 1 | N37: =PRODUCT($M36:N36) -> 1.3 | O37: =PRODUCT($M36:O36) -> 1.56 | P37: =PRODUCT($M36:P36) -> 1.56 | Q37: =PRODUCT($M36:Q36) -> 1.638 | R37: =PRODUCT($M36:R36) -> 1.8018
C38: Nb heures/ semaine | D38: 35 | F38: Accès atelier | G38: 0 | H38: 0 | L38: Estimation des locations | M38: 1 | N38: 1.45 | O38: 1.2 | P38: 1.1 | Q38: 1.05 | R38: 1
C39: Plafond horaire de la sécurité sociale | D39: 23 | F39: Accès atelier réduit | G39: 0 | H39: 0 | L39: Nb h / sem / machine | M39: =H51 -> 3.111111111 | N39: =M39*N38 -> 4.511111111 | O39: =N39*O38 -> 5.413333333 | P39: =O39*P38 -> 5.954666667 | Q39: =P39*Q38 -> 6.2524 | R39: =Q39*R38 -> 6.2524
C40: Taux Ch. Patronales | D40: 0.42 | L40: Progression des locations | M40: =PRODUCT($M38:M38) -> 1 | N40: =PRODUCT($M38:N38) -> 1.45 | O40: =PRODUCT($M38:O38) -> 1.74 | P40: =PRODUCT($M38:P38) -> 1.914 | Q40: =PRODUCT($M38:Q38) -> 2.0097 | R40: =PRODUCT($M38:R38) -> 2.0097
C41: Nb Mois | D41: 12 | F41: Machines | G41: Tarifs horaires | H41: Quantités | I41: Nb machines | J41: Utilisation | L41: Bénéfices | M41: ='Comptes de résultat 6 ans'!G84 ->  | N41: ='Comptes de résultat 6 ans'!H84 -> 2099.83208 | O41: ='Comptes de résultat 6 ans'!I84 -> 203011.5539 | P41: ='Comptes de résultat 6 ans'!J84 -> 611577.3418 | Q41: ='Comptes de résultat 6 ans'!K84 -> 605074.5331 | R41: ='Comptes de résultat 6 ans'!L84 -> 681412.1365
C42: Nb semaines | D42: 52 | F42: Découpe laser | G42: 0 | H42: 7 | I42: 0 | J42: =H42/H$51 -> 2.25 | L42: Pertes | M42: ='Comptes de résultat 6 ans'!R84 -> 93717.04285 | N42: ='Comptes de résultat 6 ans'!S84 ->  | O42: ='Comptes de résultat 6 ans'!T84 ->  | P42: ='Comptes de résultat 6 ans'!U84 ->  | Q42: ='Comptes de résultat 6 ans'!V84 ->  | R42: ='Comptes de résultat 6 ans'!W84 -> 
C43: Gratification horaire min du stagiaire | D43: =(D39*12.5%) -> 2.875 | F43: Imprimante 3D | G43: 0 | H43: 6 | I43: 0 | J43: 1.928571429 | L43: Point mort | M43: =Calculs!C29 -> 684.4051483 | N43: =Calculs!D29 -> 356.3656752 | O43: =Calculs!E29 -> 184.3169245 | P43: =Calculs!F29 -> 82.28241262 | Q43: =Calculs!G29 -> 84.82690129 | R43: =Calculs!H29 -> 79.19420593
C44: Gratification mensuelle min du stagiaire | D44: 520 | F44: Petite imprimante 3D | G44: 0 | H44: 3 | I44: 0 | J44: 0.9642857143 | M44: =IF(M42<>"",M42*-1,"") -> -93717.04285
C45: Nb heures/mois | D45: =D38*D42/D41 -> 151.6666667 | F45: Découpe vinyle | G45: 0 | H45: 1 | I45: 0 | J45: 0.3214285714 | M45: =E68 -> 4 | N45: =G68 -> 4 | O45: =I68 -> 4 | P45: =K68 -> 4 | Q45: =M68 -> 4 | R45: =O68 -> 4
C46: SMIC brut | D46: =D45*D36 -> 1445.383333 | F46: Petite fraiseuse | G46: 0 | H46: 1 | I46: 0 | J46: 0.3214285714 | L46: Cumulés | M46: =SUM($M41:M41)+SUM($M44:M44) -> -93717.04285 | N46: =SUM($M41:N41)+SUM($M44:N44) -> -91617.21077 | O46: =SUM($M41:O41)+SUM($M44:O44) -> 111394.3431 | P46: =SUM($M41:P41)+SUM($M44:P44) -> 722971.6849 | Q46: =SUM($M41:Q41)+SUM($M44:Q44) -> 1328046.218 | R46: =SUM($M41:R41)+SUM($M44:R44) -> 2009458.354
C47: Aléas | D47: 0 | F47: Grande fraiseuse | G47: 0 | H47: 6 | I47: 0 | J47: 1.928571429 | L47: Chiffre d'affaire | M47: ='Comptes de résultat 6 ans'!R82 -> 104000 | N47: ='Comptes de résultat 6 ans'!S82 -> 208000 | O47: ='Comptes de résultat 6 ans'!T82 -> 416000 | P47: ='Comptes de résultat 6 ans'!U82 -> 832000 | Q47: ='Comptes de résultat 6 ans'!V82 -> 832000 | R47: ='Comptes de résultat 6 ans'!W82 -> 915200
C48: Formations | D48: 0.0055 | F48: Machine à coudre | G48: 0 | H48: 0 | I48: 0 | J48: 0 | L48: Charges | M48: ='Comptes de résultat 6 ans'!G82 -> 197717.0429 | N48: ='Comptes de résultat 6 ans'!H82 -> 205900.1679 | O48: ='Comptes de résultat 6 ans'!I82 -> 212988.4461 | P48: ='Comptes de résultat 6 ans'!J82 -> 220422.6582 | Q48: ='Comptes de résultat 6 ans'!K82 -> 226925.4669 | R48: ='Comptes de résultat 6 ans'!L82 -> 233787.8635
C49: Nb semaines CP | D49: 5 | F49: Machine à broder/coudre | G49: 0 | H49: 3 | I49: 0 | J49: 0.9642857143
F50: Presse à chaud | G50: 0 | H50: 1 | I50: 0 | J50: 0.3214285714
G51: Moyenne | H51: =AVERAGE(H42:H50) -> 3.111111111 | I51: =SUM(I42:I50) -> 0 | J51: =AVERAGE(J42:J50) -> 1
H52: ="soit "&ROUND(SUM(H42:H50)/E94,2)&" h/j" -> soit 4,67 h/j | I52: =SUM(H42:H50) -> 28
H53: =SUM(H42:H50)*M10 -> 1372
D54: Ressources humaines
C56: =Salaires!B7 -> Poste | E56: =Salaires!E7 -> Heures / semaine | F56: =Salaires!Q7 -> Nombre d'employé à ce poste | G56: =$E$56 -> Heures / semaine | H56: =$F$56 -> Nombre d'employé à ce poste | I56: =$E$56 -> Heures / semaine | J56: =$F$56 -> Nombre d'employé à ce poste | K56: =$E$56 -> Heures / semaine | L56: =$F$56 -> Nombre d'employé à ce poste | M56: =$E$56 -> Heures / semaine | N56: =$F$56 -> Nombre d'employé à ce poste | O56: =$E$56 -> Heures / semaine | P56: =$F$56 -> Nombre d'employé à ce poste | Q56: Coût horaire
D57: Salire brut | E57: Année 0 | G57: Année 1 | I57: Année 2 | K57: Année 3 | M57: Année 4 | O57: Année 5
G58: =N25 -> 0.03 | I58: =O25 -> 0.03 | K58: =P25 -> 0.03 | M58: =Q25 -> 0.03 | O58: =R25 -> 0.03
C59: Associé | D59: 2500 | E59: 35 | F59: 2 | G59: 35 | H59: 2 | I59: 35 | J59: 2 | K59: 35 | L59: 2 | M59: 35 | N59: 2 | O59: 35 | P59: 2 | Q59: =Salaires!V8 -> 26.64699088
C60: Community manager | D60: 2200 | E60: 35 | F60: 1 | G60: 35 | H60: 1 | I60: 35 | J60: 1 | K60: 35 | L60: 1 | M60: 35 | N60: 1 | O60: 35 | P60: 1 | Q60: =Salaires!V9 -> 23.5223003
C61: Developpeur | D61: 2000 | E61: 35 | F61: 1 | G61: 35 | H61: 1 | I61: 35 | J61: 1 | K61: 35 | L61: 1 | M61: 35 | N61: 1 | O61: 35 | P61: 1 | Q61: =Salaires!V10 -> 21.43917325
C62: administrateur | D62: 2000 | E62: 35 | F62: 0 | G62: 35 | H62: 0 | I62: 35 | J62: 0 | K62: 35 | L62: 0 | M62: 35 | N62: 0 | O62: 35 | P62: 0 | Q62: =Salaires!V11 -> 21.43917325
C63: Salarié 5 | D63: 1800 | E63: 35 | F63: 0 | G63: 35 | H63: 0 | I63: 35 | J63: 0 | K63: 35 | L63: 0 | M63: 35 | N63: 0 | O63: 35 | P63: 0 | Q63: =Salaires!V12 -> 19.3560462
C64: Salarié 6 | D64: =D46 -> 1445.383333 | E64: 35 | F64: 0 | G64: 35 | H64: 0 | I64: 35 | J64: 0 | K64: 35 | L64: 0 | M64: 35 | N64: 0 | O64: 35 | P64: 0 | Q64: =Salaires!V13 -> 15.66248834
C65: Stagiaire | D65: =D44 -> 520 | E65: 35 | F65: 0 | G65: 35 | H65: 0 | I65: 35 | J65: 0 | K65: 35 | L65: 0 | M65: 35 | N65: 0 | O65: 35 | P65: 0 | Q65: =Salaires!V14 -> 4.11812766
C66: Masse salariale | E66: =Salaires!T16 -> 161630.224 | G66: =Salaires!T29 -> 166359.1307 | I66: =Salaires!T42 -> 171229.9046 | K66: =Salaires!T55 -> 176246.8018 | M66: =Salaires!T68 -> 181414.2058 | O66: =Salaires!T81 -> 186736.632
C67: Heures / semaines | E67: =E59*F59+E60*F60+E61*F61+E62*F62+E63*F63+E64*F64+E65*F65 -> 140 | G67: =G59*H59+G60*H60+G61*H61+G62*H62+G63*H63+G64*H64+G65*H65 -> 140 | I67: =I59*J59+I60*J60+I61*J61+I62*J62+I63*J63+I64*J64+I65*J65 -> 140 | K67: =K59*L59+K60*L60+K61*L61+K62*L62+K63*L63+K64*L64+K65*L65 -> 140 | M67: =M59*N59+M60*N60+M61*N61+M62*N62+M63*N63+M64*N64+M65*N65 -> 140 | O67: =O59*P59+O60*P60+O61*P61+O62*P62+O63*P63+O64*P64+O65*P65 -> 140
C68: ETP | E68: =E67/35 -> 4 | G68: =G67/35 -> 4 | I68: =I67/35 -> 4 | K68: =K67/35 -> 4 | M68: =M67/35 -> 4 | O68: =O67/35 -> 4
D71: Agenda
F73: Lundi | G73: Mardi | H73: Mercredi | I73: Jeudi | J73: Vendredi | K73: Samedi | L73: Dimanche
E74: 8h - 9h
E75: 9h - 10h
E76: 10h - 11h | F76: 1 | G76: 1 | H76: 1 | I76: 1 | J76: 1 | K76: 1
E77: 11h - 12h | F77: 1 | G77: 1 | H77: 1 | I77: 1 | J77: 1 | K77: 1
E78: 12h - 13h | F78: 1 | G78: 1 | H78: 1 | I78: 1 | J78: 1 | K78: 1
E79: 13h - 14h | F79: 1 | G79: 1 | H79: 1 | I79: 1 | J79: 1 | K79: 1
E80: 14h - 15h | F80: 1 | G80: 1 | H80: 1 | I80: 1 | J80: 1 | K80: 1
E81: 15h - 16h | F81: 1 | G81: -1 | H81: 1 | I81: 1 | J81: 1 | K81: 1
E82: 16h - 17h | F82: 1 | G82: -1 | H82: 1 | I82: 1 | J82: 1 | K82: 1
E83: 17h - 18h | F83: 1 | G83: -1 | H83: 1 | I83: 1 | J83: 1 | K83: 1
E84: 18h - 19h | F84: 1 | G84: -1 | H84: 1 | I84: 1 | J84: -1 | K84: 1
E85: 19h - 20h | H85: 1 | J85: -1
E86: 20h - 21h | H86: 1 | J86: -1
E87: 21h - 22h | H87: 1 | J87: -1
E88: 22h - 23h
E89: 23h - 24h
D91: Total | E91: =SUM(F91:L91) -> 52 | F91: =COUNTIF(F74:F89,">0") -> 9 | G91: =COUNTIF(G74:G89,">0") -> 5 | H91: 12 | I91: 9 | J91: 8 | K91: 9 | L91: 0
D92: Open labs | E92: =SUM(F92:L92) -> 8 | F92: =COUNTIF(F74:F89,"<0") -> 0 | G92: =COUNTIF(G74:G89,"<0") -> 4 | H92: 0 | I92: 0 | J92: 4 | K92: 0 | L92: 0
D93: Location | E93: =E91-E92 -> 44 | F93: =F91-F92 -> 9 | G93: 1 | H93: 12 | I93: 9 | J93: 4 | K93: 9 | L93: 0
D94: Ouvré | E94: =SUM(F94:L94) -> 6 | F94: =IF(ABS(SUM(F74:F89))>0,1,0) -> 1 | G94: =IF(ABS(SUM(G74:G89))>0,1,0) -> 1 | H94: 1 | I94: 1 | J94: 1 | K94: 1 | L94: 0

Sheet CA
M2: Objectifs
M4: Revenus HT | O4: CA /an | Q4: CA /sem. | R4: CA /jour | S4: Qtt/j
M6: Ventes de produits finis | O6: 0 | Q6: =ROUND(O6/(Pilotage!$M$10),1) -> 0 | R6: =ROUND(O6/(Pilotage!$M$11),1) -> 0
M8: Ventes | O8: =SUM(O9:O14) ->  | P8: =SUM(P9:P14) -> 0 | Q8: =SUM(Q9:Q14) ->  | R8: =SUM(R9:R14) -> 
N9: Cafés | O9: ='Ventes Stock'!#REF! ->  | Q9: =ROUND(O9/(Pilotage!$M$10),1) ->  | R9: =ROUND(O9/(Pilotage!$M$11),1) ->  | S9: =R9/'Ventes Stock'!#REF! ->  | T9: /j
E10: =Résumé!C6 -> Porteur | F10: =Résumé!E6 -> Joris Navarro | I10: =Résumé!C7 -> Contact | J10: info@diod.co | N10: Thés | O10: ='Ventes Stock'!#REF! ->  | Q10: =ROUND(O10/(Pilotage!$M$10),1) ->  | R10: =ROUND(O10/(Pilotage!$M$11),1) ->  | S10: =R10/'Ventes Stock'!#REF! ->  | T10: /j
E11: Version | F11: 0 | I11: Date d'extraction | J11: =TODAY() -> 2015-03-03 | N11: Boissons | O11: ='Ventes Stock'!#REF! ->  | Q11: =ROUND(O11/(Pilotage!$M$10),1) ->  | R11: =ROUND(O11/(Pilotage!$M$11),1) ->  | S11: =R11/'Ventes Stock'!#REF! ->  | T11: /j
N12: Boissons
N13: Viennoiseries | O13: ='Ventes Stock'!#REF! ->  | Q13: =ROUND(O13/(Pilotage!$M$10),1) ->  | R13: =ROUND(O13/(Pilotage!$M$11),1) ->  | S13: =R13/'Ventes Stock'!#REF! ->  | T13: /j
E14: Informations sur le projet | N14: Matières premières | O14: ='Ventes Stock'!$M$5-SUM('Ventes Stock'!#REF!) ->  | Q14: =ROUND(O14/(Pilotage!$M$10),1) ->  | R14: =ROUND(O14/(Pilotage!$M$11),1) ->  | U14: =R14*6 -> 
M15: Prestations de services | O15: =SUM(O16:O21) -> 0 | P15: =SUM(P16:P21) -> 0 | Q15: =SUM(Q16:Q21) -> 0 | R15: =SUM(R16:R21) -> 0
E16: =Résumé!C10 -> Localisation | F16: =Résumé!E10 -> Perpignan | I16: R.H. | J16: =SUM(Pilotage!$F$59:$F$65)&" personne(s) la première année" -> 4 personne(s) la première année | N16: =E24 -> Formations | O16: =Prestations!$M7 -> 0 | Q16: =ROUND(O16/(Pilotage!$M$10),1) -> 0 | R16: =ROUND(O16/(Pilotage!$M$11),1) -> 0 | S16: =R16/(F24*Pilotage!$D$15) ->  | T16: h/j
E17: Lieu | I17: - | J17: =Pilotage!$F$59 &" gérant + " & Pilotage!$F$61 & " employé + " &Pilotage!$F$65& " stagiaire ("&12*Pilotage!$F$65&"mois)" -> 2 gérant + 1 employé + 0 stagiaire (0mois) | N17: Presta(conseil, accomp) | O17: =Prestations!$M8 -> 0 | Q17: =ROUND(O17/(Pilotage!$M$10),1) -> 0 | R17: =ROUND(O17/(Pilotage!$M$11),1) -> 0 | S17: =R17/(F25*Pilotage!$D$15) ->  | T17: h/j
E18: =Résumé!C11 -> Etablissement | F18: =Résumé!E11 -> 0 m² | I18: - | J18: Embauche d'un ingénieur la 2ème année | N18: Cours collectifs | O18: =Prestations!$M9 -> 0 | Q18: =ROUND(O18/(Pilotage!$M$10),1) -> 0 | R18: =ROUND(O18/(Pilotage!$M$11),1) -> 0 | S18: =R18/(F26*Pilotage!$D$15) ->  | T18: h/j
E19: Loyer | F19: =Pilotage!$D$7& " € HT/mois" -> 0 € HT/mois | N19: Privatisation du fablab | O19: =Prestations!$M10 -> 0 | Q19: =ROUND(O19/(Pilotage!$M$10),1) -> 0 | R19: =ROUND(O19/(Pilotage!$M$11),1) -> 0 | S19: =R19/(F27*Pilotage!$D$15) ->  | T19: h/j
N20: Location à emporter Impr.3D | O20: =Prestations!$M11 -> 0 | Q20: =ROUND(O20/(Pilotage!$M$10),1) -> 0 | R20: =ROUND(O20/(Pilotage!$M$11),1) -> 0 | S20: =R20/(F28*Pilotage!$D$15) ->  | T20: h/j
E21: Tarifs TTC | N21: Location bureau(0,5j) | O21: =Prestations!$M12 -> 0 | Q21: =ROUND(O21/(Pilotage!$M$10),1) -> 0 | R21: =ROUND(O21/(Pilotage!$M$11),1) -> 0 | S21: =R21/(F29*Pilotage!$D$15) ->  | T21: h/j
M22: Locations | O22: =SUM(O23:O31) ->  | P22: =SUM(P23:P31) -> 0 | Q22: =SUM(Q23:Q31) ->  | R22: =SUM(R23:R31) -> 
E23: =Pilotage!F25 -> Prestations | F23: =Pilotage!G25 -> Tarifs horaires | I23: =Pilotage!H25 -> Quantités | K23: Commentaires | N23: =E43 -> Découpe laser | O23: =Locations!#REF!+Locations!#REF!+Locations!#REF! ->  | Q23: =ROUND(O23/(Pilotage!$M$10),1) ->  | R23: =ROUND(O23/(Pilotage!$M$11),1) ->  | S23: =I43/Pilotage!$E$94 -> 1.166666667 | T23: h/j
E24: =Pilotage!F26 -> Formations | F24: =Pilotage!G26 -> 0 | I24: =Pilotage!H26 -> 0 | J24: h/an | K24: ="soit " &ROUND((I24)/(I$36),1) & " h/abo./an" ->  | N24: Imprimante 3D | O24: =Locations!#REF!+Locations!#REF!+Locations!#REF! ->  | Q24: =ROUND(O24/(Pilotage!$M$10),1) ->  | R24: =ROUND(O24/(Pilotage!$M$11),1) ->  | S24: =I44/Pilotage!$E$94 -> 1 | T24: h/j
E25: =Pilotage!F27 -> Presta(conseil, accomp) | F25: =Pilotage!G27 -> 0 | I25: =Pilotage!H27 -> 0 | J25: h/an | K25: ="soit "&ROUND(I25/I$36,1)&" h/abo./an ou " & ROUND(I25/8,1)&" j/an de prestation" ->  | N25: Petite imprimante 3D | O25: =Locations!#REF!+Locations!#REF!+Locations!#REF! ->  | Q25: =ROUND(O25/(Pilotage!$M$10),1) ->  | R25: =ROUND(O25/(Pilotage!$M$11),1) ->  | S25: =I45/Pilotage!$E$94 -> 0.5 | T25: h/j
E26: =Pilotage!F28 -> Cours collectifs | F26: =Pilotage!G28 -> 0 | I26: =Pilotage!H28 -> 0 | J26: h/an | K26: ="soit " &ROUND((I26/5)*4.33/50,1) & " cours de 5 pers./mois" -> soit 0 cours de 5 pers./mois | N26: Découpe vinyle | O26: =Locations!#REF!+Locations!#REF!+Locations!#REF! ->  | Q26: =ROUND(O26/(Pilotage!$M$10),1) ->  | R26: =ROUND(O26/(Pilotage!$M$11),1) ->  | S26: =I46/Pilotage!$E$94 -> 0.1666666667 | T26: h/j
E27: =Pilotage!F29 -> Privatisation du fablab | F27: =Pilotage!G29 -> 0 | I27: =Pilotage!H29 -> 0 | J27: h/an | K27: ="soit " &ROUND((I27/8),2) & " j/an" -> soit 0 j/an | N27: Petite fraiseuse | O27: =Locations!#REF!+Locations!#REF!+Locations!#REF! ->  | Q27: =ROUND(O27/(Pilotage!$M$10),1) ->  | R27: =ROUND(O27/(Pilotage!$M$11),1) ->  | S27: =I47/Pilotage!$E$94 -> 0.1666666667 | T27: h/j
E28: =Pilotage!F30 -> Location à emporter Impr.3D | F28: =Pilotage!G30 -> 0 | I28: =Pilotage!H30 -> 0 | J28: h/an | K28: ="soit " &ROUND((I28/8),2) & " j/an" -> soit 0 j/an | N28: Grande fraiseuse | O28: =Locations!#REF!+Locations!#REF!+Locations!#REF! ->  | Q28: =ROUND(O28/(Pilotage!$M$10),1) ->  | R28: =ROUND(O28/(Pilotage!$M$11),1) ->  | S28: =I48/Pilotage!$E$94 -> 1 | T28: h/j
E29: =Pilotage!F31 -> Location bureau(0,5j) | F29: =Pilotage!G31 -> 0 | I29: =Pilotage!H31 -> 0 | J29: loyers | N29: Machine à coudre | O29: =Locations!#REF!+Locations!#REF!+Locations!#REF! ->  | Q29: =ROUND(O29/(Pilotage!$M$10),1) ->  | R29: =ROUND(O29/(Pilotage!$M$11),1) ->  | S29: =I49/Pilotage!$E$94 -> 0 | T29: h/j
N30: Machine à broder/coudre | O30: =Locations!#REF!+Locations!#REF!+Locations!#REF! ->  | Q30: =ROUND(O30/(Pilotage!$M$10),1) ->  | R30: =ROUND(O30/(Pilotage!$M$11),1) ->  | S30: =I50/Pilotage!$E$94 -> 0.5 | T30: h/j
E31: =Pilotage!F33 -> Adhésions | F31: =Pilotage!G33 -> Prix année | I31: =Pilotage!H33 -> Quantités | K31: Commentaires | N31: Presse à chaud | O31: =Locations!#REF!+Locations!#REF!+Locations!#REF! ->  | Q31: =ROUND(O31/(Pilotage!$M$10),1) ->  | R31: =ROUND(O31/(Pilotage!$M$11),1) ->  | S31: =I51/Pilotage!$E$94 -> 0.1666666667 | T31: h/j | U31: =SUM(S23:S31) -> 4.666666667 | V31: =U31*6 -> 28
B32: 1 | C32: 1 | D32: 0 | E32: =Pilotage!F34&" (étudiants, sans emploi, ...)" -> Starter (étudiants, sans emploi, ...) | F32: =Pilotage!G34 -> 0 | I32: =Pilotage!H34 -> 0 | J32: adh. | K32: ="soit " &ROUND(F32/12,1)&" €/mois pour "&B32&" h/an de formation, "&C32&" h/mois de temps machine "&IF(D32>0,", "&D32&" h/m d'accompagnement personnalisé","")&" (valeur : "&C32*12*F$52+D32*F$25*12+B32*F$24&" €)" -> soit 0 €/mois pour 1 h/an de formation, 1 h/mois de temps machine (valeur : 0 €) | M32: Accès | O32: =SUM(O33:O34) -> 0 | Q32: =ROUND(O32/(Pilotage!$M$10),1) -> 0 | R32: =ROUND(O32/(Pilotage!$M$11),1) -> 0
B33: 1 | C33: 1 | D33: 0 | E33: =Pilotage!F35 -> Maker | F33: =Pilotage!G35 -> 0 | I33: =Pilotage!H35 -> 0 | J33: adh. | K33: ="soit " &ROUND(F33/12,1)&" €/mois pour "&B33&" h/an de formation, "&C33&" h/m de temps machine "&IF(D33>0,", "&D33&" h/mois d'accompagnement personnalisé","")&" au lieu de "&C33*12*F$52+D33*F$25*12+B33*F$24&" €" -> soit 0 €/mois pour 1 h/an de formation, 1 h/m de temps machine au lieu de 0 € | N33: =Pilotage!F38 -> Accès atelier | O33: =Abos!M12 -> 0 | Q33: =ROUND(O33/(Pilotage!$M$10),1) -> 0 | R33: =ROUND(O33/(Pilotage!$M$11),1) -> 0 | S33: =F36/Pilotage!$E$94 -> 0 | T33: h/j
B34: 1 | C34: 3 | D34: 1 | E34: =Pilotage!F36 -> Startup | F34: =Pilotage!G36 -> 0 | I34: =Pilotage!H36 -> 0 | J34: adh. | K34: ="soit " &ROUND(F34/12,1)&" €/mois pour "&B34&" h/an de formation, "&C34&" h/mois de temps machine "&IF(D34>0,", "&D34&" h/mois d'accompagnement personnalisé","")&" (valeur : "&C34*12*F$52+D34*F$25*12+B34*F$24&" €)" -> soit 0 €/mois pour 1 h/an de formation, 3 h/mois de temps machine , 1 h/mois d'accompagnement personnalisé (valeur : 0 €) | N34: =Pilotage!F39 -> Accès atelier réduit | O34: =Abos!M13 -> 0 | Q34: =ROUND(O34/(Pilotage!$M$10),1) -> 0 | R34: =ROUND(O34/(Pilotage!$M$11),1) -> 0 | S34: =F37/Pilotage!$E$94 -> 0 | T34: h/j
B35: 2 | C35: 5 | D35: 2 | E35: =Pilotage!F37 -> Pro | F35: =Pilotage!G37 -> 0 | I35: =Pilotage!H37 -> 0 | J35: adh. | K35: ="soit " &ROUND(F35/12,1)&" €/mois pour "&B35&" h/an de formation, "&C35&" h/m de temps machine "&IF(D35>0,", "&D35&" h/m d'accompagnement personnalisé","")&" (valeur : "&C35*12*F$52+D35*F$25*12+B35*F$24&" €)" -> soit 0 €/mois pour 2 h/an de formation, 5 h/m de temps machine , 2 h/m d'accompagnement personnalisé (valeur : 0 €) | M35: Abonnements | O35: =Abos!$M$5-O32 -> 0 | Q35: =ROUND(O35/(Pilotage!$M$10),1) -> 0 | R35: =ROUND(O35/(Pilotage!$M$11),1) -> 0 | S35: =ROUND(R35/((F32*I32+F33*I33+F34*I34+F35*I35)/I36),2) ->  | T35: /j
E36: =Pilotage!F38 -> Accès atelier | F36: =Pilotage!G38 -> 0 | G36: =Pilotage!H38 -> 0 | H36: Total | I36: =SUM(I32:I35) -> 0 | J36: adhérents ( chiffres basé sur la fréquentation de fablabs en France) | O36: =O4 -> CA /an | P36: =P4 -> 0 | Q36: =Q4 -> CA /sem. | R36: =R4 -> CA /jour
E37: =Pilotage!F39 -> Accès atelier réduit | F37: =Pilotage!G39 -> 0 | G37: =Pilotage!H39 -> 0 | I37: =Hypothèses!D106 -> 11453 | J37: associations dans le bassin de perpignan | M37: Total | O37: =SUM(O8)+SUM(O35)+O15+O22+SUM(O33:O34) ->  | P37: =SUM(P8)+SUM(P35)+P15+P22+SUM(P33:P34) -> 0
I38: =Hypothèses!D109 -> 1145.3 | J38: assoc. représentant 10% de ce marché
O39: ='Comptes de résultat 3 ans'!D13-CA!O37 -> 
E40: =Pilotage!F41 -> Machines | F40: =Pilotage!G41 -> Tarifs horaires | I40: =Pilotage!H41 -> Quantités | K40: Commentaires
F41: =Pilotage!$M$16 -> 0.33 | G41: =Pilotage!$M$15 -> 0.33 | H41: =Pilotage!$M$14 -> 0.33
F42: Plein tarif | G42: Réduit | H42: Adhérent
E43: =Pilotage!F42 -> Découpe laser | F43: =Pilotage!G42 -> 0 | G43: =F43-F43*Pilotage!$M$17 -> 0 | H43: =F43-F43*Pilotage!$M$18 -> 0 | I43: =Pilotage!H42 -> 7 | J43: h/sem | K43: Gravure métal, verre. Découpe cuir, plexi, carton, bois fin
E44: =Pilotage!F43 -> Imprimante 3D | F44: =Pilotage!G43 -> 0 | G44: =F44-F44*Pilotage!$M$17 -> 0 | H44: =F44-F44*Pilotage!$M$16 -> 0 | I44: =Pilotage!H43 -> 6 | J44: h/sem | K44: Impression d'objets 3D, avec ajout de matière plastique
E45: =Pilotage!F44 -> Petite imprimante 3D | F45: =Pilotage!G44 -> 0 | G45: =F45-F45*Pilotage!$M$17 -> 0 | H45: =F45-F45*Pilotage!$M$16 -> 0 | I45: =Pilotage!H44 -> 3 | J45: h/sem
E46: =Pilotage!F45 -> Découpe vinyle | F46: =Pilotage!G45 -> 0 | G46: =F46-F46*Pilotage!$M$17 -> 0 | H46: =F46-F46*Pilotage!$M$16 -> 0 | I46: =Pilotage!H45 -> 1 | J46: h/sem | K46: Découpe de stickers, papier
E47: =Pilotage!F46 -> Petite fraiseuse | F47: =Pilotage!G46 -> 0 | G47: =F47-F47*Pilotage!$M$17 -> 0 | H47: =F47-F47*Pilotage!$M$16 -> 0 | I47: =Pilotage!H46 -> 1 | J47: h/sem | K47: Scan et modelage 3D
E48: =Pilotage!F47 -> Grande fraiseuse | F48: =Pilotage!G47 -> 0 | G48: =F48-F48*Pilotage!$M$17 -> 0 | H48: =F48-F48*Pilotage!$M$16 -> 0 | I48: =Pilotage!H47 -> 6 | J48: h/sem | K48: Découpe de bois, petites et grandes dimensions pour meubles, structures, ...
E49: =Pilotage!F48 -> Machine à coudre | F49: =Pilotage!G48 -> 0 | G49: =F49-F49*Pilotage!$M$17 -> 0 | H49: =F49-F49*Pilotage!$M$16 -> 0 | I49: =Pilotage!H48 -> 0 | J49: h/sem | K49: Couture
E50: =Pilotage!$F49 -> Machine à broder/coudre | F50: =Pilotage!G49 -> 0 | G50: =F50-F50*Pilotage!$M$17 -> 0 | H50: =F50-F50*Pilotage!$M$16 -> 0 | I50: =Pilotage!H49 -> 3 | J50: h/sem | K50: Couture et broderie
E51: =Pilotage!$F50 -> Presse à chaud | F51: =Pilotage!G50 -> 0 | G51: =F51-F51*Pilotage!$M$17 -> 0 | H51: =F51-F51*Pilotage!$M$16 -> 0 | I51: =Pilotage!H50 -> 1 | J51: h/sem | K51: Flocage de t-shirt
E52: Prix moyen | F52: =H43 -> 0 | I52: ="soit "&SUM(I43:I51)*Pilotage!M10 -> soit 1372 | J52: h/an
I54: =SUM(I43:I51) -> 28
F55: =C35*12*F$52+D35*F$25*12+B35*F$24 -> 0

Sheet Hypothèses (hidden)
F1: Formulaire DGCIS | H1: Contacter Interfabs
C3: Dénomination | D3: Lieu | E3: Dept | F3: Forme jur. | G3: APE(NAF) | H3: Commentaire | I3: Contacts | J3: mails | K3: téléphone | L3: Population | M3: Abonnés | N3: Ratio
C4: Antibes NavLab | D4: Antibes | E4: 6 | F4: SASU | I4: Bruno MESSIN | J4: navlab@avitys.com | K4: 688521764 | L4: 75553 | M4: 38 | N4: =IF(FabLabs[[#This Row],[Abonnés]]<>"",FabLabs[[#This Row],[Abonnés]]/FabLabs[[#This Row],[Population]],0) -> 0.0005029581883
C5: Smart Materials | D5: Charleville-Mezières | E5: 8 | F5: Institut de Formation Technique Supérieur (IFTS) | I5: Camille Billaudel | J5: fablab@ifts.net; camille.billaudel@etudiant.univ-reims.fr | N5: =IF(FabLabs[[#This Row],[Abonnés]]<>"",FabLabs[[#This Row],[Abonnés]]/FabLabs[[#This Row],[Population]],0) -> 0
C6: FABLAB MARSEILLE | D6: Marseille | E6: 13 | F6: Association | G6: 8230Z | H6: Organisation de foires, salons professionnels et congrès | L6: 850602 | N6: =IF(FabLabs[[#This Row],[Abonnés]]<>"",FabLabs[[#This Row],[Abonnés]]/FabLabs[[#This Row],[Population]],0) -> 0
C7: FabLab Provence | D7: Aix-en-Provence | E7: 13 | I7: Sébastien Nedjar | J7: contact@fablab-provence.com | N7: =IF(FabLabs[[#This Row],[Abonnés]]<>"",FabLabs[[#This Row],[Abonnés]]/FabLabs[[#This Row],[Population]],0) -> 0
C8: Laboratoire d'Aix-périmentation et de Bidouille - FabLab Aix | D8: Aix-en-Provence | E8: 13 | N8: =IF(FabLabs[[#This Row],[Abonnés]]<>"",FabLabs[[#This Row],[Abonnés]]/FabLabs[[#This Row],[Population]],0) -> 0
C9: RELAIS DE SCIENCES CCSTI DE BN | D9: Caen | E9: 14 | F9: Association | J9: mdebar@relais-sciences.org | K9: 02 31 06 60 50 | N9: =IF(FabLabs[[#This Row],[Abonnés]]<>"",FabLabs[[#This Row],[Abonnés]]/FabLabs[[#This Row],[Population]],0) -> 0
C10: Kelle FabriK | D10: Dijon | E10: 21 | F10: Association (IUT) | I10: Laurence Berthoud lafarge | J10: kellefabrik@gmail.com | K10: 06 22 69 40 71 | N10: =IF(FabLabs[[#This Row],[Abonnés]]<>"",FabLabs[[#This Row],[Abonnés]]/FabLabs[[#This Row],[Population]],0) -> 0
C11: KER NEL NOUVEL ESPACE LUDO-CREATIF | D11: Lannion | E11: 22 | F11: Association | J11: contact@fablab-lannion.org | K11: 02 96 37 84 46 | N11: =IF(FabLabs[[#This Row],[Abonnés]]<>"",FabLabs[[#This Row],[Abonnés]]/FabLabs[[#This Row],[Population]],0) -> 0
C12: 8Fablab Drome | D12: Crest | E12: 26 | F12: SCIC SA | G12: 7410Z | H12: Activités spécialisées de design | I12: Carole Thourigny directrice, Nicolas Nolibos fabmanager | J12: http://www.8fablab.fr/index.php?option=com_content&view=article&id=5&Itemid=107 | K12: 04 75 55 14 78 | L12: 7789 | N12: =IF(FabLabs[[#This Row],[Abonnés]]<>"",FabLabs[[#This Row],[Abonnés]]/FabLabs[[#This Row],[Population]],0) -> 0
C13: Artilect | D13: Toulouse | E13: 31 | F13: Association | G13: 9499Z | H13: Autres organisations fonctionnant par adhésion volontaire | I13: Nicolas LASSABE et Lionel DESSIRIEIX Philippe Semanaz (FM) | J13: contact@artilect.fr | L13: 439553 | M13: 700 | N13: =IF(FabLabs[[#This Row],[Abonnés]]<>"",FabLabs[[#This Row],[Abonnés]]/FabLabs[[#This Row],[Population]],0) -> 0.001592526954
C14: Under development | D14: Cintegabelle | E14: 31 | N14: =IF(FabLabs[[#This Row],[Abonnés]]<>"",FabLabs[[#This Row],[Abonnés]]/FabLabs[[#This Row],[Population]],0) -> 0
C15: LabSud | D15: Montpellier | E15: 34 | F15: Association | I15: Jean-phililppe Civade | J15: contact@labsud.org | K15: 09 84 31 82 08 | L15: 252998 | M15: 100 | N15: =IF(FabLabs[[#This Row],[Abonnés]]<>"",FabLabs[[#This Row],[Abonnés]]/FabLabs[[#This Row],[Population]],0) -> 0.0003952600416
C16: Web-5 | D16: Béziers | E16: 34 | F16: Association (IUT) | I16: Alexis Bory | J16: fablab@web-5.org | K16: - | L16: 71432 | M16: 50 | N16: =IF(FabLabs[[#This Row],[Abonnés]]<>"",FabLabs[[#This Row],[Abonnés]]/FabLabs[[#This Row],[Population]],0) -> 0.0006999664016
C17: LabFab | D17: Rennes | E17: 35 | F17: EESAB – Ecole Européenne Supérieure d’Arts de Bretagne | I17: richard de logu | J17: contact@labfab.fr;richard.delogu@asso-bug.org | N17: =IF(FabLabs[[#This Row],[Abonnés]]<>"",FabLabs[[#This Row],[Abonnés]]/FabLabs[[#This Row],[Population]],0) -> 0
C18: Fabrique d’Usages Numériques | D18: Tours | E18: 37 | F18: Association | I18: Didier Roudaut & Cyrille Giquello | J18: fablab.tours@gmail.com | K18: 06 03 95 12 16 | N18: =IF(FabLabs[[#This Row],[Abonnés]]<>"",FabLabs[[#This Row],[Abonnés]]/FabLabs[[#This Row],[Population]],0) -> 0
C19: La casemate CCSTI Grenoble | D19: Grenoble | E19: 38 | F19: Association | J19: fablab@ccsti-grenoble.org | K19: 04 76 44 88 76 | N19: =IF(FabLabs[[#This Row],[Abonnés]]<>"",FabLabs[[#This Row],[Abonnés]]/FabLabs[[#This Row],[Population]],0) -> 0
C20: Net-Iki | D20: Biarne | E20: 39 | F20: Association | G20: 9499Z | H20: Autres organisations fonctionnant par adhésion volontaire | J20: fablab.netiki@gmail.com | K20: 660324386 | N20: =IF(FabLabs[[#This Row],[Abonnés]]<>"",FabLabs[[#This Row],[Abonnés]]/FabLabs[[#This Row],[Population]],0) -> 0
C21: FabLab Comtois Champagnole | D21: Champagnole | E21: 39 | F21: Association | I21: Gilles Ramseier | J21: fablabchampagnole@gmail.com | K21: 03 81 68 83 10 | L21: 250 | N21: =IF(FabLabs[[#This Row],[Abonnés]]<>"",FabLabs[[#This Row],[Abonnés]]/FabLabs[[#This Row],[Population]],0) -> 0
C22: Fabriques Alternatives | D22: Mont de marsan | E22: 40 | F22: Association | I22: Frederic Coubard | J22: fabriques.alternatives@gmail.com | K22: 06 86 97 82 56 | N22: =IF(FabLabs[[#This Row],[Abonnés]]<>"",FabLabs[[#This Row],[Abonnés]]/FabLabs[[#This Row],[Population]],0) -> 0
C23: FabLab Robert-Houdin | D23: Chailles | E23: 41 | J23: fablabs41@gmail.com | N23: =IF(FabLabs[[#This Row],[Abonnés]]<>"",FabLabs[[#This Row],[Abonnés]]/FabLabs[[#This Row],[Population]],0) -> 0
C24: FormaLab | D24: Le Puy-en-Velay | E24: 43 | F24: Service du Greta du Velay | N24: =IF(FabLabs[[#This Row],[Abonnés]]<>"",FabLabs[[#This Row],[Abonnés]]/FabLabs[[#This Row],[Population]],0) -> 0
C25: Ping | D25: Nantes | E25: 44 | F25: Association | I25: Cedric Doutriaux | N25: =IF(FabLabs[[#This Row],[Abonnés]]<>"",FabLabs[[#This Row],[Abonnés]]/FabLabs[[#This Row],[Population]],0) -> 0
C26: Plateforme C | D26: Nantes | E26: 44 | I26: Laurent Berthelot | J26: contact@plateforme-c.org | N26: =IF(FabLabs[[#This Row],[Abonnés]]<>"",FabLabs[[#This Row],[Abonnés]]/FabLabs[[#This Row],[Population]],0) -> 0
C27: FABLAB ORLEANAIS | D27: Orléans | E27: 45 | F27: Association | N27: =IF(FabLabs[[#This Row],[Abonnés]]<>"",FabLabs[[#This Row],[Abonnés]]/FabLabs[[#This Row],[Population]],0) -> 0
C28: CERFAV Glass Fablab | D28: Vannes-le-chatel | E28: 54 | F28: Association | G28: 8532Z | H28: Enseignement secondaire technique ou professionnel | I28: M GARCIA Denis & M LOTZER Gerard | L28: 577 | N28: =IF(FabLabs[[#This Row],[Abonnés]]<>"",FabLabs[[#This Row],[Abonnés]]/FabLabs[[#This Row],[Population]],0) -> 0
C29: Nybi.cc | D29: Nancy | E29: 54 | F29: Association | H29: consensus mou | I29: Loïc Fejoz | J29: association@nybi.cc | N29: =IF(FabLabs[[#This Row],[Abonnés]]<>"",FabLabs[[#This Row],[Abonnés]]/FabLabs[[#This Row],[Population]],0) -> 0
C30: TechTic & Co | D30: Thionville / Yutz | E30: 57 | F30: Association | N30: =IF(FabLabs[[#This Row],[Abonnés]]<>"",FabLabs[[#This Row],[Abonnés]]/FabLabs[[#This Row],[Population]],0) -> 0
C31: GRAOULAB | D31: Metz | E31: 57 | F31: Association loi 1908 | J31: contact@graoulab.org | N31: =IF(FabLabs[[#This Row],[Abonnés]]<>"",FabLabs[[#This Row],[Abonnés]]/FabLabs[[#This Row],[Population]],0) -> 0
C32: ASS UTILISATEURS FAB LAB OPEN EDGE | D32: Folschviller | E32: 57 | I32: Emmanuel Gilloz | J32: fablab@openedge.cc | N32: =IF(FabLabs[[#This Row],[Abonnés]]<>"",FabLabs[[#This Row],[Abonnés]]/FabLabs[[#This Row],[Population]],0) -> 0
C33: FabLab Lille | D33: Lille | E33: 59 | F33: EURL | G33: 7739Z | H33: Location et location-bail d'autres machines, équi. et biens matériels n.c.a. | I33: Charles-Albert de Medeiros | J33: info@fablablille.fr | K33: 06 86 67 06 96 | L33: 225784 | N33: =IF(FabLabs[[#This Row],[Abonnés]]<>"",FabLabs[[#This Row],[Abonnés]]/FabLabs[[#This Row],[Population]],0) -> 0
C34: ACoLab | D34: Clermont-Ferrand | E34: 63 | F34: Association | I34: Alexandre Rault | J34: contact@acolab.fr | K34: 06 51 80 05 18 | L34: 138588 | N34: =IF(FabLabs[[#This Row],[Abonnés]]<>"",FabLabs[[#This Row],[Abonnés]]/FabLabs[[#This Row],[Population]],0) -> 0
C35: FabLab Pau | D35: Pau | E35: 64 | J35: contact@fablab-pau.org | N35: =IF(FabLabs[[#This Row],[Abonnés]]<>"",FabLabs[[#This Row],[Abonnés]]/FabLabs[[#This Row],[Population]],0) -> 0
C36: SquaregoLab | D36: Perpignan | E36: 66 | F36: Inconnue | I36: Joris Navarro | J36: contact@squaregolab.com | L36: =D73 -> 120365 | M36: =ROUND(FabLabs[[#This Row],[Population]]*$D$69,0) -> 96 | N36: =IF(FabLabs[[#This Row],[Abonnés]]<>"",FabLabs[[#This Row],[Abonnés]]/FabLabs[[#This Row],[Population]],0) -> 0.0007975740456
C37: AV-Fablab | D37: Starsbourg | E37: 67 | J37: contact@av-lab.net; av.exciters@gmail.com | L37: 271708 | N37: =IF(FabLabs[[#This Row],[Abonnés]]<>"",FabLabs[[#This Row],[Abonnés]]/FabLabs[[#This Row],[Population]],0) -> 0
C38: Ideas'Lab Strasbourg | D38: Strasbourg | E38: 67 | L38: 271708 | N38: =IF(FabLabs[[#This Row],[Abonnés]]<>"",FabLabs[[#This Row],[Abonnés]]/FabLabs[[#This Row],[Population]],0) -> 0
C39: Fabrique d’Objets Libres | D39: Lyon | E39: 69 | F39: Association | J39: contact@fabriquedobjetslibres.fr | K39: 06 40 11 52 80 | N39: =IF(FabLabs[[#This Row],[Abonnés]]<>"",FabLabs[[#This Row],[Abonnés]]/FabLabs[[#This Row],[Population]],0) -> 0
C40: LE PETIT FABLAB DE PARIS (LPFP) | D40: Paris | E40: 75 | F40: Association | G40: 9499Z | H40: Autres organisations fonctionnant par adhésion volontaire | I40: Arthur Schmitt & Florian Gendrot | J40: bonjour@lepetitfablabdeparis.fr | L40: 2234105 | N40: =IF(FabLabs[[#This Row],[Abonnés]]<>"",FabLabs[[#This Row],[Abonnés]]/FabLabs[[#This Row],[Population]],0) -> 0
C41: PMC-lab | D41: Jussieu | E41: 75 | F41: Association | H41: hébergée par l'université Pierre et Marie CURIE | N41: =IF(FabLabs[[#This Row],[Abonnés]]<>"",FabLabs[[#This Row],[Abonnés]]/FabLabs[[#This Row],[Population]],0) -> 0
C42: DesignLab | D42: Saclay | E42: 91 | L42: 3013 | N42: =IF(FabLabs[[#This Row],[Abonnés]]<>"",FabLabs[[#This Row],[Abonnés]]/FabLabs[[#This Row],[Population]],0) -> 0
C43: FacLab | D43: Gennevilliers | E43: 92 | F43: Service de l'université de Cergy-Pontoise | I43: Cloé Duc | J43: c.duc@faclab.org | N43: =IF(FabLabs[[#This Row],[Abonnés]]<>"",FabLabs[[#This Row],[Abonnés]]/FabLabs[[#This Row],[Population]],0) -> 0
C44: tmplab | D44: Vitry sur seine | E44: 94 | F44: Association | G44: 9499Z | H44: Autres organisations fonctionnant par adhésion volontaire | N44: =IF(FabLabs[[#This Row],[Abonnés]]<>"",FabLabs[[#This Row],[Abonnés]]/FabLabs[[#This Row],[Population]],0) -> 0
C45: GSI-Lab | D45: Nancy | N45: =IF(FabLabs[[#This Row],[Abonnés]]<>"",FabLabs[[#This Row],[Abonnés]]/FabLabs[[#This Row],[Population]],0) -> 0
C46: La Forge des Possibles | D46: la Roche-sur-Yon | N46: =IF(FabLabs[[#This Row],[Abonnés]]<>"",FabLabs[[#This Row],[Abonnés]]/FabLabs[[#This Row],[Population]],0) -> 0
C47: L'abscisse | D47: Dijon | N47: =IF(FabLabs[[#This Row],[Abonnés]]<>"",FabLabs[[#This Row],[Abonnés]]/FabLabs[[#This Row],[Population]],0) -> 0
C48: L'atelier du c01n | D48: Orléans | N48: =IF(FabLabs[[#This Row],[Abonnés]]<>"",FabLabs[[#This Row],[Abonnés]]/FabLabs[[#This Row],[Population]],0) -> 0
C49: Le Fab | D49: Saint nazaire | E49: 44 | F49: SASU | G49: 2229A | H49: Fabrication de pièces techniques à base de matières plastiques | I49: Julien et Aurelie LETHUILLIER | J49: contact@lefab44.com | N49: =IF(FabLabs[[#This Row],[Abonnés]]<>"",FabLabs[[#This Row],[Abonnés]]/FabLabs[[#This Row],[Population]],0) -> 0
C50: Le Flood | D50: Saint-Brieuc | N50: =IF(FabLabs[[#This Row],[Abonnés]]<>"",FabLabs[[#This Row],[Abonnés]]/FabLabs[[#This Row],[Population]],0) -> 0
C51: Limouzi Lab | D51: Limoges | N51: =IF(FabLabs[[#This Row],[Abonnés]]<>"",FabLabs[[#This Row],[Abonnés]]/FabLabs[[#This Row],[Population]],0) -> 0
C52: Makerspace56 | D52: Vannes | N52: =IF(FabLabs[[#This Row],[Abonnés]]<>"",FabLabs[[#This Row],[Abonnés]]/FabLabs[[#This Row],[Population]],0) -> 0
C53: Nicelab | D53: Nice | N53: =IF(FabLabs[[#This Row],[Abonnés]]<>"",FabLabs[[#This Row],[Abonnés]]/FabLabs[[#This Row],[Population]],0) -> 0
C54: NoNameYet | D54: Segala Carmausin, Midi-Pyrenees | N54: =IF(FabLabs[[#This Row],[Abonnés]]<>"",FabLabs[[#This Row],[Abonnés]]/FabLabs[[#This Row],[Population]],0) -> 0
C55: OpenEdge | D55: Folschviller | N55: =IF(FabLabs[[#This Row],[Abonnés]]<>"",FabLabs[[#This Row],[Abonnés]]/FabLabs[[#This Row],[Population]],0) -> 0
C56: Photonic FabLab | D56: Orsay | N56: =IF(FabLabs[[#This Row],[Abonnés]]<>"",FabLabs[[#This Row],[Abonnés]]/FabLabs[[#This Row],[Population]],0) -> 0
C57: Technistub | D57: Mulhouse | N57: =IF(FabLabs[[#This Row],[Abonnés]]<>"",FabLabs[[#This Row],[Abonnés]]/FabLabs[[#This Row],[Population]],0) -> 0
C58: Telefab Telecom Bretagne | D58: Brest | N58: =IF(FabLabs[[#This Row],[Abonnés]]<>"",FabLabs[[#This Row],[Abonnés]]/FabLabs[[#This Row],[Population]],0) -> 0
C59: TyFab | D59: Brest | N59: =IF(FabLabs[[#This Row],[Abonnés]]<>"",FabLabs[[#This Row],[Abonnés]]/FabLabs[[#This Row],[Population]],0) -> 0
C60: ArtLab | D60: Paris | E60: 75 | F60: SASU | H60: DigitalArti | J60: artlab@digitalarti.com | N60: =IF(FabLabs[[#This Row],[Abonnés]]<>"",FabLabs[[#This Row],[Abonnés]]/FabLabs[[#This Row],[Population]],0) -> 0
C61: Zbis | D61: Les Sables-d'Olone | E61: 85 | F61: EURL | G61: 6202A | H61: Conseil en systèmes et logiciels informatiques | I61: Mme Emmanuelle JONIK (née ROUX) | L61: 41574 | N61: =IF(FabLabs[[#This Row],[Abonnés]]<>"",FabLabs[[#This Row],[Abonnés]]/FabLabs[[#This Row],[Population]],0) -> 0
C62: Tech Lab LR | D62: Montpellier | E62: 34 | F62: Association | N62: =IF(FabLabs[[#This Row],[Abonnés]]<>"",FabLabs[[#This Row],[Abonnés]]/FabLabs[[#This Row],[Population]],0) -> 0
C63: Usine IO | D63: Paris | E63: 75 | F63: SASU | I63: Benjamin Carlu | J63: hello@usine.io | N63: =IF(FabLabs[[#This Row],[Abonnés]]<>"",FabLabs[[#This Row],[Abonnés]]/FabLabs[[#This Row],[Population]],0) -> 0
C64: Lorem | D64: Paris | E64: 75 | N64: =IF(FabLabs[[#This Row],[Abonnés]]<>"",FabLabs[[#This Row],[Abonnés]]/FabLabs[[#This Row],[Population]],0) -> 0
C65: RuralLab | D65: Néons sur Creuse | E65: 36 | F65: Association | H65: http://blog.50a.fr/architecturesociale/rurallab-le-fablab-campagnard-des-bricoleurs-2-0 | L65: 401 | M65: 0 | N65: =IF(FabLabs[[#This Row],[Abonnés]]<>"",FabLabs[[#This Row],[Abonnés]]/FabLabs[[#This Row],[Population]],0) -> 0
C66: Etoele | D66: Amiens | E66: 80 | F66: EURL | G66: 6202A | H66: Conseil en systèmes et logiciels informatiques | I66: Jean-Baptiste HEREN | N66: =IF(FabLabs[[#This Row],[Abonnés]]<>"",FabLabs[[#This Row],[Abonnés]]/FabLabs[[#This Row],[Population]],0) -> 0
C69: Coeff moyen / habitant | D69: =SUM(N37:N68,N4:N35)/(COUNTIF(N4:N35,">0")+COUNTIF(N37:N68,">0")) -> 0.0007976778963 | F69: ="soit 1 abonnée pour "&ROUND(1/D69,0)&" habitants de Perpignan" -> soit 1 abonnée pour 1254 habitants de Perpignan
C72: Populations | D72: Totale | E72: Ratio pop | G72: Cible
C73: Perpignan | D73: 120365 | E73: =D73*E$75/D$75 -> 0.2659823658 | G73: =M$36*100%/D73 -> 0.0007975740456
C74: Bassin de Perpignan | D74: 343615 | E74: =D74*E$75/D$75 -> 0.7593198241 | G74: =M$36*100%/D74 -> 0.0002793824484
C75: Département | D75: =Population!C8 -> 452530 | E75: 1 | G75: =M$36*100%/D75 -> 0.0002121406316
D76: Département | F76: Bassin de perpignan | H76: Perpignan
C77: hommes | D77: =Population!C19 -> 214960 | E77: =D77*E$75/D$75 -> 0.4750182308 | F77: =D77*E$74 -> 163223.3894 | G77: =E77*E$74 -> 0.3606907595 | H77: =D77*E$73 -> 57175.56935 | I77: =E77*E$73 -> 0.1263464728
C78: hommes de 15 à 60 ans | D78: =SUM(Population!C21:C23) -> 117230 | E78: 0.2590546483 | F78: 89015.06298 | G78: 0.19670533 | H78: 31181.11274 | I78: 0.06890396823
C79: hommes sans activité professionnelle | D79: =Population!C69 -> 23899 | E79: 0.05281196827 | F79: 18146.98448 | G79: 0.04010117446 | H79: 6356.71256 | I79: 0.01404705226
C80: hommes de 15 à 64 ans, étudiants ou stagiares | D80: =Population!C$77*Population!C82/100*E$77 -> 11315.21927 | E80: 0.02500435169 | F80: 8591.870305 | G80: 0.01898629993 | H80: 3009.648791 | I80: 0.006650716618
C81: hommes de 15 à 64 ans, employés | D81: =Population!C$77*Population!C79/100*E$77 -> 72833.5953 | E81: 0.1609475511 | F81: 55303.99277 | G81: 0.1222106662 | H81: 19372.45199 | I81: 0.04280921041
C82: hommes de 15 à 64 ans, chômeurs | D82: =Population!C$77*Population!C80/100*E$77 -> 15086.95903 | E82: 0.03333913558 | F82: 11455.82707 | G82: 0.02531506657 | H82: 4012.865055 | I82: 0.008867622157
C84: Potentiel créateurs | D84: =F80*37% -> 3178.992013
C85: Potentiel créateurs à court terme | D85: =D84*0.4 -> 1271.596805
C86: 10% cible | D86: =D85*0.1 -> 127.1596805
C95: Les associations | D95: Total | E95: Culture/Art | F95: Recherche
C96: Département
C97: Création | D97: 11375 | E97: 3480 | F97: 1000
C98: Associations | D98: 17147 | E98: 4468 | F98: 1246
C100: Perpignan
C101: Création | D101: 2859 | E101: 951 | F101: 275
C102: Associations | D102: 4590 | E102: 1222 | F102: 366
C104: Pref perpi
C105: Création | D105: 7780 | E105: 2404 | F105: 683
C106: Association | D106: 11453 | E106: 3059 | F106: 859
C108: Ratio | D108: 0.1 | E108: 0.1
C109: Sous total | D109: =D106*D108 -> 1145.3 | E109: =E106*E108 -> 305.9
C110: Total
C111: Année | D111: FabLabs | F111: Abos | G111: Moyennes
C112: 2012 | D112: 42 | E112: 1 | F112: 390 | G112: =ROUND(F112/D112,2) -> 9.29 | H112: 1
C113: 2013 | D113: 50 | E113: =ROUND(F113*E112/F112,1) -> 8.5 | F113: 3334 | G113: =ROUND(F113/D113,2) -> 66.68 | H113: =G113*H$112/G112 -> 7.177610334
C114: 2014 | D114: 68 | E114: 1.5 | F114: =D114*E114*G113 -> 6801.36 | G114: =ROUND(F114/D114,2) -> 100.02 | H114: =G114*H$112/G113 -> 1.5

Sheet Population (hidden)
B2: Chiffres clés Évolution et structure de la population
B4: http://www.insee.fr/fr/themes/tableau_local.asp?ref_id=POP&millesime=2011&typgeo=DEP&search=66
B5: POP T0 - Population par grandes tranches d'âges
B6: Sources : Insee, RP2006 et RP2011 exploitations principales.
C7: 2011 | D7: % | E7: 2006 | F7: %
B8: Ensemble | C8: 452530 | D8: 100 | E8: 432116 | F8: 100
B9: 0 à 14 ans | C9: 76613 | D9: 16.9 | E9: 72754 | F9: 16.8
B10: 15 à 29 ans | C10: 69819 | D10: 15.4 | E10: 69036 | F10: 16
B11: 30 à 44 ans | C11: 82556 | D11: 18.2 | E11: 83752 | F11: 19.4
B12: 45 à 59 ans | C12: 89101 | D12: 19.7 | E12: 85958 | F12: 19.9
B13: 60 à 74 ans | C13: 80194 | D13: 17.7 | E13: 71959 | F13: 16.7
B14: 75 ans ou plus | C14: 54247 | D14: 12 | E14: 48657 | F14: 11.3
B16: POP T3 - Population par sexe et âge en 2011
B17: Source : Insee, RP2011 exploitation principale.
C18: Hommes | D18: % | E18: Femmes | F18: %
B19: Ensemble | C19: 214960 | D19: 100 | E19: 237570 | F19: 100 | G19: =SUM(C19,E19) -> 452530
B20: 0 à 14 ans | C20: 39458 | D20: 18.4 | E20: 37155 | F20: 15.6
B21: 15 à 29 ans | C21: 35175 | D21: 16.4 | E21: 34644 | F21: 14.6
B22: 30 à 44 ans | C22: 39594 | D22: 18.4 | E22: 42962 | F22: 18.1
B23: 45 à 59 ans | C23: 42461 | D23: 19.8 | E23: 46640 | F23: 19.6
B24: 60 à 74 ans | C24: 37301 | D24: 17.4 | E24: 42894 | F24: 18.1
B25: 75 à 89 ans | C25: 19581 | D25: 9.1 | E25: 29558 | F25: 12.4
B26: 90 ans ou plus | C26: 1391 | D26: 0.6 | E26: 3717 | F26: 1.6
B28: 0 à 19 ans | C28: 52673 | D28: 24.5 | E28: 49029 | F28: 20.6
B29: 20 à 64 ans | C29: 119073 | D29: 55.4 | E29: 129638 | F29: 54.6
B30: 65 ans ou plus | C30: 43214 | D30: 20.1 | E30: 58903 | F30: 24.8
C31: =SUM(C21:C23) -> 117230 | D31: =SUM(D21:D23) -> 54.6
B32: POP T4M - Lieu de résidence 1 an auparavant
B33: Source : Insee, RP2011 exploitation principale.
C34: 2011 | D34: %
B35: Personnes d'1 an ou plus habitant auparavant : | C35: 447687 | D35: 100
B36: Même logement | C36: 389314 | D36: 87
B37: Autre logement de la même commune | C37: 20423 | D37: 4.6
B38: Autre commune du même département | C38: 20837 | D38: 4.7
B39: Autre département de la même région | C39: 2960 | D39: 0.7
B40: Autre région en France métropolitaine | C40: 11762 | D40: 2.6
B41: Autre région dans un Dom | C41: 288 | D41: 0.1
B42: Hors de France métropolitaine ou d'un Dom | C42: 2105 | D42: 0.5
B44: POP T5 - Population de 15 ans ou plus selon la catégorie socioprofessionnelle
B45: Sources : Insee, RP2006 et RP2011 exploitations complémentaires.
C46: 2011 | D46: % | E46: 2006 | F46: %
B47: Ensemble | C47: 376187 | D47: 100 | E47: 359053 | F47: 100
B48: Agriculteurs exploitants | C48: 3301 | D48: 0.9 | E48: 3796 | F48: 1.1
B49: Artisans, commerçants, chefs entreprise | C49: 17100 | D49: 4.5 | E49: 15449 | F49: 4.3
B50: Cadres et professions intellectuelles supérieures | C50: 18809 | D50: 5 | E50: 16603 | F50: 4.6
B51: Professions intermédiaires | C51: 42812 | D51: 11.4 | E51: 39265 | F51: 10.9
B52: Employés | C52: 60650 | D52: 16.1 | E52: 58168 | F52: 16.2
B53: Ouvriers | C53: 41431 | D53: 11 | E53: 41133 | F53: 11.5
B54: Retraités | C54: 126018 | D54: 33.5 | E54: 116986 | F54: 32.6
B55: Autres personnes sans activité professionnelle | C55: 66065 | D55: 17.6 | E55: 67651 | F55: 18.8
B57: OP T6 - Population de 15 ans ou plus par sexe, âge et catégorie socioprofessionnelle en 2011
B58: Source : Insee, RP2011 exploitation complémentaire.
C59: Hommes | D59: Femmes | E59: Part en % de la population âgée de
E60: 15 à 24 ans | F60: 25 à 54 ans | G60: 55 ans ou +
B61: Ensemble | C61: 175742 | D61: 200445 | E61: 100 | F61: 100 | G61: 100
B62: Agriculteurs exploitants | C62: 2363 | D62: 938 | E62: 0.1 | F62: 1.4 | G62: 0.6
B63: Artisans, commerçants, chefs entreprise | C63: 11919 | D63: 5181 | E63: 0.9 | F63: 8 | G63: 2.2
B64: Cadres et professions intellectuelles supérieures | C64: 11294 | D64: 7515 | E64: 0.7 | F64: 8.7 | G64: 2.5
B65: Professions intermédiaires | C65: 20082 | D65: 22730 | E65: 6.7 | F65: 20.9 | G65: 3.2
B66: Employés | C66: 14220 | D66: 46430 | E66: 16.1 | F66: 27.8 | G66: 4.4
B67: Ouvriers | C67: 34207 | D67: 7224 | E67: 14.9 | F67: 18.5 | G67: 2.3
B68: Retraités | C68: 57758 | D68: 68260 | E68: 0 | F68: 0.7 | G68: 76.3
B69: Autres personnes sans activité professionnelle | C69: 23899 | D69: 42166 | E69: 60.5 | F69: 14.1 | G69: 8.5
C70: =SUM(C63:C67) -> 91722 | E70: =SUM(E63:E67) -> 39.3 | F70: =SUM(F63:F67) -> 83.9
C71: =C70*100/C61 -> 52.1912804
B72: Chiffres clés Emploi - Population active
B74: EMP T1 - Population de 15 à 64 ans par type d'activité
B75: Sources : Insee, RP2006 et RP2011 exploitations principales.
C76: 2011 | D76: 2006
B77: Ensemble | C77: 273800 | D77: 264059
B78: Actifs en % | C78: 67.6 | D78: 66.4
B79: actifs ayant un emploi en % | C79: 56 | D79: 55.9
B80: chômeurs en % | C80: 11.6 | D80: 10.5
B81: Inactifs en % | C81: 32.4 | D81: 33.6
B82: élèves, étudiants et stagiaires non rémunérés en % | C82: 8.7 | D82: 9.7
B83: retraités ou préretraités en % | C83: 11.3 | D83: 10.9
B84: autres inactifs en % | C84: 12.4 | D84: 13
B86: EMP T2 - Activité et emploi de la population de 15 à 64 ans par sexe et âge en 2011
B87: Source : Insee, RP2011 exploitation principale.
C88: Population | D88: Actifs | E88: Taux d'activité en % | F88: Actifs ayant un emploi | G88: Taux d'emploi en %
B89: Ensemble | C89: 273800 | D89: 185187 | E89: 67.6 | F89: 153464 | G89: 56
B90: 15 à 24 ans | C90: 47225 | D90: 20612 | E90: 43.6 | F90: 12956 | G90: 27.4
B91: 25 à 54 ans | C91: 165020 | D91: 141675 | E91: 85.9 | F91: 120444 | G91: 73
B92: 55 à 64 ans | C92: 61555 | D92: 22900 | E92: 37.2 | F92: 20064 | G92: 32.6
B93: Hommes | C93: 132287 | D93: 94676 | E93: 71.6 | F93: 79049 | G93: 59.8
B94: 15 à 24 ans | C94: 24276 | D94: 11477 | E94: 47.3 | F94: 7287 | G94: 30
B95: 25 à 54 ans | C95: 79188 | D95: 71793 | E95: 90.7 | F95: 61736 | G95: 78
B96: 55 à 64 ans | C96: 28824 | D96: 11406 | E96: 39.6 | F96: 10026 | G96: 34.8
B97: Femmes | C97: 141512 | D97: 90511 | E97: 64 | F97: 74415 | G97: 52.6
B98: 15 à 24 ans | C98: 22949 | D98: 9135 | E98: 39.8 | F98: 5669 | G98: 24.7
B99: 25 à 54 ans | C99: 85832 | D99: 69881 | E99: 81.4 | F99: 58708 | G99: 68.4
B100: 55 à 64 ans | C100: 32731 | D100: 11494 | E100: 35.1 | F100: 10038 | G100: 30.7
B102: EMP T3 - Population active de 15 à 64 ans selon la catégorie socioprofessionnelle
B103: Sources : Insee, RP2006 et RP2011 exploitations complémentaires.
C104: 2011 | D104: dont actifs ayant un emploi | E104: 2006 | F104: dont actifs ayant un emploi
B105: Ensemble | C105: 184965 | D105: 153152 | E105: 175102 | F105: 147864
B106: dont
B107: Agriculteurs exploitants | C107: 3182 | D107: 3068 | E107: 3688 | F107: 3574
B108: Artisans, commerçants, chefs entreprise | C108: 16670 | D108: 15202 | E108: 15164 | F108: 13737
B109: Cadres et professions intellectuelles supérieures | C109: 18487 | D109: 17236 | E109: 16364 | F109: 15450
B110: Professions intermédiaires | C110: 42491 | D110: 38136 | E110: 39110 | F110: 35025
B111: Employés | C111: 60190 | D111: 48555 | E111: 57851 | F111: 47664
B112: Ouvriers | C112: 41140 | D112: 30955 | E112: 40865 | F112: 32414
B114: EMP T4 - Chômage (au sens du recensement) des 15-64 ans
B115: Sources : Insee, RP2006 et RP2011 exploitations principales.
C116: 2011 | D116: 2006
B117: Nombre de chômeurs | C117: 31722 | D117: 27655
B118: Taux de chômage en % | C118: 17.1 | D118: 15.8
B119: Taux de chômage des hommes en % | C119: 16.5 | D119: 13.7
B120: Taux de chômage des femmes en % | C120: 17.8 | D120: 18
B121: Part des femmes parmi les chômeurs en % | C121: 50.7 | D121: 54.9
B123: EMP T5 - Emploi et activité
B124: L'indicateur de concentration d'emploi est égal au nombre d'emplois dans la zone pour 100 actifs ayant un emploi résidant dans la zone.
B125: Sources : Insee, RP2006 et RP2011 exploitations principales lieu de résidence et lieu de travail.
C126: 2011 | D126: 2006
B127: Nombre d'emplois dans la zone | C127: 153349 | D127: 146867
B128: Actifs ayant un emploi résidant dans la zone | C128: 155344 | D128: 148940
B129: Indicateur de concentration d'emploi | C129: 98.7 | D129: 98.6
B130: Taux d'activité parmi les 15 ans ou plus en % | C130: 49.8 | D130: 49.2
B132: EMP T6 - Emplois selon le statut professionnel
B133: Sources : Insee, RP2006 et RP2011 exploitations principales lieu de travail.
C134: 2011 | D134: % | E134: 2006 | F134: %
B135: Ensemble | C135: 153349 | D135: 100 | E135: 146867 | F135: 100
B136: Salariés | C136: 125506 | D136: 81.8 | E136: 121702 | F136: 82.9
B137: dont femmes | C137: 64661 | D137: 42.2 | E137: 60614 | F137: 41.3
B138: dont temps partiel | C138: 26342 | D138: 17.2 | E138: 25391 | F138: 17.3
B139: Non-salariés | C139: 27844 | D139: 18.2 | E139: 25165 | F139: 17.1
B140: dont femmes | C140: 9998 | D140: 6.5 | E140: 8667 | F140: 5.9
B141: dont temps partiel | C141: 3526 | D141: 2.3 | E141: 2777 | F141: 1.9
B143: EMP T7 - Emplois par catégorie socioprofessionnelle en 2011
B144: Source : Insee, RP2011 exploitation complémentaire lieu de travail.
C145: Nombre | D145: %
B146: Ensemble | C146: 153175 | D146: 100
B147: Agriculteurs exploitants | C147: 3175 | D147: 2.1
B148: Artisans, commerçants, chefs entreprise | C148: 15489 | D148: 10.1
B149: Cadres et professions intellectuelles supérieures | C149: 16987 | D149: 11.1
B150: Professions intermédiaires | C150: 37902 | D150: 24.7
B151: Employés | C151: 48616 | D151: 31.7
B152: Ouvriers | C152: 31006 | D152: 20.2
B154: EMP T8 - Emplois selon le secteur d'activité
B155: Sources : Insee, RP2006 et RP2011 exploitations complémentaires lieu de travail.
C156: 2011 | G156: 2006
C157: Nombre | D157: % | E157: dont femmes en % | F157: dont salariés en % | G157: Nombre | H157: %
B158: Ensemble | C158: 153175 | D158: 100 | E158: 48.7 | F158: 83.5 | G158: 147095 | H158: 100
B159: Agriculture | C159: 5687 | D159: 3.7 | E159: 30.3 | F159: 47.1 | G159: 7001 | H159: 4.8
B160: Industrie | C160: 9298 | D160: 6.1 | E160: 30.7 | F160: 86.9 | G160: 10052 | H160: 6.8
B161: Construction | C161: 13331 | D161: 8.7 | E161: 9.6 | F161: 70.2 | G161: 12632 | H161: 8.6
B162: Commerce, transports, services divers | C162: 69625 | D162: 45.5 | E162: 47.3 | F162: 81.3 | G162: 66392 | H162: 45.1
B163: Administration publique, enseignement, santé, action sociale | C163: 55234 | D163: 36.1 | E163: 64.8 | F163: 92.7 | G163: 51018 | H163: 34.7
B166: Chiffres clés Diplômes - Formation
B167: http://www.insee.fr/fr/themes/tableau_local.asp?ref_id=FOR&nivgeo=DEP&codgeo=66&millesime=2011
B169: FOR T1 - Scolarisation selon l'âge et le sexe en 2011
B170: Source : Insee, RP2011 exploitation principale.
C171: Ensemble | D171: Population scolarisée | E171: Part de la population scolarisée en %
E172: Ensemble | F172: Hommes | G172: Femmes
B173: 2 à 5 ans | C173: 19813 | D173: 14720 | E173: 74.3 | F173: 73.5 | G173: 75.1
B174: 6 à 10 ans | C174: 25883 | D174: 25534 | E174: 98.7 | F174: 98.7 | G174: 98.6
B175: 11 à 14 ans | C175: 21563 | D175: 21330 | E175: 98.9 | F175: 98.8 | G175: 99
B176: 15 à 17 ans | C176: 15289 | D176: 14334 | E176: 93.8 | F176: 92.9 | G176: 94.7
B177: 18 à 24 ans | C177: 31935 | D177: 14430 | E177: 45.2 | F177: 44 | G177: 46.4
B178: 25 à 29 ans | C178: 22594 | D178: 1429 | E178: 6.3 | F178: 6.2 | G178: 6.4
B179: 30 ans ou plus | C179: 306098 | D179: 2554 | E179: 0.8 | F179: 0.8 | G179: 0.9
B181: FOR T2 - Diplôme le plus élevé de la population non scolarisée de 15 ans ou plus selon le sexe en 2011
B182: Source : Insee, RP2011 exploitation principale.
C183: Ensemble | D183: Hommes | E183: Femmes
B184: Population non scolarisée de 15 ans ou plus | C184: 343169 | D184: 159071 | E184: 184098
B185: Part des titulaires en %
B186: d'aucun diplôme | C186: 19.5 | D186: 18.6 | E186: 20.2
B187: du certificat d'études primaires | C187: 10.3 | D187: 8.7 | E187: 11.6
B188: du BEPC, brevet des collèges | C188: 8 | D188: 7.1 | E188: 8.8
B189: d'un CAP ou d'un BEP | C189: 23.6 | D189: 28.4 | E189: 19.3
B190: d'un baccalauréat ou d'un brevet professionnel | C190: 17.6 | D190: 17.1 | E190: 18.1
B191: d'un diplôme de l’enseignement supérieur court | C191: 10.7 | D191: 9.2 | E191: 12.1
B192: d'un diplôme de l’enseignement supérieur long | C192: 10.3 | D192: 10.9 | E192: 9.8
D193: =SUM(D190:D192) -> 37.2
B195: Autres chiffres clés
B196: Bricolage
B197: Poids des rayons
B198: Jardin | C198: 0.123 | D198: Bâtiments, matériaux | E198: 0.11
B199: Plomberie/Sanitaire | C199: 0.146 | D199: Outillage | E199: 8 %
B200: Peinture/Colles | C200: 0.127 | D200: Auto, Moto, Cycle | E200: 0,35 %
B201: Bois, Dérivés | C201: 0.127 | D201: Brico léger | E201: 27,9 %
B202: Electricité/Luminaires | C202: 0.117 | D202: Brico lourd | E202: 38,5 %
B203: Revêtements murs, sols | C203: 0.0885 | D203: Déco | E203: 21,4 %
B204: Quincaillerie | C204: 0.078 | D204: Jardin | E204: 12,3 %
B206: Consommation des ménages (par foyer) | C206: €/foyer | D206: CA marché
B207: Bricolage | C207: 799 | D207: 18,66 Milliards d'€
B208: Jardinage | C208: 269 | D208: 3,52 Milliards d'€

Sheet Calculs
B2: Utilisation des machines
C4: =Pilotage!M$22 -> Année 0 | D4: =Pilotage!N$22 -> Année 1 | E4: =Pilotage!O$22 -> Année 2 | F4: =Pilotage!P$22 -> Année 3 | G4: =Pilotage!Q$22 -> Année 4 | H4: =Pilotage!R$22 -> Année 5
B5: Découpe laser | C5: =Pilotage!E$93*C$15*SUM(Locations!#REF!,Locations!#REF!,Locations!#REF!)/C$43 ->  | D5: =C5*Pilotage!N$38 ->  | E5: =D5*Pilotage!O$38 ->  | F5: =E5*Pilotage!P$38 ->  | G5: =F5*Pilotage!Q$38 ->  | H5: =G5*Pilotage!R$38 -> 
B6: Imprimante 3D | C6: =Pilotage!E$93*C$15*SUM(Locations!#REF!,Locations!#REF!,Locations!#REF!)/C$43 ->  | D6: =C6*Pilotage!N$38 ->  | E6: =D6*Pilotage!O$38 ->  | F6: =E6*Pilotage!P$38 ->  | G6: =F6*Pilotage!Q$38 ->  | H6: =G6*Pilotage!R$38 -> 
B7: Petite imprimante 3D | C7: =Pilotage!E$93*C$15*SUM(Locations!#REF!,Locations!#REF!,Locations!#REF!)/C$43 ->  | D7: =C7*Pilotage!N$38 ->  | E7: =D7*Pilotage!O$38 ->  | F7: =E7*Pilotage!P$38 ->  | G7: =F7*Pilotage!Q$38 ->  | H7: =G7*Pilotage!R$38 -> 
B8: Découpe vinyle | C8: =Pilotage!E$93*C$15*SUM(Locations!#REF!,Locations!#REF!,Locations!#REF!)/C$43 ->  | D8: =C8*Pilotage!N$38 ->  | E8: =D8*Pilotage!O$38 ->  | F8: =E8*Pilotage!P$38 ->  | G8: =F8*Pilotage!Q$38 ->  | H8: =G8*Pilotage!R$38 -> 
B9: Petie fraiseuse | C9: =Pilotage!E$93*C$15*SUM(Locations!#REF!,Locations!#REF!,Locations!#REF!)/C$43 ->  | D9: =C9*Pilotage!N$38 ->  | E9: =D9*Pilotage!O$38 ->  | F9: =E9*Pilotage!P$38 ->  | G9: =F9*Pilotage!Q$38 ->  | H9: =G9*Pilotage!R$38 -> 
B10: Grande fraiseuse | C10: =Pilotage!E$93*C$15*SUM(Locations!#REF!,Locations!#REF!,Locations!#REF!)/C$43 ->  | D10: =C10*Pilotage!N$38 ->  | E10: =D10*Pilotage!O$38 ->  | F10: =E10*Pilotage!P$38 ->  | G10: =F10*Pilotage!Q$38 ->  | H10: =G10*Pilotage!R$38 -> 
B11: Machine à coudre | C11: =Pilotage!E$93*C$15*SUM(Locations!#REF!,Locations!#REF!,Locations!#REF!)/C$43 ->  | D11: =C11*Pilotage!N$38 ->  | E11: =D11*Pilotage!O$38 ->  | F11: =E11*Pilotage!P$38 ->  | G11: =F11*Pilotage!Q$38 ->  | H11: =G11*Pilotage!R$38 -> 
B12: Machine à broder | C12: =Pilotage!E$93*C$15*SUM(Locations!#REF!,Locations!#REF!,Locations!#REF!)/C$43 ->  | D12: =C12*Pilotage!N$38 ->  | E12: =D12*Pilotage!O$38 ->  | F12: =E12*Pilotage!P$38 ->  | G12: =F12*Pilotage!Q$38 ->  | H12: =G12*Pilotage!R$38 -> 
B13: Presse à chaud | C13: =Pilotage!E$93*C$15*SUM(Locations!#REF!,Locations!#REF!,Locations!#REF!)/C$43 ->  | D13: =C13*Pilotage!N$38 ->  | E13: =D13*Pilotage!O$38 ->  | F13: =E13*Pilotage!P$38 ->  | G13: =F13*Pilotage!Q$38 ->  | H13: =G13*Pilotage!R$38 -> 
B14: Libre | C14: =Pilotage!$I51*Pilotage!$E93-Calculs!C17 ->  | D14: =Pilotage!$I51*Pilotage!$E93-Calculs!D17 ->  | E14: =Pilotage!$I51*Pilotage!$E93-Calculs!E17 ->  | F14: =Pilotage!$I51*Pilotage!$E93-Calculs!F17 ->  | G14: =Pilotage!$I51*Pilotage!$E93-Calculs!G17 ->  | H14: =Pilotage!$I51*Pilotage!$E93-Calculs!H17 -> 
B15: Ratio | C15: =Pilotage!M$40 -> 1 | D15: =Pilotage!N$40 -> 1.45 | E15: =Pilotage!O$40 -> 1.74 | F15: =Pilotage!P$40 -> 1.914 | G15: =Pilotage!Q$40 -> 2.0097 | H15: =Pilotage!R$40 -> 2.0097
C16: =C17/Pilotage!$I51 ->  | D16: =D17/Pilotage!$I51 ->  | E16: =E17/Pilotage!$I51 ->  | F16: =F17/Pilotage!$I51 ->  | G16: =G17/Pilotage!$I51 ->  | H16: =H17/Pilotage!$I51 -> 
B17: Par semaine | C17: =SUM(C5:C13) ->  | D17: =C17*Pilotage!N38 ->  | E17: =D17*Pilotage!O38 ->  | F17: =E17*Pilotage!P38 ->  | G17: =F17*Pilotage!Q38 ->  | H17: =G17*Pilotage!R38 -> 
B20: Seuils de rentabilité
C22: =Pilotage!M$22 -> Année 0 | D22: =Pilotage!N$22 -> Année 1 | E22: =Pilotage!O$22 -> Année 2 | F22: =Pilotage!P$22 -> Année 3 | G22: =Pilotage!Q$22 -> Année 4 | H22: =Pilotage!R$22 -> Année 5
B23: CA (HT) | C23: ='Comptes de résultat 6 ans'!R6 -> 104000 | D23: ='Comptes de résultat 6 ans'!S6 -> 208000 | E23: ='Comptes de résultat 6 ans'!T6 -> 416000 | F23: ='Comptes de résultat 6 ans'!U6 -> 832000 | G23: ='Comptes de résultat 6 ans'!V6 -> 832000 | H23: ='Comptes de résultat 6 ans'!W6 -> 915200 | I23: CA
B24: Total charges variables(HT) | C24: ='Comptes de résultat 6 ans'!G79 -> 0 | D24: ='Comptes de résultat 6 ans'!H79 -> 0 | E24: ='Comptes de résultat 6 ans'!I79 -> 0 | F24: ='Comptes de résultat 6 ans'!J79 -> 39223.98203 | G24: ='Comptes de résultat 6 ans'!K79 -> 40400.70149 | H24: ='Comptes de résultat 6 ans'!L79 -> 41612.72253 | I24: CV
B25: Marge sur coûts variables | C25: =C23-C24 -> 104000 | D25: 208000 | E25: 416000 | F25: 792776.018 | G25: 791599.2985 | H25: 873587.2775 | I25: MCV=CA-CV
B26: Taux de marge sur coûts variables | C26: =IF(C23=0,0,C25/C23) -> 1 | D26: 1 | E26: 1 | F26: 0.9528557908 | G26: 0.9514414646 | H26: 0.9545315532 | I26: TMCV=MCV/CA
B27: Total charges fixes (HT) | C27: ='Comptes de résultat 6 ans'!G78 -> 197717.0429 | D27: ='Comptes de résultat 6 ans'!H78 -> 205900.1679 | E27: ='Comptes de résultat 6 ans'!I78 -> 212988.4461 | F27: ='Comptes de résultat 6 ans'!J78 -> 181198.6762 | G27: ='Comptes de résultat 6 ans'!K78 -> 186524.7654 | H27: ='Comptes de résultat 6 ans'!L78 -> 192175.141 | I27: CF
B28: Seuil de rentabilité | C28: =IF(C27=0,0,C27/C26) -> 197717.0429 | D28: 205900.1679 | E28: 212988.4461 | F28: 190163.7981 | G28: 196044.3941 | H28: 201329.2702 | I28: SR=CF/TMCV
B29: Point Mort (j) | C29: =C28/(C23/360) -> 684.4051483 | D29: 356.3656752 | E29: 184.3169245 | F29: 82.28241262 | G29: 84.82690129 | H29: 79.19420593 | I29: PM=SR/(CA/360)
C30: 365 | D30: 365 | E30: 365 | F30: 365 | G30: 365 | H30: 365
B32: Répartition des prestations
C34: =Pilotage!M$22 -> Année 0 | D34: =Pilotage!N$22 -> Année 1 | E34: =Pilotage!O$22 -> Année 2 | F34: =Pilotage!P$22 -> Année 3 | G34: =Pilotage!Q$22 -> Année 4 | H34: =Pilotage!R$22 -> Année 5
B35: Formations | C35: =Prestations!A7*Pilotage!M$36/SUM(Pilotage!M$12:M$13) -> 0 | D35: =C35*Pilotage!N$36 -> 0 | E35: =D35*Pilotage!O$36 -> 0 | F35: =E35*Pilotage!P$36 -> 0 | G35: =F35*Pilotage!Q$36 -> 0 | H35: =G35*Pilotage!R$36 -> 0
B36: Conseil | C36: =Prestations!A8*Pilotage!M$36/SUM(Pilotage!M$12:M$13) -> 0 | D36: =C36*Pilotage!N$36 -> 0 | E36: =D36*Pilotage!O$36 -> 0 | F36: =E36*Pilotage!P$36 -> 0 | G36: =F36*Pilotage!Q$36 -> 0 | H36: =G36*Pilotage!R$36 -> 0
B37: Cours collectifs | C37: =Prestations!A9*Pilotage!M$36/SUM(Pilotage!M$12:M$13) -> 0 | D37: =C37*Pilotage!N$36 -> 0 | E37: =D37*Pilotage!O$36 -> 0 | F37: =E37*Pilotage!P$36 -> 0 | G37: =F37*Pilotage!Q$36 -> 0 | H37: =G37*Pilotage!R$36 -> 0
B38: Privatisation du fablab | C38: =Prestations!A10*Pilotage!M$36/SUM(Pilotage!M$12:M$13) -> 0 | D38: =C38*Pilotage!N$36 -> 0 | E38: =D38*Pilotage!O$36 -> 0 | F38: =E38*Pilotage!P$36 -> 0 | G38: =F38*Pilotage!Q$36 -> 0 | H38: =G38*Pilotage!R$36 -> 0
B39: Location à emporter Tobeca | C39: =Prestations!A11*Pilotage!M$36/SUM(Pilotage!M$12:M$13) -> 0 | D39: =C39*Pilotage!N$36 -> 0 | E39: =D39*Pilotage!O$36 -> 0 | F39: =E39*Pilotage!P$36 -> 0 | G39: =F39*Pilotage!Q$36 -> 0 | H39: =G39*Pilotage!R$36 -> 0
B40: Libre | C40: =100%-SUM(C35:C39) -> 1 | D40: 1 | E40: 1 | F40: 1 | G40: 1 | H40: 1
B42: Ratio OpenLabs/location
B43: Location | C43: =Pilotage!M12 -> 2156 | D43: =C43*D45/C45 -> 0.8461538462 | E43: =C43/(Pilotage!D$42-Pilotage!M$9) & " h" -> 44 h
B44: OpenLabs | C44: =Pilotage!M13 -> 392 | D44: =C44*D45/C45 -> 0.1538461538 | E44: =C44/(Pilotage!D$42-Pilotage!M$9) & " h" -> 8 h
B45: Total | C45: =SUM(C43:C44) -> 2548 | D45: 1 | E45: =C45/(Pilotage!D$42-Pilotage!M$9) & " h" -> 52 h
B48: Répartition des revenus
C50: =Pilotage!M$22 -> Année 0 | D50: =Pilotage!N$22 -> Année 1 | E50: =Pilotage!O$22 -> Année 2 | F50: =Pilotage!P$22 -> Année 3 | G50: =Pilotage!Q$22 -> Année 4 | H50: =Pilotage!R$22 -> Année 5
B51: Ventes de produits finis | C51: ='Comptes de résultat 6 ans'!R7*(1+Pilotage!$D$14) -> 0 | D51: ='Comptes de résultat 6 ans'!S7*(1+Pilotage!$D$14) -> 0 | E51: ='Comptes de résultat 6 ans'!T7*(1+Pilotage!$D$14) -> 0 | F51: ='Comptes de résultat 6 ans'!U7*(1+Pilotage!$D$14) -> 0 | G51: ='Comptes de résultat 6 ans'!V7*(1+Pilotage!$D$14) -> 0 | H51: ='Comptes de résultat 6 ans'!W7*(1+Pilotage!$D$14) -> 0
B52: Ventes de matières premières | C52: ='Comptes de résultat 6 ans'!R8*(1+Pilotage!$D$14) -> 124800 | D52: ='Comptes de résultat 6 ans'!S8*(1+Pilotage!$D$14) -> 249600 | E52: ='Comptes de résultat 6 ans'!T8*(1+Pilotage!$D$14) -> 499200 | F52: ='Comptes de résultat 6 ans'!U8*(1+Pilotage!$D$14) -> 998400 | G52: ='Comptes de résultat 6 ans'!V8*(1+Pilotage!$D$14) -> 998400 | H52: ='Comptes de résultat 6 ans'!W8*(1+Pilotage!$D$14) -> 1098240
B53: Prestations de services | C53: ='Comptes de résultat 6 ans'!R12*(1+Pilotage!$D$14) -> 0 | D53: ='Comptes de résultat 6 ans'!S12*(1+Pilotage!$D$14) -> 0 | E53: ='Comptes de résultat 6 ans'!T12*(1+Pilotage!$D$14) -> 0 | F53: ='Comptes de résultat 6 ans'!U12*(1+Pilotage!$D$14) -> 0 | G53: ='Comptes de résultat 6 ans'!V12*(1+Pilotage!$D$14) -> 0 | H53: ='Comptes de résultat 6 ans'!W12*(1+Pilotage!$D$14) -> 0
B54: Locations de machines | C54: ='Comptes de résultat 6 ans'!R14*(1+Pilotage!$D$14) -> 0 | D54: ='Comptes de résultat 6 ans'!S14*(1+Pilotage!$D$14) -> 0 | E54: ='Comptes de résultat 6 ans'!T14*(1+Pilotage!$D$14) -> 0 | F54: ='Comptes de résultat 6 ans'!U14*(1+Pilotage!$D$14) -> 0 | G54: ='Comptes de résultat 6 ans'!V14*(1+Pilotage!$D$14) -> 0 | H54: ='Comptes de résultat 6 ans'!W14*(1+Pilotage!$D$14) -> 0
B55: Abonnements | C55: ='Comptes de résultat 6 ans'!R20*(1+Pilotage!$D$14) -> 0 | D55: ='Comptes de résultat 6 ans'!S20*(1+Pilotage!$D$14) -> 0 | E55: ='Comptes de résultat 6 ans'!T20*(1+Pilotage!$D$14) -> 0 | F55: ='Comptes de résultat 6 ans'!U20*(1+Pilotage!$D$14) -> 0 | G55: ='Comptes de résultat 6 ans'!V20*(1+Pilotage!$D$14) -> 0 | H55: ='Comptes de résultat 6 ans'!W20*(1+Pilotage!$D$14) -> 0
C56: =SUM(C51:C55) -> 124800 | D56: 249600 | E56: 499200 | F56: 998400 | G56: 998400 | H56: 1098240
B58: Evolution de la trésorerie sur 6 ans
C59: =Pilotage!M$22 -> Année 0 | D59: =Pilotage!N$22 -> Année 1 | E59: =Pilotage!O$22 -> Année 2 | F59: =Pilotage!P$22 -> Année 3 | G59: =Pilotage!Q$22 -> Année 4 | H59: =Pilotage!R$22 -> Année 5
B60: ='Plan de trésorerie 6 ans'!A94 -> Apports en capital | C60: ='Plan de trésorerie 6 ans'!C94 -> 5000 | D60: =-1*'Plan de trésorerie 6 ans'!D94 -> 0 | E60: =-1*'Plan de trésorerie 6 ans'!E94 -> -5000 | F60: =-1*'Plan de trésorerie 6 ans'!F94 -> 0 | G60: =-1*'Plan de trésorerie 6 ans'!G94 -> 0 | H60: =-1*'Plan de trésorerie 6 ans'!H94 -> 0
B61: ='Plan de trésorerie 6 ans'!A95 -> Apports en comptes courants d'associés | C61: ='Plan de trésorerie 6 ans'!C95 -> 0 | D61: =-1*'Plan de trésorerie 6 ans'!D95 -> 0 | E61: =-1*'Plan de trésorerie 6 ans'!E95 -> 0 | F61: =-1*'Plan de trésorerie 6 ans'!F95 -> 0 | G61: =-1*'Plan de trésorerie 6 ans'!G95 -> 0 | H61: =-1*'Plan de trésorerie 6 ans'!H95 -> 0
B62: ='Plan de trésorerie 6 ans'!A96 -> Subventions | C62: ='Plan de trésorerie 6 ans'!C96 -> 0 | D62: =-1*'Plan de trésorerie 6 ans'!D96 -> 0 | E62: =-1*'Plan de trésorerie 6 ans'!E96 -> 0 | F62: =-1*'Plan de trésorerie 6 ans'!F96 -> 0 | G62: =-1*'Plan de trésorerie 6 ans'!G96 -> 0 | H62: =-1*'Plan de trésorerie 6 ans'!H96 -> 0
B63: ='Plan de trésorerie 6 ans'!A97 -> Emprunt | C63: ='Plan de trésorerie 6 ans'!C97 -> 0 | D63: =-1*'Plan de trésorerie 6 ans'!D97 -> 0 | E63: =-1*'Plan de trésorerie 6 ans'!E97 -> 0 | F63: =-1*'Plan de trésorerie 6 ans'!F97 -> 0 | G63: =-1*'Plan de trésorerie 6 ans'!G97 -> 0 | H63: =-1*'Plan de trésorerie 6 ans'!H97 -> 0
B64: ='Plan de trésorerie 6 ans'!A100 -> Autres encaissements | C64: ='Plan de trésorerie 6 ans'!C100 -> 0 | D64: =-1*'Plan de trésorerie 6 ans'!D100 -> 0 | E64: =-1*'Plan de trésorerie 6 ans'!E100 -> 0 | F64: =-1*'Plan de trésorerie 6 ans'!F100 -> 0 | G64: =-1*'Plan de trésorerie 6 ans'!G100 -> 0 | H64: =-1*'Plan de trésorerie 6 ans'!H100 -> 0
B65: ='Plan de trésorerie 6 ans'!A101 -> Matériel (Matériel) | C65: =-1*'Plan de trésorerie 6 ans'!C101 -> 0 | D65: =-1*'Plan de trésorerie 6 ans'!D101 -> 0 | E65: =-1*'Plan de trésorerie 6 ans'!E101 -> 0 | F65: =-1*'Plan de trésorerie 6 ans'!F101 -> 0 | G65: =-1*'Plan de trésorerie 6 ans'!G101 -> 0 | H65: =-1*'Plan de trésorerie 6 ans'!H101 -> 0
B66: ='Plan de trésorerie 6 ans'!A102 -> Travaux | C66: =-1*'Plan de trésorerie 6 ans'!C102 -> 0 | D66: =-1*'Plan de trésorerie 6 ans'!D102 -> 0 | E66: =-1*'Plan de trésorerie 6 ans'!E102 -> 0 | F66: =-1*'Plan de trésorerie 6 ans'!F102 -> 0 | G66: =-1*'Plan de trésorerie 6 ans'!G102 -> 0 | H66: =-1*'Plan de trésorerie 6 ans'!H102 -> 0
B67: ='Plan de trésorerie 6 ans'!A104 -> Marchandises(Stock) | C67: =-1*'Plan de trésorerie 6 ans'!C104 -> 0 | D67: =-1*'Plan de trésorerie 6 ans'!D104 -> 0 | E67: =-1*'Plan de trésorerie 6 ans'!E104 -> 0 | F67: =-1*'Plan de trésorerie 6 ans'!F104 -> 0 | G67: =-1*'Plan de trésorerie 6 ans'!G104 -> 0 | H67: =-1*'Plan de trésorerie 6 ans'!H104 -> 0
B68: ='Plan de trésorerie 6 ans'!A105 -> Ventes (Ventes Stock + Ventes Produits) | C68: ='Plan de trésorerie 6 ans'!C105 -> 124800 | D68: ='Plan de trésorerie 6 ans'!D105 -> 249600 | E68: ='Plan de trésorerie 6 ans'!E105 -> 499200 | F68: ='Plan de trésorerie 6 ans'!F105 -> 998400 | G68: ='Plan de trésorerie 6 ans'!G105 -> 998400 | H68: ='Plan de trésorerie 6 ans'!H105 -> 1098240
B69: ='Plan de trésorerie 6 ans'!A106 -> Autres revenus (Prestations + Locations) | C69: ='Plan de trésorerie 6 ans'!C106 -> 0 | D69: ='Plan de trésorerie 6 ans'!D106 -> 0 | E69: ='Plan de trésorerie 6 ans'!E106 -> 0 | F69: ='Plan de trésorerie 6 ans'!F106 -> 0 | G69: ='Plan de trésorerie 6 ans'!G106 -> 0 | H69: ='Plan de trésorerie 6 ans'!H106 -> 0
B70: ='Plan de trésorerie 6 ans'!A107 -> Salaires (Salaires) | C70: =-1*'Plan de trésorerie 6 ans'!C107 -> -161630.224 | D70: =-1*'Plan de trésorerie 6 ans'!D107 -> -166359.1307 | E70: =-1*'Plan de trésorerie 6 ans'!E107 -> -171229.9046 | F70: =-1*'Plan de trésorerie 6 ans'!F107 -> -176246.8018 | G70: =-1*'Plan de trésorerie 6 ans'!G107 -> -181414.2058 | H70: =-1*'Plan de trésorerie 6 ans'!H107 -> -186736.632
B71: ='Plan de trésorerie 6 ans'!A108 -> Loyers | C71: =-1*'Plan de trésorerie 6 ans'!C108 -> 0 | D71: =-1*'Plan de trésorerie 6 ans'!D108 -> 0 | E71: =-1*'Plan de trésorerie 6 ans'!E108 -> 0 | F71: =-1*'Plan de trésorerie 6 ans'!F108 -> 0 | G71: =-1*'Plan de trésorerie 6 ans'!G108 -> 0 | H71: =-1*'Plan de trésorerie 6 ans'!H108 -> 0
B72: ='Plan de trésorerie 6 ans'!A109 -> Licences (Licences) | C72: =-1*'Plan de trésorerie 6 ans'!C109 -> -229.58262 | D72: =-1*'Plan de trésorerie 6 ans'!D109 -> -229.58262 | E72: =-1*'Plan de trésorerie 6 ans'!E109 -> -229.58262 | F72: =-1*'Plan de trésorerie 6 ans'!F109 -> -229.58262 | G72: =-1*'Plan de trésorerie 6 ans'!G109 -> -229.58262 | H72: =-1*'Plan de trésorerie 6 ans'!H109 -> -229.58262
B73: ='Plan de trésorerie 6 ans'!A112 -> Impôts sur les bénéfices | C73: =-1*'Plan de trésorerie 6 ans'!C112 -> 0 | D73: =-1*'Plan de trésorerie 6 ans'!D112 -> -314.974812 | E73: =-1*'Plan de trésorerie 6 ans'!E112 -> -60681.85129 | F73: =-1*'Plan de trésorerie 6 ans'!F112 -> -196870.4473 | G73: =-1*'Plan de trésorerie 6 ans'!G112 -> -194702.8444 | H73: =-1*'Plan de trésorerie 6 ans'!H112 -> -220148.7122
B74: ='Plan de trésorerie 6 ans'!A113 -> Garanties sur loyer | C74: =-1*'Plan de trésorerie 6 ans'!C113 -> 0 | D74: =-1*'Plan de trésorerie 6 ans'!D113 -> 0 | E74: =-1*'Plan de trésorerie 6 ans'!E113 -> 0 | F74: =-1*'Plan de trésorerie 6 ans'!F113 -> 0 | G74: =-1*'Plan de trésorerie 6 ans'!G113 -> 0 | H74: =-1*'Plan de trésorerie 6 ans'!H113 -> 0
B75: ='Plan de trésorerie 6 ans'!A114 -> Garanties professionnelles | C75: =-1*'Plan de trésorerie 6 ans'!C114 -> 0 | D75: =-1*'Plan de trésorerie 6 ans'!D114 -> 0 | E75: =-1*'Plan de trésorerie 6 ans'!E114 -> 0 | F75: =-1*'Plan de trésorerie 6 ans'!F114 -> 0 | G75: =-1*'Plan de trésorerie 6 ans'!G114 -> 0 | H75: =-1*'Plan de trésorerie 6 ans'!H114 -> 0
B76: ='Plan de trésorerie 6 ans'!A115 -> Remboursements d'emprunts | C76: =-1*'Plan de trésorerie 6 ans'!C115 -> 0 | D76: =-1*'Plan de trésorerie 6 ans'!D115 -> 0 | E76: =-1*'Plan de trésorerie 6 ans'!E115 -> 0 | F76: =-1*'Plan de trésorerie 6 ans'!F115 -> 0 | G76: =-1*'Plan de trésorerie 6 ans'!G115 -> 0 | H76: =-1*'Plan de trésorerie 6 ans'!H115 -> 0
C77: =SUM(C60:C76) -> -32059.80662 | D77: 82696.31185 | E77: 262058.6614 | F77: 625053.1683 | G77: 622053.3672 | H77: 691125.0732
C78: =SUM($C77:C77) -> -32059.80662 | D78: =SUM($C77:D77) -> 50636.50523 | E78: =SUM($C77:E77) -> 312695.1667 | F78: =SUM($C77:F77) -> 937748.335 | G78: =SUM($C77:G77) -> 1559801.702 | H78: =SUM($C77:H77) -> 2250926.775
B81: Répartition du CA par activité
C82: =Synthèse!G5 -> FabLab | D82: =Synthèse!H5 -> FabCafé | E82: =Synthèse!I5 -> Boutiques | F82: =Synthèse!J5 -> Coworking
B83: CA (HT) | C83: =Synthèse!U7 ->  | D83: =Synthèse!V7 ->  | E83: =Synthèse!W7 ->  | F83: =Synthèse!X7 -> 
B84: Total charges variables(HT) | C84: =Synthèse!G79 ->  | D84: =Synthèse!H79 ->  | E84: =Synthèse!I79 ->  | F84: =Synthèse!J79 -> 
B85: Marge sur coûts variables | C85: =C83-C84 ->  | D85: =D83-D84 ->  | E85: =E83-E84 ->  | F85: =F83-F84 -> 
B86: Taux de marge sur coûts variables | C86: =IF(C83=0,0,C85/C83) ->  | D86: =IF(D83=0,0,D85/D83) ->  | E86: =IF(E83=0,0,E85/E83) ->  | F86: =IF(F83=0,0,F85/F83) -> 
B87: Total charges fixes (HT) | C87: =Synthèse!G78 ->  | D87: =Synthèse!H78 ->  | E87: =Synthèse!I78 ->  | F87: =Synthèse!J78 -> 
B88: Seuil de rentabilité | C88: =IF(C87=0,0,C87/C86) ->  | D88: =IF(D87=0,0,D87/D86) ->  | E88: =IF(E87=0,0,E87/E86) ->  | F88: =IF(F87=0,0,F87/F86) -> 
B89: Point Mort (j) | C89: =C88/(C83/360) ->  | D89: =D88/(D83/360) ->  | E89: =E88/(E83/360) ->  | F89: =F88/(F83/360) -> 
B93: Evolution du résultat net
C94: =Pilotage!M$22 -> Année 0 | D94: =Pilotage!N$22 -> Année 1 | E94: =Pilotage!O$22 -> Année 2 | F94: =Pilotage!P$22 -> Année 3 | G94: =Pilotage!Q$22 -> Année 4 | H94: =Pilotage!R$22 -> Année 5
B95: Résultat net | C95: ='SIG 6 ans'!D35 -> -93717.04285 | D95: ='SIG 6 ans'!G35 -> 1784.857268 | E95: ='SIG 6 ans'!J35 -> 142329.7026 | F95: ='SIG 6 ans'!M35 -> 414706.8945 | G95: ='SIG 6 ans'!P35 -> 410371.6887 | H95: ='SIG 6 ans'!S35 -> 461263.4243
B96: Taux | C96: ='SIG 6 ans'!E35 -> -0.901125412 | D96: ='SIG 6 ans'!H35 -> 0.008581044558 | E96: ='SIG 6 ans'!K35 -> 0.3421387081 | F96: ='SIG 6 ans'!N35 -> 0.4984457867 | G96: ='SIG 6 ans'!Q35 -> 0.4932352028 | H96: ='SIG 6 ans'!T35 -> 0.5040028675
C97: ='SIG 6 ans'!C38:E38 -> 0 | D97: ='SIG 6 ans'!F38 -> 1 | E97: ='SIG 6 ans'!I38 -> 1 | F97: ='SIG 6 ans'!L38 -> 1 | G97: ='SIG 6 ans'!O38 -> 0 | H97: ='SIG 6 ans'!R38 -> 0.1

Sheet Rapports
B2: Rapports

Sheet ExecutiveSummary
A1: L’organisation
B2: Etablissement | D2: =Pilotage!D5&" m²" -> 0 m²
B3: Machines | D3: =Investissement!B5 -> 0
B4: BFR | D4: ='Plan de financement à 6 ans'!E26 -> 0
B5: Personnel
C6: 1ère année | D6: =SUM(Pilotage!F59:F65)&" ETP" -> 4 ETP
C7: 2ème année | D7: =SUM(Pilotage!H59:H65)&" ETP" -> 4 ETP
C8: 3ème année | D8: =SUM(Pilotage!J59:J65)&" ETP" -> 4 ETP
A10: Le chiffre d’affaire
B11: 1ère année | D11: ='Comptes de résultat 6 ans'!R6 -> 104000
B12: 2ème année | D12: ='Comptes de résultat 6 ans'!S6 -> 208000
B13: 3ème année | D13: ='Comptes de résultat 6 ans'!T6 -> 416000
A15: Résultat net (après IS)
B16: 1ère année | D16: ='Comptes de résultat 6 ans'!G91 -> -93717.04285
B17: 2ème année | D17: ='Comptes de résultat 6 ans'!H91 -> 1784.857268
B18: 3ème année | D18: ='Comptes de résultat 6 ans'!I91 -> 142329.7026
A20: Capital social | D20: ='Plan de financement à 6 ans'!N8 -> 10000
A22: Autres financements | D22: ='Plan de financement à 6 ans'!N17 -> 0
A24: Emprunts
B25: Bancaires | D25: ='Plan de financement à 6 ans'!N33 -> 0
B26: PCE | D26: ='Plan de financement à 6 ans'!N32 -> 0
B27: Prêts d'honneur | D27: ='Plan de financement à 6 ans'!N31 -> 0

Sheet TarifsServices
A1: Passeports (en € TTC) | B1: Plein tarif | C1: Tarif réduit | D1: Tarif adhérent | E1: Durée
A2: =Pilotage!F42 -> Découpe laser | B2: 60 | C2: =B2*(1-Pilotage!M$17) -> 54 | D2: =B2*(1-Pilotage!M$18) -> 48 | E2: 1 h
A3: =Pilotage!F43 -> Imprimante 3D | B3: 30 | C3: =B3*(1-Pilotage!M$17) -> 27 | D3: =B3*(1-Pilotage!M$18) -> 24 | E3: 30 min - 1 h
A4: =Pilotage!F44 -> Petite imprimante 3D | B4: 30 | C4: =B4*(1-Pilotage!M$17) -> 27 | D4: =B4*(1-Pilotage!M$18) -> 24 | E4: 30 min - 1 h
A5: =Pilotage!F45 -> Découpe vinyle | B5: 30 | C5: =B5*(1-Pilotage!M$17) -> 27 | D5: =B5*(1-Pilotage!M$18) -> 24 | E5: 30 min - 1 h
A6: =Pilotage!F46 -> Petite fraiseuse | B6: 30 | C6: =B6*(1-Pilotage!M$17) -> 27 | D6: =B6*(1-Pilotage!M$18) -> 24 | E6: 30 min - 1 h
A7: =Pilotage!F47 -> Grande fraiseuse | B7: 150 | C7: =B7*(1-Pilotage!M$17) -> 135 | D7: =B7*(1-Pilotage!M$18) -> 120 | E7: 2 h - 3 h
A8: =Pilotage!F49 -> Machine à broder/coudre | B8: 30 | C8: =B8*(1-Pilotage!M$17) -> 27 | D8: =B8*(1-Pilotage!M$18) -> 24 | E8: 30 min - 1 h
A9: =Pilotage!F50 -> Presse à chaud | B9: 5 | C9: =B9*(1-Pilotage!M$17) -> 4.5 | D9: =B9*(1-Pilotage!M$18) -> 4 | E9: 15 min
A11: Autre (en € TTC) | B11: =B17 -> Plein tarif | C11: =C17 -> Tarif réduit | D11: =D17 -> Tarif adhérent
A12: Accès atelier (0,5j/p) | B12: 5 | C12: =INT(B12*(1-Pilotage!M$17)) -> 4 | D12: ="0 € " -> 0 €
A13: Privatisation de l'atelier (/h) | B13: 150 | C13: =B13*(1-Pilotage!M$17) -> 135 | D13: =B13*(1-Pilotage!M$18) -> 120
A14: Location Imprimante 3D (/h) | B14: 10 | C14: =B14*(1-Pilotage!M$17) -> 9 | D14: =B14*(1-Pilotage!M$18) -> 8
A15: Location bureau (0,5j/p) | B15: 5 | C15: =B15*(1-Pilotage!M$17) -> 4.5 | D15: =B15*(1-Pilotage!M$18) -> 4
A17: Services (en € TTC) | B17: Plein tarif | C17: Tarif réduit | D17: Tarif adhérent
A18: Formation individuelle | B18: 60 | C18: =B18*(1-Pilotage!M$17) -> 54 | D18: =B18*(1-Pilotage!M$18) -> 48
A19: Formation collective | B19: 30 | C19: =B19*(1-Pilotage!M$17) -> 27 | D19: =B19*(1-Pilotage!M$18) -> 24
A20: Accompagnement | B20: 30 | C20: =B20*(1-Pilotage!M$17) -> 27 | D20: =B20*(1-Pilotage!M$18) -> 24
A21: Prestation | B21: 30 | C21: =B21*(1-Pilotage!M$17) -> 27 | D21: =B21*(1-Pilotage!M$18) -> 24
A23: Locations (en € TTC) | B23: =B17 -> Plein tarif | C23: =C17 -> Tarif réduit | D23: Tarif adhérent
A24: =Pilotage!F42 -> Découpe laser | B24: =Pilotage!G42 -> 0 | C24: =B24*(1-Pilotage!M$17) -> 0 | D24: =B24*(1-Pilotage!M$18) -> 0
A25: =Pilotage!F43 -> Imprimante 3D | B25: =Pilotage!G43 -> 0 | C25: =B25*(1-Pilotage!M$17) -> 0 | D25: =B25*(1-Pilotage!M$18) -> 0
A26: =Pilotage!F44 -> Petite imprimante 3D | B26: =Pilotage!G44 -> 0 | C26: =B26*(1-Pilotage!M$17) -> 0 | D26: =B26*(1-Pilotage!M$18) -> 0
A27: =Pilotage!F45 -> Découpe vinyle | B27: =Pilotage!G45 -> 0 | C27: =B27*(1-Pilotage!M$17) -> 0 | D27: =B27*(1-Pilotage!M$18) -> 0
A28: =Pilotage!F46 -> Petite fraiseuse | B28: =Pilotage!G46 -> 0 | C28: =B28*(1-Pilotage!M$17) -> 0 | D28: =B28*(1-Pilotage!M$18) -> 0
A29: =Pilotage!F47 -> Grande fraiseuse | B29: =Pilotage!G47 -> 0 | C29: =B29*(1-Pilotage!M$17) -> 0 | D29: =B29*(1-Pilotage!M$18) -> 0
A30: =Pilotage!F48 -> Machine à coudre | B30: =Pilotage!G48 -> 0 | C30: =B30*(1-Pilotage!M$17) -> 0 | D30: =B30*(1-Pilotage!M$18) -> 0
A31: =Pilotage!F49 -> Machine à broder/coudre | B31: =Pilotage!G49 -> 0 | C31: =B31*(1-Pilotage!M$17) -> 0 | D31: =B31*(1-Pilotage!M$18) -> 0

Sheet TarifsAbos
A2: Abonnements | B2: Annuel | C2: Mensuel | E2: Comprend
A3: =Pilotage!F34&" (étudiants, <25 ans, demandeurs d'emploi) " -> Starter (étudiants, <25 ans, demandeurs d'emploi) | B3: =Pilotage!G34 -> 0 | C3: =B3/12 -> 0 | E3: =CA!K32 -> soit 0 €/mois pour 1 h/an de formation, 1 h/mois de temps machine (valeur : 0 €)
A4: =Pilotage!F35 -> Maker | B4: =Pilotage!G35 -> 0 | C4: =B4/12 -> 0 | E4: =CA!K33 -> soit 0 €/mois pour 1 h/an de formation, 1 h/m de temps machine au lieu de 0 €
A5: =Pilotage!F36 -> Startup | B5: =Pilotage!G36 -> 0 | C5: 0 | E5: =CA!K34 -> soit 0 €/mois pour 1 h/an de formation, 3 h/mois de temps machine , 1 h/mois d'accompagnement personnalisé (valeur : 0 €)
A6: =Pilotage!F37 -> Pro | B6: =Pilotage!G37 -> 0 | C6: 0 | E6: =CA!K35 -> soit 0 €/mois pour 2 h/an de formation, 5 h/m de temps machine , 2 h/m d'accompagnement personnalisé (valeur : 0 €)

Sheet Evolution CA A0
A1: en € TTC | B1: Contrôle | C1: Mois 1 | D1: Mois 2 | E1: Mois 3 | F1: Mois 4 | G1: Mois 5 | H1: Mois 6 | I1: Mois 7 | J1: Mois 8 | K1: Mois 9 | L1: Mois 10 | M1: Mois 11 | N1: Mois 12
A2: Coeff | B2: ='Plan de trésorerie A0'!B100 -> 1 | C2: ='Plan de trésorerie A0'!C100 -> 0.01 | D2: ='Plan de trésorerie A0'!D100 -> 0.03 | E2: ='Plan de trésorerie A0'!E100 -> 0.05 | F2: ='Plan de trésorerie A0'!F100 -> 0.08 | G2: ='Plan de trésorerie A0'!G100 -> 0.09 | H2: ='Plan de trésorerie A0'!H100 -> 0.08648489551 | I2: ='Plan de trésorerie A0'!I100 -> 0.09241962407 | J2: ='Plan de trésorerie A0'!J100 -> 0.09765442566 | K2: ='Plan de trésorerie A0'!K100 -> 0.1023371152 | L2: ='Plan de trésorerie A0'!L100 -> 0.12 | M2: ='Plan de trésorerie A0'!M100 -> 0.12 | N2: ='Plan de trésorerie A0'!N100 -> 0.12
A3: Ventes directes | B3: ='Plan de trésorerie A0'!B101 -> 124800 | C3: ='Plan de trésorerie A0'!C101 -> 1248 | D3: ='Plan de trésorerie A0'!D101 -> 3744 | E3: ='Plan de trésorerie A0'!E101 -> 6240 | F3: ='Plan de trésorerie A0'!F101 -> 9984 | G3: ='Plan de trésorerie A0'!G101 -> 11232 | H3: ='Plan de trésorerie A0'!H101 -> 10793.31496 | I3: ='Plan de trésorerie A0'!I101 -> 11533.96908 | J3: ='Plan de trésorerie A0'!J101 -> 12187.27232 | K3: ='Plan de trésorerie A0'!K101 -> 12771.67198 | L3: ='Plan de trésorerie A0'!L101 -> 14976 | M3: ='Plan de trésorerie A0'!M101 -> 14976 | N3: ='Plan de trésorerie A0'!N101 -> 14955.37
A4: Autres (loca et prestas) | B4: ='Plan de trésorerie A0'!B102 -> 0 | C4: ='Plan de trésorerie A0'!C102 -> 0 | D4: ='Plan de trésorerie A0'!D102 -> 0 | E4: ='Plan de trésorerie A0'!E102 -> 0 | F4: ='Plan de trésorerie A0'!F102 -> 0 | G4: ='Plan de trésorerie A0'!G102 -> 0 | H4: ='Plan de trésorerie A0'!H102 -> 0 | I4: ='Plan de trésorerie A0'!I102 -> 0 | J4: ='Plan de trésorerie A0'!J102 -> 0 | K4: ='Plan de trésorerie A0'!K102 -> 0 | L4: ='Plan de trésorerie A0'!L102 -> 0 | M4: ='Plan de trésorerie A0'!M102 -> 0 | N4: ='Plan de trésorerie A0'!N102 -> -45.32

Sheet Investissement
A2: Achats de matériel | B2: Montant en € HT
A3: financés par emprunts | B3: ='Plan de financement à 6 ans'!E20 -> 0
A4: financés par Crédit-bail/financement locatif | B4: ='Credit-bail'!C5 -> 0
A5: Total des investissements matériels | B5: =SUM(B3:B4) -> 0

Sheet Frais
B1: Charges (en € HT) | C1: Année 0 | D1: Année 1 | E1: Année 2
B2: Eau et électricité | C2: 0 | D2: =C2*103% -> 0 | E2: =D2*103% -> 0
B3: Fournitures d'entretien, petit équipement | C3: 0 | D3: =C3*103% -> 0 | E3: 0
B4: Sous-traitance | C4: 0 | D4: 0 | E4: 0
B5: Locations diverses (Hébergement Web) | C5: ='Charges Ext'!K16+'Charges Ext'!K17+'Charges Ext'!K18 -> 2400 | D5: 2472 | E5: 2546.16
B6: Assurances TTC | C6: ='Charges Ext'!K13 -> 500 | D6: 515 | E6: 530.45
B7: Formation, Etudes et recherches | C7: ='Charges Ext'!K33 -> 0 | D7: 0 | E7: 0
B8: Documentation | C8: 0 | D8: 0 | E8: 0
B9: Personnel extérieur | C9: ='Charges Ext'!K22 -> 1666.666667 | D9: 1716.666667 | E9: 1768.166667
B10: Honoraires | C10: ='Charges Ext'!K25 -> 3000 | D10: 3090 | E10: 3182.7
B11: Publicité | C11: ='Charges Ext'!K24 -> 20833.33333 | D11: 21458.33333 | E11: 22102.08333
B12: Salons & frais de réception | C12: ='Charges Ext'!K31 -> 0 | D12: 0 | E12: 0
B13: Déplacement TTC | C13: ='Charges Ext'!K28+'Charges Ext'!K29 -> 5000 | D13: 5150 | E13: 5304.5
B14: Poste et télécom | C14: =SUM('Charges Ext'!K9:K9) -> 125 | D14: 128.75 | E14: 132.6125
B15: Autres | C15: ='Charges Ext'!L6*0.833333 -> 703.8330518 | D15: 724.9480434 | E15: 746.6964847
B16: Sous total | C16: =SUM(C2:C15) -> 34228.83305 | D16: =SUM(D2:D15) -> 35255.69804 | E16: =SUM(E2:E15) -> 36313.36898
B18: Fournitures / consommables | C18: ='Comptes de résultat 6 ans'!G12 -> 0 | D18: ='Comptes de résultat 6 ans'!H12 -> 0 | E18: ='Comptes de résultat 6 ans'!I12 -> 0
B19: Redevances du crédit-bail | C19: ='Comptes de résultat 6 ans'!G28 -> 0 | D19: ='Comptes de résultat 6 ans'!H28 -> 0 | E19: ='Comptes de résultat 6 ans'!I28 -> 0
B20: Services bancaires (intérêts d'emprunts) | C20: ='Comptes de résultat 6 ans'!G61 -> 0 | D20: ='Comptes de résultat 6 ans'!H61 -> 0 | E20: ='Comptes de résultat 6 ans'!I61 -> 0
B21: Loyer et charges locatives | C21: ='Comptes de résultat 6 ans'!G27 -> 0 | D21: ='Comptes de résultat 6 ans'!H27 -> 0 | E21: ='Comptes de résultat 6 ans'!I27 -> 0
B22: Entretien et maintenances | C22: ='Comptes de résultat 6 ans'!G13 -> 0 | D22: ='Comptes de résultat 6 ans'!H13 -> 0 | E22: ='Comptes de résultat 6 ans'!I13 -> 0
B23: Licences logicielles | C23: ='Comptes de résultat 6 ans'!G57 -> 191.31885 | D23: ='Comptes de résultat 6 ans'!H57 -> 191.31885 | E23: ='Comptes de résultat 6 ans'!I57 -> 191.31885
B24: Impôts et taxes (CET) | C24: ='Comptes de résultat 6 ans'!G42 -> 0 | D24: ='Comptes de résultat 6 ans'!H42 -> 2375 | E24: ='Comptes de résultat 6 ans'!I42 -> 3483.333333
B26: Total | C26: =SUM(C2:C15)+SUM(C18:C24) -> 34420.1519 | D26: =SUM(D2:D15)+SUM(D18:D24) -> 37822.01689 | E26: =SUM(E2:E15)+SUM(E18:E24) -> 39988.02117
B28: Salaires | C28: ='Comptes de résultat 6 ans'!G50 -> 161630.224 | D28: ='Comptes de résultat 6 ans'!H50 -> 166359.1307 | E28: ='Comptes de résultat 6 ans'!I50 -> 171229.9046
B29: DAT | C29: ='Comptes de résultat 6 ans'!G69 -> 0 | D29: ='Comptes de résultat 6 ans'!H69 -> 2.35335 | E29: ='Comptes de résultat 6 ans'!I69 -> 2.35335
B30: Stock - Marchandises | C30: ='Comptes de résultat 6 ans'!G8 -> 0 | D30: ='Comptes de résultat 6 ans'!H8 -> 0 | E30: ='Comptes de résultat 6 ans'!I8 -> 0
B32: Total charges | C32: =SUM(C26,C28:C30) -> 196050.3759 | D32: =SUM(D26,D28:D30) -> 204183.501 | E32: =SUM(E26,E28:E30) -> 211220.2792

Sheet Associés
C1: Collèges | E1: Apports | F1: Parts | G1: % du capital social par associé | H1: % du capital social par collège | I1: Nb voix | J1: Part du nb de votes
C2: Salariés de l’entreprise | H2: =SUM(G3:G4) -> 0.3783783784 | I2: =IF(C2<>"",COUNTIF(E3:E4,">0"),"") -> 1 | J2: 0.3
D3: Joris | E3: 7000 | F3: =IF(E3<>"",E3/100,"") -> 70 | G3: =IF(E3<>"",E3/$E$42,"") -> 0.3783783784 | I3: =IF(C3<>"",COUNTIF(E4:E5,">0"),"") -> 
C5: Bénéficiaires | F5: =IF(E5<>"",E5/100,"") ->  | G5: =IF(E5<>"",E5/$E$42,"") ->  | H5: =SUM(G6:G25) -> 0.0972972973 | I5: =IF(C5<>"",COUNTIF(E6:E25,">0"),"") -> 18 | J5: 0.3
D6: Sandrine | E6: 100 | F6: 1 | G6: 0.005405405405 | I6: =IF(C6<>"",COUNTIF(E25:E25,">0"),"") -> 
D7: Isabelle | E7: 100 | F7: 1 | G7: 0.005405405405
D8: Bernard | E8: 100 | F8: 1 | G8: 0.005405405405
D9: Georges | E9: 100 | F9: 1 | G9: 0.005405405405
D10: Michèle | E10: 100 | F10: 1 | G10: 0.005405405405
D11: Pierre | E11: 100 | F11: 1 | G11: 0.005405405405
D12: Jacques | E12: 100 | F12: =IF(E12<>"",E12/100,"") -> 1 | G12: 0.005405405405
D13: Maurice | E13: 100 | F13: 1 | G13: 0.005405405405
D14: Fabien | E14: 100 | F14: 1 | G14: 0.005405405405
D15: Dimitri | E15: 100 | F15: 1 | G15: 0.005405405405
D16: Ben | E16: 100 | F16: 1 | G16: 0.005405405405
D17: Thierry | E17: 100 | F17: 1 | G17: 0.005405405405
D18: Linda | E18: 100 | F18: 1 | G18: 0.005405405405
D19: Jean-Michel | E19: 100 | F19: 1 | G19: =IF(E19<>"",E19/$E$42,"") -> 0.005405405405
D20: Jean benoit | E20: 100 | F20: 1 | G20: 0.005405405405
D21: Cindy | E21: 100 | F21: 1 | G21: 0.005405405405
D22: Vincent | E22: 100 | F22: 1 | G22: 0.005405405405
D23: Henri | E23: 100 | F23: 1 | G23: 0.005405405405
F25: =IF(E25<>"",E25/100,"") ->  | G25: =IF(E25<>"",E25/$E$42,"") ->  | I25: =IF(C25<>"",COUNTIF(E26:E38,">0"),"") -> 
C26: FabLabs | G26: =IF(E26<>"",E26/$E$42,"") ->  | H26: =SUM(G27:G31) -> 0.01621621622 | I26: =IF(C26<>"",COUNTIF(E27:E31,">0"),"") -> 3 | J26: 0.1
D27: FabLab 1 | E27: 100 | F27: 1 | G27: =IF(E27<>"",E27/$E$42,"") -> 0.005405405405
D28: FabLab 2 | E28: 100 | F28: 1 | G28: =IF(E28<>"",E28/$E$42,"") -> 0.005405405405
D29: FabLab 3 | E29: 100 | F29: 1 | G29: 0.005405405405
G31: =IF(E31<>"",E31/$E$42,"") ->  | I31: =IF(C31<>"",COUNTIF(#REF!,">0"),"") -> 
C32: Partenaires | H32: =SUM(G33:G36) -> 0.2162162162 | I32: =IF(C32<>"",COUNTIF(E33:E40,">0"),"") -> 6 | J32: 0.3
D33: Ecole 1 | E33: 1000 | F33: 10 | G33: =IF(E33<>"",E33/$E$42,"") -> 0.05405405405
D34: Marie | E34: 1000 | F34: 10 | G34: 0.05405405405
D35: Com com | E35: 1000 | F35: 10 | G35: 0.05405405405
D36: Département | E36: 1000 | F36: 10 | G36: 0.05405405405
D37: Association | E37: 1000 | F37: 10 | G37: 0.05405405405
D38: Société | E38: 1000 | F38: =IF(E38<>"",E38/100,"") -> 10 | G38: 0.05405405405
F40: =IF(E40<>"",E40/100,"") ->  | I40: =IF(C40<>"",COUNTIF(E41:E41,">0"),"") -> 
C41: Total | D41: actuel | E41: =SUM(E2:E38) -> 15100 | F41: =SUM(F3:F38) -> 151 | G41: Nb associés | I41: =SUM(I2:I32) -> 28 | J41: =SUM(J2:J33) -> 1
D42: cible | E42: 18500 | F42: =E42/100 -> 185
D43: restant | E43: =E42-E41 -> 3400 | F43: ="soit "&F42-F41&" parts" -> soit 34 parts

Sheet Ressources
A2: Ressources
A3: ='Plan de financement à 6 ans'!L8 -> Capitaux propres | C3: ='Plan de financement à 6 ans'!N8 -> 10000
A4: ='Plan de financement à 6 ans'!L9 ->  | B4: ='Plan de financement à 6 ans'!M9 -> Apports personnels | C4: ='Plan de financement à 6 ans'!N9 -> 10000
B5: ='Plan de financement à 6 ans'!M10 -> Apports des associés | C5: ='Plan de financement à 6 ans'!N10 -> 0
B6: ='Plan de financement à 6 ans'!M11 -> Apports en nature | C6: ='Plan de financement à 6 ans'!N11 -> 0
A7: ='Plan de financement à 6 ans'!L13 -> Comptes courants d'associés | C7: 0
A8: ='Plan de financement à 6 ans'!L17 -> Subvention, prime | C8: ='Plan de financement à 6 ans'!N17 -> 0
B9: ='Plan de financement à 6 ans'!M18 -> Financements participatifs | C9: ='Plan de financement à 6 ans'!N18 -> 0
B10: ='Plan de financement à 6 ans'!M19 -> Autres fonds (NACRE, fondations) | C10: ='Plan de financement à 6 ans'!N19 -> 0
B11: ='Plan de financement à 6 ans'!M20 -> Financements privés/sponsors | C11: ='Plan de financement à 6 ans'!N20 -> 0
A12: ='Plan de financement à 6 ans'!L30 -> Capitaux empruntés | C12: ='Plan de financement à 6 ans'!N30 -> 0
B13: ='Plan de financement à 6 ans'!M31 -> Prêts d'honneur | C13: ='Plan de financement à 6 ans'!N31 -> 0
B14: ='Plan de financement à 6 ans'!M32 -> PCE | C14: ='Plan de financement à 6 ans'!N32 -> 0
B15: ='Plan de financement à 6 ans'!M33 -> Prêt bancaire | C15: ='Plan de financement à 6 ans'!N33 -> 0
A16: TOTAL | C16: ='Plan de financement à 6 ans'!N40 -> 10000

Sheet Plan financier initial
B2: Plan de financement initial
C5: BESOINS PERMANENTS | G5: RESSOURCES DURABLES
C7: Frais d'établissement | E7: =Installation!K4 -> 9571 | G7: Capitaux propres | I7: =SUM(I8:I10) -> 10000
H8: Apports personnels | I8: =Pilotage!H10 -> 10000
H9: Apports des associés | I9: =Pilotage!H12 -> 0
H10: Apports en nature | I10: =Pilotage!H11 -> 0
C12: Immobilisations incorporelles | E12: =E13+E14 -> 0
D13: Brevet, licences | E13: 0
D14: Fonds de commerce ou droit au bail | E14: 0
C16: Immobilisations corporelles | E16: =E17+E19+E18 -> 0 | G16: Subvention, prime | I16: =SUM(I17:I19) -> 0
D17: Travaux / aménagements / Mobilier | E17: =Travaux!K4 -> 0 | H17: Financement participatif | I17: =Pilotage!H18 -> 0
D18: Matériel | E18: =Matériel!K4 -> 0 | H18: =Pilotage!G19 -> Autres fonds (NACRE, fondations) | I18: =Pilotage!H19 -> 0
D19: Véhicule | E19: 0 | H19: =Pilotage!G20 -> Financements privés/sponsors | I19: =Pilotage!H20 -> 0
C21: Immobilisations financières | E21: =E22+E23 -> 0
D22: Caution sur loyer | E22: =Pilotage!D9*Pilotage!D7 -> 0
D23: Garanties professionnelles | E23: 0
C25: Besoin en fond de roulement | E25: =Pilotage!H23 -> 0
C27: Stock de marchandises | E27: 0
C29: Remboursements | E29: =SUM(E30:E33) -> 0 | G29: Capitaux empruntés | I29: =SUM(I30:I32) -> 0
D30: Prêts d'honneur | E30: ='Prêts honneur'!C12*'Prêts honneur'!C8 -> 0 | H30: =Pilotage!G21 -> Prêts d'honneur | I30: =Pilotage!H21 -> 0
D31: PCE | E31: =PCE!C12*PCE!C8 -> 0 | H31: =Pilotage!G22 -> PCE | I31: =Pilotage!H22 -> 0
D32: Prêt bancaire | E32: =Emprunt!$C8*Emprunt!$C12 -> 0 | H32: Prêt bancaire | I32: =Pilotage!D29 -> 0
D33: Crédit-bail/location financière | E33: ='Credit-bail'!C12*'Credit-bail'!C8 -> 0 | H33: Comptes courants d'associés | I33: =Pilotage!H17 -> 0
C35: Rémunération exploitant individuel | E35: 0 | H35: Besoins couverts | I35: =I32/I39 -> 0
C37: Distribution de dividendes | E37: 0
C39: TOTAL | E39: =E12+E16+E21+E25+E27+E29+E35+E37+E7 -> 9571 | G39: TOTAL | I39: =I7+I33+I16+I29 -> 10000
G41: ECARTS | I41: =I39-E39 -> 429

Sheet Comptes de résultat 3 ans
D1: Année 0 | E1: Année 1 | F1: Année 2
A2: PRODUITS (HT)
B3: Ventes de marchandises | D3: ='Comptes de résultat 6 ans'!R8 -> 104000 | E3: ='Comptes de résultat 6 ans'!S8 -> 208000 | F3: ='Comptes de résultat 6 ans'!T8 -> 416000
B4: Production stockée | D4: 0 | E4: 0 | F4: 0
B5: Prestations de services | D5: =SUM(D6:D8) -> 0 | E5: =SUM(E6:E8) -> 0 | F5: =SUM(F6:F8) -> 0
C6: Prestations | D6: ='Comptes de résultat 6 ans'!R12 -> 0 | E6: ='Comptes de résultat 6 ans'!S12 -> 0 | F6: ='Comptes de résultat 6 ans'!T12 -> 0
C7: Locations | D7: ='Comptes de résultat 6 ans'!R14 -> 0 | E7: ='Comptes de résultat 6 ans'!S14 -> 0 | F7: ='Comptes de résultat 6 ans'!T14 -> 0
C8: Abonnements | D8: ='Comptes de résultat 6 ans'!R20 -> 0 | E8: ='Comptes de résultat 6 ans'!S20 -> 0 | F8: ='Comptes de résultat 6 ans'!T20 -> 0
B9: Subventions d'exploitation | D9: ='Comptes de résultat 6 ans'!R50 -> 0 | E9: ='Comptes de résultat 6 ans'!S50 -> 0 | F9: ='Comptes de résultat 6 ans'!T50 -> 0
B10: Autres produits | D10: ='Comptes de résultat 6 ans'!R33 -> 0 | E10: ='Comptes de résultat 6 ans'!S33 -> 0 | F10: ='Comptes de résultat 6 ans'!T33 -> 0
B11: Produits financiers | D11: ='Comptes de résultat 6 ans'!R60 -> 0 | E11: ='Comptes de résultat 6 ans'!S60 -> 0 | F11: ='Comptes de résultat 6 ans'!T60 -> 0
B12: Produits exceptionnels | D12: ='Comptes de résultat 6 ans'!R65 -> 0 | E12: ='Comptes de résultat 6 ans'!S65 -> 0 | F12: ='Comptes de résultat 6 ans'!T65 -> 0
A13: TOTAL PRODUITS | D13: =SUM(D9:D12)+SUM(D3:D5) -> 104000 | E13: =SUM(E9:E12)+SUM(E3:E5) -> 208000 | F13: =SUM(F9:F12)+SUM(F3:F5) -> 416000
A15: CHARGES (HT)
B16: CHARGES D'EXPLOITATION
C17: Achats (charges variables) | D17: =SUM(D18:D20) -> 0 | E17: =SUM(E18:E20) -> 0 | F17: =SUM(F18:F20) -> 0
C18: Achat de marchandises | D18: ='Comptes de résultat 6 ans'!G8 -> 0 | E18: ='Comptes de résultat 6 ans'!H8 -> 0 | F18: ='Comptes de résultat 6 ans'!I8 -> 0
C19: Sous-traitance | D19: 0 | E19: 0 | F19: 0
C20: Variation de stock | D20: ='Ventes Stock'!O5 -> 0 | E20: ='Ventes Stock'!X5 -> 0 | F20: ='Ventes Stock'!AG5 -> 0
C21: Achats de fournitures | D21: =SUM(D22:D25) -> 0 | E21: =SUM(E22:E25) -> 0 | F21: =SUM(F22:F25) -> 0
C22: Eau | D22: 0 | E22: =D22*1.03 -> 0 | F22: 0
C23: Electricité | D23: 0 | E23: 0 | F23: 0
C24: Fournitures d'entretien | D24: 0 | E24: 0 | F24: 0
C25: Fournitures administratives | D25: ='Comptes de résultat 6 ans'!G12 -> 0 | E25: ='Comptes de résultat 6 ans'!H12 -> 0 | F25: ='Comptes de résultat 6 ans'!I12 -> 0
C26: Charges externes | D26: =SUM(D27:D31) -> 500 | E26: =SUM(E27:E31) -> 515 | F26: 530.45
C27: Loyers de crédit-bail | D27: ='Comptes de résultat 6 ans'!G28 -> 0 | E27: ='Comptes de résultat 6 ans'!H28 -> 0 | F27: ='Comptes de résultat 6 ans'!I28 -> 0
C28: Loyers et charges locatives | D28: ='Comptes de résultat 6 ans'!G27 -> 0 | E28: ='Comptes de résultat 6 ans'!H27 -> 0 | F28: ='Comptes de résultat 6 ans'!I27 -> 0
C29: Assurances | D29: =SUM('Charges Ext'!K13:K13) -> 500 | E29: =D29*1.03 -> 515 | F29: =E29*1.03 -> 530.45
C30: Documentation | D30: ='Charges Ext'!K33 -> 0 | E30: =D30*1.03 -> 0 | F30: =E30*1.03 -> 0
C31: Entretien (locaux, matériel) | D31: ='Comptes de résultat 6 ans'!G13 -> 0 | E31: ='Comptes de résultat 6 ans'!H13 -> 0 | F31: ='Comptes de résultat 6 ans'!I13 -> 0
C32: Autres charges externes | D32: =SUM(D33:D44) -> 35586.81885 | E32: =SUM(E33:E44) -> 36648.68385 | F32: 37742.4048
C33: Honoraires | D33: =SUM('Charges Ext'!K22:K25)-'Charges Ext'!K24 -> 6333.333333 | E33: =D33*1.03 -> 6523.333333 | F33: =E33*1.03 -> 6719.033333
C34: Frais d'acte et de contentieux | D34: 0 | E34: =D34*1.03 -> 0 | F34: 0
C35: Affranchissements | D35: ='Charges Ext'!K9 -> 125 | E35: 128.75 | F35: 132.6125
C36: Services internet (hébergements) | D36: =SUM('Charges Ext'!K16:K18) -> 2400 | E36: 2472 | F36: 2546.16
C37: Internet | D37: 0 | E37: 0 | F37: 0
C38: Publicité | D38: ='Charges Ext'!K24 -> 20833.33333 | E38: 21458.33333 | F38: 22102.08333
C39: Frais de transport | D39: 0 | E39: 0 | F39: 0
C40: Emballages et conditionnement | D40: 0 | E40: 0 | F40: 0
C41: Voyages et déplacements | D41: ='Charges Ext'!K28 -> 5000 | E41: 5150 | F41: 5304.5
C42: Frais de reception | D42: ='Charges Ext'!K31 -> 0 | E42: =D42*1.03 -> 0 | F42: =E42*1.03 -> 0
C43: Licences logicielles | D43: ='Comptes de résultat 6 ans'!G57 -> 191.31885 | E43: ='Comptes de résultat 6 ans'!H57 -> 191.31885 | F43: ='Comptes de résultat 6 ans'!I57 -> 191.31885
C44: Divers | D44: ='Charges Ext'!L6*Pilotage!D15 -> 703.8333333 | E44: =D44*1.03 -> 724.9483333 | F44: =E44*1.03 -> 746.6967833
C45: Contribution économique territoriale (CET) | D45: ='Comptes de résultat 6 ans'!G42 -> 0 | E45: ='Comptes de résultat 6 ans'!H42 -> 2375 | F45: ='Comptes de résultat 6 ans'!I42 -> 3483.333333
C46: Frais de personnel | D46: =SUM(D47:D50) -> 161630.224 | E46: =SUM(E47:E50) -> 166359.1307 | F46: =SUM(F47:F50) -> 171229.9046
C47: Rémunération du dirigeant | D47: 0 | E47: 0 | F47: 0
C48: Cotisations sociales du dirigeant | D48: 0 | E48: 0 | F48: 0
C49: Salaires et charges sociales des salariés | D49: ='Comptes de résultat 6 ans'!G50 -> 161630.224 | E49: ='Comptes de résultat 6 ans'!H50 -> 166359.1307 | F49: ='Comptes de résultat 6 ans'!I50 -> 171229.9046
C50: Commissions versées | D50: 0 | E50: 0 | F50: 0
C51: Dotation aux amortissements (DAP) | D51: ='Comptes de résultat 6 ans'!G69 -> 0 | E51: ='Comptes de résultat 6 ans'!H69 -> 2.35335 | F51: ='Comptes de résultat 6 ans'!I69 -> 2.35335
B52: CHARGES FINANCIERES | D52: =SUM(D53) -> 0 | E52: =SUM(E53) -> 0 | F52: =SUM(F53) -> 0
C53: Agios et intérêts payés | D53: ='Comptes de résultat 6 ans'!G61 -> 0 | E53: ='Comptes de résultat 6 ans'!H61 -> 0 | F53: ='Comptes de résultat 6 ans'!I61 -> 0
B54: CHARGES EXCEPTIONNELLES | D54: ='Comptes de résultat 6 ans'!G65 -> 0 | E54: ='Comptes de résultat 6 ans'!H65 -> 0 | F54: ='Comptes de résultat 6 ans'!I65 -> 0
A55: TOTAL CHARGES | D55: =D54+D52+D51+D46+D45+D32+D26+D21+D17 -> 197717.0429 | E55: =E54+E52+E51+E46+E45+E32+E26+E21+E17 -> 205900.1679 | F55: =F54+F52+F51+F46+F45+F32+F26+F21+F17 -> 212988.4461
A57: RESULTAT avant impôts | D57: =D13-D55 -> -93717.04285 | E57: =E13-E55 -> 2099.83208 | F57: =F13-F55 -> 203011.5539
C58: En réserves impartageables | D58: =IF(D57>0,D57*57.5%,0) -> 0 | E58: =IF(E57>0,E57*57.5%,0) -> 1207.403446 | F58: 116731.6435
A59: Impôts sur les bénéfices | D59: =IF(AND(D57<>"",D57>0),Pilotage!$D19*IF(D57>38120,(38120*0.15)+(D57-38120)/3,D57*15%),0) -> 0 | E59: =IF(AND(E57<>"",E57>0),Pilotage!$D19*IF(E57>38120,(38120*0.15)+(E57-38120)/3,E57*15%),0) -> 314.974812 | F59: =IF(AND(F57<>"",F57>0),Pilotage!$D19*IF(F57>38120,(38120*0.15)+(F57-38120)/3,F57*15%),0) -> 60681.85129
A60: RESULTAT NET | D60: =D57-D59 -> -93717.04285 | E60: =E57-E59 -> 1784.857268 | F60: =F57-F59 -> 142329.7026

Sheet SIG
C1: ='Comptes de résultat 3 ans'!D1 -> Année 0 | F1: ='Comptes de résultat 3 ans'!E1 -> Année 1 | I1: ='Comptes de résultat 3 ans'!F1 -> Année 2
B2: État de résultat | C2: Montants | D2: Soldes | E2: % | G2: Soldes | H2: % | J2: Soldes | K2: %
B3: Chiffre d'affaires | C3: =SUM('Comptes de résultat 3 ans'!D3,'Comptes de résultat 3 ans'!D5) -> 104000 | F3: =SUM('Comptes de résultat 3 ans'!E3,'Comptes de résultat 3 ans'!E5) -> 208000 | H3: ="+"&ROUND((F3/C3-1)*100,1)&"%" -> +100% | I3: =SUM('Comptes de résultat 3 ans'!F3,'Comptes de résultat 3 ans'!F5) -> 416000 | K3: ="+"&ROUND((I3/F3-1)*100,1)&"%" -> +100%
B4: Travaux en cours initiaux | C4: 0 | F4: 0 | I4: 0
B5: Travaux en cours finaux | C5: 0 | F5: 0 | I5: 0
B6: Volume d'activité | D6: =SUM(C3:C5) -> 104000 | E6: 1 | G6: =SUM(F3:F5) -> 208000 | H6: 1 | J6: =SUM(I3:I5) -> 416000 | K6: 1
B7: Charges fixes | C7: ='Comptes de résultat 3 ans'!D21-C9 -> 0 | F7: ='Comptes de résultat 3 ans'!E21-F9 -> 0 | I7: ='Comptes de résultat 3 ans'!F21-I9 -> 0
B8: Charges variables | C8: ='Comptes de résultat 3 ans'!D17 -> 0 | F8: ='Comptes de résultat 3 ans'!E17 -> 0 | I8: ='Comptes de résultat 3 ans'!F17 -> 0
B9: Stock Final | C9: ='Comptes de résultat 3 ans'!D20 -> 0 | F9: ='Comptes de résultat 3 ans'!E20 -> 0 | I9: ='Comptes de résultat 3 ans'!F20 -> 0
B10: Achats Consommés | D10: =SUM(C7:C9) -> 0 | E10: =D10/D6 -> 0 | G10: =SUM(F7:F9) -> 0 | H10: =G10/G6 -> 0 | J10: =SUM(I7:I9) -> 0 | K10: =J10/J6 -> 0
B11: Marge Brute | D11: =D6-D10 -> 104000 | E11: =E6-E10 -> 1 | G11: =G6-G10 -> 208000 | H11: =H6-H10 -> 1 | J11: =J6-J10 -> 416000 | K11: =K6-K10 -> 1
B12: Achats non stockables | C12: 0 | F12: 0 | I12: 0
B13: Services extérieurs | C13: ='Comptes de résultat 3 ans'!D26 -> 500 | F13: ='Comptes de résultat 3 ans'!E26 -> 515 | I13: ='Comptes de résultat 3 ans'!F26 -> 530.45
B14: Autres services extérieurs | C14: ='Comptes de résultat 3 ans'!D32 -> 35586.81885 | F14: ='Comptes de résultat 3 ans'!E32 -> 36648.68385 | I14: ='Comptes de résultat 3 ans'!F32 -> 37742.4048
B15: Valeur ajoutée | D15: =D11-SUM(C12:C14) -> 67913.18115 | E15: =D15/D$6 -> 0.6530113572 | G15: =G11-SUM(F12:F14) -> 170836.3161 | H15: =G15/G$6 -> 0.821328443 | J15: =J11-SUM(I12:I14) -> 377727.1452 | K15: =J15/J$6 -> 0.9079979452
B16: Subvention d'exploitation | C16: ='Comptes de résultat 3 ans'!D9 -> 0 | F16: ='Comptes de résultat 3 ans'!E9 -> 0 | I16: ='Comptes de résultat 3 ans'!F9 -> 0
B17: Impôts et taxes | C17: ='Comptes de résultat 3 ans'!D45 -> 0 | F17: ='Comptes de résultat 3 ans'!E45 -> 2375 | I17: ='Comptes de résultat 3 ans'!F45 -> 3483.333333
B18: Charges de personnel | C18: ='Comptes de résultat 3 ans'!D46 -> 161630.224 | F18: ='Comptes de résultat 3 ans'!E46 -> 166359.1307 | I18: ='Comptes de résultat 3 ans'!F46 -> 171229.9046
B19: Cotisations personnelles | C19: 0 | F19: 0 | I19: 0
B20: Excédent brut d'exploitation | D20: =D15+C16-SUM(C17:C19) -> -93717.04285 | E20: =D20/D$6 -> -0.901125412 | G20: =G15-SUM(F17:F19) -> 2102.18543 | H20: =G20/G$6 -> 0.01010666072 | J20: =J15-SUM(I17:I19) -> 203013.9072 | K20: =J20/J$6 -> 0.4880142001
B21: Dotation aux amortissements | C21: ='Comptes de résultat 3 ans'!D51 -> 0 | F21: ='Comptes de résultat 3 ans'!E51 -> 2.35335 | I21: ='Comptes de résultat 3 ans'!F51 -> 2.35335
B22: Autres charges de gestion | C22: 0 | F22: 0 | I22: 0
B23: Autres produits de gestion | C23: ='Comptes de résultat 3 ans'!D10 -> 0 | F23: ='Comptes de résultat 3 ans'!G10 -> 0 | I23: ='Comptes de résultat 3 ans'!J10 -> 0
B24: Résultat d'exploitation | D24: =D20-SUM(C21:C23) -> -93717.04285 | E24: =D24/D$6 -> -0.901125412 | G24: =G20-SUM(F21:F23) -> 2099.83208 | H24: =G24/G$6 -> 0.01009534654 | J24: =J20-SUM(I21:I23) -> 203011.5539 | K24: =J24/J$6 -> 0.488008543
B25: Produits financiers | C25: ='Comptes de résultat 3 ans'!D11 -> 0 | F25: ='Comptes de résultat 3 ans'!E11 -> 0 | I25: ='Comptes de résultat 3 ans'!F11 -> 0
B26: Charges financières | C26: ='Comptes de résultat 3 ans'!D52 -> 0 | F26: ='Comptes de résultat 3 ans'!E52 -> 0 | I26: ='Comptes de résultat 3 ans'!F52 -> 0
B27: Résultat financier | D27: =C25-C26 -> 0 | G27: =F25-F26 -> 0 | J27: =I25-I26 -> 0
B28: Résultat courant avant impôts | D28: =D24+D27 -> -93717.04285 | E28: =D28/D$6 -> -0.901125412 | G28: =G24+G27 -> 2099.83208 | H28: =G28/G$6 -> 0.01009534654 | J28: =J24+J27 -> 203011.5539 | K28: =J28/J$6 -> 0.488008543
B29: Produits exceptionnels | C29: ='Comptes de résultat 3 ans'!D12 -> 0 | F29: ='Comptes de résultat 3 ans'!E12 -> 0 | I29: ='Comptes de résultat 3 ans'!F12 -> 0
B30: Charges exceptionnelles | C30: ='Comptes de résultat 3 ans'!D54 -> 0 | F30: ='Comptes de résultat 3 ans'!E54 -> 0 | I30: ='Comptes de résultat 3 ans'!F54 -> 0
B31: Résultat exceptionnel | D31: =C29-C30 -> 0 | G31: =F29-F30 -> 0 | J31: =I29-I30 -> 0
B32: Impôt sur les bénéfices | C32: ='Comptes de résultat 3 ans'!D59 -> 0 | F32: ='Comptes de résultat 3 ans'!E59 -> 314.974812 | I32: ='Comptes de résultat 3 ans'!F59 -> 60681.85129
B33: Résultat net | D33: =D28-C32+D31 -> -93717.04285 | E33: =D33/D$6 -> -0.901125412 | G33: =G28-F32+G31 -> 1784.857268 | H33: =G33/G$6 -> 0.008581044558 | J33: =J28-I32+J31 -> 142329.7026 | K33: =J33/J$6 -> 0.3421387081

Sheet Points morts
B1: ='Comptes de résultat 3 ans'!D1 -> Année 0 | C1: ='Comptes de résultat 3 ans'!E1 -> Année 1 | D1: ='Comptes de résultat 3 ans'!F1 -> Année 2
A2: CA (HT) | B2: =SIG!C3 -> 104000 | C2: =SIG!F3 -> 208000 | D2: =SIG!I3 -> 416000 | E2: CA
A3: Total charges variables(HT) | B3: =SIG!C8 -> 0 | C3: =SIG!F8 -> 0 | D3: =SIG!I8 -> 0 | E3: CV
A4: Marge sur coûts variables | B4: =B2-B3 -> 104000 | C4: =C2-C3 -> 208000 | D4: =D2-D3 -> 416000 | E4: MCV=CA-CV
A5: Taux de marge sur coûts variables | B5: =B4/B2 -> 1 | C5: =C4/C2 -> 1 | D5: =D4/D2 -> 1 | E5: TMCV=MCV/CA
A6: Total charges fixes (HT) | B6: =SIG!C7+SIG!C13+SIG!C14+SIG!C18+SIG!C26 -> 197717.0429 | C6: =SIG!F7+SIG!F13+SIG!F14+SIG!F18+SIG!F26 -> 203522.8146 | D6: =SIG!I7+SIG!I13+SIG!I14+SIG!I18+SIG!I26 -> 209502.7594 | E6: CF
A7: Seuil de rentabilité | B7: =B6/B5 -> 197717.0429 | C7: =C6/C5 -> 203522.8146 | D7: =D6/D5 -> 209502.7594 | E7: SR=CF/TMCV
A8: Point Mort (j) | B8: =B7/(B2/360) -> 684.4051483 | C8: =C7/(C2/360) -> 352.2510252 | D8: =D7/(D2/360) -> 181.3004649 | E8: PM=SR/(CA/360)

Sheet Plan de financement à 6 ans
B2: Plan de financement à 6 ans
C5: BESOINS PERMANENTS | L5: RESSOURCES DURABLES
E6: Année 0 | F6: Année 1 | G6: Année 2 | H6: Année 3 | I6: Année 4 | J6: Année 5 | N6: =E6 -> Année 0 | O6: Année 1 | P6: Année 2 | Q6: Année 3 | R6: Année 4 | S6: Année 5
C8: Frais d'établissement | E8: =SUM(E9:E11) -> 9571 | F8: 0 | G8: 0 | H8: 0 | I8: 0 | J8: 0 | L8: Capitaux propres | N8: =SUM(N9:N11) -> 10000
D9: Frais d'installation | E9: =Installation!K4 -> 9571 | F9: 0 | G9: =Installation!M4 -> 0 | H9: =Installation!N4 -> 0 | I9: =Installation!O4 -> 0 | J9: =Installation!P4 -> 0 | M9: Apports personnels | N9: =Pilotage!H10 -> 10000
M10: Apports des associés | N10: =Pilotage!H12 -> 0
M11: Apports en nature | N11: =Pilotage!H11 -> 0
C13: Immobilisations incorporelles | E13: =E14+E15 -> 0 | F13: 0 | G13: 0 | H13: 0 | I13: 0 | J13: 0 | L13: Comptes courants d'associés | N13: =Pilotage!H17 -> 0
D14: Brevet, licences | E14: 0 | F14: 0 | G14: 0 | H14: 0 | I14: 0 | J14: 0
D15: Droit au bail | E15: 0 | F15: 0 | G15: 0 | H15: 0 | I15: 0 | J15: 0
M16: Minimum à trouver
C17: Immobilisations corporelles | E17: =E18+E19+E20 -> 0 | F17: 0 | G17: 0 | H17: 0 | I17: 0 | J17: 0 | L17: Subvention, prime | N17: =SUM(N18:N20) -> 0
D18: Travaux / aménagements / Mobiler | E18: =Travaux!K4 -> 0 | F18: 0 | G18: 0 | H18: 0 | I18: 0 | J18: 0 | M18: =Pilotage!G18 -> Financements participatifs | N18: =Pilotage!H18 -> 0
D19: Véhicule | E19: 0 | F19: 0 | G19: 0 | H19: 0 | I19: 0 | J19: 0 | M19: =Pilotage!G19 -> Autres fonds (NACRE, fondations) | N19: =Pilotage!H19 -> 0
D20: Matériel | E20: =Matériel!K4+'Comptes de résultat 6 ans'!G13 -> 0 | F20: ='Comptes de résultat 6 ans'!H13 -> 0 | G20: ='Comptes de résultat 6 ans'!I13 -> 0 | H20: ='Comptes de résultat 6 ans'!J13 -> 0 | I20: ='Comptes de résultat 6 ans'!K13 -> 0 | J20: ='Comptes de résultat 6 ans'!L13 -> 0 | M20: =Pilotage!G20 -> Financements privés/sponsors | N20: =Pilotage!H20 -> 0
C22: Immobilisations financières | E22: =E23+E24 -> 0 | F22: 0 | G22: 0 | H22: 0 | I22: 0 | J22: 0
D23: Caution sur loyer | E23: =Pilotage!D9*Pilotage!D7 -> 0 | F23: 0 | G23: 0 | H23: 0 | I23: 0 | J23: 0
D24: Garanties professionnelles | E24: 0 | F24: 0 | G24: 0 | H24: 0 | I24: 0 | J24: 0
C26: Besoin en fond de roulement | E26: =Pilotage!H23 -> 0 | L26: Capacité d'auto financement | N26: 0 | O26: =IF('Comptes de résultat 6 ans'!G91<>"",'Comptes de résultat 6 ans'!G91,0)+IF('Comptes de résultat 6 ans'!G69<>"",'Comptes de résultat 6 ans'!G69,0) -> -93717.04285 | P26: =IF('Comptes de résultat 6 ans'!H91<>"",'Comptes de résultat 6 ans'!H91,0)+IF('Comptes de résultat 6 ans'!H69<>"",'Comptes de résultat 6 ans'!H69,0) -> 1787.210618 | Q26: =IF('Comptes de résultat 6 ans'!I91<>"",'Comptes de résultat 6 ans'!I91,0)+IF('Comptes de résultat 6 ans'!I69<>"",'Comptes de résultat 6 ans'!I69,0) -> 142332.0559 | R26: =IF('Comptes de résultat 6 ans'!J91<>"",'Comptes de résultat 6 ans'!J91,0)+IF('Comptes de résultat 6 ans'!J69<>"",'Comptes de résultat 6 ans'!J69,0) -> 414706.8945 | S26: =IF('Comptes de résultat 6 ans'!K91<>"",'Comptes de résultat 6 ans'!K91,0)+IF('Comptes de résultat 6 ans'!K69<>"",'Comptes de résultat 6 ans'!K69,0) -> 410371.6887
C28: Stock de marchandises | E28: 0 | F28: 0 | G28: 0 | H28: =Pilotage!$H12 -> 0 | I28: =Pilotage!$H12 -> 0 | J28: =Pilotage!$H12 -> 0
C30: Remboursements | E30: =SUM(E31:E34) -> 0 | F30: 0 | G30: 0 | H30: 0 | I30: 0 | J30: 0 | L30: Capitaux empruntés | N30: =SUM(N31:N33) -> 0
D31: Prêt d'honneur | E31: ='Prêts honneur'!$C8*'Prêts honneur'!$C12 -> 0 | F31: ='Prêts honneur'!$C8*'Prêts honneur'!$C12 -> 0 | G31: ='Prêts honneur'!$C8*'Prêts honneur'!$C12 -> 0 | H31: ='Prêts honneur'!$C8*'Prêts honneur'!$C12 -> 0 | I31: ='Prêts honneur'!$C8*'Prêts honneur'!$C12 -> 0 | J31: ='Prêts honneur'!$C8*'Prêts honneur'!$C12 -> 0 | M31: =Pilotage!G21 -> Prêts d'honneur | N31: =Pilotage!H21 -> 0
D32: PCE | E32: =PCE!$C8*PCE!$C12 -> 0 | F32: =PCE!$C8*PCE!$C12 -> 0 | G32: =PCE!$C8*PCE!$C12 -> 0 | H32: =PCE!$C8*PCE!$C12 -> 0 | I32: =PCE!$C8*PCE!$C12 -> 0 | J32: =PCE!$C8*PCE!$C12 -> 0 | M32: =Pilotage!G22 -> PCE | N32: =Pilotage!H22 -> 0
D33: Prêt bancaire | E33: =Emprunt!$C8*Emprunt!$C12 -> 0 | F33: =Emprunt!$C8*Emprunt!$C12 -> 0 | G33: =Emprunt!$C8*Emprunt!$C12 -> 0 | H33: =Emprunt!$C8*Emprunt!$C12 -> 0 | I33: =Emprunt!$C8*Emprunt!$C12 -> 0 | J33: =Emprunt!$C8*Emprunt!$C12 -> 0 | M33: Prêt bancaire | N33: =Pilotage!D29 -> 0
D34: Crédit-bail | E34: ='Credit-bail'!$C8*'Credit-bail'!$C12 -> 0 | F34: ='Credit-bail'!$C8*'Credit-bail'!$C12 -> 0 | G34: ='Credit-bail'!$C8*'Credit-bail'!$C12 -> 0 | H34: ='Credit-bail'!$C8*'Credit-bail'!$C12 -> 0 | I34: ='Credit-bail'!$C8*'Credit-bail'!$C12 -> 0 | J34: ='Credit-bail'!$C8*'Credit-bail'!$C12 -> 0 | M34: Max | N34: =(E40-E26-E13)*Pilotage!D31 -> 6699.7
N35: =N33/N40 -> 0
C36: Rémunération exploitant individuel | E36: 0 | F36: 0 | G36: 0 | H36: 0 | I36: 0 | J36: 0
C38: Distribution de dividendes | E38: 0 | F38: 0 | G38: 0 | H38: 0 | I38: 0 | J38: 0
C40: TOTAL | E40: =E13+E17+E22+E26+E30+E38+E36+E8+E28 -> 9571 | F40: =F13+F17+F22+F26+F30+F38+F36+F8+F28 -> 0 | G40: =G13+G17+G22+G26+G30+G38+G36+G8+G28 -> 0 | H40: =H13+H17+H22+H26+H30+H38+H36+H8 -> 0 | I40: =I13+I17+I22+I26+I30+I38+I36+I8 -> 0 | J40: =J13+J17+J22+J26+J30+J38+J36+J8 -> 0 | K40: =K13+K17+K22+K26+K30+K38+K36+K8 -> 0 | L40: TOTAL | N40: =N8+N13+N17+N30+N26 -> 10000 | O40: =O14+O17+O19+O30+O15+O26 -> -93717.04285 | P40: =P14+P17+P19+P30+P15+P26 -> 1787.210618 | Q40: =Q14+Q17+Q19+Q30+Q15+Q26 -> 142332.0559 | R40: =R14+R17+R19+R30+R15+R26 -> 414706.8945 | S40: =S14+S17+S19+S30+S15+S26 -> 410371.6887
L41: ECARTS | N41: =N40-E40 -> 429 | O41: -93717.04285 | P41: 1787.210618 | Q41: 142332.0559 | R41: 414706.8945 | S41: 410371.6887

Sheet Comptes de résultat A0 (hidden)
B2: Comptes de résultat Année 0
B4: Charges | I4: Produits
G5: Année 0 | M5: =G5 -> Année 0
C6: Achats | G6: =SUM(G7,G13) -> 0 | J6: Ventes. | M6: =SUM(M7:M12) -> 
D7: Achats stockés : | G7: =SUM(G8:G12) -> 0 | K7: Ventes de produits finis | M7: ='Ventes Produits'!L5 -> 
E8: Achats de marchandises, | G8: =Stock!K4 -> 0 | K8: Ventes de matières premières | M8: ='Ventes Stock'!M5 -> 104000
E9: Achats de matières premières,
E10: Achats d’emballages,
E11: Achats de fournitures consommables : | G11: =Consommables!K4 -> 0 | K11: Prestations de services | M11: =Prestations!$M$5*Pilotage!M36 -> 0
E12: Achats d’études, équipements, travaux. | G12: 0 | K12: Produits et activités annexes(Locations) | M12: =SUM(M13:M23) -> 0
D13: Achats non stockés : | G13: =SUM(G14:G18) -> 0 | L13: Locations | M13: =Locations!$M$5*Pilotage!M40 -> 0
E14: Eau,
E15: Energie,
E16: Carburant,
E17: Fournitures administratives,
E18: Fournitures d’entretien, petit équipement.
L19: Abonnements | M19: =Abos!M5*Pilotage!M36 -> 0
C25: Services extérieurs. | G25: =SUM(G26:G31) -> 0
D26: Locations immobilières et mobilières, | G26: =Loyers!K4 -> 0
D27: Redevances de crédit bail, | G27: ='Credit-bail'!C8*'Credit-bail'!C12 -> 0
D28: Charges locatives et de copropriété,
D29: Entretien et réparations,
D30: Assurances,
D31: Etudes et recherches.
C32: Autres services extérieurs. | G32: =SUM(G33:G39) -> 35895.5 | J32: Autres produits de gestion courante. | M32: =SUM(M33:M34) -> 0
D33: Frais extérieurs, publicité, déplacements, … | G33: ='Charges Ext'!K4 -> 35895.5 | K33: Redevances reçues pour brevets, licences, marques,
D34: Honoraires et rémunérations d’intermédiaires, | K34: Revenus des immeubles.
D35: Publicité, relations publiques,
D36: Transports de biens et transports du personnel,
D37: Déplacements, missions, réceptions,
D38: Frais postaux et de télécommunications,
D39: Services bancaires.
C40: Impôts, taxes et versements assimilés. | G40: =SUM(G41:G48) -> 0
D41: CET,
D42: Taxe sur les salaires,
D43: Taxe d’apprentissage,
D44: Droits d’enregistrement,
D45: Impôts locaux,
D46: Contribution à la formation continue,
D47: Contribution sociale de solidarité,
D48: Timbres fiscaux.
C49: Charges de personnel. | G49: =SUM(G50:G54) -> 161630.224
D50: Rémunérations, salaires, | G50: =Salaires!T16 -> 161630.224
D51: Congés payés,
D52: Primes, indemnités,
D53: Charges sociales,
D54: Œuvres sociales.
C55: Autres charges de gestion courante. | G55: =SUM(G56:G58) -> 191.31885
D56: Redevances versées pour brevets, licences, marques, | G56: =Licences!$K4 -> 191.31885
D57: Pertes sur créances irrécouvrables,
D58: Charges diverses.
C59: Charges financières. | G59: =SUM(G60:G63) -> 0 | J59: Produits financiers. | M59: =SUM(M60:M63) -> 0
D60: Intérêts des emprunts, | G60: =Emprunt!O6 -> 0 | K60: Revenus des titres (dividendes, intérêts),
D61: Escomptes accordés, | K61: Intérêts des prêts,
D62: Intérêts bancaires, | K62: Escomptes obtenus,
D63: Pertes de change. | K63: Gains de change.
C64: Charges exceptionnelles. | G64: =SUM(G65:G67) -> 0 | J64: Produits exceptionnels. | M64: =SUM(M65:M66) -> 0
D65: Valeurs comptables des éléments d’actif cédés, | K65: Produits exceptionnels sur opérations de gestion,
D66: Pénalités, amendes fiscales et pénales, | K66: Prix de cession d’éléments d’actif.
D67: Dons et libéralités.
C68: Dotations. | G68: =SUM(G69:G71) -> 0 | J68: Reprises. | M68: =SUM(M69:M71) -> 0
D69: Dotations aux amortissements, aux dépréciations et aux provisions – Charges d’exploitation, | G69: =DAT!C6 -> 0 | K69: Reprises sur amortissements, dépréciations et provisions – Produits d’exploitation,
D70: Dotations aux amortissements, aux dépréciations et aux provisions – Charges financières, | K70: Reprises sur dépréciations et provisions – Produits financiers,
D71: Dotations aux amortissements, aux dépréciations et aux provisions – Charges exceptionnelles, | K71: Reprises sur dépréciations et provisions – Produits
J72: Transferts de charges. | M72: =SUM(M73:M75) -> 0
K73: Transferts de charges d’exploitation,
K74: Transferts de charges financières,
K75: Transferts de charges exceptionnelles.
C77: Charges fixes | G77: =G68+G11+G64+G59+G55+G49+G40+G25 -> 161821.5429
C78: Charges variables | G78: =G8+G32 -> 35895.5
G80: =G5 -> Année 0 | M80: =G80 -> Année 0
B81: Total des charges | G81: =SUM(G68,G64,G59,G55,G49,G40,G32,G25,G6) -> 197717.0429 | I81: Total des produits | M81: =SUM(M72,M68,M64,M59,M32,M6) -> 
B82: Avant Impôts
B83: Solde créditeur : bénéfice | G83: =IF(M81>G81,M81-G81,"") ->  | I83: Solde débiteur : perte | M83: =IF(G81>M81,G81-M81,"") -> 
B85: Participation des salariés, impôts sur les bénéfices et assimilés. | G85: =SUM(G86:G87) -> 
D86: Impôts sur les bénéfices, | G86: =IF(G83<>"",IF(G83>32810,G83/3,G83*15%),0) -> 
D87: Participation des salariés aux résultats. | G87: 0
G89: =G80 -> Année 0
B90: Résultat net après impôts | G90: =IF(G83<>"",G83,0)-IF(G85<>"",G85,0)-IF(M83<>"",M83,0) -> 

Sheet Comptes de résultat 6 ans
B2: Comptes de résultat sur 6 ans
B4: Charges | N4: Produits
G5: Année 0 | H5: Année 1 | I5: Année 2 | J5: Année 3 | K5: Année 4 | L5: Année 5 | R5: =G5 -> Année 0 | S5: Année 1 | T5: Année 2 | U5: Année 3 | V5: Année 4 | W5: Année 5
C6: Achats | G6: =SUM(G7,G14) -> 0 | H6: 0 | I6: 0 | J6: 0 | K6: 0 | L6: 0 | O6: Ventes. | R6: =SUM(R7:R13) -> 104000 | S6: 208000 | T6: 416000 | U6: 832000 | V6: 832000 | W6: 915200
D7: Achats stockés : | G7: =SUM(G8:G13) -> 0 | H7: 0 | I7: 0 | J7: 0 | K7: 0 | L7: 0 | P7: Ventes de produits finis | R7: 0 | S7: 0 | T7: 0 | U7: 0 | V7: 0 | W7: 0
E8: Achats de marchandises, | G8: =Stock!K4 -> 0 | H8: ='Ventes Stock'!P5 -> 0 | I8: ='Ventes Stock'!Y5 -> 0 | J8: ='Ventes Stock'!AH5 -> 0 | K8: ='Ventes Stock'!AQ5 -> 0 | L8: ='Ventes Stock'!AZ5 -> 0 | P8: Ventes de matières premières | R8: ='Ventes Stock'!M5 -> 104000 | S8: ='Ventes Stock'!V5 -> 208000 | T8: ='Ventes Stock'!AE5 -> 416000 | U8: ='Ventes Stock'!AN5 -> 832000 | V8: ='Ventes Stock'!AW5 -> 832000 | W8: ='Ventes Stock'!BF5 -> 915200
E9: Variation de stock | G9: ='Ventes Stock'!O5 -> 0 | H9: ='Ventes Stock'!X5 -> 0 | I9: ='Ventes Stock'!AG5 -> 0
E10: Achats de matières premières,
E11: Achats d’emballages,
E12: Achats de fournitures consommables : | G12: =Consommables!K4 -> 0 | H12: =$G$12*Pilotage!N23 -> 0 | I12: =$G$12*Pilotage!O23 -> 0 | J12: =$G$12*Pilotage!P23 -> 0 | K12: =$G$12*Pilotage!Q23 -> 0 | L12: =$G$12*Pilotage!R23 -> 0 | P12: Prestations de services | R12: =Prestations!$M$5*Pilotage!M36 -> 0 | S12: =R12*Pilotage!N36 -> 0 | T12: =S12*Pilotage!O36 -> 0 | U12: =T12*Pilotage!P36 -> 0 | V12: =U12*Pilotage!Q36 -> 0 | W12: =V12*Pilotage!R36 -> 0
E13: Achats d’études, équipements, travaux. | G13: 0 | H13: =Matériel!$K4*Pilotage!N24 -> 0 | I13: =Matériel!$K4*Pilotage!O24 -> 0 | J13: =Matériel!$K4*Pilotage!P24 -> 0 | K13: =Matériel!$K4*Pilotage!Q24 -> 0 | L13: =Matériel!$K4*Pilotage!R24 -> 0 | P13: Produits et activités annexes | R13: =SUM(R14:R24) -> 0 | S13: 0 | T13: 0 | U13: 0 | V13: 0 | W13: 0
D14: Achats non stockés : | G14: =SUM(G15:G19) -> 0 | H14: 0 | I14: 0 | J14: 0 | K14: 0 | L14: 0 | P14: Locations | Q14: Locations | R14: =Locations!$M$5*Pilotage!M40 -> 0 | S14: =Locations!$M$5*Pilotage!N40 -> 0 | T14: =Locations!$M$5*Pilotage!O40 -> 0 | U14: =Locations!$M$5*Pilotage!P40 -> 0 | V14: =Locations!$M$5*Pilotage!Q40 -> 0 | W14: =Locations!$M$5*Pilotage!R40 -> 0
E15: Eau,
E16: Energie,
E17: Carburant,
E18: Fournitures administratives,
E19: Fournitures d’entretien, petit équipement.
P20: Abonnements | Q20: Abonnements | R20: =Abos!$M$5*Pilotage!M40 -> 0 | S20: =Abos!$M$5*Pilotage!N40 -> 0 | T20: =Abos!$M$5*Pilotage!O40 -> 0 | U20: =Abos!$M$5*Pilotage!P40 -> 0 | V20: =Abos!$M$5*Pilotage!Q40 -> 0 | W20: =Abos!$M$5*Pilotage!R40 -> 0
C26: Services extérieurs. | G26: =SUM(G27:G32) -> 0 | H26: 0 | I26: 0 | J26: 0 | K26: 0 | L26: 0
D27: Locations immobilières et mobilières, | G27: =Loyers!K4 -> 0 | H27: =G27*103% -> 0 | I27: =H27*103% -> 0 | J27: =I27*103% -> 0 | K27: =J27*103% -> 0 | L27: =K27*103% -> 0
D28: Redevances de crédit bail, | G28: ='Credit-bail'!$C8*'Credit-bail'!$C12 -> 0 | H28: ='Credit-bail'!$C8*'Credit-bail'!$C12 -> 0 | I28: ='Credit-bail'!$C8*'Credit-bail'!$C12 -> 0 | J28: ='Credit-bail'!$C8*'Credit-bail'!$C12 -> 0 | K28: ='Credit-bail'!$C8*'Credit-bail'!$C12 -> 0 | L28: 0
D29: Charges locatives et de copropriété,
D30: Entretien et réparations,
D31: Assurances,
D32: Etudes et recherches.
C33: Autres services extérieurs. | G33: =SUM(G34:G40) -> 35895.5 | H33: 36972.365 | I33: 38081.53595 | J33: 39223.98203 | K33: 40400.70149 | L33: 41612.72253 | O33: Autres produits de gestion courante. | R33: =SUM(R34:R35) -> 0 | S33: 0 | T33: 0 | U33: 0 | V33: 0 | W33: 0
D34: Frais extérieurs, publicité, déplacements, … | G34: ='Charges Ext'!K4 -> 35895.5 | H34: =G34*103% -> 36972.365 | I34: =H34*103% -> 38081.53595 | J34: =I34*103% -> 39223.98203 | K34: =J34*103% -> 40400.70149 | L34: =K34*103% -> 41612.72253 | P34: Redevances reçues pour brevets, licences, marques,
D35: Honoraires et rémunérations d’intermédiaires, | P35: Revenus des immeubles.
D36: Publicité, relations publiques,
D37: Transports de biens et transports du personnel,
D38: Déplacements, missions, réceptions,
D39: Frais postaux et de télécommunications,
D40: Services bancaires.
C41: Impôts, taxes et versements assimilés. | G41: =SUM(G42:G49) -> 0 | H41: 2375 | I41: 3483.333333 | J41: 4760.555556 | K41: 4919.240741 | L41: 5247.190123
D42: CET, | G42: 0 | H42: =Impôts!$H4*AVERAGE(Pilotage!N26,Pilotage!N36,Pilotage!N38) -> 2375 | I42: =H42*AVERAGE(Pilotage!O26,Pilotage!O36,Pilotage!O38) -> 3483.333333 | J42: =I42*AVERAGE(Pilotage!P26,Pilotage!P36,Pilotage!P38) -> 4760.555556 | K42: =J42*AVERAGE(Pilotage!Q26,Pilotage!Q36,Pilotage!Q38) -> 4919.240741 | L42: =K42*AVERAGE(Pilotage!R26,Pilotage!R36,Pilotage!R38) -> 5247.190123
D43: Taxe sur les salaires,
D44: Taxe d’apprentissage,
D45: Droits d’enregistrement,
D46: Impôts locaux,
D47: Contribution à la formation continue,
D48: Contribution sociale de solidarité,
D49: Timbres fiscaux.
C50: Charges de personnel. | G50: =SUM(G51:G55) -> 161630.224 | H50: 166359.1307 | I50: 171229.9046 | J50: 176246.8018 | K50: 181414.2058 | L50: 186736.632 | O50: Subventions d'exploitation | R50: =Pilotage!I20 -> 0
D51: Rémunérations, salaires, | G51: =Salaires!T16 -> 161630.224 | H51: =Salaires!T29 -> 166359.1307 | I51: =Salaires!T42 -> 171229.9046 | J51: =Salaires!T55 -> 176246.8018 | K51: =Salaires!T68 -> 181414.2058 | L51: =Salaires!T81 -> 186736.632
D52: Congés payés,
D53: Primes, indemnités,
D54: Charges sociales,
D55: Œuvres sociales.
C56: Autres charges de gestion courante. | G56: =SUM(G57:G59) -> 191.31885 | H56: 191.31885 | I56: 191.31885 | J56: 191.31885 | K56: 191.31885 | L56: 191.31885
D57: Redevances versées pour brevets, licences, marques, | G57: =Licences!$K4 -> 191.31885 | H57: =Licences!$K4 -> 191.31885 | I57: =Licences!$K4 -> 191.31885 | J57: =Licences!$K4 -> 191.31885 | K57: =Licences!$K4 -> 191.31885 | L57: =Licences!$K4 -> 191.31885
D58: Pertes sur créances irrécouvrables,
D59: Charges diverses.
C60: Charges financières. | G60: =SUM(G61:G64) -> 0 | H60: 0 | I60: 0 | J60: 0 | K60: 0 | L60: 0 | O60: Produits financiers. | R60: =SUM(R61:R64) -> 0 | S60: 0 | T60: 0 | U60: 0 | V60: 0 | W60: 0
D61: Intérêts des emprunts, | G61: =Emprunt!O6 -> 0 | H61: =Emprunt!O7 -> 0 | I61: =Emprunt!O8 -> 0 | J61: =Emprunt!O9 -> 0 | K61: =Emprunt!O10 -> 0 | L61: =Emprunt!O11 -> 0 | P61: Revenus des titres (dividendes, intérêts),
D62: Escomptes accordés, | P62: Intérêts des prêts,
D63: Intérêts bancaires, | P63: Escomptes obtenus,
D64: Pertes de change. | P64: Gains de change.
C65: Charges exceptionnelles. | G65: =SUM(G66:G68) -> 0 | H65: 0 | I65: 0 | J65: 0 | K65: 0 | L65: 0 | O65: Produits exceptionnels. | R65: =SUM(R66:R67) -> 0 | S65: 0 | T65: 0 | U65: 0 | V65: 0 | W65: 0
D66: Valeurs comptables des éléments d’actif cédés, | P66: Produits exceptionnels sur opérations de gestion,
D67: Pénalités, amendes fiscales et pénales, | P67: Prix de cession d’éléments d’actif.
D68: Dons et libéralités.
C69: Dotations. | G69: =SUM(G70:G72) -> 0 | H69: 2.35335 | I69: 2.35335 | J69: 0 | K69: 0 | L69: 0 | O69: Reprises. | R69: =SUM(R70:R72) -> 0 | S69: 0 | T69: 0 | U69: 0 | V69: 0 | W69: 0
D70: Dotations aux amortissements, aux dépréciations et aux provisions – Charges d’exploitation, | G70: =DAT!C6 -> 0 | H70: =DAT!D6 -> 2.35335 | I70: =DAT!E6 -> 2.35335 | J70: =DAT!F6 -> 0 | K70: =DAT!G6 -> 0 | L70: =DAT!H6 -> 0 | P70: Reprises sur amortissements, dépréciations et provisions – Produits d’exploitation,
D71: Dotations aux amortissements, aux dépréciations et aux provisions – Charges financières, | P71: Reprises sur dépréciations et provisions – Produits financiers,
D72: Dotations aux amortissements, aux dépréciations et aux provisions – Charges exceptionnelles, | P72: Reprises sur dépréciations et provisions – Produits
O73: Transferts de charges. | R73: =SUM(R74:R76) -> 0 | S73: 0 | T73: 0 | U73: 0 | V73: 0 | W73: 0
P74: Transferts de charges d’exploitation,
P75: Transferts de charges financières,
P76: Transferts de charges exceptionnelles.
C78: Charges fixes | G78: =G69+G1+G12+G33+G342+G65+G60+G56+G50+G41+G26 -> 197717.0429 | H78: =H69+H1+H12+H33+H342+H65+H60+H56+H50+H41+H26 -> 205900.1679 | I78: 212988.4461 | J78: =J69+J12+J65+J60+J56+J50+J41+J26 -> 181198.6762 | K78: 186524.7654 | L78: 192175.141
C79: Charges variables | G79: =G8 -> 0 | H79: =H8 -> 0 | I79: 0 | J79: =J8+J33 -> 39223.98203 | K79: 40400.70149 | L79: 41612.72253
G81: =G5 -> Année 0 | H81: Année 1 | I81: Année 2 | J81: Année 3 | K81: Année 4 | L81: Année 5 | R81: =G81 -> Année 0 | S81: Année 1 | T81: Année 2 | U81: Année 3 | V81: Année 4 | W81: Année 5
B82: Total des charges | G82: =SUM(G69,G65,G60,G56,G50,G41,G33,G26,G6) -> 197717.0429 | H82: 205900.1679 | I82: 212988.4461 | J82: 220422.6582 | K82: 226925.4669 | L82: 233787.8635 | N82: Total des produits | R82: =SUM(R73,R69,R65,R60,R33,R6,R50) -> 104000 | S82: =SUM(S73,S69,S65,S60,S33,S6) -> 208000 | T82: =SUM(T73,T69,T65,T60,T33,T6) -> 416000 | U82: =SUM(U73,U69,U65,U60,U33,U6) -> 832000 | V82: =SUM(V73,V69,V65,V60,V33,V6) -> 832000 | W82: =SUM(W73,W69,W65,W60,W33,W6) -> 915200
B83: Avant Impôts
B84: Solde créditeur : bénéfice | G84: =IF(R82>G82,R82-G82,"") ->  | H84: 2099.83208 | I84: 203011.5539 | J84: 611577.3418 | K84: 605074.5331 | L84: 681412.1365 | N84: Solde débiteur : perte | R84: =IF(G82>R82,G82-R82,"") -> 93717.04285
B86: Participation des salariés, impôts sur les bénéfices et assimilés. | G86: =SUM(G87:G88) -> 0 | H86: 314.974812 | I86: 60681.85129 | J86: 196870.4473 | K86: 194702.8444 | L86: 220148.7122
C87: Impôts sur les bénéfices, | G87: =IF(G84<>"",Pilotage!$D19*IF(G84>38120,(38120*0.15)+(G84-38120)/3,G84*15%),0) -> 0 | H87: =IF(H84<>"",Pilotage!$D19*IF(H84>38120,(38120*0.15)+(H84-38120)/3,H84*15%),0) -> 314.974812 | I87: =IF(I84<>"",Pilotage!$D19*IF(I84>38120,(38120*0.15)+(I84-38120)/3,I84*15%),0) -> 60681.85129 | J87: =IF(J84<>"",Pilotage!$D19*IF(J84>38120,(38120*0.15)+(J84-38120)/3,J84*15%),0) -> 196870.4473 | K87: =IF(K84<>"",Pilotage!$D19*IF(K84>38120,(38120*0.15)+(K84-38120)/3,K84*15%),0) -> 194702.8444 | L87: =IF(L84<>"",Pilotage!$D19*IF(L84>38120,(38120*0.15)+(L84-38120)/3,L84*15%),0) -> 220148.7122 | U87: =V6/U6 -> 1 | V87: =W6/V6 -> 1.1
C88: Participation des salariés aux résultats. | G88: 0 | H88: 0 | I88: 0 | J88: 0 | K88: 0 | L88: 0
G90: =G81 -> Année 0 | H90: Année 1 | I90: Année 2 | J90: Année 3 | K90: Année 4 | L90: Année 5
B91: Résultat net après impôts | G91: =IF(G84<>"",G84,0)-IF(G86<>"",G86,0)-IF(R84<>"",R84,0) -> -93717.04285 | H91: 1784.857268 | I91: 142329.7026 | J91: 414706.8945 | K91: 410371.6887 | L91: 461263.4243
B93: Croissance CA | H93: =S6/R6 -> 2 | I93: =T6/S6 -> 2 | J93: =U6/T6 -> 2 | K93: =V6/U6 -> 1 | L93: =W6/V6 -> 1.1

Sheet SIG A0 (hidden)
B2: Soldes intermédiaires de gestion
B4: État de résultat | C4: Montants | D4: Soldes | E4: %
B5: Chiffre d'affaires | C5: ='Comptes de résultat A0'!M6 -> 
B6: Travaux en cours initiaux | C6: 0
B7: Travaux en cours finaux | C7: 0
B8: Volume d'activité | D8: =SUM(C5:C7) ->  | E8: 1
B9: Charges fixes | C9: ='Comptes de résultat A0'!G11 -> 0
B10: Charges variables | C10: ='Comptes de résultat A0'!G8 -> 0
B11: Stock Final | C11: 0
B12: Achats Consommés | D12: =SUM(C9:C11) -> 0 | E12: =D12/D8 -> 
B13: Marge Brute | D13: =D8-D12 ->  | E13: =E8-E12 -> 
B14: Achats non stockables | C14: ='Comptes de résultat A0'!G13 -> 0
B15: Services extérieurs | C15: ='Comptes de résultat A0'!G25 -> 0
B16: Autres services extérieurs | C16: ='Comptes de résultat A0'!G32 -> 35895.5
B17: Valeur ajoutée | D17: =D13-SUM(C14:C16) ->  | E17: =D17/D$8 -> 
B18: Impôts et taxes | C18: ='Comptes de résultat A0'!G40 -> 0
B19: Charges de personnel | C19: ='Comptes de résultat A0'!G49 -> 161630.224
B20: Cotisations personnelles | C20: 0
B21: Excédent brut d'exploitation | D21: =D17-SUM(C18:C20) ->  | E21: =D21/D$8 -> 
B22: Dotation aux amortissements | C22: ='Comptes de résultat A0'!G68 -> 0
B23: Autres charges de gestion | C23: ='Comptes de résultat A0'!G55 -> 191.31885
B24: Autres produits de gestion | C24: ='Comptes de résultat A0'!M68+'Comptes de résultat A0'!M72 -> 0
B25: Résultat d'exploitation | D25: =D21-SUM(C22:C24) ->  | E25: =D25/D$8 -> 
B26: Produits financiers | C26: ='Comptes de résultat A0'!M59 -> 0
B27: Charges financières | C27: ='Comptes de résultat A0'!G59 -> 0
B28: Résultat financier | D28: =C26-C27 -> 0
B29: Résultat courant avant impôts | D29: =D25+D28 ->  | E29: =D29/D$8 -> 
B30: Produits exceptionnels | C30: ='Comptes de résultat A0'!M64 -> 0
B31: Charges exceptionnelles | C31: ='Comptes de résultat A0'!G64 -> 0
B32: Résultat exceptionnel | D32: =C30-C31 -> 0
B33: Impôt sur les bénéfices | C33: ='Comptes de résultat A0'!G86 -> 
B34: Résultat net | D34: =D29-C33+D32 ->  | E34: =D34/D$8 -> 

Sheet SIG 6 ans
B2: Soldes intermédiaires de gestion sur 6 ans
C4: ='Comptes de résultat 6 ans'!G5 -> Année 0 | F4: ='Comptes de résultat 6 ans'!H5 -> Année 1 | I4: ='Comptes de résultat 6 ans'!I5 -> Année 2 | L4: ='Comptes de résultat 6 ans'!J5 -> Année 3 | O4: ='Comptes de résultat 6 ans'!K5 -> Année 4 | R4: ='Comptes de résultat 6 ans'!L5 -> Année 5
B5: État de résultat | C5: Montants | D5: Soldes | E5: % | G5: Soldes | H5: % | J5: Soldes | K5: % | M5: Soldes | N5: % | P5: Soldes | Q5: % | S5: Soldes | T5: %
B6: Chiffre d'affaires | C6: ='Comptes de résultat 6 ans'!R6 -> 104000 | F6: ='Comptes de résultat 6 ans'!S6 -> 208000 | I6: ='Comptes de résultat 6 ans'!T6 -> 416000 | L6: ='Comptes de résultat 6 ans'!U6 -> 832000 | O6: ='Comptes de résultat 6 ans'!V6 -> 832000 | R6: ='Comptes de résultat 6 ans'!W6 -> 915200
B7: Travaux en cours initiaux | C7: 0 | F7: 0 | I7: 0 | L7: 0 | O7: 0 | R7: 0
B8: Travaux en cours finaux | C8: 0 | F8: 0 | I8: 0 | L8: 0 | O8: 0 | R8: 0
B9: Volume d'activité | D9: =SUM(C6:C8) -> 104000 | E9: 1 | G9: =SUM(F6:F8) -> 208000 | H9: 1 | J9: =SUM(I6:I8) -> 416000 | K9: 1 | M9: =SUM(L6:L8) -> 832000 | N9: 1 | P9: =SUM(O6:O8) -> 832000 | Q9: 1 | S9: =SUM(R6:R8) -> 915200 | T9: 1
B10: Charges fixes | C10: ='Comptes de résultat 6 ans'!G12 -> 0 | F10: ='Comptes de résultat 6 ans'!H12 -> 0 | I10: ='Comptes de résultat 6 ans'!I12 -> 0 | L10: ='Comptes de résultat 6 ans'!J12 -> 0 | O10: ='Comptes de résultat 6 ans'!K12 -> 0 | R10: ='Comptes de résultat 6 ans'!L12 -> 0
B11: Charges variables | C11: ='Comptes de résultat 6 ans'!G8 -> 0 | F11: ='Comptes de résultat 6 ans'!H8 -> 0 | I11: ='Comptes de résultat 6 ans'!I8 -> 0 | L11: ='Comptes de résultat 6 ans'!J8 -> 0 | O11: ='Comptes de résultat 6 ans'!K8 -> 0 | R11: ='Comptes de résultat 6 ans'!L8 -> 0
B12: Stock Final | C12: 0 | F12: 0 | I12: 0 | L12: 0 | O12: 0 | R12: 0
B13: Achats Consommés | D13: =SUM(C10:C12) -> 0 | E13: =D13/D9 -> 0 | G13: =SUM(F10:F12) -> 0 | H13: =G13/G9 -> 0 | J13: =SUM(I10:I12) -> 0 | K13: =J13/J9 -> 0 | M13: =SUM(L10:L12) -> 0 | N13: =M13/M9 -> 0 | P13: =SUM(O10:O12) -> 0 | Q13: =P13/P9 -> 0 | S13: =SUM(R10:R12) -> 0 | T13: =S13/S9 -> 0
B14: Marge Brute | D14: =D9-D13 -> 104000 | E14: =E9-E13 -> 1 | G14: =G9-G13 -> 208000 | H14: =H9-H13 -> 1 | J14: =J9-J13 -> 416000 | K14: =K9-K13 -> 1 | M14: =M9-M13 -> 832000 | N14: =N9-N13 -> 1 | P14: =P9-P13 -> 832000 | Q14: =Q9-Q13 -> 1 | S14: =S9-S13 -> 915200 | T14: =T9-T13 -> 1
B15: Achats non stockables | C15: ='Comptes de résultat 6 ans'!G14 -> 0 | F15: ='Comptes de résultat 6 ans'!H14 -> 0 | I15: ='Comptes de résultat 6 ans'!I14 -> 0 | L15: ='Comptes de résultat 6 ans'!J14 -> 0 | O15: ='Comptes de résultat 6 ans'!K14 -> 0 | R15: ='Comptes de résultat 6 ans'!L14 -> 0
B16: Services extérieurs | C16: ='Comptes de résultat 6 ans'!G26 -> 0 | F16: ='Comptes de résultat 6 ans'!H26 -> 0 | I16: ='Comptes de résultat 6 ans'!I26 -> 0 | L16: ='Comptes de résultat 6 ans'!J26 -> 0 | O16: ='Comptes de résultat 6 ans'!K26 -> 0 | R16: ='Comptes de résultat 6 ans'!L26 -> 0
B17: Autres services extérieurs | C17: ='Comptes de résultat 6 ans'!G33 -> 35895.5 | F17: ='Comptes de résultat 6 ans'!H33 -> 36972.365 | I17: ='Comptes de résultat 6 ans'!I33 -> 38081.53595 | L17: ='Comptes de résultat 6 ans'!J33 -> 39223.98203 | O17: ='Comptes de résultat 6 ans'!K33 -> 40400.70149 | R17: ='Comptes de résultat 6 ans'!L33 -> 41612.72253
B18: Valeur ajoutée | D18: =D14-SUM(C15:C17) -> 68104.5 | E18: =D18/D$9 -> 0.6548509615 | G18: =G14-SUM(F15:F17) -> 171027.635 | H18: =G18/G$9 -> 0.8222482452 | J18: =J14-SUM(I15:I17) -> 377918.4641 | K18: =J18/J$9 -> 0.9084578463 | M18: =M14-SUM(L15:L17) -> 792776.018 | N18: =M18/M$9 -> 0.9528557908 | P18: =P14-SUM(O15:O17) -> 791599.2985 | Q18: =P18/P$9 -> 0.9514414646 | S18: =S14-SUM(R15:R17) -> 873587.2775 | T18: =S18/S$9 -> 0.9545315532
B19: Impôts et taxes | C19: ='Comptes de résultat 6 ans'!G41 -> 0 | F19: ='Comptes de résultat 6 ans'!H41 -> 2375 | I19: ='Comptes de résultat 6 ans'!I41 -> 3483.333333 | L19: ='Comptes de résultat 6 ans'!J41 -> 4760.555556 | O19: ='Comptes de résultat 6 ans'!K41 -> 4919.240741 | R19: ='Comptes de résultat 6 ans'!L41 -> 5247.190123
B20: Charges de personnel | C20: ='Comptes de résultat 6 ans'!G50 -> 161630.224 | F20: ='Comptes de résultat 6 ans'!H50 -> 166359.1307 | I20: ='Comptes de résultat 6 ans'!I50 -> 171229.9046 | L20: ='Comptes de résultat 6 ans'!J50 -> 176246.8018 | O20: ='Comptes de résultat 6 ans'!K50 -> 181414.2058 | R20: ='Comptes de résultat 6 ans'!L50 -> 186736.632
B21: Cotisations personnelles | C21: 0 | F21: 0 | I21: 0 | L21: 0 | O21: 0 | R21: 0
B22: Excédent brut d'exploitation | D22: =D18-SUM(C19:C21) -> -93525.724 | E22: =D22/D$9 -> -0.8992858077 | G22: =G18-SUM(F19:F21) -> 2293.50428 | H22: =G22/G$9 -> 0.01102646288 | J22: =J18-SUM(I19:I21) -> 203205.2261 | K22: =J22/J$9 -> 0.4884741011 | M22: =M18-SUM(L19:L21) -> 611768.6606 | N22: =M22/M$9 -> 0.735298871 | P22: =P18-SUM(O19:O21) -> 605265.8519 | Q22: =P22/P$9 -> 0.7274829951 | S22: =S18-SUM(R19:R21) -> 681603.4553 | T22: =S22/S$9 -> 0.7447590203
B23: Dotation aux amortissements | C23: ='Comptes de résultat 6 ans'!G69 -> 0 | F23: ='Comptes de résultat 6 ans'!H69 -> 2.35335 | I23: ='Comptes de résultat 6 ans'!I69 -> 2.35335 | L23: ='Comptes de résultat 6 ans'!J69 -> 0 | O23: ='Comptes de résultat 6 ans'!K69 -> 0 | R23: ='Comptes de résultat 6 ans'!L69 -> 0
B24: Autres charges de gestion | C24: ='Comptes de résultat 6 ans'!G56 -> 191.31885 | F24: ='Comptes de résultat 6 ans'!H56 -> 191.31885 | I24: ='Comptes de résultat 6 ans'!I56 -> 191.31885 | L24: ='Comptes de résultat 6 ans'!J56 -> 191.31885 | O24: ='Comptes de résultat 6 ans'!K56 -> 191.31885 | R24: ='Comptes de résultat 6 ans'!L56 -> 191.31885
B25: Autres produits de gestion | C25: ='Comptes de résultat 6 ans'!R69+'Comptes de résultat 6 ans'!R73 -> 0 | F25: ='Comptes de résultat 6 ans'!S69+'Comptes de résultat 6 ans'!S73 -> 0 | I25: ='Comptes de résultat 6 ans'!T69+'Comptes de résultat 6 ans'!T73 -> 0 | L25: ='Comptes de résultat 6 ans'!U69+'Comptes de résultat 6 ans'!U73 -> 0 | O25: ='Comptes de résultat 6 ans'!V69+'Comptes de résultat 6 ans'!V73 -> 0 | R25: ='Comptes de résultat 6 ans'!W69+'Comptes de résultat 6 ans'!W73 -> 0
B26: Résultat d'exploitation | D26: =D22-SUM(C23:C25) -> -93717.04285 | E26: =D26/D$9 -> -0.901125412 | G26: =G22-SUM(F23:F25) -> 2099.83208 | H26: =G26/G$9 -> 0.01009534654 | J26: =J22-SUM(I23:I25) -> 203011.5539 | K26: =J26/J$9 -> 0.488008543 | M26: =M22-SUM(L23:L25) -> 611577.3418 | N26: =M26/M$9 -> 0.7350689204 | P26: =P22-SUM(O23:O25) -> 605074.5331 | Q26: =P26/P$9 -> 0.7272530446 | S26: =S22-SUM(R23:R25) -> 681412.1365 | T26: =S26/S$9 -> 0.7445499743
B27: Produits financiers | C27: ='Comptes de résultat 6 ans'!R60 -> 0 | F27: ='Comptes de résultat 6 ans'!S60 -> 0 | I27: ='Comptes de résultat 6 ans'!T60 -> 0 | L27: ='Comptes de résultat 6 ans'!U60 -> 0 | O27: ='Comptes de résultat 6 ans'!V60 -> 0 | R27: ='Comptes de résultat 6 ans'!W60 -> 0
B28: Charges financières | C28: ='Comptes de résultat 6 ans'!G60 -> 0 | F28: ='Comptes de résultat 6 ans'!H60 -> 0 | I28: ='Comptes de résultat 6 ans'!I60 -> 0 | L28: ='Comptes de résultat 6 ans'!J60 -> 0 | O28: ='Comptes de résultat 6 ans'!K60 -> 0 | R28: ='Comptes de résultat 6 ans'!L60 -> 0
B29: Résultat financier | D29: =C27-C28 -> 0 | G29: =F27-F28 -> 0 | J29: =I27-I28 -> 0 | M29: =L27-L28 -> 0 | P29: =O27-O28 -> 0 | S29: =R27-R28 -> 0
B30: Résultat courant avant impôts | D30: =D26+D29 -> -93717.04285 | E30: =D30/D$9 -> -0.901125412 | G30: =G26+G29 -> 2099.83208 | H30: =G30/G$9 -> 0.01009534654 | J30: =J26+J29 -> 203011.5539 | K30: =J30/J$9 -> 0.488008543 | M30: =M26+M29 -> 611577.3418 | N30: =M30/M$9 -> 0.7350689204 | P30: =P26+P29 -> 605074.5331 | Q30: =P30/P$9 -> 0.7272530446 | S30: =S26+S29 -> 681412.1365 | T30: =S30/S$9 -> 0.7445499743
B31: Produits exceptionnels | C31: ='Comptes de résultat 6 ans'!R65 -> 0 | F31: ='Comptes de résultat 6 ans'!S65 -> 0 | I31: ='Comptes de résultat 6 ans'!T65 -> 0 | L31: ='Comptes de résultat 6 ans'!U65 -> 0 | O31: ='Comptes de résultat 6 ans'!V65 -> 0 | R31: ='Comptes de résultat 6 ans'!W65 -> 0
B32: Charges exceptionnelles | C32: ='Comptes de résultat 6 ans'!G65 -> 0 | F32: ='Comptes de résultat 6 ans'!H65 -> 0 | I32: ='Comptes de résultat 6 ans'!I65 -> 0 | L32: ='Comptes de résultat 6 ans'!J65 -> 0 | O32: ='Comptes de résultat 6 ans'!K65 -> 0 | R32: ='Comptes de résultat 6 ans'!L65 -> 0
B33: Résultat exceptionnel | D33: =C31-C32 -> 0 | G33: =F31-F32 -> 0 | J33: =I31-I32 -> 0 | M33: =L31-L32 -> 0 | P33: =O31-O32 -> 0 | S33: =R31-R32 -> 0
B34: Impôt sur les bénéfices | C34: ='Comptes de résultat 6 ans'!G87 -> 0 | F34: ='Comptes de résultat 6 ans'!H87 -> 314.974812 | I34: ='Comptes de résultat 6 ans'!I87 -> 60681.85129 | L34: ='Comptes de résultat 6 ans'!J87 -> 196870.4473 | O34: ='Comptes de résultat 6 ans'!K87 -> 194702.8444 | R34: ='Comptes de résultat 6 ans'!L87 -> 220148.7122
B35: Résultat net | D35: =D30-C34+D33 -> -93717.04285 | E35: =D35/D$9 -> -0.901125412 | G35: =G30-F34+G33 -> 1784.857268 | H35: =G35/G$9 -> 0.008581044558 | J35: =J30-I34+J33 -> 142329.7026 | K35: =J35/J$9 -> 0.3421387081 | M35: =M30-L34+M33 -> 414706.8945 | N35: =M35/M$9 -> 0.4984457867 | P35: =P30-O34+P33 -> 410371.6887 | Q35: =P35/P$9 -> 0.4932352028 | S35: =S30-R34+S33 -> 461263.4243 | T35: =S35/S$9 -> 0.5040028675
B38: Croissance CA | C38: 0 | F38: =F6/C6-1 -> 1 | I38: =I6/F6-1 -> 1 | L38: =L6/I6-1 -> 1 | O38: =O6/L6-1 -> 0 | R38: =R6/O6-1 -> 0.1
B39: Croissance bénéfices | C39: 0 | F39: =G30/D30-1 -> -1.022406086 | I39: =J30/G30-1 -> 95.67989922 | L39: =M30/J30-1 -> 2.012524805 | O39: =P30/M30-1 -> -0.01063284765 | R39: =S30/P30-1 -> 0.1261623143

Sheet Plan de trésorerie A0
B2: Plan de trésorerie Année 0
C5: 1er mois | D5: 2e mois | E5: 3e mois | F5: 4e mois | G5: 5e mois | H5: 6e mois | I5: 7e mois | J5: 8e mois | K5: 9e mois | L5: 10e mois | M5: 11e mois | N5: 12e mois
O6: Total | P6: Prévu
B7: 1. SOLDE EN DEBUT DE MOIS | D7: =C72 -> -14545.89084 | E7: =D72 -> -27906.82168 | F7: -39270.95252 | G7: -47639.88337 | H7: -55010.41421 | I7: -62731.89308 | J7: -69860.84865 | K7: -76467.16164 | L7: -82605.95489 | M7: -86981.28573 | N7: -91356.61658
B8: 2. ENCAISSEMENTS
B9: 2 A. D'exploitation
B10: Ventes | C10: =C101 -> 1248 | D10: 3744 | E10: 6240 | F10: 9984 | G10: 11232 | H10: 10793.31496 | I10: 11533.96908 | J10: 12187.27232 | K10: 12771.67198 | L10: 14976 | M10: 14976 | N10: =N101+P101 -> 15113.77165 | O10: =SUM(C10:N10) -> 124800 | P10: =B101 -> 124800
B11: Prestations et locations | C11: =C102 -> 0 | D11: =D102 -> 0 | E11: 0 | F11: 0 | G11: 0 | H11: 0 | I11: 0 | J11: 0 | K11: 0 | L11: 0 | M11: 0 | N11: =N102+P102 -> 0 | O11: =SUM(C11:N11) -> 0 | P11: =B102 -> 0 | R11: =SUM(C10:C11) -> 1248 | S11: 3744 | T11: 6240 | U11: 9984 | V11: 11232 | W11: 10793.31496
B12: 2 B. Hors exploitation | C12: =SUM(C10:C11) -> 1248 | D12: =SUM(D10:D11) -> 3744 | E12: 6240 | F12: 9984 | G12: 11232 | H12: 10793.31496 | I12: 11533.96908 | J12: 12187.27232 | K12: 12771.67198 | L12: 14976 | M12: 14976 | N12: 15113.77165
B13: Apports en capital | C13: =C119 -> 10000 | D13: =D119 -> 0 | E13: 0 | F13: 0 | G13: 0 | H13: 0 | I13: 0 | J13: 0 | K13: 0 | L13: 0 | M13: 0 | N13: 0
B14: Apports en comptes courants d'associés | C14: =C120 -> 0 | D14: 0 | E14: 0 | F14: 0 | G14: 0 | H14: 0 | I14: 0 | J14: 0 | K14: 0 | L14: 0 | M14: 0 | N14: 0
B15: Subventions | C15: 0 | D15: 0 | E15: 0 | F15: 0 | G15: 0 | H15: 0 | I15: 0 | J15: 0 | K15: 0 | L15: 0 | M15: 0 | N15: 0
B16: Emprunts à moyen et long terme (PCE + prêt bancaire + ….) | C16: =C122+C123+C124 -> 0 | D16: =D122+D123+D124 -> 0 | E16: 0 | F16: 0 | G16: 0 | H16: 0 | I16: 0 | J16: 0 | K16: 0 | L16: 0 | M16: 0 | N16: 0
B17: Autres encaissements | C17: =C125 -> 0 | D17: 0 | E17: 0 | F17: 0 | G17: 0 | H17: 0 | I17: 0 | J17: 0 | K17: 0 | L17: 0 | M17: 0 | N17: 0
B18: TVA à encaisser | C18: =SUM('Plan de trésorerie A0'!C23:C45,'Plan de trésorerie A0'!C56,'Plan de trésorerie A0'!C60,'Plan de trésorerie A0'!C61,'Plan de trésorerie A0'!C62)*Pilotage!$D14 -> 3018.776377 | D18: =SUM('Plan de trésorerie A0'!D23:D45,'Plan de trésorerie A0'!D56,'Plan de trésorerie A0'!D60,'Plan de trésorerie A0'!D61,'Plan de trésorerie A0'!D62)*Pilotage!$D14 -> 721.736377 | E18: =SUM('Plan de trésorerie A0'!E23:E45,'Plan de trésorerie A0'!E56,'Plan de trésorerie A0'!E60,'Plan de trésorerie A0'!E61,'Plan de trésorerie A0'!E62)*Pilotage!$D14 -> 721.736377 | F18: =SUM('Plan de trésorerie A0'!F23:F45,'Plan de trésorerie A0'!F56,'Plan de trésorerie A0'!F60,'Plan de trésorerie A0'!F61,'Plan de trésorerie A0'!F62)*Pilotage!$D14 -> 721.736377 | G18: =SUM('Plan de trésorerie A0'!G23:G45,'Plan de trésorerie A0'!G56,'Plan de trésorerie A0'!G60,'Plan de trésorerie A0'!G61,'Plan de trésorerie A0'!G62)*Pilotage!$D14 -> 721.736377 | H18: =SUM('Plan de trésorerie A0'!H23:H45,'Plan de trésorerie A0'!H56,'Plan de trésorerie A0'!H60,'Plan de trésorerie A0'!H61,'Plan de trésorerie A0'!H62)*Pilotage!$D14 -> 721.736377 | I18: =SUM('Plan de trésorerie A0'!I23:I45,'Plan de trésorerie A0'!I56,'Plan de trésorerie A0'!I60,'Plan de trésorerie A0'!I61,'Plan de trésorerie A0'!I62)*Pilotage!$D14 -> 721.736377 | J18: =SUM('Plan de trésorerie A0'!J23:J45,'Plan de trésorerie A0'!J56,'Plan de trésorerie A0'!J60,'Plan de trésorerie A0'!J61,'Plan de trésorerie A0'!J62)*Pilotage!$D14 -> 721.736377 | K18: =SUM('Plan de trésorerie A0'!K23:K45,'Plan de trésorerie A0'!K56,'Plan de trésorerie A0'!K60,'Plan de trésorerie A0'!K61,'Plan de trésorerie A0'!K62)*Pilotage!$D14 -> 721.736377 | L18: =SUM('Plan de trésorerie A0'!L23:L45,'Plan de trésorerie A0'!L56,'Plan de trésorerie A0'!L60,'Plan de trésorerie A0'!L61,'Plan de trésorerie A0'!L62)*Pilotage!$D14 -> 721.736377 | M18: =SUM('Plan de trésorerie A0'!M23:M45,'Plan de trésorerie A0'!M56,'Plan de trésorerie A0'!M60,'Plan de trésorerie A0'!M61,'Plan de trésorerie A0'!M62)*Pilotage!$D14 -> 721.736377 | N18: =SUM('Plan de trésorerie A0'!N23:N45,'Plan de trésorerie A0'!N56,'Plan de trésorerie A0'!N60,'Plan de trésorerie A0'!N61,'Plan de trésorerie A0'!N62)*Pilotage!$D14 -> 721.736377 | O18: =SUM(C18:N18) -> 10957.87652
B19: A. TOTAL ENCAISSEMENTS | C19: =SUM(C9:C11)+SUM(C13:C18) -> 14266.77638 | D19: =SUM(D9:D11)+SUM(D13:D18) -> 4465.736377 | E19: 6961.736377 | F19: 10705.73638 | G19: 11953.73638 | H19: 11515.05134 | I19: 12255.70546 | J19: 12909.0087 | K19: 13493.40836 | L19: 15697.73638 | M19: 15697.73638 | N19: 15835.50803 | O19: =SUM(C19:N19) -> 145757.8765
B21: 3. DECAISSEMENTS
B22: 3 A. D'exploitation
B23: Achats de marchandises TTC | C23: =C96 -> 0 | D23: 0 | E23: 0 | F23: 0 | G23: 0 | H23: 0 | I23: 0 | J23: 0 | K23: 0 | L23: 0 | M23: 0 | N23: 0 | O23: =SUM(C23:N23) -> 0 | P23: =B96 -> 0
B24: Charges externes | C24: =C108 -> 3589.55 | D24: =D108 -> 3589.55 | E24: 3589.55 | F24: 3589.55 | G24: 3589.55 | H24: 3589.55 | I24: 3589.55 | J24: 3589.55 | K24: 3589.55 | L24: 3589.55 | M24: 3589.55 | N24: 3589.55 | O24: =SUM(C24:N24) -> 43074.6 | P24: =B108 -> 43074.6
B25: Sous-traitance | O25: =SUM(C25:N25) -> 0
B26: Eau | O26: 0
B27: Electricité | O27: 0
B28: Fournitures d'entretien | O28: 0
B29: Fournitures administratives | O29: 0
B30: Fournitures diverses | O30: 0
B31: Loyers de crédit bail | O31: 0
B32: Loyers et charges locatives | O32: 0
B33: Assurances | O33: 0
B34: Entretien (locaux, matériel) | O34: 0
B35: Documentation | O35: 0
B36: Honoraires | O36: 0
B37: Frais d'acte et de contentieux | O37: 0
B38: Affranchissements | O38: 0
B39: Téléphone | O39: 0
B40: Internet | O40: 0
B41: Publicité | O41: 0
B42: Frais de transport | O42: 0
B43: Emballages et conditionnement | O43: 0
B44: Voyages et déplacements | O44: 0
B45: Loyers | C45: =C107 -> 0 | D45: =D107 -> 0 | E45: 0 | F45: 0 | G45: 0 | H45: 0 | I45: 0 | J45: 0 | K45: 0 | L45: 0 | M45: 0 | N45: 0 | O45: =SUM(C45:N45) -> 0 | P45: =B107 -> 0 | R45: =SUM(C23:C54) -> 17308.33533 | S45: 17807.53533 | T45: 18306.73533 | U45: 19055.53533 | V45: 19305.13533 | W45: 19217.39833
B46: TVA - Impôts et taxes (hors IS ou IR) | C46: =SUM(C10:C11)*Pilotage!$D14 -> 249.6 | D46: =SUM(D10:D11)*Pilotage!$D14 -> 748.8 | E46: =SUM(E10:E11)*Pilotage!$D14 -> 1248 | F46: =SUM(F10:F11)*Pilotage!$D14 -> 1996.8 | G46: =SUM(G10:G11)*Pilotage!$D14 -> 2246.4 | H46: =SUM(H10:H11)*Pilotage!$D14 -> 2158.662992 | I46: =SUM(I10:I11)*Pilotage!$D14 -> 2306.793817 | J46: =SUM(J10:J11)*Pilotage!$D14 -> 2437.454464 | K46: =SUM(K10:K11)*Pilotage!$D14 -> 2554.334396 | L46: =SUM(L10:L11)*Pilotage!$D14 -> 2995.2 | M46: =SUM(M10:M11)*Pilotage!$D14 -> 2995.2 | N46: =SUM(N10:N11)*Pilotage!$D14 -> 3022.75433 | O46: 24960 | P46: =B110 -> 1500
B47: Salaires | C47: =C106 -> 13469.18533 | D47: 13469.18533 | E47: 13469.18533 | F47: 13469.18533 | G47: 13469.18533 | H47: 13469.18533 | I47: 13469.18533 | J47: 13469.18533 | K47: 13469.18533 | L47: 13469.18533 | M47: 13469.18533 | N47: 13469.18533 | O47: =SUM(C47:N47) -> 161630.224 | P47: =Salaires!T16 -> 161630.224
B48: Rémunération du dirigeant
B49: Cotisations sociales du dirigeant
B50: Salaires brut des salariés
B51: Cotisations sociales salariés
B52: Commissions versées
B53: Agios et intérêts payés
B54: Autres
B55: 3 B. Hors exploitation
B56: Matériel | C56: =C94 -> 0 | D56: 0 | E56: 0 | F56: 0 | G56: 0 | H56: 0 | I56: 0 | J56: 0 | K56: 0 | L56: 0 | M56: 0 | N56: 0 | O56: =SUM(C56:N56) -> 0 | P56: =B94 -> 0
B57: Achat terrain construction
B58: Brevet
B59: Création site internet
B60: Logiciels | C60: =C109 -> 19.131885 | D60: =D109 -> 19.131885 | E60: 19.131885 | F60: 19.131885 | G60: 19.131885 | H60: 19.131885 | I60: 19.131885 | J60: 19.131885 | K60: 19.131885 | L60: 19.131885 | M60: 19.131885 | N60: 19.131885 | O60: =SUM(C60:N60) -> 229.58262 | P60: =B109 -> 229.58262
B61: Travaux / aménagements | C61: =C95 -> 0 | D61: 0 | E61: 0 | F61: 0 | G61: 0 | H61: 0 | I61: 0 | J61: 0 | K61: 0 | L61: 0 | M61: 0 | N61: 0 | O61: =SUM(C61:N61) -> 0 | P61: =B95 -> 0
B62: Frais de création | C62: =C126 -> 11485.2 | D62: =D126 -> 0 | E62: 0 | F62: 0 | G62: 0 | H62: 0 | I62: 0 | J62: 0 | K62: 0 | L62: 0 | M62: 0 | N62: 0 | O62: =SUM(C62:N62) -> 11485.2 | P62: =B126 -> 11485.2
B63: Véhicule
B64: Mobilier
B65: Matériel informatique
B66: Garanties sur loyers | C66: =C117 -> 0 | D66: =D117 -> 0 | E66: 0 | F66: 0 | G66: 0 | H66: 0 | I66: 0 | J66: 0 | K66: 0 | L66: 0 | M66: 0 | N66: 0 | O66: =SUM(C66:N66) -> 0
B67: Garanties professionnelles | C67: =C118 -> 0 | D67: =D118 -> 0 | E67: 0 | F67: 0 | G67: 0 | H67: 0 | I67: 0 | J67: 0 | K67: 0 | L67: 0 | M67: 0 | N67: 0 | O67: =SUM(C67:N67) -> 0
B68: Remboursement d'emprunts | C68: =C130+C112+C113 -> 0 | D68: =D130+D112+D113 -> 0 | E68: 0 | F68: 0 | G68: 0 | H68: 0 | I68: 0 | J68: 0 | K68: 0 | L68: 0 | M68: 0 | N68: 0 | O68: =SUM(C68:N68) -> 0
B69: Crédit-bail | C69: =C111 -> 0 | D69: =D111 -> 0 | E69: 0 | F69: 0 | G69: 0 | H69: 0 | I69: 0 | J69: 0 | K69: 0 | L69: 0 | M69: 0 | N69: 0 | O69: =SUM(C69:N69) -> 0
B70: B. TOTAL DECAISSEMENTS | C70: =SUM(C23:C54)+SUM(C56:C69) -> 28812.66722 | D70: =SUM(D22:D69) -> 17826.66722 | E70: 18325.86722 | F70: 19074.66722 | G70: 19324.26722 | H70: 19236.53021 | I70: 19384.66104 | J70: 19515.32168 | K70: 19632.20161 | L70: 20073.06722 | M70: 20073.06722 | N70: 20100.62155 | O70: =SUM(C70:N70) -> 241379.6066
B71: 4. SOLDE DU MOIS (A - B) | C71: =C19-C70 -> -14545.89084 | D71: -13360.93084 | E71: -11364.13084 | F71: -8368.930841 | G71: -7370.530841 | H71: -7721.478873 | I71: -7128.955574 | J71: -6606.312984 | K71: -6138.793255 | L71: -4375.330841 | M71: -4375.330841 | N71: -4265.113521 | O71: -95621.7301
B72: 5. SOLDE DE FIN DE MOIS (1 + 4) | C72: =C7+C71 -> -14545.89084 | D72: -27906.82168 | E72: -39270.95252 | F72: -47639.88337 | G72: -55010.41421 | H72: -62731.89308 | I72: -69860.84865 | J72: -76467.16164 | K72: -82605.95489 | L72: -86981.28573 | M72: -91356.61658 | N72: -95621.7301
B74: Construction du plan de trésorerie
B75: Certaines sommes proviennent directement de l'activité de l'entreprise : ce sont les encaissements d'exploitation D'autres ont pour objet de financer l'exploitation mais ne sont pas directement issues de l'activité : elles sont "hors exploitation"
B77: 2 A. : indiquer le chiffre d'affaires TTC réellement encaissé (ou prévisionnel si vous êtes en phase de construction de votre projet)
B78: Attention ! • Le montant du chiffre d'affaires encaissé est inscrit TTC. L'éventuel montant de la TVA à reverser est comptabilisé dans les impôts et taxes. • Le montant des ventes est celui réellement encaissé : ne pas oublier les délais de paiement possibles entre la facturation et l'encaissement du paiement
B81: 2 B. : Reprendre les chiffres du plan de financement initial pour le 1er mois. En cas de versement ultérieur, porter la somme sur le mois où elle est (ou sera) réellement reçue.
B83: 3 A. : Attention ! • Le montant des achats est comptabilisé TTC : le solde de TVA sera porté au poste" impôts et taxes" s'il est décaissé par l'entreprise • De même, ne pas oublier de tenir compte des délais de paiement et porter le décaissement le mois où celui-ci a (ou aura) réellement eu lieu
B90: Valeur à répartir TTC | C90: 1 | D90: 2 | E90: 3 | F90: 4 | G90: 5 | H90: 6 | I90: 7 | J90: 8 | K90: 9 | L90: 10 | M90: 11 | N90: 12 | O90: Total | P90: Différence
A91: Répartition dégressive | N91: Coeffs tend. | O91: =LOGEST(C92:N92,C90:N90,TRUE,FALSE) -> 0.5089281012 | P91: 0.7284470965
A92: Courbe | C92: 0.2 | D92: 0.47 | E92: 0.2 | F92: 0.1 | G92: 0.01 | H92: 0.01 | I92: 0.005 | J92: 0.0025 | K92: 0.0005 | L92: 0.0005 | M92: 0.0005 | N92: 0.001 | O92: =SUM(C92:N92) -> 1 | P92: =100%-O92 -> 0
A93: Tendance | B93: 1 | C93: =$P91*$O91^C90 -> 0.3707271977 | D93: 0.1886734888 | E93: 0.09602124039 | F93: 0.04886790755 | G93: 0.0248702514 | H93: 0.01265716982 | I93: 0.006441589404 | J93: 0.003278305864 | K93: 0.001668421979 | L93: 0.0008491068296 | M93: 0.0004321343265 | N93: 0.0002199253023 | O93: =SUM(C93:N93) -> 0.7547067393 | P93: =B93-O93 -> 0.2452932607
A94: Matériel (Matériel) | B94: =Matériel!K4*(1+Pilotage!$D$14) -> 0 | C94: =C$92*$B94 -> 0 | D94: 0 | E94: 0 | F94: 0 | G94: 0 | H94: 0 | I94: 0 | J94: 0 | K94: 0 | L94: 0 | M94: 0 | N94: 0 | O94: =SUM(C94:N94) -> 0 | P94: =B94-O94 -> 0
A95: Travaux | B95: =Travaux!K4*(1+Pilotage!$D$14) -> 0 | C95: 0 | D95: 0 | E95: 0 | F95: 0 | G95: 0 | H95: 0 | I95: 0 | J95: 0 | K95: 0 | L95: 0 | M95: 0 | N95: 0 | O95: =SUM(C95:N95) -> 0 | P95: =B95-O95 -> 0
A96: Marchandises(Stock) | B96: =Stock!K4*(1+Pilotage!$D$14) -> 0 | C96: 0 | D96: 0 | E96: 0 | F96: 0 | G96: 0 | H96: 0 | I96: 0 | J96: 0 | K96: 0 | L96: 0 | M96: 0 | N96: 0 | O96: =SUM(C96:N96) -> 0 | P96: =B96-O96 -> 0
A99: Répartition progressive | Q99: Delta
A100: Courbe | B100: 1 | C100: 0.01 | D100: 0.03 | E100: 0.05 | F100: 0.08 | G100: 0.09 | H100: =LN(1+H90)/22.5 -> 0.08648489551 | I100: 0.09241962407 | J100: 0.09765442566 | K100: 0.1023371152 | L100: 0.12 | M100: 0.12 | N100: 0.12 | O100: =SUM(C100:N100) -> 0.9988960605 | P100: =100%-O100 -> 0.001103939508
A101: Ventes (Ventes Stock + Ventes Produits) | B101: =SUM('Comptes de résultat 6 ans'!R7:R8)*(1+Pilotage!$D$14) -> 124800 | C101: =C$100*$B101 -> 1248 | D101: =D$100*$B101 -> 3744 | E101: 6240 | F101: 9984 | G101: 11232 | H101: 10793.31496 | I101: 11533.96908 | J101: 12187.27232 | K101: 12771.67198 | L101: 14976 | M101: 14976 | N101: =N$100*$B101+Q101 -> 14955.37 | O101: =SUM(C101:N101) -> 124641.5983 | P101: =B101-O101 -> 158.4016506 | Q101: -20.63
A102: Autres revenus (Prestations + Locations) | B102: =SUM('Comptes de résultat 6 ans'!R12:R13)*(1+Pilotage!$D$14) -> 0 | C102: =C$100*$B102 -> 0 | D102: 0 | E102: 0 | F102: 0 | G102: 0 | H102: 0 | I102: 0 | J102: 0 | K102: 0 | L102: 0 | M102: 0 | N102: =N$100*$B102+Q102 -> -45.32 | O102: =SUM(C102:N102) -> -45.32 | P102: =B102-O102 -> 45.32 | Q102: -45.32
A104: Répartition linéaire
A105: Courbe | B105: 1 | C105: =1/12 -> 0.08333333333 | D105: =1/12 -> 0.08333333333 | E105: 0.08333333333 | F105: 0.08333333333 | G105: 0.08333333333 | H105: 0.08333333333 | I105: 0.08333333333 | J105: 0.08333333333 | K105: 0.08333333333 | L105: 0.08333333333 | M105: 0.08333333333 | N105: 0.08333333333 | O105: =SUM(C105:N105) -> 1 | P105: =100%-O105 -> 0
A106: Salaires (Salaires) | B106: =Salaires!$T$16 -> 161630.224 | C106: =C$105*$B106 -> 13469.18533 | D106: 13469.18533 | E106: 13469.18533 | F106: 13469.18533 | G106: 13469.18533 | H106: 13469.18533 | I106: 13469.18533 | J106: 13469.18533 | K106: 13469.18533 | L106: 13469.18533 | M106: 13469.18533 | N106: 13469.18533 | O106: 161630.224 | P106: =B106-O106 -> 0
A107: Loyers | B107: =Loyers!K4*(1+Pilotage!$D$14) -> 0 | C107: 0 | D107: 0 | E107: 0 | F107: 0 | G107: 0 | H107: 0 | I107: 0 | J107: 0 | K107: 0 | L107: 0 | M107: 0 | N107: 0 | O107: 0 | P107: 0
A108: Assurances, … (Charges) | B108: ='Charges Ext'!K4*(1+Pilotage!$D$14) -> 43074.6 | C108: 3589.55 | D108: 3589.55 | E108: 3589.55 | F108: 3589.55 | G108: 3589.55 | H108: 3589.55 | I108: 3589.55 | J108: 3589.55 | K108: 3589.55 | L108: 3589.55 | M108: 3589.55 | N108: 3589.55 | O108: =SUM(C108:N108) -> 43074.6 | P108: 0
A109: Licences (Licences) | B109: =Licences!K4*(1+Pilotage!$D$14) -> 229.58262 | C109: 19.131885 | D109: 19.131885 | E109: 19.131885 | F109: 19.131885 | G109: 19.131885 | H109: 19.131885 | I109: 19.131885 | J109: 19.131885 | K109: 19.131885 | L109: 19.131885 | M109: 19.131885 | N109: 19.131885 | O109: 229.58262 | P109: 0
A110: Taxes et Impôts (Impots, Hors IS) | B110: =Impôts!H4 -> 1500 | C110: 125 | D110: 125 | E110: 125 | F110: 125 | G110: 125 | H110: 125 | I110: 125 | J110: 125 | K110: 125 | L110: 125 | M110: 125 | N110: 125 | O110: 1500 | P110: 0
A111: Crédit bail | B111: ='Credit-bail'!C8*'Credit-bail'!C12 -> 0 | C111: 0 | D111: 0 | E111: 0 | F111: 0 | G111: 0 | H111: 0 | I111: 0 | J111: 0 | K111: 0 | L111: 0 | M111: 0 | N111: 0 | O111: 0 | P111: 0
A112: Remboursement prêts d'honneur | B112: ='Prêts honneur'!C8*'Prêts honneur'!C12 -> 0 | C112: 0 | D112: 0 | E112: 0 | F112: 0 | G112: 0 | H112: 0 | I112: 0 | J112: 0 | K112: 0 | L112: 0 | M112: 0 | N112: 0 | O112: =SUM(C112:N112) -> 0
A113: Remboursement PCE | B113: =PCE!C8*PCE!C12 -> 0 | C113: 0 | D113: 0 | E113: 0 | F113: 0 | G113: 0 | H113: 0 | I113: 0 | J113: 0 | K113: 0 | L113: 0 | M113: 0 | N113: 0 | O113: =SUM(C113:N113) -> 0
A115: Sans répartition
A116: Courbe | B116: 1 | C116: 1 | D116: 0 | E116: 0 | F116: 0 | G116: 0 | H116: 0 | I116: 0 | J116: 0 | K116: 0 | L116: 0 | M116: 0 | N116: 0 | O116: =SUM(C116:N116) -> 1 | P116: =100%-O116 -> 0
A117: Garanties sur loyer | B117: ='Plan financier initial'!E22 -> 0 | C117: =$B117*C$116 -> 0 | D117: =$B117*D$116 -> 0 | E117: 0 | F117: 0 | G117: 0 | H117: 0 | I117: 0 | J117: 0 | K117: 0 | L117: 0 | M117: 0 | N117: 0 | O117: 0 | P117: =B117-O117 -> 0
A118: Garanties professionnelles | B118: ='Plan financier initial'!E23 -> 0 | C118: =$B118*C$116 -> 0 | D118: 0 | E118: 0 | F118: 0 | G118: 0 | H118: 0 | I118: 0 | J118: 0 | K118: 0 | L118: 0 | M118: 0 | N118: 0 | O118: 0 | P118: 0
A119: Apports en capital | B119: =Pilotage!H10+Pilotage!H9 -> 10000 | C119: 10000 | D119: 0 | E119: 0 | F119: 0 | G119: 0 | H119: 0 | I119: 0 | J119: 0 | K119: 0 | L119: 0 | M119: 0 | N119: 0 | O119: 10000 | P119: 0
A120: Apports en comptes courants d'associés | B120: =Pilotage!H17 -> 0 | C120: 0 | D120: 0 | E120: 0 | F120: 0 | G120: 0 | H120: 0 | I120: 0 | J120: 0 | K120: 0 | L120: 0 | M120: 0 | N120: 0 | O120: 0 | P120: 0
A121: Subventions | B121: =SUM(Pilotage!H19:H20)+Pilotage!H17 -> 0 | C121: 0 | D121: 0 | E121: 0 | F121: 0 | G121: 0 | H121: 0 | I121: 0 | J121: 0 | K121: 0 | L121: 0 | M121: 0 | N121: 0 | O121: 0 | P121: 0
A122: Emprunts à moyen et long terme (PCE + prêt bancaire + ….) | B122: =Pilotage!D29 -> 0 | C122: 0 | D122: 0 | E122: 0 | F122: 0 | G122: 0 | H122: 0 | I122: 0 | J122: 0 | K122: 0 | L122: 0 | M122: 0 | N122: 0 | O122: 0 | P122: 0
A123: Prêts d'honneur | B123: =Pilotage!H21 -> 0 | C123: 0 | D123: 0 | E123: 0 | F123: 0 | G123: 0 | H123: 0 | I123: 0 | J123: 0 | K123: 0 | L123: 0 | M123: 0 | N123: 0 | O123: =SUM(C123:N123) -> 0 | P123: =B123-O123 -> 0
A124: PCE | B124: =Pilotage!H22 -> 0 | C124: 0 | D124: 0 | E124: 0 | F124: 0 | G124: 0 | H124: 0 | I124: 0 | J124: 0 | K124: 0 | L124: 0 | M124: 0 | N124: 0 | O124: =SUM(C124:N124) -> 0 | P124: =B124-O124 -> 0
A125: Autres encaissements | B125: =Pilotage!H18 -> 0 | C125: 0 | D125: 0 | E125: 0 | F125: 0 | G125: 0 | H125: 0 | I125: 0 | J125: 0 | K125: 0 | L125: 0 | M125: 0 | N125: 0 | O125: 0 | P125: 0
A126: Frais de création(Installation) | B126: =Installation!K4*(1+Pilotage!$D$14) -> 11485.2 | C126: 11485.2 | D126: 0 | E126: 0 | F126: 0 | G126: 0 | H126: 0 | I126: 0 | J126: 0 | K126: 0 | L126: 0 | M126: 0 | N126: 0 | O126: =SUM(C126:N126) -> 11485.2 | P126: =B126-O126 -> 0
A128: Emprunt
A129: Courbe | B129: 1 | C129: =IF(MOD(C90,12/Pilotage!$D$24)=0,1/Pilotage!$D$24,0) -> 0 | D129: =IF(MOD(D90,12/Pilotage!$D$24)=0,1/Pilotage!$D$24,0) -> 0 | E129: =IF(MOD(E90,12/Pilotage!$D$24)=0,1/Pilotage!$D$24,0) -> 0.25 | F129: =IF(MOD(F90,12/Pilotage!$D$24)=0,1/Pilotage!$D$24,0) -> 0 | G129: =IF(MOD(G90,12/Pilotage!$D$24)=0,1/Pilotage!$D$24,0) -> 0 | H129: =IF(MOD(H90,12/Pilotage!$D$24)=0,1/Pilotage!$D$24,0) -> 0.25 | I129: =IF(MOD(I90,12/Pilotage!$D$24)=0,1/Pilotage!$D$24,0) -> 0 | J129: =IF(MOD(J90,12/Pilotage!$D$24)=0,1/Pilotage!$D$24,0) -> 0 | K129: =IF(MOD(K90,12/Pilotage!$D$24)=0,1/Pilotage!$D$24,0) -> 0.25 | L129: =IF(MOD(L90,12/Pilotage!$D$24)=0,1/Pilotage!$D$24,0) -> 0 | M129: =IF(MOD(M90,12/Pilotage!$D$24)=0,1/Pilotage!$D$24,0) -> 0 | N129: =IF(MOD(N90,12/Pilotage!$D$24)=0,1/Pilotage!$D$24,0) -> 0.25 | O129: =SUM(C129:N129) -> 1 | P129: =100%-O129 -> 0
A130: Remboursements d'emprunts | B130: =Pilotage!D27*Pilotage!D24 -> 0 | C130: =$B130*C129 -> 0 | D130: =$B130*D129 -> 0 | E130: 0 | F130: 0 | G130: 0 | H130: 0 | I130: 0 | J130: 0 | K130: 0 | L130: 0 | M130: 0 | N130: 0 | O130: =SUM(C130:N130) -> 0 | P130: =B130-O130 -> 0

Sheet Plan de trésorerie 6 ans
B2: Plan de trésorerie sur 6 ans
C5: =Pilotage!M22 -> Année 0 | D5: =Pilotage!N22 -> Année 1 | E5: =Pilotage!O22 -> Année 2 | F5: =Pilotage!P22 -> Année 3 | G5: =Pilotage!Q22 -> Année 4 | H5: =Pilotage!R22 -> Année 5
I6: Total
B7: 1. SOLDE EN DEBUT D'ANNEE | C7: 0 | D7: =C74 -> -100621.7301 | E7: =D74 -> -103292.9721 | F7: =E74 -> 32413.33133 | G7: =F74 -> 420177.3934 | H7: =G74 -> 803812.0037
B8: 2. ENCAISSEMENTS
B9: 2 A. D'exploitation
B10: Ventes | C10: =C105 -> 124800 | D10: 249600 | E10: 499200 | F10: 998400 | G10: 998400 | H10: 1098240 | I10: =SUM(C10:H10) -> 3968640
B11: Prestations et locations | C11: =C106 -> 0 | D11: 0 | E11: 0 | F11: 0 | G11: 0 | H11: 0 | I11: =SUM(C11:H11) -> 0
B12: 2 B. Hors exploitation
B13: Apports en capital | C13: =C94 -> 5000 | D13: 0 | E13: 5000 | F13: 0 | G13: 0 | H13: 0 | I13: =SUM(C13:H13) -> 10000
B14: Apports en comptes courants d'associés | C14: =C95 -> 0 | D14: 0 | E14: 0 | F14: 0 | G14: 0 | H14: 0
B15: Subventions | C15: 0 | D15: 0 | E15: 0 | F15: 0 | G15: 0 | H15: 0 | I15: =SUM(C15:H15) -> 0
B16: Emprunts à moyen et long terme (PCE + prêt bancaire + ….) | C16: =C97+C98+C99 -> 0 | D16: 0 | E16: 0 | F16: 0 | G16: 0 | H16: 0 | I16: =SUM(C16:H16) -> 0
B17: Autres encaissements | C17: =C100 -> 0 | D17: 0 | E17: 0 | F17: 0 | G17: 0 | H17: 0 | I17: =SUM(C17:H17) -> 0
B18: TVA à encaisser | C18: =SUM(C23:C45,C58,C62,C63,C64)*Pilotage!$D14 -> 10957.87652 | D18: =SUM(D23:D45,D58,D62,D63,D64)*Pilotage!$D14 -> 8919.284124 | E18: =SUM(E23:E45,E58,E62,E63,E64)*Pilotage!$D14 -> 9185.485152 | F18: =SUM(F23:F45,F58,F62,F63,F64)*Pilotage!$D14 -> 9459.672211 | G18: =SUM(G23:G45,G58,G62,G63,G64)*Pilotage!$D14 -> 9742.084881 | H18: =SUM(H23:H45,H58,H62,H63,H64)*Pilotage!$D14 -> 10032.96993
B19: A. TOTAL ENCAISSEMENTS | C19: =SUM(C9:C18) -> 140757.8765 | D19: 258519.2841 | E19: 513385.4852 | F19: 1007859.672 | G19: 1008142.085 | H19: 1108272.97 | I19: =SUM(C19:H19) -> 4036937.373
B21: 3. DECAISSEMENTS
B22: 3 A. D'exploitation
B23: Achats de marchandises TTC | C23: =C104 -> 0 | D23: 0 | E23: 0 | F23: 0 | G23: 0 | H23: 0 | I23: =SUM(C23:H23) -> 0
B24: Charges externes | C24: =C110 -> 43074.6 | D24: 44366.838 | E24: 45697.84314 | F24: 47068.77843 | G24: 48480.84179 | H24: 49935.26704 | I24: 278624.1684
B25: Sous-traitance | I25: 0
B26: Eau | I26: 0
B27: Electricité | I27: 0
B28: Fournitures d'entretien | I28: 0
B29: Fournitures administratives | I29: 0
B30: Fournitures diverses | I30: 0
B31: Loyers de crédit bail | I31: 0
B32: Loyers et charges locatives | I32: 0
B33: Assurances | I33: 0
B34: Entretien (locaux, matériel) | I34: 0
B35: Documentation | I35: 0
B36: Honoraires | I36: 0
B37: Frais d'acte et de contentieux | I37: 0
B38: Affranchissements | I38: 0
B39: Téléphone | I39: 0
B40: Internet | I40: 0
B41: Publicité | I41: 0
B42: Frais de transport | I42: 0
B43: Emballages et conditionnement | I43: 0
B44: Voyages et déplacements | I44: 0
B45: Loyers | C45: =C108 -> 0 | D45: 0 | E45: 0 | F45: 0 | G45: 0 | H45: 0 | I45: =SUM(C45:H45) -> 0
B46: Divers
B47: TVA - Impôts et taxes (hors IS ou IR) | C47: =SUM(C10:C11)*Pilotage!$D14 -> 24960 | D47: =SUM(D10:D11)*Pilotage!$D14 -> 49920 | E47: =SUM(E10:E11)*Pilotage!$D14 -> 99840 | F47: =SUM(F10:F11)*Pilotage!$D14 -> 199680 | G47: =SUM(G10:G11)*Pilotage!$D14 -> 199680 | H47: =SUM(H10:H11)*Pilotage!$D14 -> 219648 | I47: =SUM(C47:H47) -> 793728
B48: Impôts sur les bénéfices | C48: =C112 -> 0 | D48: 314.974812 | E48: 60681.85129 | F48: 196870.4473 | G48: 194702.8444 | H48: 220148.7122 | I48: =SUM(C48:H48) -> 672718.8299
B49: Salaires | C49: =C107 -> 161630.224 | D49: 166359.1307 | E49: 171229.9046 | F49: 176246.8018 | G49: 181414.2058 | H49: 186736.632 | I49: =SUM(C49:H49) -> 1043616.899
B50: Rémunération du dirigeant
B51: Cotisations sociales du dirigeant
B52: Salaires brut des salariés
B53: Cotisations sociales salariés
B54: Commissions versées
B55: Agios et intérêts payés
B56: Autres
B57: 3 B. Hors exploitation | I57: =SUM(I23:I56)*(1+Pilotage!D$14) -> 3346425.477
B58: Matériel | C58: =C101 -> 0 | D58: 0 | E58: 0 | F58: 0 | G58: 0 | H58: 0 | I58: =SUM(C58:H58) -> 0
B59: Achat terrain construction
B60: Brevet
B61: Création site internet
B62: Logiciels | C62: =C109 -> 229.58262 | D62: 229.58262 | E62: 229.58262 | F62: 229.58262 | G62: 229.58262 | H62: 229.58262 | I62: =SUM(C62:H62) -> 1377.49572
B63: Travaux / aménagements | C63: =C102 -> 0 | D63: 0 | E63: 0 | F63: 0 | G63: 0 | H63: 0 | I63: =SUM(C63:H63) -> 0
B64: Frais de création | C64: =C103 -> 11485.2 | D64: 0 | E64: 0 | F64: 0 | G64: 0 | H64: 0 | I64: =SUM(C64:H64) -> 11485.2
B65: Véhicule
B66: Mobilier
B67: Matériel informatique
B68: Garanties sur loyers | C68: =C113 -> 0 | D68: =D113 -> 0 | E68: 0 | F68: 0 | G68: 0 | H68: 0
B69: Garanties professionnelles | C69: =C114 -> 0 | D69: 0 | E69: 0 | F69: 0 | G69: 0 | H69: 0
B70: Remboursement d'emprunts | C70: =C115+C116+C117 -> 0 | D70: 0 | E70: 0 | F70: 0 | G70: 0 | H70: 0
B71: Crédit-bail | C71: =C118 -> 0 | D71: 0 | E71: 0 | F71: 0 | G71: 0 | H71: 0
B72: B. TOTAL DECAISSEMENTS | C72: =SUM(C22:C71) -> 241379.6066 | D72: 261190.5262 | E72: 377679.1817 | F72: 620095.6101 | G72: 624507.4746 | H72: 676698.1938 | I72: =SUM(C72:H72) -> 2801550.593
B73: 4. SOLDE DE L'ANNEE (A - B) | C73: =C19-C72 -> -100621.7301 | D73: -2671.242028 | E73: 135706.3035 | F73: 387764.0621 | G73: 383634.6103 | H73: 431574.7761 | I73: 1235386.78
B74: 5. SOLDE DE FIN D'ANNEE (1 + 4) | C74: =C7+C73 -> -100621.7301 | D74: -103292.9721 | E74: 32413.33133 | F74: 420177.3934 | G74: 803812.0037 | H74: 1235386.78
B75: Avant IS | C75: =C74+C48 -> -100621.7301 | D75: -102977.9973 | E75: 93095.18263 | F75: 617047.8407 | G75: 998514.8481 | H75: 1455535.492
B76: Construction du plan de trésorerie
B77: Certaines sommes proviennent directement de l'activité de l'entreprise : ce sont les encaissements d'exploitation D'autres ont pour objet de financer l'exploitation mais ne sont pas directement issues de l'activité : elles sont "hors exploitation"
B79: 2 A. : indiquer le chiffre d'affaires TTC réellement encaissé (ou prévisionnel si vous êtes en phase de construction de votre projet)
B80: Attention ! • Le montant du chiffre d'affaires encaissé est inscrit TTC. L'éventuel montant de la TVA à reverser est comptabilisé dans les impôts et taxes. • Le montant des ventes est celui réellement encaissé : ne pas oublier les délais de paiement possibles entre la facturation et l'encaissement du paiement
B83: 2 B. : Reprendre les chiffres du plan de financement initial pour le 1er mois. En cas de versement ultérieur, porter la somme sur le mois où elle est (ou sera) réellement reçue.
B85: 3 A. : Attention ! • Le montant des achats est comptabilisé TTC : le solde de TVA sera porté au poste" impôts et taxes" s'il est décaissé par l'entreprise • De même, ne pas oublier de tenir compte des délais de paiement et porter le décaissement le mois où celui-ci a (ou aura) réellement eu lieu
C92: 1 | D92: 2 | E92: 3 | F92: 4 | G92: 5 | H92: 6 | I92: Total | J92: Différence | K92: TVA
B93: Evolutions
A94: Apports en capital | C94: =Pilotage!H10/2+(Pilotage!H9)/2 -> 5000 | D94: 0 | E94: =Pilotage!H10/2+(Pilotage!H9)/2 -> 5000 | F94: 0 | G94: 0 | H94: 0 | I94: =SUM(C94:H94) -> 10000 | J94: =I94 -> 10000
A95: Apports en comptes courants d'associés | C95: =Pilotage!H17 -> 0 | D95: 0 | E95: 0 | F95: 0 | G95: 0 | H95: 0 | I95: 0 | J95: 0
A96: Subventions | C96: =SUM(Pilotage!H19:H20) -> 0 | D96: 0 | E96: 0 | F96: 0 | G96: 0 | H96: 0 | I96: 0 | J96: 0
A97: Emprunt | C97: =Pilotage!D29 -> 0 | D97: 0 | E97: 0 | F97: 0 | G97: 0 | H97: 0 | I97: 0 | J97: 0
A98: Prêts d'honneur | C98: =Pilotage!H21 -> 0 | D98: 0 | E98: 0 | F98: 0 | G98: 0 | H98: 0 | I98: 0 | J98: 0
A99: PCE | C99: =Pilotage!H22 -> 0 | D99: 0 | E99: 0 | F99: 0 | G99: 0 | H99: 0 | I99: 0 | J99: 0
A100: Autres encaissements | C100: =Pilotage!H18 -> 0 | D100: 0 | E100: 0 | F100: 0 | G100: 0 | H100: 0 | I100: 0 | J100: 0
A101: Matériel (Matériel) | C101: =Matériel!K4*(1+Pilotage!$D$14) -> 0 | D101: =$C101*Pilotage!N24 -> 0 | E101: =$C101*Pilotage!O24 -> 0 | F101: =$C101*Pilotage!P24 -> 0 | G101: =$C101*Pilotage!Q24 -> 0 | H101: =$C101*Pilotage!R24 -> 0 | I101: =SUM(C101:H101) -> 0 | J101: =0-I101 -> 0
A102: Travaux | C102: =Travaux!K4*(1+Pilotage!$D$14) -> 0 | D102: =$C102*Pilotage!N24 -> 0 | E102: =$C102*Pilotage!O24 -> 0 | F102: =$C102*Pilotage!P24 -> 0 | G102: =$C102*Pilotage!Q24 -> 0 | H102: =$C102*Pilotage!R24 -> 0 | I102: 0 | J102: =0-I102 -> 0
A103: Installation | C103: =Installation!K4*(1+Pilotage!$D$14) -> 11485.2 | D103: 0 | E103: 0 | F103: 0 | G103: 0 | H103: 0 | I103: 11485.2 | J103: =0-I103 -> -11485.2
A104: Marchandises(Stock) | C104: ='Comptes de résultat 6 ans'!G8*(1+Pilotage!$D$14) -> 0 | D104: ='Comptes de résultat 6 ans'!H8*(1+Pilotage!$D$14) -> 0 | E104: ='Comptes de résultat 6 ans'!I8*(1+Pilotage!$D$14) -> 0 | F104: ='Comptes de résultat 6 ans'!J8*(1+Pilotage!$D$14) -> 0 | G104: ='Comptes de résultat 6 ans'!K8*(1+Pilotage!$D$14) -> 0 | H104: ='Comptes de résultat 6 ans'!L8*(1+Pilotage!$D$14) -> 0 | I104: 0 | J104: 0
A105: Ventes (Ventes Stock + Ventes Produits) | C105: =SUM('Comptes de résultat 6 ans'!R7:R8)*(1+Pilotage!$D$14) -> 124800 | D105: =SUM('Comptes de résultat 6 ans'!S7:S8)*(1+Pilotage!$D$14) -> 249600 | E105: =SUM('Comptes de résultat 6 ans'!T7:T8)*(1+Pilotage!$D$14) -> 499200 | F105: =SUM('Comptes de résultat 6 ans'!U7:U8)*(1+Pilotage!$D$14) -> 998400 | G105: =SUM('Comptes de résultat 6 ans'!V7:V8)*(1+Pilotage!$D$14) -> 998400 | H105: =SUM('Comptes de résultat 6 ans'!W7:W8)*(1+Pilotage!$D$14) -> 1098240 | I105: 3968640 | J105: =I105 -> 3968640
A106: Autres revenus (Prestations + Locations) | C106: =SUM('Comptes de résultat 6 ans'!R12:R13)*(1+Pilotage!$D$14) -> 0 | D106: =SUM('Comptes de résultat 6 ans'!S12:S13)*(1+Pilotage!$D$14) -> 0 | E106: =SUM('Comptes de résultat 6 ans'!T12:T13)*(1+Pilotage!$D$14) -> 0 | F106: =SUM('Comptes de résultat 6 ans'!U12:U13)*(1+Pilotage!$D$14) -> 0 | G106: =SUM('Comptes de résultat 6 ans'!V12:V13)*(1+Pilotage!$D$14) -> 0 | H106: =SUM('Comptes de résultat 6 ans'!W12:W13)*(1+Pilotage!$D$14) -> 0 | I106: 0 | J106: =I106 -> 0
A107: Salaires (Salaires) | C107: ='Comptes de résultat 6 ans'!G50 -> 161630.224 | D107: ='Comptes de résultat 6 ans'!H50 -> 166359.1307 | E107: ='Comptes de résultat 6 ans'!I50 -> 171229.9046 | F107: ='Comptes de résultat 6 ans'!J50 -> 176246.8018 | G107: ='Comptes de résultat 6 ans'!K50 -> 181414.2058 | H107: ='Comptes de résultat 6 ans'!L50 -> 186736.632 | I107: 1043616.899 | J107: -1043616.899
A108: Loyers | C108: ='Comptes de résultat 6 ans'!G27*(1+Pilotage!$D$14) -> 0 | D108: ='Comptes de résultat 6 ans'!H27*(1+Pilotage!$D$14) -> 0 | E108: ='Comptes de résultat 6 ans'!I27*(1+Pilotage!$D$14) -> 0 | F108: ='Comptes de résultat 6 ans'!J27*(1+Pilotage!$D$14) -> 0 | G108: ='Comptes de résultat 6 ans'!K27*(1+Pilotage!$D$14) -> 0 | H108: ='Comptes de résultat 6 ans'!L27*(1+Pilotage!$D$14) -> 0 | I108: 0 | J108: 0
A109: Licences (Licences) | C109: ='Comptes de résultat 6 ans'!G56*(1+Pilotage!$D$14) -> 229.58262 | D109: ='Comptes de résultat 6 ans'!H56*(1+Pilotage!$D$14) -> 229.58262 | E109: ='Comptes de résultat 6 ans'!I56*(1+Pilotage!$D$14) -> 229.58262 | F109: ='Comptes de résultat 6 ans'!J56*(1+Pilotage!$D$14) -> 229.58262 | G109: ='Comptes de résultat 6 ans'!K56*(1+Pilotage!$D$14) -> 229.58262 | H109: ='Comptes de résultat 6 ans'!L56*(1+Pilotage!$D$14) -> 229.58262 | I109: 1377.49572 | J109: =0-I109 -> -1377.49572
A110: Assurances, … (Charges) | C110: ='Comptes de résultat 6 ans'!G34*(1+Pilotage!$D$14) -> 43074.6 | D110: ='Comptes de résultat 6 ans'!H34*(1+Pilotage!$D$14) -> 44366.838 | E110: ='Comptes de résultat 6 ans'!I34*(1+Pilotage!$D$14) -> 45697.84314 | F110: ='Comptes de résultat 6 ans'!J34*(1+Pilotage!$D$14) -> 47068.77843 | G110: ='Comptes de résultat 6 ans'!K34*(1+Pilotage!$D$14) -> 48480.84179 | H110: ='Comptes de résultat 6 ans'!L34*(1+Pilotage!$D$14) -> 49935.26704 | I110: 278624.1684 | J110: =0-I110 -> -278624.1684
A111: Taxes
A112: Impôts sur les bénéfices | C112: ='Comptes de résultat 6 ans'!G87 -> 0 | D112: ='Comptes de résultat 6 ans'!H87 -> 314.974812 | E112: ='Comptes de résultat 6 ans'!I87 -> 60681.85129 | F112: ='Comptes de résultat 6 ans'!J87 -> 196870.4473 | G112: ='Comptes de résultat 6 ans'!K87 -> 194702.8444 | H112: ='Comptes de résultat 6 ans'!L87 -> 220148.7122 | I112: 672718.8299 | J112: -672718.8299
A113: Garanties sur loyer | C113: ='Plan financier initial'!E22 -> 0 | D113: 0 | E113: 0 | F113: 0 | G113: 0 | H113: 0 | I113: 0 | J113: 0
A114: Garanties professionnelles | C114: ='Plan financier initial'!E23 -> 0 | D114: =$C114*D113 -> 0 | E114: =$C114*E113 -> 0 | F114: =$C114*F113 -> 0 | G114: =$C114*G113 -> 0 | H114: =$C114*H113 -> 0 | I114: 0 | J114: 0
A115: Remboursements d'emprunts | C115: =Emprunt!$C12*Emprunt!$C8 -> 0 | D115: =Emprunt!$C12*Emprunt!$C8 -> 0 | E115: =Emprunt!$C12*Emprunt!$C8 -> 0 | F115: =Emprunt!$C12*Emprunt!$C8 -> 0 | G115: =Emprunt!$C12*Emprunt!$C8 -> 0 | H115: =Emprunt!$C12*Emprunt!$C8 -> 0 | I115: 0 | J115: 0
A116: Remboursements prêts d'honneur | C116: ='Prêts honneur'!$C8*'Prêts honneur'!$C12 -> 0 | D116: ='Prêts honneur'!$C8*'Prêts honneur'!$C12 -> 0 | E116: ='Prêts honneur'!$C8*'Prêts honneur'!$C12 -> 0 | F116: ='Prêts honneur'!$C8*'Prêts honneur'!$C12 -> 0 | G116: ='Prêts honneur'!$C8*'Prêts honneur'!$C12 -> 0 | H116: 0 | I116: =SUM(C116:H116) -> 0 | J116: =0-I116 -> 0
A117: Remboursements PCE | C117: =PCE!$C8*PCE!$C12 -> 0 | D117: =PCE!$C8*PCE!$C12 -> 0 | E117: =PCE!$C8*PCE!$C12 -> 0 | F117: =PCE!$C8*PCE!$C12 -> 0 | G117: =PCE!$C8*PCE!$C12 -> 0 | H117: 0 | I117: =SUM(C117:H117) -> 0 | J117: =0-I117 -> 0
A118: Crédit-bail | C118: ='Credit-bail'!$C8*'Credit-bail'!$C12 -> 0 | D118: ='Credit-bail'!$C8*'Credit-bail'!$C12 -> 0 | E118: ='Credit-bail'!$C8*'Credit-bail'!$C12 -> 0 | F118: ='Credit-bail'!$C8*'Credit-bail'!$C12 -> 0 | G118: ='Credit-bail'!$C8*'Credit-bail'!$C12 -> 0 | H118: 0 | I118: =SUM(C118:H118) -> 0 | J118: =0-I118 -> 0
C119: =SUM(C94:C100,C105:C106)-SUM(C101:C104,C107:C118) -> -86619.60662 | D119: 38329.47385 | E119: 226360.8183 | F119: 577984.3899 | G119: 573572.5254 | H119: 641189.8062 | J119: =SUM(J94:J118) -> 1970817.407
A121: TVA à décaisser | C121: =(SUM(C101:C104,C108:C110))*Pilotage!$D14 -> 10957.87652 | D121: =(SUM(D101:D104,D108:D109))*Pilotage!$D14 -> 45.916524 | E121: =(SUM(E101:E104,E108:E109))*Pilotage!$D14 -> 45.916524 | F121: =(SUM(F101:F104,F108:F109))*Pilotage!$D14 -> 45.916524 | G121: =(SUM(G101:G104,G108:G109))*Pilotage!$D14 -> 45.916524 | H121: =(SUM(H101:H104,H108:H109))*Pilotage!$D14 -> 45.916524
A122: TVA à encaisser | C122: =SUM(C105:C106)*Pilotage!$D14 -> 24960 | D122: =SUM(D105:D106)*Pilotage!$D14 -> 49920 | E122: =SUM(E105:E106)*Pilotage!$D14 -> 99840 | F122: =SUM(F105:F106)*Pilotage!$D14 -> 199680 | G122: =SUM(G105:G106)*Pilotage!$D14 -> 199680 | H122: =SUM(H105:H106)*Pilotage!$D14 -> 219648
A123: Total TVA | C123: =C121-C122 -> -14002.12348 | D123: -49874.08348 | E123: -99794.08348 | F123: -199634.0835 | G123: -199634.0835 | H123: -219602.0835
A125: Total après impôts | C125: =C119+C123 -> -100621.7301 | D125: -11544.60963 | E125: 126566.7348 | F125: 378350.3064 | G125: 373938.4419 | H125: 421587.7227

Sheet DAT (hidden)
B2: Calculs des amortissements
C4: Année 0 | D4: Année 1 | E4: Année 2 | F4: Année 3 | G4: Année 4 | H4: Année 5 | I4: Année 6 | J4: Année 7 | K4: Année 8 | L4: Année 9 | M4: Année 10 | N4: Année 11 | O4: Année 12
C5: Total DAT | D5: Total DAT | E5: Total DAT | F5: Total DAT | G5: Total DAT | H5: Total DAT | I5: Total DAT | J5: Total DAT | K5: Total DAT | L5: Total DAT | M5: Total DAT | N5: Total DAT | O5: Total DAT
C6: =SUM(C8:C12) -> 0 | D6: =SUM(D8:D12) -> 2.35335 | E6: 2.35335 | F6: 0 | G6: 0 | H6: 0 | I6: 0 | J6: 0 | K6: 0 | L6: 0 | M6: 0 | N6: 0 | O6: 0
B8: Matériel | C8: =Matériel!AG4 -> 0 | D8: =Matériel!AH4 -> 0 | E8: =Matériel!AI4 -> 0 | F8: =Matériel!AJ4 -> 0 | G8: =Matériel!AK4 -> 0 | H8: =Matériel!AL4 -> 0 | I8: =Matériel!AM4 -> 0 | J8: =Matériel!AN4 -> 0 | K8: =Matériel!AO4 -> 0 | L8: =Matériel!AP4 -> 0 | M8: =Matériel!AQ4 -> 0 | N8: =Matériel!AR4 -> 0 | O8: =Matériel!AS4 -> 0
B9: Travaux | C9: =Travaux!AG4 -> 0 | D9: =Travaux!AH4 -> 0 | E9: =Travaux!AI4 -> 0 | F9: =Travaux!AJ4 -> 0 | G9: =Travaux!AK4 -> 0 | H9: =Travaux!AL4 -> 0 | I9: =Travaux!AM4 -> 0 | J9: =Travaux!AN4 -> 0 | K9: =Travaux!AO4 -> 0 | L9: =Travaux!AP4 -> 0 | M9: =Travaux!AQ4 -> 0 | N9: =Travaux!AR4 -> 0 | O9: =Travaux!AS4 -> 0
B10: Charges | C10: =Loyers!AG4 -> 0 | D10: =Loyers!AH4 -> 0 | E10: =Loyers!AI4 -> 0 | F10: =Loyers!AJ4 -> 0 | G10: =Loyers!AK4 -> 0 | H10: =Loyers!AL4 -> 0 | I10: =Loyers!AM4 -> 0 | J10: =Loyers!AN4 -> 0 | K10: =Loyers!AO4 -> 0 | L10: =Loyers!AP4 -> 0 | M10: =Loyers!AQ4 -> 0 | N10: =Loyers!AR4 -> 0 | O10: =Loyers!AS4 -> 0
B11: Licences | C11: =Licences!AG4 -> 0 | D11: =Licences!AH4 -> 2.35335 | E11: =Licences!AI4 -> 2.35335 | F11: =Licences!AJ4 -> 0 | G11: =Licences!AK4 -> 0 | H11: =Licences!AL4 -> 0 | I11: =Licences!AM4 -> 0 | J11: =Licences!AN4 -> 0 | K11: =Licences!AO4 -> 0 | L11: =Licences!AP4 -> 0 | M11: =Licences!AQ4 -> 0 | N11: =Licences!AR4 -> 0 | O11: =Licences!AS4 -> 0
B12: Consommables | C12: =Consommables!AG4 -> 0 | D12: =Consommables!AH4 -> 0 | E12: =Consommables!AI4 -> 0 | F12: =Consommables!AJ4 -> 0 | G12: =Consommables!AK4 -> 0 | H12: =Consommables!AL4 -> 0 | I12: =Consommables!AM4 -> 0 | J12: =Consommables!AN4 -> 0 | K12: =Consommables!AO4 -> 0 | L12: =Consommables!AP4 -> 0 | M12: =Consommables!AQ4 -> 0 | N12: =Consommables!AR4 -> 0 | O12: =Consommables!AS4 -> 0
B13: Installation | C13: =Installation!AG4 -> 0 | D13: =Installation!AH4 -> 688.3333333 | E13: =Installation!AI4 -> 688.3333333 | F13: =Installation!AJ4 -> 688.3333333 | G13: =Installation!AK4 -> 688.3333333 | H13: =Installation!AL4 -> 688.3333333 | I13: =Installation!AM4 -> 688.3333333 | J13: =Installation!AN4 -> 688.3333333 | K13: =Installation!AO4 -> 688.3333333 | L13: =Installation!AP4 -> 688.3333333 | M13: =Installation!AQ4 -> 688.3333333 | N13: =Installation!AR4 -> 0 | O13: =Installation!AS4 -> 0

Sheet Budget (hidden)
B2: SquaregoLab - FabLab Perpignan
B3: Budget prévisionnel 2015
B5: Dépenses | H5: Recettes
B6: Rubriques | E6: Mode de calcul | F6: Montant en € HT | H6: Sources | J6: Montant en € HT | K6: Acquis (a) Encours (e) | L6: %
B7: Dépense d'investissement | H7: Ressources locales
D8: Achat de matérial | E8: Achat des machines du FabLab | F8: ='Plan de financement à 6 ans'!E20+Matériel!#REF! ->  | I8: Participation des bénéficiaires
D9: Travaux d'installation | F9: ='Plan de financement à 6 ans'!E18 -> 0 | I9: Association locale
I10: Collectivité locale
B11: Dépenses de fonctionnement
C12: Achats | H12: Ressources propres
D13: Achat de marchandise | E13: Matières premières | F13: ='Comptes de résultat 6 ans'!G8 -> 0 | I13: Fonds propres | J13: ='Plan de financement à 6 ans'!$N$8 -> 10000 | K13: e | L13: =J13/J$28 -> 0.07655001338
D14: Achat de fourniture et consommable | E14: pour les machines | F14: ='Comptes de résultat 6 ans'!G12 -> 0 | I14: Dons | J14: ='Plan de financement à 6 ans'!$N$18 -> 0 | K14: e | L14: =J14/J$28 -> 0
C15: Services extérieurs | I15: Recettes activité | J15: =('Comptes de résultat 6 ans'!$R$6)*0.66-321.02 -> 68318.98 | K15: e | L15: =J15/J$28 -> 0.5229818833
D16: Locations immobilières et mobilières, | E16: Loyers local | F16: ='Comptes de résultat 6 ans'!G27 -> 0
C17: Autres services extérieurs | F17: ='Comptes de résultat 6 ans'!$G$33 -> 35895.5 | H17: Subventions publiques
D18: Frais extérieurs, publicité, déplacements, … | I18: Commune
D19: Honoraires et rémunérations d’intermédiaires, | I19: Conseil général
D20: Publicité, relations publiques, | I20: Région
D21: Transports de biens et transports du personnel, | I21: Ministère
D22: Déplacements, missions, réceptions,
D23: Frais postaux et de télécommunications, | H23: Ressources privées
D24: Services bancaires. | I24: Fondation orange | J24: 52314.57 | K24: e | L24: =J24/J$28 -> 0.4004681033
I25: Mécénat | J25: ='Plan de financement à 6 ans'!N20 -> 0 | K25: e | L25: =J25/J$28 -> 0
C26: Charges de personnel | E26: 0,5 ETP FabManager | F26: ='Comptes de résultat 6 ans'!$G$50 -> 161630.224 | I26: Associations
B28: Total des dépenses | F28: =SUM(F8:F27) ->  | H28: Total des recettes | J28: =SUM(J7:J26) -> 130633.55 | L28: =SUM(L7:L26) -> 1

Sheet Activités (hidden)
C3: Planning de charge
F5: FabLab | J5: FabCafé | N5: Boutiques | R5: Coworking | V5: Contrôles
C6: h/an | D6: €/h | E6: etp | F6: ratio | G6: h | H6: €/etp | I6: € | J6: =F6 -> ratio | K6: =G6 -> h | L6: €/etp | M6: =I6 -> € | N6: =J6 -> ratio | O6: =K6 -> h | P6: €/etp | Q6: =M6 -> € | R6: =N6 -> ratio | S6: =O6 -> h | T6: €/etp | U6: =Q6 -> €
B7: =Pilotage!C59 -> Associé | C7: =Salaires!G8-Salaires!H8 -> 1645 | D7: =Salaires!V8 -> 26.64699088 | E7: =Pilotage!F59 -> 2 | F7: 0.96 | G7: =F7*$C7 -> 1579.2 | H7: =G7*$D7 -> 42080.928 | I7: =H7*$E7 -> 84161.856 | J7: 0.02 | K7: =J7*$C7 -> 32.9 | L7: =K7*$D7 -> 876.686 | M7: =L7*$E7 -> 1753.372 | N7: 0.02 | O7: =N7*$C7 -> 32.9 | P7: =O7*$D7 -> 876.686 | Q7: =P7*$E7 -> 1753.372 | R7: 0 | S7: =R7*$C7 -> 0 | T7: =S7*$D7 -> 0 | U7: =T7*$E7 -> 0 | V7: =G7+K7+O7+S7 -> 1645 | W7: =V7/C7 -> 1 | X7: =U7+Q7+M7+I7 -> 87668.6
B8: =Pilotage!C60 -> Community manager | C8: =Salaires!G9-Salaires!H9 -> 1645 | D8: =Salaires!V9 -> 23.5223003 | E8: =Pilotage!F60 -> 1 | F8: 0.8 | G8: 1316 | H8: 30955.3472 | I8: 30955.3472 | J8: 0.05 | K8: 82.25 | L8: 1934.7092 | M8: 1934.7092 | N8: 0.1 | O8: 164.5 | P8: 3869.4184 | Q8: 3869.4184 | R8: 0.05 | S8: 82.25 | T8: 1934.7092 | U8: 1934.7092 | V8: 1645 | W8: 1 | X8: =U8+Q8+M8+I8 -> 38694.184
B9: =Pilotage!C61 -> Developpeur | C9: =Salaires!G10-Salaires!H10 -> 1645 | D9: =Salaires!V10 -> 21.43917325 | E9: =Pilotage!F61 -> 1 | F9: 0.53 | G9: 871.85 | H9: 18691.7432 | I9: 18691.7432 | J9: 0.23 | K9: 378.35 | L9: 8111.5112 | M9: 8111.5112 | N9: 0.23 | O9: 378.35 | P9: 8111.5112 | Q9: 8111.5112 | R9: 0.01 | S9: 16.45 | T9: 352.6744 | U9: 352.6744 | V9: 1645 | W9: 1 | X9: 35267.44
B10: =Pilotage!C62 -> administrateur | C10: =Salaires!G11-Salaires!H11 -> 1645 | D10: =Salaires!V11 -> 21.43917325 | E10: =Pilotage!F62 -> 0 | F10: 0.75 | G10: 1233.75 | H10: 26450.58 | I10: 0 | J10: 0.05 | K10: 82.25 | L10: 1763.372 | M10: 0 | N10: 0.15 | O10: 246.75 | P10: 5290.116 | Q10: 0 | R10: 0.05 | S10: 82.25 | T10: 1763.372 | U10: 0 | V10: 1645 | W10: 1 | X10: 0
B11: =Pilotage!C63 -> Salarié 5 | C11: =Salaires!G12-Salaires!H12 -> 1645 | D11: =Salaires!V12 -> 19.3560462 | E11: =Pilotage!F63 -> 0 | F11: 0.8 | G11: 1316 | H11: 25472.5568 | I11: 0 | J11: 0.05 | K11: 82.25 | L11: 1592.0348 | M11: 0 | N11: 0.1 | O11: 164.5 | P11: 3184.0696 | Q11: 0 | R11: 0.05 | S11: 82.25 | T11: 1592.0348 | U11: 0 | V11: 1645 | W11: 1 | X11: 0
B12: =Pilotage!C64 -> Salarié 6 | C12: =Salaires!G13-Salaires!H13 -> 1645 | D12: =Salaires!V13 -> 15.66248834 | E12: =Pilotage!F64 -> 0 | F12: 0.25 | G12: 411.25 | H12: 6441.198331 | I12: 0 | J12: 0.25 | K12: 411.25 | L12: 6441.198331 | M12: 0 | N12: 0.25 | O12: 411.25 | P12: 6441.198331 | Q12: 0 | R12: 0.25 | S12: 411.25 | T12: 6441.198331 | U12: 0 | V12: 1645 | W12: 1 | X12: 0
B13: =Pilotage!C65 -> Stagiaire | C13: =Salaires!G14-Salaires!H14 -> 1645 | D13: =Salaires!V14 -> 4.11812766 | E13: =Pilotage!F65 -> 0 | F13: 0.75 | G13: =F13*$C13 -> 1233.75 | H13: =G13*$D13 -> 5080.74 | I13: =H13*$E13 -> 0 | J13: 0.05 | K13: 82.25 | L13: =K13*$D13 -> 338.716 | M13: 0 | N13: 0.15 | O13: 246.75 | P13: =O13*$D13 -> 1016.148 | Q13: 0 | R13: 0.05 | S13: =R13*$C13 -> 82.25 | T13: =S13*$D13 -> 338.716 | U13: 0 | V13: 1645 | W13: 1 | X13: 0
B15: Total salaire sur activité | C15: =Salaires!T16 -> 161630.224 | I15: =SUM(I7:I13) -> 133808.9464 | M15: =SUM(M7:M13) -> 11799.5924 | Q15: =SUM(Q7:Q13) -> 13734.3016 | U15: =SUM(U7:U13) -> 2287.3836 | V15: =SUM(U15,Q15,M15,I15) -> 161630.224 | W15: =C15-V15 -> 0
B16: Clé par masse salariale | C16: 1 | I16: =I15/$V15 -> 0.827870822 | M16: =M15/$V15 -> 0.07300362586 | Q16: =Q15/$V15 -> 0.08497359751 | U16: =U15/$V15 -> 0.01415195465 | V16: =SUM(U16,Q16,M16,I16) -> 1
B17: CA par activité | I17: =Synthèse!U7 ->  | M17: =Synthèse!V7 ->  | Q17: =Synthèse!W7 ->  | U17: =Synthèse!X7 -> 
B18: Clé par CA | I18: =I17/SUM(M17,I17,Q17,U17) ->  | M18: =M17/SUM(I17,M17,Q17,U17) ->  | Q18: =Q17/SUM(I17,M17,Q17,U17) ->  | U18: =U17/SUM(I17,M17,Q17,U17) ->  | V18: =SUM(U18,Q18,M18,I18) -> 
B19: Clé utilisée | I19: =AVERAGE(I18,I16) ->  | M19: =AVERAGE(M18,M16) ->  | Q19: =AVERAGE(Q18,Q16) ->  | U19: =AVERAGE(U18,U16) ->  | V19: =SUM(U19,Q19,M19,I19) -> 
B21: Résultats | I21: =F5 -> FabLab | M21: =J5 -> FabCafé | Q21: =N5 -> Boutiques | U21: =R5 -> Coworking
B22: Charges par activité | I22: =Synthèse!G82 ->  | M22: =Synthèse!H82 ->  | Q22: =Synthèse!I82 ->  | U22: =Synthèse!J82 -> 
B23: Résultat par activité | I23: =Synthèse!U82-Synthèse!G82 ->  | M23: =Synthèse!V82-Synthèse!H82 ->  | Q23: =Synthèse!W82-Synthèse!I82 ->  | U23: =Synthèse!X82-Synthèse!J82 -> 

Sheet Synthèse (hidden)
B2: Comptes de résultat par activité
B4: Charges | P4: Produits
G5: FabLab | H5: FabCafé | I5: Boutiques | J5: Coworking | L5: Total | M5: Compte de résultat | N5: Contrôles | U5: =G5 -> FabLab | V5: =H5 -> FabCafé | W5: =I5 -> Boutiques | X5: =J5 -> Coworking | Z5: =L5 -> Total | AA5: =M5 -> Compte de résultat | AB5: =N5 -> Contrôles
G6: =IF(FabLab!G7<>"",FabLab!G7,"") -> Année 0 | H6: =IF(FabCafé!G7<>"",FabCafé!G7,"") -> Année 0 | I6: =IF(Boutiques!G7<>"",Boutiques!G7,"") -> Année 0 | J6: =IF(Coworking!G7<>"",Coworking!G7,"") -> Année 0 | M6: ='Comptes de résultat A0'!G5 -> Année 0 | U6: =IF(FabLab!M7<>"",FabLab!M7,"") -> Année 0 | V6: =IF(FabCafé!M7<>"",FabCafé!M7,"") -> Année 0 | W6: =IF(Boutiques!M7<>"",Boutiques!M7,"") -> Année 0 | X6: =IF(Coworking!M7<>"",Coworking!M7,"") -> Année 0 | AA6: ='Comptes de résultat A0'!M5 -> Année 0
C7: Achats | G7: =IF(FabLab!G8<>"",FabLab!G8,"") ->  | H7: =IF(FabCafé!G8<>"",FabCafé!G8,"") ->  | I7: =IF(Boutiques!G8<>"",Boutiques!G8,"") ->  | J7: =IF(Coworking!G8<>"",Coworking!G8,"") ->  | L7: =IF(SUM(G7:J7)<>0,SUM(G7:J7),"") ->  | M7: ='Comptes de résultat A0'!G6 -> 0 | N7: =M7-L7 ->  | Q7: Ventes. | U7: =IF(FabLab!M8<>"",FabLab!M8,"") ->  | V7: =IF(FabCafé!M8<>"",FabCafé!M8,"") ->  | W7: =IF(Boutiques!M8<>"",Boutiques!M8,"") ->  | X7: =IF(Coworking!M8<>"",Coworking!M8,"") ->  | Z7: =IF(SUM(U7:X7)<>0,SUM(U7:X7),0) ->  | AA7: ='Comptes de résultat A0'!M6 ->  | AB7: =AA7-Z7 -> 
D8: Achats stockés : | G8: =IF(FabLab!G9<>"",FabLab!G9,"") ->  | H8: =IF(FabCafé!G9<>"",FabCafé!G9,"") ->  | I8: =IF(Boutiques!G9<>"",Boutiques!G9,"") ->  | J8: =IF(Coworking!G9<>"",Coworking!G9,"") ->  | L8: =SUM(G8:J8) ->  | M8: ='Comptes de résultat A0'!G7 -> 0 | N8: =ROUND(M8-L8,2) ->  | R8: Ventes de produits finis | U8: =IF(FabLab!M9<>"",FabLab!M9,"") ->  | V8: =IF(FabCafé!M9<>"",FabCafé!M9,"") ->  | W8: =IF(Boutiques!M9<>"",Boutiques!M9,"") ->  | X8: =IF(Coworking!M9<>"",Coworking!M9,"") ->  | Z8: =IF(SUM(U8:X8)<>0,SUM(U8:X8),0) ->  | AA8: ='Comptes de résultat A0'!M7 ->  | AB8: =AA8-Z8 -> 
E9: Achats de marchandises, | G9: =IF(FabLab!G10<>"",FabLab!G10,"") ->  | H9: =IF(FabCafé!G10<>"",FabCafé!G10,"") ->  | I9: =IF(Boutiques!G10<>"",Boutiques!G10,"") ->  | J9: =IF(Coworking!G10<>"",Coworking!G10,"") ->  | M9: ='Comptes de résultat A0'!G8 -> 0 | N9: =ROUND(M9-L9,2) ->  | R9: Ventes de matières premières | U9: =IF(FabLab!M10<>"",FabLab!M10,"") -> 0 | V9: =IF(FabCafé!M10<>"",FabCafé!M10,"") ->  | W9: =IF(Boutiques!M10<>"",Boutiques!M10,"") ->  | X9: =IF(Coworking!M10<>"",Coworking!M10,"") -> 0 | Z9: =IF(SUM(U9:X9)<>0,SUM(U9:X9),0) ->  | AA9: ='Comptes de résultat A0'!M8 -> 104000 | AB9: =AA9-Z9 -> 
E10: Achats de matières premières, | G10: =IF(FabLab!G11<>"",FabLab!G11,"") ->  | H10: =IF(FabCafé!G11<>"",FabCafé!G11,"") ->  | I10: =IF(Boutiques!G11<>"",Boutiques!G11,"") ->  | J10: =IF(Coworking!G11<>"",Coworking!G11,"") ->  | L10: 0 | M10: ='Comptes de résultat A0'!G9 -> 0 | N10: 0
E11: Achats d’emballages, | G11: =IF(FabLab!G12<>"",FabLab!G12,"") ->  | H11: =IF(FabCafé!G12<>"",FabCafé!G12,"") ->  | I11: =IF(Boutiques!G12<>"",Boutiques!G12,"") ->  | J11: =IF(Coworking!G12<>"",Coworking!G12,"") ->  | L11: 0 | M11: ='Comptes de résultat A0'!G10 -> 0 | N11: 0
E12: Achats de fournitures consommables : | G12: =IF(FabLab!G13<>"",FabLab!G13,"") ->  | H12: =IF(FabCafé!G13<>"",FabCafé!G13,"") ->  | I12: =IF(Boutiques!G13<>"",Boutiques!G13,"") ->  | J12: =IF(Coworking!G13<>"",Coworking!G13,"") ->  | M12: ='Comptes de résultat A0'!G11 -> 0 | R12: Prestations de services | U12: =IF(FabLab!M13<>"",FabLab!M13,"") -> 0 | V12: =IF(FabCafé!M13<>"",FabCafé!M13,"") -> 0 | W12: =IF(Boutiques!M13<>"",Boutiques!M13,"") -> 0 | X12: =IF(Coworking!M13<>"",Coworking!M13,"") -> 0 | Z12: =IF(SUM(U12:X12)<>0,SUM(U12:X12),0) -> 0 | AA12: ='Comptes de résultat A0'!M11 -> 0 | AB12: =AA12-Z12 -> 0
E13: Achats d’études, équipements, travaux. | G13: =IF(FabLab!G14<>"",FabLab!G14,"") -> 0 | H13: =IF(FabCafé!G14<>"",FabCafé!G14,"") -> 0 | I13: =IF(Boutiques!G14<>"",Boutiques!G14,"") -> 0 | J13: =IF(Coworking!G14<>"",Coworking!G14,"") -> 0 | L13: 0 | M13: ='Comptes de résultat A0'!G12 -> 0 | N13: 0 | R13: Produits et activités annexes | U13: =IF(FabLab!M14<>"",FabLab!M14,"") -> 0 | V13: =IF(FabCafé!M14<>"",FabCafé!M14,"") -> 0 | W13: =IF(Boutiques!M14<>"",Boutiques!M14,"") -> 0 | X13: =IF(Coworking!M14<>"",Coworking!M14,"") -> 0 | Z13: =IF(SUM(U13:X13)<>0,SUM(U13:X13),0) -> 0 | AA13: ='Comptes de résultat A0'!M12 -> 0 | AB13: =AA13-Z13 -> 0
D14: Achats non stockés : | G14: =IF(FabLab!G15<>"",FabLab!G15,"") -> 0 | H14: =IF(FabCafé!G15<>"",FabCafé!G15,"") -> 0 | I14: =IF(Boutiques!G15<>"",Boutiques!G15,"") -> 0 | J14: =IF(Coworking!G15<>"",Coworking!G15,"") -> 0 | L14: 0 | M14: ='Comptes de résultat A0'!G13 -> 0 | N14: 0 | S14: Locations | U14: =IF(FabLab!M15<>"",FabLab!M15,"") -> 0 | V14: =IF(FabCafé!M15<>"",FabCafé!M15,"") -> 0 | W14: =IF(Boutiques!M15<>"",Boutiques!M15,"") -> 0 | X14: =IF(Coworking!M15<>"",Coworking!M15,"") -> 0 | Z14: =IF(SUM(U14:X14)<>0,SUM(U14:X14),0) -> 0 | AA14: ='Comptes de résultat A0'!M13 -> 0 | AB14: =AA14-Z14 -> 0
E15: Eau, | G15: =IF(FabLab!G16<>"",FabLab!G16,"") ->  | H15: =IF(FabCafé!G16<>"",FabCafé!G16,"") ->  | I15: =IF(Boutiques!G16<>"",Boutiques!G16,"") ->  | J15: =IF(Coworking!G16<>"",Coworking!G16,"") ->  | L15: 0 | M15: ='Comptes de résultat A0'!G14 -> 0 | N15: 0
E16: Energie, | G16: =IF(FabLab!G17<>"",FabLab!G17,"") ->  | H16: =IF(FabCafé!G17<>"",FabCafé!G17,"") ->  | I16: =IF(Boutiques!G17<>"",Boutiques!G17,"") ->  | J16: =IF(Coworking!G17<>"",Coworking!G17,"") ->  | L16: 0 | M16: ='Comptes de résultat A0'!G15 -> 0 | N16: 0
E17: Carburant, | G17: =IF(FabLab!G18<>"",FabLab!G18,"") ->  | H17: =IF(FabCafé!G18<>"",FabCafé!G18,"") ->  | I17: =IF(Boutiques!G18<>"",Boutiques!G18,"") ->  | J17: =IF(Coworking!G18<>"",Coworking!G18,"") ->  | L17: 0 | M17: ='Comptes de résultat A0'!G16 -> 0 | N17: 0
E18: Fournitures administratives, | G18: =IF(FabLab!G19<>"",FabLab!G19,"") ->  | H18: =IF(FabCafé!G19<>"",FabCafé!G19,"") ->  | I18: =IF(Boutiques!G19<>"",Boutiques!G19,"") ->  | J18: =IF(Coworking!G19<>"",Coworking!G19,"") ->  | L18: 0 | M18: ='Comptes de résultat A0'!G17 -> 0 | N18: 0
E19: Fournitures d’entretien, petit équipement. | G19: =IF(FabLab!G20<>"",FabLab!G20,"") ->  | H19: =IF(FabCafé!G20<>"",FabCafé!G20,"") ->  | I19: =IF(Boutiques!G20<>"",Boutiques!G20,"") ->  | J19: =IF(Coworking!G20<>"",Coworking!G20,"") ->  | L19: 0 | M19: ='Comptes de résultat A0'!G18 -> 0 | N19: 0
N20: 0 | S20: Abonnements | U20: =IF(FabLab!M21<>"",FabLab!M21,"") -> 0 | V20: =IF(FabCafé!M21<>"",FabCafé!M21,"") -> 0 | W20: =IF(Boutiques!M21<>"",Boutiques!M21,"") -> 0 | X20: =IF(Coworking!M21<>"",Coworking!M21,"") -> 0 | Z20: =IF(SUM(U20:X20)<>0,SUM(U20:X20),0) -> 0 | AA20: ='Comptes de résultat A0'!M19 -> 0 | AB20: =AA20-Z20 -> 0
N21: 0
N22: 0
N23: 0
N24: 0
N25: 0
C26: Services extérieurs. | G26: =IF(FabLab!G27<>"",FabLab!G27,"") ->  | H26: =IF(FabCafé!G27<>"",FabCafé!G27,"") ->  | I26: =IF(Boutiques!G27<>"",Boutiques!G27,"") ->  | J26: =IF(Coworking!G27<>"",Coworking!G27,"") ->  | M26: ='Comptes de résultat A0'!G25 -> 0
D27: Locations immobilières et mobilières, | G27: =IF(FabLab!G28<>"",FabLab!G28,"") ->  | H27: =IF(FabCafé!G28<>"",FabCafé!G28,"") ->  | I27: =IF(Boutiques!G28<>"",Boutiques!G28,"") ->  | J27: =IF(Coworking!G28<>"",Coworking!G28,"") ->  | M27: ='Comptes de résultat A0'!G26 -> 0
D28: Redevances de crédit bail, | G28: =IF(FabLab!G29<>"",FabLab!G29,"") -> 0 | H28: =IF(FabCafé!G29<>"",FabCafé!G29,"") ->  | I28: =IF(Boutiques!G29<>"",Boutiques!G29,"") ->  | J28: =IF(Coworking!G29<>"",Coworking!G29,"") ->  | L28: 0 | M28: ='Comptes de résultat A0'!G27 -> 0 | N28: 0
D29: Charges locatives et de copropriété, | G29: =IF(FabLab!G30<>"",FabLab!G30,"") ->  | H29: =IF(FabCafé!G30<>"",FabCafé!G30,"") ->  | I29: =IF(Boutiques!G30<>"",Boutiques!G30,"") ->  | J29: =IF(Coworking!G30<>"",Coworking!G30,"") ->  | L29: 0 | M29: ='Comptes de résultat A0'!G28 -> 0 | N29: 0
D30: Entretien et réparations, | G30: =IF(FabLab!G31<>"",FabLab!G31,"") ->  | H30: =IF(FabCafé!G31<>"",FabCafé!G31,"") ->  | I30: =IF(Boutiques!G31<>"",Boutiques!G31,"") ->  | J30: =IF(Coworking!G31<>"",Coworking!G31,"") ->  | L30: 0 | M30: ='Comptes de résultat A0'!G29 -> 0 | N30: 0
D31: Assurances, | G31: =IF(FabLab!G32<>"",FabLab!G32,"") ->  | H31: =IF(FabCafé!G32<>"",FabCafé!G32,"") ->  | I31: =IF(Boutiques!G32<>"",Boutiques!G32,"") ->  | J31: =IF(Coworking!G32<>"",Coworking!G32,"") ->  | L31: 0 | M31: ='Comptes de résultat A0'!G30 -> 0 | N31: 0
D32: Etudes et recherches. | G32: =IF(FabLab!G33<>"",FabLab!G33,"") ->  | H32: =IF(FabCafé!G33<>"",FabCafé!G33,"") ->  | I32: =IF(Boutiques!G33<>"",Boutiques!G33,"") ->  | J32: =IF(Coworking!G33<>"",Coworking!G33,"") ->  | L32: 0 | M32: ='Comptes de résultat A0'!G31 -> 0 | N32: 0
C33: Autres services extérieurs. | G33: =IF(FabLab!G34<>"",FabLab!G34,"") ->  | H33: =IF(FabCafé!G34<>"",FabCafé!G34,"") ->  | I33: =IF(Boutiques!G34<>"",Boutiques!G34,"") ->  | J33: =IF(Coworking!G34<>"",Coworking!G34,"") ->  | M33: ='Comptes de résultat A0'!G32 -> 35895.5 | Q33: Autres produits de gestion courante. | U33: =IF(FabLab!M34<>"",FabLab!M34,"") -> 0 | V33: =IF(FabCafé!M34<>"",FabCafé!M34,"") -> 0 | W33: =IF(Boutiques!M34<>"",Boutiques!M34,"") -> 0 | X33: =IF(Coworking!M34<>"",Coworking!M34,"") -> 0 | Z33: =IF(SUM(U33:X33)<>0,SUM(U33:X33),0) -> 0 | AA33: ='Comptes de résultat A0'!M32 -> 0 | AB33: =AA33-Z33 -> 0
D34: Frais extérieurs, publicité, déplacements, … | G34: =IF(FabLab!G35<>"",FabLab!G35,"") ->  | H34: =IF(FabCafé!G35<>"",FabCafé!G35,"") ->  | I34: =IF(Boutiques!G35<>"",Boutiques!G35,"") ->  | J34: =IF(Coworking!G35<>"",Coworking!G35,"") ->  | M34: ='Comptes de résultat A0'!G33 -> 35895.5 | R34: Redevances reçues pour brevets, licences, marques, | U34: =IF(FabLab!M35<>"",FabLab!M35,"") ->  | V34: =IF(FabCafé!M35<>"",FabCafé!M35,"") ->  | W34: =IF(Boutiques!M35<>"",Boutiques!M35,"") ->  | X34: =IF(Coworking!M35<>"",Coworking!M35,"") ->  | Z34: =IF(SUM(U34:X34)<>0,SUM(U34:X34),0) -> 0 | AA34: ='Comptes de résultat A0'!M33 -> 0 | AB34: =AA34-Z34 -> 0
D35: Honoraires et rémunérations d’intermédiaires, | G35: =IF(FabLab!G36<>"",FabLab!G36,"") ->  | H35: =IF(FabCafé!G36<>"",FabCafé!G36,"") ->  | I35: =IF(Boutiques!G36<>"",Boutiques!G36,"") ->  | J35: =IF(Coworking!G36<>"",Coworking!G36,"") ->  | L35: 0 | M35: ='Comptes de résultat A0'!G34 -> 0 | N35: 0 | R35: Revenus des immeubles. | U35: =IF(FabLab!M36<>"",FabLab!M36,"") ->  | V35: =IF(FabCafé!M36<>"",FabCafé!M36,"") ->  | W35: =IF(Boutiques!M36<>"",Boutiques!M36,"") ->  | X35: =IF(Coworking!M36<>"",Coworking!M36,"") ->  | Z35: =IF(SUM(U35:X35)<>0,SUM(U35:X35),0) -> 0 | AA35: ='Comptes de résultat A0'!M34 -> 0 | AB35: =AA35-Z35 -> 0
D36: Publicité, relations publiques, | G36: =IF(FabLab!G37<>"",FabLab!G37,"") ->  | H36: =IF(FabCafé!G37<>"",FabCafé!G37,"") ->  | I36: =IF(Boutiques!G37<>"",Boutiques!G37,"") ->  | J36: =IF(Coworking!G37<>"",Coworking!G37,"") ->  | L36: 0 | M36: ='Comptes de résultat A0'!G35 -> 0 | N36: 0
D37: Transports de biens et transports du personnel, | G37: =IF(FabLab!G38<>"",FabLab!G38,"") ->  | H37: =IF(FabCafé!G38<>"",FabCafé!G38,"") ->  | I37: =IF(Boutiques!G38<>"",Boutiques!G38,"") ->  | J37: =IF(Coworking!G38<>"",Coworking!G38,"") ->  | L37: 0 | M37: ='Comptes de résultat A0'!G36 -> 0 | N37: 0
D38: Déplacements, missions, réceptions, | G38: =IF(FabLab!G39<>"",FabLab!G39,"") ->  | H38: =IF(FabCafé!G39<>"",FabCafé!G39,"") ->  | I38: =IF(Boutiques!G39<>"",Boutiques!G39,"") ->  | J38: =IF(Coworking!G39<>"",Coworking!G39,"") ->  | L38: 0 | M38: ='Comptes de résultat A0'!G37 -> 0 | N38: 0
D39: Frais postaux et de télécommunications, | G39: =IF(FabLab!G40<>"",FabLab!G40,"") ->  | H39: =IF(FabCafé!G40<>"",FabCafé!G40,"") ->  | I39: =IF(Boutiques!G40<>"",Boutiques!G40,"") ->  | J39: =IF(Coworking!G40<>"",Coworking!G40,"") ->  | L39: 0 | M39: ='Comptes de résultat A0'!G38 -> 0 | N39: 0
D40: Services bancaires. | G40: =IF(FabLab!G41<>"",FabLab!G41,"") ->  | H40: =IF(FabCafé!G41<>"",FabCafé!G41,"") ->  | I40: =IF(Boutiques!G41<>"",Boutiques!G41,"") ->  | J40: =IF(Coworking!G41<>"",Coworking!G41,"") ->  | L40: 0 | M40: ='Comptes de résultat A0'!G39 -> 0 | N40: 0
C41: Impôts, taxes et versements assimilés. | G41: =IF(FabLab!G42<>"",FabLab!G42,"") -> 0 | H41: =IF(FabCafé!G42<>"",FabCafé!G42,"") -> 0 | I41: =IF(Boutiques!G42<>"",Boutiques!G42,"") -> 0 | J41: =IF(Coworking!G42<>"",Coworking!G42,"") -> 0 | L41: 0 | M41: ='Comptes de résultat A0'!G40 -> 0 | N41: 0
D42: CET, | G42: =IF(FabLab!G43<>"",FabLab!G43,"") ->  | H42: =IF(FabCafé!G43<>"",FabCafé!G43,"") ->  | I42: =IF(Boutiques!G43<>"",Boutiques!G43,"") ->  | J42: =IF(Coworking!G43<>"",Coworking!G43,"") ->  | L42: 0 | M42: ='Comptes de résultat A0'!G41 -> 0 | N42: 0
D43: Taxe sur les salaires, | G43: =IF(FabLab!G44<>"",FabLab!G44,"") ->  | H43: =IF(FabCafé!G44<>"",FabCafé!G44,"") ->  | I43: =IF(Boutiques!G44<>"",Boutiques!G44,"") ->  | J43: =IF(Coworking!G44<>"",Coworking!G44,"") ->  | L43: 0 | M43: ='Comptes de résultat A0'!G42 -> 0 | N43: 0
D44: Taxe d’apprentissage, | G44: =IF(FabLab!G45<>"",FabLab!G45,"") ->  | H44: =IF(FabCafé!G45<>"",FabCafé!G45,"") ->  | I44: =IF(Boutiques!G45<>"",Boutiques!G45,"") ->  | J44: =IF(Coworking!G45<>"",Coworking!G45,"") ->  | L44: 0 | M44: ='Comptes de résultat A0'!G43 -> 0 | N44: 0
D45: Droits d’enregistrement, | G45: =IF(FabLab!G46<>"",FabLab!G46,"") ->  | H45: =IF(FabCafé!G46<>"",FabCafé!G46,"") ->  | I45: =IF(Boutiques!G46<>"",Boutiques!G46,"") ->  | J45: =IF(Coworking!G46<>"",Coworking!G46,"") ->  | L45: 0 | M45: ='Comptes de résultat A0'!G44 -> 0 | N45: 0
D46: Impôts locaux, | G46: =IF(FabLab!G47<>"",FabLab!G47,"") ->  | H46: =IF(FabCafé!G47<>"",FabCafé!G47,"") ->  | I46: =IF(Boutiques!G47<>"",Boutiques!G47,"") ->  | J46: =IF(Coworking!G47<>"",Coworking!G47,"") ->  | L46: =SUM(G46:J46) -> 0 | M46: ='Comptes de résultat A0'!G45 -> 0 | N46: 0
D47: Contribution à la formation continue, | G47: =IF(FabLab!G48<>"",FabLab!G48,"") ->  | H47: =IF(FabCafé!G48<>"",FabCafé!G48,"") ->  | I47: =IF(Boutiques!G48<>"",Boutiques!G48,"") ->  | J47: =IF(Coworking!G48<>"",Coworking!G48,"") ->  | L47: 0 | M47: ='Comptes de résultat A0'!G46 -> 0 | N47: 0
D48: Contribution sociale de solidarité, | G48: =IF(FabLab!G49<>"",FabLab!G49,"") ->  | H48: =IF(FabCafé!G49<>"",FabCafé!G49,"") ->  | I48: =IF(Boutiques!G49<>"",Boutiques!G49,"") ->  | J48: =IF(Coworking!G49<>"",Coworking!G49,"") ->  | L48: 0 | M48: ='Comptes de résultat A0'!G47 -> 0 | N48: 0
D49: Timbres fiscaux. | G49: =IF(FabLab!G50<>"",FabLab!G50,"") ->  | H49: =IF(FabCafé!G50<>"",FabCafé!G50,"") ->  | I49: =IF(Boutiques!G50<>"",Boutiques!G50,"") ->  | J49: =IF(Coworking!G50<>"",Coworking!G50,"") ->  | L49: 0 | M49: ='Comptes de résultat A0'!G48 -> 0 | N49: 0
C50: Charges de personnel. | G50: =IF(FabLab!G51<>"",FabLab!G51,"") -> 133808.9464 | H50: =IF(FabCafé!G51<>"",FabCafé!G51,"") -> 11799.5924 | I50: =IF(Boutiques!G51<>"",Boutiques!G51,"") -> 13734.3016 | J50: =IF(Coworking!G51<>"",Coworking!G51,"") -> 2287.3836 | L50: 161630.224 | M50: ='Comptes de résultat A0'!G49 -> 161630.224 | N50: 0
D51: Rémunérations, salaires, | G51: =IF(FabLab!G52<>"",FabLab!G52,"") -> 133808.9464 | H51: =IF(FabCafé!G52<>"",FabCafé!G52,"") -> 11799.5924 | I51: =IF(Boutiques!G52<>"",Boutiques!G52,"") -> 13734.3016 | J51: =IF(Coworking!G52<>"",Coworking!G52,"") -> 2287.3836 | L51: 161630.224 | M51: ='Comptes de résultat A0'!G50 -> 161630.224 | N51: 0
D52: Congés payés, | G52: =IF(FabLab!G53<>"",FabLab!G53,"") ->  | H52: =IF(FabCafé!G53<>"",FabCafé!G53,"") ->  | I52: =IF(Boutiques!G53<>"",Boutiques!G53,"") ->  | J52: =IF(Coworking!G53<>"",Coworking!G53,"") ->  | L52: 0 | M52: ='Comptes de résultat A0'!G51 -> 0 | N52: 0
D53: Primes, indemnités, | G53: =IF(FabLab!G54<>"",FabLab!G54,"") ->  | H53: =IF(FabCafé!G54<>"",FabCafé!G54,"") ->  | I53: =IF(Boutiques!G54<>"",Boutiques!G54,"") ->  | J53: =IF(Coworking!G54<>"",Coworking!G54,"") ->  | L53: 0 | M53: ='Comptes de résultat A0'!G52 -> 0 | N53: 0
D54: Charges sociales, | G54: =IF(FabLab!G55<>"",FabLab!G55,"") ->  | H54: =IF(FabCafé!G55<>"",FabCafé!G55,"") ->  | I54: =IF(Boutiques!G55<>"",Boutiques!G55,"") ->  | J54: =IF(Coworking!G55<>"",Coworking!G55,"") ->  | L54: 0 | M54: ='Comptes de résultat A0'!G53 -> 0 | N54: 0
D55: Œuvres sociales. | G55: =IF(FabLab!G56<>"",FabLab!G56,"") ->  | H55: =IF(FabCafé!G56<>"",FabCafé!G56,"") ->  | I55: =IF(Boutiques!G56<>"",Boutiques!G56,"") ->  | J55: =IF(Coworking!G56<>"",Coworking!G56,"") ->  | L55: 0 | M55: ='Comptes de résultat A0'!G54 -> 0 | N55: 0
C56: Autres charges de gestion courante. | G56: =IF(FabLab!G57<>"",FabLab!G57,"") ->  | H56: =IF(FabCafé!G57<>"",FabCafé!G57,"") ->  | I56: =IF(Boutiques!G57<>"",Boutiques!G57,"") ->  | J56: =IF(Coworking!G57<>"",Coworking!G57,"") ->  | M56: ='Comptes de résultat A0'!G55 -> 191.31885
D57: Redevances versées pour brevets, licences, marques, | G57: =IF(FabLab!G58<>"",FabLab!G58,"") ->  | H57: =IF(FabCafé!G58<>"",FabCafé!G58,"") ->  | I57: =IF(Boutiques!G58<>"",Boutiques!G58,"") ->  | J57: =IF(Coworking!G58<>"",Coworking!G58,"") ->  | M57: ='Comptes de résultat A0'!G56 -> 191.31885
D58: Pertes sur créances irrécouvrables, | G58: =IF(FabLab!G59<>"",FabLab!G59,"") ->  | H58: =IF(FabCafé!G59<>"",FabCafé!G59,"") ->  | I58: =IF(Boutiques!G59<>"",Boutiques!G59,"") ->  | J58: =IF(Coworking!G59<>"",Coworking!G59,"") ->  | L58: 0 | M58: ='Comptes de résultat A0'!G57 -> 0 | N58: 0
D59: Charges diverses. | G59: =IF(FabLab!G60<>"",FabLab!G60,"") ->  | H59: =IF(FabCafé!G60<>"",FabCafé!G60,"") ->  | I59: =IF(Boutiques!G60<>"",Boutiques!G60,"") ->  | J59: =IF(Coworking!G60<>"",Coworking!G60,"") ->  | L59: 0 | M59: ='Comptes de résultat A0'!G58 -> 0 | N59: 0
C60: Charges financières. | G60: =IF(FabLab!G61<>"",FabLab!G61,"") ->  | H60: =IF(FabCafé!G61<>"",FabCafé!G61,"") ->  | I60: =IF(Boutiques!G61<>"",Boutiques!G61,"") ->  | J60: =IF(Coworking!G61<>"",Coworking!G61,"") ->  | M60: ='Comptes de résultat A0'!G59 -> 0 | Q60: Produits financiers. | U60: =IF(FabLab!M61<>"",FabLab!M61,"") -> 0 | V60: =IF(FabCafé!M61<>"",FabCafé!M61,"") -> 0 | W60: =IF(Boutiques!M61<>"",Boutiques!M61,"") -> 0 | X60: =IF(Coworking!M61<>"",Coworking!M61,"") -> 0 | Z60: =IF(SUM(U60:X60)<>0,SUM(U60:X60),0) -> 0 | AA60: ='Comptes de résultat A0'!M59 -> 0 | AB60: =AA60-Z60 -> 0
D61: Intérêts des emprunts, | G61: =IF(FabLab!G62<>"",FabLab!G62,"") ->  | H61: =IF(FabCafé!G62<>"",FabCafé!G62,"") ->  | I61: =IF(Boutiques!G62<>"",Boutiques!G62,"") ->  | J61: =IF(Coworking!G62<>"",Coworking!G62,"") ->  | M61: ='Comptes de résultat A0'!G60 -> 0 | R61: Revenus des titres (dividendes, intérêts), | U61: =IF(FabLab!M62<>"",FabLab!M62,"") ->  | V61: =IF(FabCafé!M62<>"",FabCafé!M62,"") ->  | W61: =IF(Boutiques!M62<>"",Boutiques!M62,"") ->  | X61: =IF(Coworking!M62<>"",Coworking!M62,"") ->  | Z61: 0 | AA61: ='Comptes de résultat A0'!M60 -> 0 | AB61: 0
D62: Escomptes accordés, | G62: =IF(FabLab!G63<>"",FabLab!G63,"") ->  | H62: =IF(FabCafé!G63<>"",FabCafé!G63,"") ->  | I62: =IF(Boutiques!G63<>"",Boutiques!G63,"") ->  | J62: =IF(Coworking!G63<>"",Coworking!G63,"") ->  | L62: 0 | M62: ='Comptes de résultat A0'!G61 -> 0 | N62: 0 | R62: Intérêts des prêts, | U62: =IF(FabLab!M63<>"",FabLab!M63,"") ->  | V62: =IF(FabCafé!M63<>"",FabCafé!M63,"") ->  | W62: =IF(Boutiques!M63<>"",Boutiques!M63,"") ->  | X62: =IF(Coworking!M63<>"",Coworking!M63,"") ->  | Z62: 0 | AA62: ='Comptes de résultat A0'!M61 -> 0 | AB62: 0
D63: Intérêts bancaires, | G63: =IF(FabLab!G64<>"",FabLab!G64,"") ->  | H63: =IF(FabCafé!G64<>"",FabCafé!G64,"") ->  | I63: =IF(Boutiques!G64<>"",Boutiques!G64,"") ->  | J63: =IF(Coworking!G64<>"",Coworking!G64,"") ->  | L63: 0 | M63: ='Comptes de résultat A0'!G62 -> 0 | N63: 0 | R63: Escomptes obtenus, | U63: =IF(FabLab!M64<>"",FabLab!M64,"") ->  | V63: =IF(FabCafé!M64<>"",FabCafé!M64,"") ->  | W63: =IF(Boutiques!M64<>"",Boutiques!M64,"") ->  | X63: =IF(Coworking!M64<>"",Coworking!M64,"") ->  | Z63: 0 | AA63: ='Comptes de résultat A0'!M62 -> 0 | AB63: 0
D64: Pertes de change. | G64: =IF(FabLab!G65<>"",FabLab!G65,"") ->  | H64: =IF(FabCafé!G65<>"",FabCafé!G65,"") ->  | I64: =IF(Boutiques!G65<>"",Boutiques!G65,"") ->  | J64: =IF(Coworking!G65<>"",Coworking!G65,"") ->  | L64: 0 | M64: ='Comptes de résultat A0'!G63 -> 0 | N64: 0 | R64: Gains de change. | U64: =IF(FabLab!M65<>"",FabLab!M65,"") ->  | V64: =IF(FabCafé!M65<>"",FabCafé!M65,"") ->  | W64: =IF(Boutiques!M65<>"",Boutiques!M65,"") ->  | X64: =IF(Coworking!M65<>"",Coworking!M65,"") ->  | Z64: 0 | AA64: ='Comptes de résultat A0'!M63 -> 0 | AB64: 0
C65: Charges exceptionnelles. | G65: =IF(FabLab!G66<>"",FabLab!G66,"") -> 0 | H65: =IF(FabCafé!G66<>"",FabCafé!G66,"") -> 0 | I65: =IF(Boutiques!G66<>"",Boutiques!G66,"") -> 0 | J65: =IF(Coworking!G66<>"",Coworking!G66,"") -> 0 | L65: 0 | M65: ='Comptes de résultat A0'!G64 -> 0 | N65: 0 | Q65: Produits exceptionnels. | U65: =IF(FabLab!M66<>"",FabLab!M66,"") -> 0 | V65: =IF(FabCafé!M66<>"",FabCafé!M66,"") -> 0 | W65: =IF(Boutiques!M66<>"",Boutiques!M66,"") -> 0 | X65: =IF(Coworking!M66<>"",Coworking!M66,"") -> 0 | Z65: 0 | AA65: ='Comptes de résultat A0'!M64 -> 0 | AB65: 0
D66: Valeurs comptables des éléments d’actif cédés, | G66: =IF(FabLab!G67<>"",FabLab!G67,"") ->  | H66: =IF(FabCafé!G67<>"",FabCafé!G67,"") ->  | I66: =IF(Boutiques!G67<>"",Boutiques!G67,"") ->  | J66: =IF(Coworking!G67<>"",Coworking!G67,"") ->  | L66: 0 | M66: ='Comptes de résultat A0'!G65 -> 0 | N66: 0 | R66: Produits exceptionnels sur opérations de gestion, | U66: =IF(FabLab!M67<>"",FabLab!M67,"") ->  | V66: =IF(FabCafé!M67<>"",FabCafé!M67,"") ->  | W66: =IF(Boutiques!M67<>"",Boutiques!M67,"") ->  | X66: =IF(Coworking!M67<>"",Coworking!M67,"") ->  | Z66: 0 | AA66: ='Comptes de résultat A0'!M65 -> 0 | AB66: 0
D67: Pénalités, amendes fiscales et pénales, | G67: =IF(FabLab!G68<>"",FabLab!G68,"") ->  | H67: =IF(FabCafé!G68<>"",FabCafé!G68,"") ->  | I67: =IF(Boutiques!G68<>"",Boutiques!G68,"") ->  | J67: =IF(Coworking!G68<>"",Coworking!G68,"") ->  | L67: 0 | M67: ='Comptes de résultat A0'!G66 -> 0 | N67: 0 | R67: Prix de cession d’éléments d’actif. | U67: =IF(FabLab!M68<>"",FabLab!M68,"") ->  | V67: =IF(FabCafé!M68<>"",FabCafé!M68,"") ->  | W67: =IF(Boutiques!M68<>"",Boutiques!M68,"") ->  | X67: =IF(Coworking!M68<>"",Coworking!M68,"") ->  | Z67: 0 | AA67: ='Comptes de résultat A0'!M66 -> 0 | AB67: 0
D68: Dons et libéralités. | G68: =IF(FabLab!G69<>"",FabLab!G69,"") ->  | H68: =IF(FabCafé!G69<>"",FabCafé!G69,"") ->  | I68: =IF(Boutiques!G69<>"",Boutiques!G69,"") ->  | J68: =IF(Coworking!G69<>"",Coworking!G69,"") ->  | L68: 0 | M68: ='Comptes de résultat A0'!G67 -> 0 | N68: 0 | U68: =IF(FabLab!M69<>"",FabLab!M69,"") ->  | V68: =IF(FabCafé!M69<>"",FabCafé!M69,"") ->  | W68: =IF(Boutiques!M69<>"",Boutiques!M69,"") ->  | X68: =IF(Coworking!M69<>"",Coworking!M69,"") -> 
C69: Dotations. | G69: =IF(FabLab!G70<>"",FabLab!G70,"") -> 0 | H69: =IF(FabCafé!G70<>"",FabCafé!G70,"") -> 0 | I69: =IF(Boutiques!G70<>"",Boutiques!G70,"") -> 0 | J69: =IF(Coworking!G70<>"",Coworking!G70,"") -> 0 | L69: 0 | M69: ='Comptes de résultat A0'!G68 -> 0 | N69: 0 | Q69: Reprises. | U69: =IF(FabLab!M70<>"",FabLab!M70,"") -> 0 | V69: =IF(FabCafé!M70<>"",FabCafé!M70,"") -> 0 | W69: =IF(Boutiques!M70<>"",Boutiques!M70,"") -> 0 | X69: =IF(Coworking!M70<>"",Coworking!M70,"") -> 0 | Z69: 0 | AA69: ='Comptes de résultat A0'!M68 -> 0 | AB69: 0
D70: Dotations aux amortissements, aux dépréciations et aux provisions – Charges d’exploitation, | G70: =IF(FabLab!G71<>"",FabLab!G71,"") -> 0 | H70: =IF(FabCafé!G71<>"",FabCafé!G71,"") -> 0 | I70: =IF(Boutiques!G71<>"",Boutiques!G71,"") -> 0 | J70: =IF(Coworking!G71<>"",Coworking!G71,"") -> 0 | L70: 0 | M70: ='Comptes de résultat A0'!G69 -> 0 | N70: 0 | R70: Reprises sur amortissements, dépréciations et provisions – Produits d’exploitation, | U70: =IF(FabLab!M71<>"",FabLab!M71,"") ->  | V70: =IF(FabCafé!M71<>"",FabCafé!M71,"") ->  | W70: =IF(Boutiques!M71<>"",Boutiques!M71,"") ->  | X70: =IF(Coworking!M71<>"",Coworking!M71,"") ->  | Z70: 0 | AA70: ='Comptes de résultat A0'!M69 -> 0 | AB70: 0
D71: Dotations aux amortissements, aux dépréciations et aux provisions – Charges financières, | G71: =IF(FabLab!G72<>"",FabLab!G72,"") ->  | H71: =IF(FabCafé!G72<>"",FabCafé!G72,"") ->  | I71: =IF(Boutiques!G72<>"",Boutiques!G72,"") ->  | J71: =IF(Coworking!G72<>"",Coworking!G72,"") ->  | L71: 0 | M71: ='Comptes de résultat A0'!G70 -> 0 | N71: 0 | R71: Reprises sur dépréciations et provisions – Produits financiers, | U71: =IF(FabLab!M72<>"",FabLab!M72,"") ->  | V71: =IF(FabCafé!M72<>"",FabCafé!M72,"") ->  | W71: =IF(Boutiques!M72<>"",Boutiques!M72,"") ->  | X71: =IF(Coworking!M72<>"",Coworking!M72,"") ->  | Z71: 0 | AA71: ='Comptes de résultat A0'!M70 -> 0 | AB71: 0
D72: Dotations aux amortissements, aux dépréciations et aux provisions – Charges exceptionnelles, | G72: =IF(FabLab!G73<>"",FabLab!G73,"") ->  | H72: =IF(FabCafé!G73<>"",FabCafé!G73,"") ->  | I72: =IF(Boutiques!G73<>"",Boutiques!G73,"") ->  | J72: =IF(Coworking!G73<>"",Coworking!G73,"") ->  | L72: 0 | M72: ='Comptes de résultat A0'!G71 -> 0 | N72: 0 | R72: Reprises sur dépréciations et provisions – Produits | U72: =IF(FabLab!M73<>"",FabLab!M73,"") ->  | V72: =IF(FabCafé!M73<>"",FabCafé!M73,"") ->  | W72: =IF(Boutiques!M73<>"",Boutiques!M73,"") ->  | X72: =IF(Coworking!M73<>"",Coworking!M73,"") ->  | Z72: 0 | AA72: ='Comptes de résultat A0'!M71 -> 0 | AB72: 0
C73: =IF(FabLab!C74<>"",FabLab!C74,"") ->  | D73: =IF(FabLab!D74<>"",FabLab!D74,"") ->  | G73: =IF(FabLab!G74<>"",FabLab!G74,"") ->  | H73: =IF(FabCafé!G74<>"",FabCafé!G74,"") ->  | I73: =IF(Boutiques!G74<>"",Boutiques!G74,"") ->  | J73: =IF(Coworking!G74<>"",Coworking!G74,"") ->  | M73: ='Comptes de résultat A0'!G72 -> 0 | N73: =ROUND(M73-L73,2) -> 0 | Q73: Transferts de charges. | U73: =IF(FabLab!M74<>"",FabLab!M74,"") -> 0 | V73: =IF(FabCafé!M74<>"",FabCafé!M74,"") -> 0 | W73: =IF(Boutiques!M74<>"",Boutiques!M74,"") -> 0 | X73: =IF(Coworking!M74<>"",Coworking!M74,"") -> 0 | Z73: 0 | AA73: ='Comptes de résultat A0'!M72 -> 0 | AB73: 0
C74: =IF(FabLab!C75<>"",FabLab!C75,"") ->  | D74: =IF(FabLab!D75<>"",FabLab!D75,"") ->  | G74: =IF(FabLab!G75<>"",FabLab!G75,"") ->  | H74: =IF(FabCafé!G75<>"",FabCafé!G75,"") ->  | I74: =IF(Boutiques!G75<>"",Boutiques!G75,"") ->  | J74: =IF(Coworking!G75<>"",Coworking!G75,"") ->  | M74: ='Comptes de résultat A0'!G73 -> 0 | N74: 0 | R74: Transferts de charges d’exploitation, | U74: =IF(FabLab!M75<>"",FabLab!M75,"") ->  | V74: =IF(FabCafé!M75<>"",FabCafé!M75,"") ->  | W74: =IF(Boutiques!M75<>"",Boutiques!M75,"") ->  | X74: =IF(Coworking!M75<>"",Coworking!M75,"") ->  | Z74: 0 | AA74: ='Comptes de résultat A0'!M73 -> 0 | AB74: 0
C75: =IF(FabLab!C76<>"",FabLab!C76,"") ->  | D75: =IF(FabLab!D76<>"",FabLab!D76,"") ->  | G75: =IF(FabLab!G76<>"",FabLab!G76,"") ->  | H75: =IF(FabCafé!G76<>"",FabCafé!G76,"") ->  | I75: =IF(Boutiques!G76<>"",Boutiques!G76,"") ->  | J75: =IF(Coworking!G76<>"",Coworking!G76,"") ->  | M75: ='Comptes de résultat A0'!G74 -> 0 | N75: 0 | R75: Transferts de charges financières, | U75: =IF(FabLab!M76<>"",FabLab!M76,"") ->  | V75: =IF(FabCafé!M76<>"",FabCafé!M76,"") ->  | W75: =IF(Boutiques!M76<>"",Boutiques!M76,"") ->  | X75: =IF(Coworking!M76<>"",Coworking!M76,"") ->  | Z75: 0 | AA75: ='Comptes de résultat A0'!M74 -> 0 | AB75: 0
C76: =IF(FabLab!C77<>"",FabLab!C77,"") ->  | D76: =IF(FabLab!D77<>"",FabLab!D77,"") ->  | G76: =IF(FabLab!G77<>"",FabLab!G77,"") ->  | H76: =IF(FabCafé!G77<>"",FabCafé!G77,"") ->  | I76: =IF(Boutiques!G77<>"",Boutiques!G77,"") ->  | J76: =IF(Coworking!G77<>"",Coworking!G77,"") ->  | M76: ='Comptes de résultat A0'!G75 -> 0 | N76: 0 | R76: Transferts de charges exceptionnelles. | U76: =IF(FabLab!M77<>"",FabLab!M77,"") ->  | V76: =IF(FabCafé!M77<>"",FabCafé!M77,"") ->  | W76: =IF(Boutiques!M77<>"",Boutiques!M77,"") ->  | X76: =IF(Coworking!M77<>"",Coworking!M77,"") ->  | Z76: 0 | AA76: ='Comptes de résultat A0'!M75 -> 0 | AB76: 0
C77: =IF(FabLab!C78<>"",FabLab!C78,"") ->  | G77: =IF(FabLab!G78<>"",FabLab!G78,"") ->  | H77: =IF(FabCafé!G78<>"",FabCafé!G78,"") ->  | I77: =IF(Boutiques!G78<>"",Boutiques!G78,"") ->  | J77: =IF(Coworking!G78<>"",Coworking!G78,"") ->  | M77: ='Comptes de résultat A0'!G76 -> 0 | N77: 0 | Q77: =IF(FabLab!J78<>"",FabLab!J78,"") ->  | R77: =IF(FabLab!K78<>"",FabLab!K78,"") ->  | S77: =IF(FabLab!L78<>"",FabLab!L78,"") ->  | U77: =IF(FabLab!M78<>"",FabLab!M78,"") ->  | V77: =IF(FabCafé!M78<>"",FabCafé!M78,"") ->  | W77: =IF(Boutiques!M78<>"",Boutiques!M78,"") ->  | X77: =IF(Coworking!M78<>"",Coworking!M78,"") -> 
C78: Charges fixes | G78: =IF(FabLab!G79<>"",FabLab!G79,"") ->  | H78: =IF(FabCafé!G79<>"",FabCafé!G79,"") ->  | I78: =IF(Boutiques!G79<>"",Boutiques!G79,"") ->  | J78: =IF(Coworking!G79<>"",Coworking!G79,"") ->  | L78: =SUM(G78:J78) ->  | M78: ='Comptes de résultat A0'!G77 -> 161821.5429 | Q78: =IF(FabLab!J79<>"",FabLab!J79,"") ->  | R78: =IF(FabLab!K79<>"",FabLab!K79,"") ->  | S78: =IF(FabLab!L79<>"",FabLab!L79,"") ->  | U78: =IF(FabLab!M79<>"",FabLab!M79,"") ->  | V78: =IF(FabCafé!M79<>"",FabCafé!M79,"") ->  | W78: =IF(Boutiques!M79<>"",Boutiques!M79,"") ->  | X78: =IF(Coworking!M79<>"",Coworking!M79,"") -> 
C79: Charges variables | G79: =IF(FabLab!G80<>"",FabLab!G80,"") ->  | H79: =IF(FabCafé!G80<>"",FabCafé!G80,"") ->  | I79: =IF(Boutiques!G80<>"",Boutiques!G80,"") ->  | J79: =IF(Coworking!G80<>"",Coworking!G80,"") ->  | L79: =SUM(G79:J79) ->  | M79: ='Comptes de résultat A0'!G78 -> 35895.5 | Q79: =IF(FabLab!J80<>"",FabLab!J80,"") ->  | R79: =IF(FabLab!K80<>"",FabLab!K80,"") ->  | S79: =IF(FabLab!L80<>"",FabLab!L80,"") ->  | U79: =IF(FabLab!M80<>"",FabLab!M80,"") ->  | V79: =IF(FabCafé!M80<>"",FabCafé!M80,"") ->  | W79: =IF(Boutiques!M80<>"",Boutiques!M80,"") ->  | X79: =IF(Coworking!M80<>"",Coworking!M80,"") -> 
C80: =IF(FabLab!C81<>"",FabLab!C81,"") ->  | D80: =IF(FabLab!D81<>"",FabLab!D81,"") ->  | E80: =IF(FabLab!E81<>"",FabLab!E81,"") ->  | G80: =IF(FabLab!G81<>"",FabLab!G81,"") ->  | H80: =IF(FabCafé!G81<>"",FabCafé!G81,"") ->  | I80: =IF(Boutiques!G81<>"",Boutiques!G81,"") ->  | J80: =IF(Coworking!G81<>"",Coworking!G81,"") ->  | N80: =M80-L80 -> 0 | Q80: =IF(FabLab!J81<>"",FabLab!J81,"") ->  | R80: =IF(FabLab!K81<>"",FabLab!K81,"") ->  | S80: =IF(FabLab!L81<>"",FabLab!L81,"") ->  | U80: =IF(FabLab!M81<>"",FabLab!M81,"") ->  | V80: =IF(FabCafé!M81<>"",FabCafé!M81,"") ->  | W80: =IF(Boutiques!M81<>"",Boutiques!M81,"") ->  | X80: =IF(Coworking!M81<>"",Coworking!M81,"") -> 
C81: =IF(FabLab!C82<>"",FabLab!C82,"") ->  | D81: =IF(FabLab!D82<>"",FabLab!D82,"") ->  | E81: =IF(FabLab!E82<>"",FabLab!E82,"") ->  | G81: =FabLab!G82 -> Année 0 | H81: =FabCafé!G82 -> Année 0 | I81: =Boutiques!G82 -> Année 0 | J81: =Coworking!G82 -> Année 0 | L81: =J81 -> Année 0 | M81: ='Comptes de résultat A0'!G80 -> Année 0 | Q81: =IF(FabLab!J82<>"",FabLab!J82,"") ->  | R81: =IF(FabLab!K82<>"",FabLab!K82,"") ->  | S81: =IF(FabLab!L82<>"",FabLab!L82,"") ->  | U81: =IF(FabLab!M82<>"",FabLab!M82,"") -> Année 0 | V81: =IF(FabCafé!M82<>"",FabCafé!M82,"") -> Année 0 | W81: =IF(Boutiques!M82<>"",Boutiques!M82,"") -> Année 0 | X81: =IF(Coworking!M82<>"",Coworking!M82,"") -> Année 0 | AA81: ='Comptes de résultat A0'!M80 -> Année 0
B82: Total des charges | G82: =FabLab!G83 ->  | H82: =FabCafé!G83 ->  | I82: =Boutiques!G83 ->  | J82: =Coworking!G83 ->  | L82: =SUM(G82:J82) ->  | M82: ='Comptes de résultat A0'!G81 -> 197717.0429 | N82: =M82-L82 ->  | P82: Total des produits | U82: =IF(FabLab!M83<>"",FabLab!M83,"") ->  | V82: =IF(FabCafé!M83<>"",FabCafé!M83,"") ->  | W82: =IF(Boutiques!M83<>"",Boutiques!M83,"") ->  | X82: =IF(Coworking!M83<>"",Coworking!M83,"") ->  | Z82: =IF(SUM(U82:X82)<>0,SUM(U82:X82),0) ->  | AA82: ='Comptes de résultat A0'!M81 -> 
Q83: =IF(FabLab!J84<>"",FabLab!J84,"") ->  | R83: =IF(FabLab!K84<>"",FabLab!K84,"") ->  | S83: =IF(FabLab!L84<>"",FabLab!L84,"") ->  | U83: =IF(FabLab!M84<>"",FabLab!M84,"") ->  | V83: =IF(FabCafé!M84<>"",FabCafé!M84,"") ->  | W83: =IF(Boutiques!M84<>"",Boutiques!M84,"") ->  | X83: =IF(Coworking!M84<>"",Coworking!M84,"") ->  | AA83: ='Comptes de résultat A0'!M82 -> 0
Q84: =IF(FabLab!J85<>"",FabLab!J85,"") ->  | R84: =IF(FabLab!K85<>"",FabLab!K85,"") ->  | S84: =IF(FabLab!L85<>"",FabLab!L85,"") -> 
B85: Bénéfices | G85: =FabLab!G85 ->  | H85: =FabCafé!G85 ->  | I85: =Boutiques!G85 ->  | J85: =Coworking!G85 ->  | L85: =SUM(G85,H85,I85,J85) ->  | M85: ='Comptes de résultat A0'!G83 ->  | Q85: =IF(FabLab!J86<>"",FabLab!J86,"") ->  | R85: =IF(FabLab!K86<>"",FabLab!K86,"") ->  | S85: =IF(FabLab!L86<>"",FabLab!L86,"") -> 
B86: Pertes | G86: =FabLab!M85 ->  | H86: =FabCafé!M85 ->  | I86: =Boutiques!M85 ->  | J86: =Coworking!M85 ->  | L86: =SUM(G86,H86,I86,J86) ->  | Q86: =IF(FabLab!J87<>"",FabLab!J87,"") ->  | R86: =IF(FabLab!K87<>"",FabLab!K87,"") ->  | S86: =IF(FabLab!L87<>"",FabLab!L87,"") -> 
Q87: =IF(FabLab!J88<>"",FabLab!J88,"") ->  | R87: =IF(FabLab!K88<>"",FabLab!K88,"") ->  | S87: =IF(FabLab!L88<>"",FabLab!L88,"") -> 
B88: ='SIG A0'!B29 -> Résultat courant avant impôts | K88: =K85-K86 -> 0 | L88: =L85-L86 ->  | M88: =M85-M86 ->  | N88: =L88-M88 ->  | Q88: =IF(FabLab!J89<>"",FabLab!J89,"") ->  | R88: =IF(FabLab!K89<>"",FabLab!K89,"") ->  | S88: =IF(FabLab!L89<>"",FabLab!L89,"") -> 

Sheet FabLab (hidden)
B2: FabLab
B4: Clé de répartition | G4: =Activités!I19 -> 
B6: Charges | I6: Produits
G7: Année 0 | M7: =G7 -> Année 0
C8: =IF(Synthèse!C7<>"",Synthèse!C7,"") -> Achats | E8: =IF(Synthèse!E7<>"",Synthèse!E7,"") ->  | G8: =SUM(G9,G15) ->  | J8: =IF(Synthèse!Q7<>"",Synthèse!Q7,"") -> Ventes. | M8: =SUM(M9:M14) -> 
C9: =IF(Synthèse!C8<>"",Synthèse!C8,"") ->  | D9: =IF(Synthèse!D8<>"",Synthèse!D8,"") -> Achats stockés : | G9: =SUM(G10:G14) ->  | J9: =IF(Synthèse!Q8<>"",Synthèse!Q8,"") ->  | K9: =IF(Synthèse!R8<>"",Synthèse!R8,"") -> Ventes de produits finis | M9: ='Ventes Produits'!L5 -> 
C10: =IF(Synthèse!C9<>"",Synthèse!C9,"") ->  | D10: =IF(Synthèse!D9<>"",Synthèse!D9,"") ->  | E10: =IF(Synthèse!E9<>"",Synthèse!E9,"") -> Achats de marchandises, | G10: =Stock!X4+FabLab!G4*Stock!W4 ->  | J10: =IF(Synthèse!Q9<>"",Synthèse!Q9,"") ->  | K10: =IF(Synthèse!R9<>"",Synthèse!R9,"") -> Ventes de matières premières | M10: 0
C11: =IF(Synthèse!C10<>"",Synthèse!C10,"") ->  | D11: =IF(Synthèse!D10<>"",Synthèse!D10,"") ->  | E11: =IF(Synthèse!E10<>"",Synthèse!E10,"") -> Achats de matières premières, | J11: =IF(Synthèse!Q10<>"",Synthèse!Q10,"") -> 
C12: =IF(Synthèse!C11<>"",Synthèse!C11,"") ->  | D12: =IF(Synthèse!D11<>"",Synthèse!D11,"") ->  | E12: =IF(Synthèse!E11<>"",Synthèse!E11,"") -> Achats d’emballages, | J12: =IF(Synthèse!Q11<>"",Synthèse!Q11,"") -> 
C13: =IF(Synthèse!C12<>"",Synthèse!C12,"") ->  | D13: =IF(Synthèse!D12<>"",Synthèse!D12,"") ->  | E13: =IF(Synthèse!E12<>"",Synthèse!E12,"") -> Achats de fournitures consommables : | G13: =Consommables!X4+Consommables!W4*FabLab!G4 ->  | J13: =IF(Synthèse!Q12<>"",Synthèse!Q12,"") ->  | K13: =IF(Synthèse!R12<>"",Synthèse!R12,"") -> Prestations de services | M13: =(Prestations!$M$5-Prestations!M12)*Pilotage!M36 -> 0
C14: =IF(Synthèse!C13<>"",Synthèse!C13,"") ->  | D14: =IF(Synthèse!D13<>"",Synthèse!D13,"") ->  | E14: =IF(Synthèse!E13<>"",Synthèse!E13,"") -> Achats d’études, équipements, travaux. | G14: 0 | J14: =IF(Synthèse!Q13<>"",Synthèse!Q13,"") ->  | K14: =IF(Synthèse!R13<>"",Synthèse!R13,"") -> Produits et activités annexes | M14: =SUM(M15:M25) -> 0
C15: =IF(Synthèse!C14<>"",Synthèse!C14,"") ->  | D15: =IF(Synthèse!D14<>"",Synthèse!D14,"") -> Achats non stockés : | G15: =SUM(G16:G20) -> 0 | J15: =IF(Synthèse!Q14<>"",Synthèse!Q14,"") ->  | K15: =IF(Synthèse!R14<>"",Synthèse!R14,"") ->  | L15: =IF(Synthèse!S14<>"",Synthèse!S14,"") -> Locations | M15: =Locations!$M$5*Pilotage!M38 -> 0
C16: =IF(Synthèse!C15<>"",Synthèse!C15,"") ->  | D16: =IF(Synthèse!D15<>"",Synthèse!D15,"") ->  | E16: =IF(Synthèse!E15<>"",Synthèse!E15,"") -> Eau, | J16: =IF(Synthèse!Q15<>"",Synthèse!Q15,"") ->  | K16: =IF(Synthèse!R15<>"",Synthèse!R15,"") ->  | L16: =IF(Synthèse!S15<>"",Synthèse!S15,"") -> 
C17: =IF(Synthèse!C16<>"",Synthèse!C16,"") ->  | D17: =IF(Synthèse!D16<>"",Synthèse!D16,"") ->  | E17: =IF(Synthèse!E16<>"",Synthèse!E16,"") -> Energie, | J17: =IF(Synthèse!Q16<>"",Synthèse!Q16,"") ->  | K17: =IF(Synthèse!R16<>"",Synthèse!R16,"") ->  | L17: =IF(Synthèse!S16<>"",Synthèse!S16,"") -> 
C18: =IF(Synthèse!C17<>"",Synthèse!C17,"") ->  | D18: =IF(Synthèse!D17<>"",Synthèse!D17,"") ->  | E18: =IF(Synthèse!E17<>"",Synthèse!E17,"") -> Carburant, | J18: =IF(Synthèse!Q17<>"",Synthèse!Q17,"") ->  | K18: =IF(Synthèse!R17<>"",Synthèse!R17,"") ->  | L18: =IF(Synthèse!S17<>"",Synthèse!S17,"") -> 
C19: =IF(Synthèse!C18<>"",Synthèse!C18,"") ->  | D19: =IF(Synthèse!D18<>"",Synthèse!D18,"") ->  | E19: =IF(Synthèse!E18<>"",Synthèse!E18,"") -> Fournitures administratives, | J19: =IF(Synthèse!Q18<>"",Synthèse!Q18,"") ->  | K19: =IF(Synthèse!R18<>"",Synthèse!R18,"") ->  | L19: =IF(Synthèse!S18<>"",Synthèse!S18,"") -> 
C20: =IF(Synthèse!C19<>"",Synthèse!C19,"") ->  | D20: =IF(Synthèse!D19<>"",Synthèse!D19,"") ->  | E20: =IF(Synthèse!E19<>"",Synthèse!E19,"") -> Fournitures d’entretien, petit équipement. | J20: =IF(Synthèse!Q19<>"",Synthèse!Q19,"") ->  | K20: =IF(Synthèse!R19<>"",Synthèse!R19,"") ->  | L20: =IF(Synthèse!S19<>"",Synthèse!S19,"") -> 
L21: =IF(Synthèse!S20<>"",Synthèse!S20,"") -> Abonnements | M21: =Abos!M5*Pilotage!M36 -> 0
K26: =IF(Synthèse!R25<>"",Synthèse!R25,"") -> 
C27: =IF(Synthèse!C26<>"",Synthèse!C26,"") -> Services extérieurs. | G27: =SUM(G28:G33) -> 
C28: =IF(Synthèse!C27<>"",Synthèse!C27,"") ->  | D28: =IF(Synthèse!D27<>"",Synthèse!D27,"") -> Locations immobilières et mobilières, | G28: =Loyers!X4+Loyers!W4*FabLab!G4 -> 
C29: =IF(Synthèse!C28<>"",Synthèse!C28,"") ->  | D29: =IF(Synthèse!D28<>"",Synthèse!D28,"") -> Redevances de crédit bail, | G29: ='Comptes de résultat A0'!G27 -> 0
C30: =IF(Synthèse!C29<>"",Synthèse!C29,"") ->  | D30: =IF(Synthèse!D29<>"",Synthèse!D29,"") -> Charges locatives et de copropriété, | J30: =IF(Synthèse!Q29<>"",Synthèse!Q29,"") ->  | K30: =IF(Synthèse!R29<>"",Synthèse!R29,"") ->  | L30: =IF(Synthèse!S29<>"",Synthèse!S29,"") -> 
C31: =IF(Synthèse!C30<>"",Synthèse!C30,"") ->  | D31: =IF(Synthèse!D30<>"",Synthèse!D30,"") -> Entretien et réparations, | J31: =IF(Synthèse!Q30<>"",Synthèse!Q30,"") ->  | K31: =IF(Synthèse!R30<>"",Synthèse!R30,"") ->  | L31: =IF(Synthèse!S30<>"",Synthèse!S30,"") -> 
C32: =IF(Synthèse!C31<>"",Synthèse!C31,"") ->  | D32: =IF(Synthèse!D31<>"",Synthèse!D31,"") -> Assurances, | J32: =IF(Synthèse!Q31<>"",Synthèse!Q31,"") ->  | K32: =IF(Synthèse!R31<>"",Synthèse!R31,"") ->  | L32: =IF(Synthèse!S31<>"",Synthèse!S31,"") -> 
C33: =IF(Synthèse!C32<>"",Synthèse!C32,"") ->  | D33: =IF(Synthèse!D32<>"",Synthèse!D32,"") -> Etudes et recherches. | J33: =IF(Synthèse!Q32<>"",Synthèse!Q32,"") ->  | K33: =IF(Synthèse!R32<>"",Synthèse!R32,"") ->  | L33: =IF(Synthèse!S32<>"",Synthèse!S32,"") -> 
C34: =IF(Synthèse!C33<>"",Synthèse!C33,"") -> Autres services extérieurs. | G34: =SUM(G35:G41) ->  | J34: =IF(Synthèse!Q33<>"",Synthèse!Q33,"") -> Autres produits de gestion courante. | M34: =SUM(M35:M36) -> 0
C35: =IF(Synthèse!C34<>"",Synthèse!C34,"") ->  | D35: =IF(Synthèse!D34<>"",Synthèse!D34,"") -> Frais extérieurs, publicité, déplacements, … | G35: ='Charges Ext'!W4*G4+'Charges Ext'!X4 ->  | J35: =IF(Synthèse!Q34<>"",Synthèse!Q34,"") ->  | K35: =IF(Synthèse!R34<>"",Synthèse!R34,"") -> Redevances reçues pour brevets, licences, marques,
C36: =IF(Synthèse!C35<>"",Synthèse!C35,"") ->  | D36: =IF(Synthèse!D35<>"",Synthèse!D35,"") -> Honoraires et rémunérations d’intermédiaires, | J36: =IF(Synthèse!Q35<>"",Synthèse!Q35,"") ->  | K36: =IF(Synthèse!R35<>"",Synthèse!R35,"") -> Revenus des immeubles.
C37: =IF(Synthèse!C36<>"",Synthèse!C36,"") ->  | D37: =IF(Synthèse!D36<>"",Synthèse!D36,"") -> Publicité, relations publiques, | J37: =IF(Synthèse!Q36<>"",Synthèse!Q36,"") ->  | K37: =IF(Synthèse!R36<>"",Synthèse!R36,"") ->  | L37: =IF(Synthèse!S36<>"",Synthèse!S36,"") -> 
C38: =IF(Synthèse!C37<>"",Synthèse!C37,"") ->  | D38: =IF(Synthèse!D37<>"",Synthèse!D37,"") -> Transports de biens et transports du personnel, | J38: =IF(Synthèse!Q37<>"",Synthèse!Q37,"") ->  | K38: =IF(Synthèse!R37<>"",Synthèse!R37,"") ->  | L38: =IF(Synthèse!S37<>"",Synthèse!S37,"") -> 
C39: =IF(Synthèse!C38<>"",Synthèse!C38,"") ->  | D39: =IF(Synthèse!D38<>"",Synthèse!D38,"") -> Déplacements, missions, réceptions, | J39: =IF(Synthèse!Q38<>"",Synthèse!Q38,"") ->  | K39: =IF(Synthèse!R38<>"",Synthèse!R38,"") ->  | L39: =IF(Synthèse!S38<>"",Synthèse!S38,"") -> 
C40: =IF(Synthèse!C39<>"",Synthèse!C39,"") ->  | D40: =IF(Synthèse!D39<>"",Synthèse!D39,"") -> Frais postaux et de télécommunications, | J40: =IF(Synthèse!Q39<>"",Synthèse!Q39,"") ->  | K40: =IF(Synthèse!R39<>"",Synthèse!R39,"") ->  | L40: =IF(Synthèse!S39<>"",Synthèse!S39,"") -> 
C41: =IF(Synthèse!C40<>"",Synthèse!C40,"") ->  | D41: =IF(Synthèse!D40<>"",Synthèse!D40,"") -> Services bancaires. | J41: =IF(Synthèse!Q40<>"",Synthèse!Q40,"") ->  | K41: =IF(Synthèse!R40<>"",Synthèse!R40,"") ->  | L41: =IF(Synthèse!S40<>"",Synthèse!S40,"") -> 
C42: =IF(Synthèse!C41<>"",Synthèse!C41,"") -> Impôts, taxes et versements assimilés. | G42: =SUM(G43:G50) -> 0 | J42: =IF(Synthèse!Q41<>"",Synthèse!Q41,"") ->  | K42: =IF(Synthèse!R41<>"",Synthèse!R41,"") ->  | L42: =IF(Synthèse!S41<>"",Synthèse!S41,"") -> 
C43: =IF(Synthèse!C42<>"",Synthèse!C42,"") ->  | D43: =IF(Synthèse!D42<>"",Synthèse!D42,"") -> CET, | J43: =IF(Synthèse!Q42<>"",Synthèse!Q42,"") ->  | K43: =IF(Synthèse!R42<>"",Synthèse!R42,"") ->  | L43: =IF(Synthèse!S42<>"",Synthèse!S42,"") -> 
C44: =IF(Synthèse!C43<>"",Synthèse!C43,"") ->  | D44: =IF(Synthèse!D43<>"",Synthèse!D43,"") -> Taxe sur les salaires, | J44: =IF(Synthèse!Q43<>"",Synthèse!Q43,"") ->  | K44: =IF(Synthèse!R43<>"",Synthèse!R43,"") ->  | L44: =IF(Synthèse!S43<>"",Synthèse!S43,"") -> 
C45: =IF(Synthèse!C44<>"",Synthèse!C44,"") ->  | D45: =IF(Synthèse!D44<>"",Synthèse!D44,"") -> Taxe d’apprentissage, | J45: =IF(Synthèse!Q44<>"",Synthèse!Q44,"") ->  | K45: =IF(Synthèse!R44<>"",Synthèse!R44,"") ->  | L45: =IF(Synthèse!S44<>"",Synthèse!S44,"") -> 
C46: =IF(Synthèse!C45<>"",Synthèse!C45,"") ->  | D46: =IF(Synthèse!D45<>"",Synthèse!D45,"") -> Droits d’enregistrement, | J46: =IF(Synthèse!Q45<>"",Synthèse!Q45,"") ->  | K46: =IF(Synthèse!R45<>"",Synthèse!R45,"") ->  | L46: =IF(Synthèse!S45<>"",Synthèse!S45,"") -> 
C47: =IF(Synthèse!C46<>"",Synthèse!C46,"") ->  | D47: =IF(Synthèse!D46<>"",Synthèse!D46,"") -> Impôts locaux, | J47: =IF(Synthèse!Q46<>"",Synthèse!Q46,"") ->  | K47: =IF(Synthèse!R46<>"",Synthèse!R46,"") ->  | L47: =IF(Synthèse!S46<>"",Synthèse!S46,"") -> 
C48: =IF(Synthèse!C47<>"",Synthèse!C47,"") ->  | D48: =IF(Synthèse!D47<>"",Synthèse!D47,"") -> Contribution à la formation continue, | J48: =IF(Synthèse!Q47<>"",Synthèse!Q47,"") ->  | K48: =IF(Synthèse!R47<>"",Synthèse!R47,"") ->  | L48: =IF(Synthèse!S47<>"",Synthèse!S47,"") -> 
C49: =IF(Synthèse!C48<>"",Synthèse!C48,"") ->  | D49: =IF(Synthèse!D48<>"",Synthèse!D48,"") -> Contribution sociale de solidarité, | J49: =IF(Synthèse!Q48<>"",Synthèse!Q48,"") ->  | K49: =IF(Synthèse!R48<>"",Synthèse!R48,"") ->  | L49: =IF(Synthèse!S48<>"",Synthèse!S48,"") -> 
C50: =IF(Synthèse!C49<>"",Synthèse!C49,"") ->  | D50: =IF(Synthèse!D49<>"",Synthèse!D49,"") -> Timbres fiscaux. | J50: =IF(Synthèse!Q49<>"",Synthèse!Q49,"") ->  | K50: =IF(Synthèse!R49<>"",Synthèse!R49,"") ->  | L50: =IF(Synthèse!S49<>"",Synthèse!S49,"") -> 
C51: =IF(Synthèse!C50<>"",Synthèse!C50,"") -> Charges de personnel. | G51: =SUM(G52:G56) -> 133808.9464 | J51: =IF(Synthèse!Q50<>"",Synthèse!Q50,"") ->  | K51: =IF(Synthèse!R50<>"",Synthèse!R50,"") ->  | L51: =IF(Synthèse!S50<>"",Synthèse!S50,"") -> 
C52: =IF(Synthèse!C51<>"",Synthèse!C51,"") ->  | D52: =IF(Synthèse!D51<>"",Synthèse!D51,"") -> Rémunérations, salaires, | G52: =Activités!I15 -> 133808.9464 | J52: =IF(Synthèse!Q51<>"",Synthèse!Q51,"") ->  | K52: =IF(Synthèse!R51<>"",Synthèse!R51,"") ->  | L52: =IF(Synthèse!S51<>"",Synthèse!S51,"") -> 
C53: =IF(Synthèse!C52<>"",Synthèse!C52,"") ->  | D53: =IF(Synthèse!D52<>"",Synthèse!D52,"") -> Congés payés, | J53: =IF(Synthèse!Q52<>"",Synthèse!Q52,"") ->  | K53: =IF(Synthèse!R52<>"",Synthèse!R52,"") ->  | L53: =IF(Synthèse!S52<>"",Synthèse!S52,"") -> 
C54: =IF(Synthèse!C53<>"",Synthèse!C53,"") ->  | D54: =IF(Synthèse!D53<>"",Synthèse!D53,"") -> Primes, indemnités, | J54: =IF(Synthèse!Q53<>"",Synthèse!Q53,"") ->  | K54: =IF(Synthèse!R53<>"",Synthèse!R53,"") ->  | L54: =IF(Synthèse!S53<>"",Synthèse!S53,"") -> 
C55: =IF(Synthèse!C54<>"",Synthèse!C54,"") ->  | D55: =IF(Synthèse!D54<>"",Synthèse!D54,"") -> Charges sociales, | J55: =IF(Synthèse!Q54<>"",Synthèse!Q54,"") ->  | K55: =IF(Synthèse!R54<>"",Synthèse!R54,"") ->  | L55: =IF(Synthèse!S54<>"",Synthèse!S54,"") -> 
C56: =IF(Synthèse!C55<>"",Synthèse!C55,"") ->  | D56: =IF(Synthèse!D55<>"",Synthèse!D55,"") -> Œuvres sociales. | J56: =IF(Synthèse!Q55<>"",Synthèse!Q55,"") ->  | K56: =IF(Synthèse!R55<>"",Synthèse!R55,"") ->  | L56: =IF(Synthèse!S55<>"",Synthèse!S55,"") -> 
C57: =IF(Synthèse!C56<>"",Synthèse!C56,"") -> Autres charges de gestion courante. | G57: =SUM(G58:G60) ->  | J57: =IF(Synthèse!Q56<>"",Synthèse!Q56,"") ->  | K57: =IF(Synthèse!R56<>"",Synthèse!R56,"") ->  | L57: =IF(Synthèse!S56<>"",Synthèse!S56,"") -> 
C58: =IF(Synthèse!C57<>"",Synthèse!C57,"") ->  | D58: =IF(Synthèse!D57<>"",Synthèse!D57,"") -> Redevances versées pour brevets, licences, marques, | G58: =Licences!X4+Licences!W4*FabLab!G4 ->  | J58: =IF(Synthèse!Q57<>"",Synthèse!Q57,"") ->  | K58: =IF(Synthèse!R57<>"",Synthèse!R57,"") ->  | L58: =IF(Synthèse!S57<>"",Synthèse!S57,"") -> 
C59: =IF(Synthèse!C58<>"",Synthèse!C58,"") ->  | D59: =IF(Synthèse!D58<>"",Synthèse!D58,"") -> Pertes sur créances irrécouvrables, | J59: =IF(Synthèse!Q58<>"",Synthèse!Q58,"") ->  | K59: =IF(Synthèse!R58<>"",Synthèse!R58,"") ->  | L59: =IF(Synthèse!S58<>"",Synthèse!S58,"") -> 
C60: =IF(Synthèse!C59<>"",Synthèse!C59,"") ->  | D60: =IF(Synthèse!D59<>"",Synthèse!D59,"") -> Charges diverses. | J60: =IF(Synthèse!Q59<>"",Synthèse!Q59,"") ->  | K60: =IF(Synthèse!R59<>"",Synthèse!R59,"") ->  | L60: =IF(Synthèse!S59<>"",Synthèse!S59,"") -> 
C61: =IF(Synthèse!C60<>"",Synthèse!C60,"") -> Charges financières. | G61: =SUM(G62:G65) ->  | J61: =IF(Synthèse!Q60<>"",Synthèse!Q60,"") -> Produits financiers. | M61: =SUM(M62:M65) -> 0
C62: =IF(Synthèse!C61<>"",Synthèse!C61,"") ->  | D62: =IF(Synthèse!D61<>"",Synthèse!D61,"") -> Intérêts des emprunts, | G62: =Emprunt!O6*G4 ->  | J62: =IF(Synthèse!Q61<>"",Synthèse!Q61,"") ->  | K62: =IF(Synthèse!R61<>"",Synthèse!R61,"") -> Revenus des titres (dividendes, intérêts),
C63: =IF(Synthèse!C62<>"",Synthèse!C62,"") ->  | D63: =IF(Synthèse!D62<>"",Synthèse!D62,"") -> Escomptes accordés, | J63: =IF(Synthèse!Q62<>"",Synthèse!Q62,"") ->  | K63: =IF(Synthèse!R62<>"",Synthèse!R62,"") -> Intérêts des prêts,
C64: =IF(Synthèse!C63<>"",Synthèse!C63,"") ->  | D64: =IF(Synthèse!D63<>"",Synthèse!D63,"") -> Intérêts bancaires, | J64: =IF(Synthèse!Q63<>"",Synthèse!Q63,"") ->  | K64: =IF(Synthèse!R63<>"",Synthèse!R63,"") -> Escomptes obtenus,
C65: =IF(Synthèse!C64<>"",Synthèse!C64,"") ->  | D65: =IF(Synthèse!D64<>"",Synthèse!D64,"") -> Pertes de change. | J65: =IF(Synthèse!Q64<>"",Synthèse!Q64,"") ->  | K65: =IF(Synthèse!R64<>"",Synthèse!R64,"") -> Gains de change.
C66: =IF(Synthèse!C65<>"",Synthèse!C65,"") -> Charges exceptionnelles. | G66: =SUM(G67:G69) -> 0 | J66: =IF(Synthèse!Q65<>"",Synthèse!Q65,"") -> Produits exceptionnels. | M66: =SUM(M67:M68) -> 0
C67: =IF(Synthèse!C66<>"",Synthèse!C66,"") ->  | D67: =IF(Synthèse!D66<>"",Synthèse!D66,"") -> Valeurs comptables des éléments d’actif cédés, | J67: =IF(Synthèse!Q66<>"",Synthèse!Q66,"") ->  | K67: =IF(Synthèse!R66<>"",Synthèse!R66,"") -> Produits exceptionnels sur opérations de gestion,
C68: =IF(Synthèse!C67<>"",Synthèse!C67,"") ->  | D68: =IF(Synthèse!D67<>"",Synthèse!D67,"") -> Pénalités, amendes fiscales et pénales, | J68: =IF(Synthèse!Q67<>"",Synthèse!Q67,"") ->  | K68: =IF(Synthèse!R67<>"",Synthèse!R67,"") -> Prix de cession d’éléments d’actif.
C69: =IF(Synthèse!C68<>"",Synthèse!C68,"") ->  | D69: =IF(Synthèse!D68<>"",Synthèse!D68,"") -> Dons et libéralités. | J69: =IF(Synthèse!Q68<>"",Synthèse!Q68,"") ->  | K69: =IF(Synthèse!R68<>"",Synthèse!R68,"") -> 
C70: =IF(Synthèse!C69<>"",Synthèse!C69,"") -> Dotations. | G70: =SUM(G71:G73) -> 0 | J70: =IF(Synthèse!Q69<>"",Synthèse!Q69,"") -> Reprises. | M70: =SUM(M71:M73) -> 0
C71: =IF(Synthèse!C70<>"",Synthèse!C70,"") ->  | D71: =IF(Synthèse!D70<>"",Synthèse!D70,"") -> Dotations aux amortissements, aux dépréciations et aux provisions – Charges d’exploitation, | G71: ='Comptes de résultat A0'!G69 -> 0 | J71: =IF(Synthèse!Q70<>"",Synthèse!Q70,"") ->  | K71: =IF(Synthèse!R70<>"",Synthèse!R70,"") -> Reprises sur amortissements, dépréciations et provisions – Produits d’exploitation,
C72: =IF(Synthèse!C71<>"",Synthèse!C71,"") ->  | D72: =IF(Synthèse!D71<>"",Synthèse!D71,"") -> Dotations aux amortissements, aux dépréciations et aux provisions – Charges financières, | J72: =IF(Synthèse!Q71<>"",Synthèse!Q71,"") ->  | K72: =IF(Synthèse!R71<>"",Synthèse!R71,"") -> Reprises sur dépréciations et provisions – Produits financiers,
C73: =IF(Synthèse!C72<>"",Synthèse!C72,"") ->  | D73: =IF(Synthèse!D72<>"",Synthèse!D72,"") -> Dotations aux amortissements, aux dépréciations et aux provisions – Charges exceptionnelles, | J73: =IF(Synthèse!Q72<>"",Synthèse!Q72,"") ->  | K73: =IF(Synthèse!R72<>"",Synthèse!R72,"") -> Reprises sur dépréciations et provisions – Produits
J74: =IF(Synthèse!Q73<>"",Synthèse!Q73,"") -> Transferts de charges. | M74: =SUM(M75:M77) -> 0
J75: =IF(Synthèse!Q74<>"",Synthèse!Q74,"") ->  | K75: =IF(Synthèse!R74<>"",Synthèse!R74,"") -> Transferts de charges d’exploitation,
J76: =IF(Synthèse!Q75<>"",Synthèse!Q75,"") ->  | K76: =IF(Synthèse!R75<>"",Synthèse!R75,"") -> Transferts de charges financières,
J77: =IF(Synthèse!Q76<>"",Synthèse!Q76,"") ->  | K77: =IF(Synthèse!R76<>"",Synthèse!R76,"") -> Transferts de charges exceptionnelles.
C79: Charges fixes | G79: =G70+G13+G66+G61+G57+G51+G42+G27 -> 
C80: Charges variables | G80: =G10+G34 -> 
G82: =G7 -> Année 0 | M82: =G82 -> Année 0
B83: Total des charges | G83: =SUM(G70,G66,G61,G57,G51,G42,G34,G27,G8) ->  | I83: Total des produits | M83: =SUM(M74,M70,M66,M61,M34,M8) -> 
B85: Solde créditeur : bénéfice | G85: =IF(M83>G83,M83-G83,"") ->  | I85: Solde débiteur : perte | M85: =IF(G83>M83,G83-M83,"") -> 
G88: =G82 -> Année 0
B89: Résultat net avant impôts | G89: =M83-G83 -> 

Sheet FabCafé (hidden)
B2: FabCafé
B4: Clé de répartition | G4: =Activités!M19 -> 
B6: Charges | I6: Produits
G7: Année 0 | M7: =G7 -> Année 0
C8: =IF(Synthèse!C7<>"",Synthèse!C7,"") -> Achats | E8: =IF(Synthèse!E7<>"",Synthèse!E7,"") ->  | G8: =SUM(G9,G15) ->  | J8: =IF(Synthèse!Q7<>"",Synthèse!Q7,"") -> Ventes. | M8: =SUM(M9:M14) -> 
C9: =IF(Synthèse!C8<>"",Synthèse!C8,"") ->  | D9: =IF(Synthèse!D8<>"",Synthèse!D8,"") -> Achats stockés : | G9: =SUM(G10:G14) ->  | J9: =IF(Synthèse!Q8<>"",Synthèse!Q8,"") ->  | K9: =IF(Synthèse!R8<>"",Synthèse!R8,"") -> Ventes de produits finis | M9: ='Ventes Produits'!L5 -> 
C10: =IF(Synthèse!C9<>"",Synthèse!C9,"") ->  | D10: =IF(Synthèse!D9<>"",Synthèse!D9,"") ->  | E10: =IF(Synthèse!E9<>"",Synthèse!E9,"") -> Achats de marchandises, | G10: =Stock!Y4+FabCafé!G4*Stock!W4 ->  | J10: =IF(Synthèse!Q9<>"",Synthèse!Q9,"") ->  | K10: =IF(Synthèse!R9<>"",Synthèse!R9,"") -> Ventes de matières premières | M10: =SUM('Ventes Stock'!#REF!) -> 
C11: =IF(Synthèse!C10<>"",Synthèse!C10,"") ->  | D11: =IF(Synthèse!D10<>"",Synthèse!D10,"") ->  | E11: =IF(Synthèse!E10<>"",Synthèse!E10,"") -> Achats de matières premières, | J11: =IF(Synthèse!Q10<>"",Synthèse!Q10,"") -> 
C12: =IF(Synthèse!C11<>"",Synthèse!C11,"") ->  | D12: =IF(Synthèse!D11<>"",Synthèse!D11,"") ->  | E12: =IF(Synthèse!E11<>"",Synthèse!E11,"") -> Achats d’emballages, | J12: =IF(Synthèse!Q11<>"",Synthèse!Q11,"") -> 
C13: =IF(Synthèse!C12<>"",Synthèse!C12,"") ->  | D13: =IF(Synthèse!D12<>"",Synthèse!D12,"") ->  | E13: =IF(Synthèse!E12<>"",Synthèse!E12,"") -> Achats de fournitures consommables : | G13: =Consommables!Y4+Consommables!W4*FabCafé!G4 ->  | J13: =IF(Synthèse!Q12<>"",Synthèse!Q12,"") ->  | K13: =IF(Synthèse!R12<>"",Synthèse!R12,"") -> Prestations de services | M13: 0
C14: =IF(Synthèse!C13<>"",Synthèse!C13,"") ->  | D14: =IF(Synthèse!D13<>"",Synthèse!D13,"") ->  | E14: =IF(Synthèse!E13<>"",Synthèse!E13,"") -> Achats d’études, équipements, travaux. | G14: 0 | J14: =IF(Synthèse!Q13<>"",Synthèse!Q13,"") ->  | K14: =IF(Synthèse!R13<>"",Synthèse!R13,"") -> Produits et activités annexes | M14: =SUM(M15:M25) -> 0
C15: =IF(Synthèse!C14<>"",Synthèse!C14,"") ->  | D15: =IF(Synthèse!D14<>"",Synthèse!D14,"") -> Achats non stockés : | G15: =SUM(G16:G20) -> 0 | J15: =IF(Synthèse!Q14<>"",Synthèse!Q14,"") ->  | K15: =IF(Synthèse!R14<>"",Synthèse!R14,"") ->  | L15: =IF(Synthèse!S14<>"",Synthèse!S14,"") -> Locations | M15: 0
C16: =IF(Synthèse!C15<>"",Synthèse!C15,"") ->  | D16: =IF(Synthèse!D15<>"",Synthèse!D15,"") ->  | E16: =IF(Synthèse!E15<>"",Synthèse!E15,"") -> Eau, | J16: =IF(Synthèse!Q15<>"",Synthèse!Q15,"") ->  | K16: =IF(Synthèse!R15<>"",Synthèse!R15,"") ->  | L16: =IF(Synthèse!S15<>"",Synthèse!S15,"") -> 
C17: =IF(Synthèse!C16<>"",Synthèse!C16,"") ->  | D17: =IF(Synthèse!D16<>"",Synthèse!D16,"") ->  | E17: =IF(Synthèse!E16<>"",Synthèse!E16,"") -> Energie, | J17: =IF(Synthèse!Q16<>"",Synthèse!Q16,"") ->  | K17: =IF(Synthèse!R16<>"",Synthèse!R16,"") ->  | L17: =IF(Synthèse!S16<>"",Synthèse!S16,"") -> 
C18: =IF(Synthèse!C17<>"",Synthèse!C17,"") ->  | D18: =IF(Synthèse!D17<>"",Synthèse!D17,"") ->  | E18: =IF(Synthèse!E17<>"",Synthèse!E17,"") -> Carburant, | J18: =IF(Synthèse!Q17<>"",Synthèse!Q17,"") ->  | K18: =IF(Synthèse!R17<>"",Synthèse!R17,"") ->  | L18: =IF(Synthèse!S17<>"",Synthèse!S17,"") -> 
C19: =IF(Synthèse!C18<>"",Synthèse!C18,"") ->  | D19: =IF(Synthèse!D18<>"",Synthèse!D18,"") ->  | E19: =IF(Synthèse!E18<>"",Synthèse!E18,"") -> Fournitures administratives, | J19: =IF(Synthèse!Q18<>"",Synthèse!Q18,"") ->  | K19: =IF(Synthèse!R18<>"",Synthèse!R18,"") ->  | L19: =IF(Synthèse!S18<>"",Synthèse!S18,"") -> 
C20: =IF(Synthèse!C19<>"",Synthèse!C19,"") ->  | D20: =IF(Synthèse!D19<>"",Synthèse!D19,"") ->  | E20: =IF(Synthèse!E19<>"",Synthèse!E19,"") -> Fournitures d’entretien, petit équipement. | J20: =IF(Synthèse!Q19<>"",Synthèse!Q19,"") ->  | K20: =IF(Synthèse!R19<>"",Synthèse!R19,"") ->  | L20: =IF(Synthèse!S19<>"",Synthèse!S19,"") -> 
L21: =IF(Synthèse!S20<>"",Synthèse!S20,"") -> Abonnements | M21: 0
K26: =IF(Synthèse!R25<>"",Synthèse!R25,"") -> 
C27: =IF(Synthèse!C26<>"",Synthèse!C26,"") -> Services extérieurs. | G27: =SUM(G28:G33) -> 
C28: =IF(Synthèse!C27<>"",Synthèse!C27,"") ->  | D28: =IF(Synthèse!D27<>"",Synthèse!D27,"") -> Locations immobilières et mobilières, | G28: =Loyers!Y4+Loyers!W4*FabCafé!G4 -> 
C29: =IF(Synthèse!C28<>"",Synthèse!C28,"") ->  | D29: =IF(Synthèse!D28<>"",Synthèse!D28,"") -> Redevances de crédit bail,
C30: =IF(Synthèse!C29<>"",Synthèse!C29,"") ->  | D30: =IF(Synthèse!D29<>"",Synthèse!D29,"") -> Charges locatives et de copropriété, | J30: =IF(Synthèse!Q29<>"",Synthèse!Q29,"") ->  | K30: =IF(Synthèse!R29<>"",Synthèse!R29,"") ->  | L30: =IF(Synthèse!S29<>"",Synthèse!S29,"") -> 
C31: =IF(Synthèse!C30<>"",Synthèse!C30,"") ->  | D31: =IF(Synthèse!D30<>"",Synthèse!D30,"") -> Entretien et réparations, | J31: =IF(Synthèse!Q30<>"",Synthèse!Q30,"") ->  | K31: =IF(Synthèse!R30<>"",Synthèse!R30,"") ->  | L31: =IF(Synthèse!S30<>"",Synthèse!S30,"") -> 
C32: =IF(Synthèse!C31<>"",Synthèse!C31,"") ->  | D32: =IF(Synthèse!D31<>"",Synthèse!D31,"") -> Assurances, | J32: =IF(Synthèse!Q31<>"",Synthèse!Q31,"") ->  | K32: =IF(Synthèse!R31<>"",Synthèse!R31,"") ->  | L32: =IF(Synthèse!S31<>"",Synthèse!S31,"") -> 
C33: =IF(Synthèse!C32<>"",Synthèse!C32,"") ->  | D33: =IF(Synthèse!D32<>"",Synthèse!D32,"") -> Etudes et recherches. | J33: =IF(Synthèse!Q32<>"",Synthèse!Q32,"") ->  | K33: =IF(Synthèse!R32<>"",Synthèse!R32,"") ->  | L33: =IF(Synthèse!S32<>"",Synthèse!S32,"") -> 
C34: =IF(Synthèse!C33<>"",Synthèse!C33,"") -> Autres services extérieurs. | G34: =SUM(G35:G41) ->  | J34: =IF(Synthèse!Q33<>"",Synthèse!Q33,"") -> Autres produits de gestion courante. | M34: =SUM(M35:M36) -> 0
C35: =IF(Synthèse!C34<>"",Synthèse!C34,"") ->  | D35: =IF(Synthèse!D34<>"",Synthèse!D34,"") -> Frais extérieurs, publicité, déplacements, … | G35: =G4*'Charges Ext'!W4+'Charges Ext'!Y4 ->  | J35: =IF(Synthèse!Q34<>"",Synthèse!Q34,"") ->  | K35: =IF(Synthèse!R34<>"",Synthèse!R34,"") -> Redevances reçues pour brevets, licences, marques,
C36: =IF(Synthèse!C35<>"",Synthèse!C35,"") ->  | D36: =IF(Synthèse!D35<>"",Synthèse!D35,"") -> Honoraires et rémunérations d’intermédiaires, | J36: =IF(Synthèse!Q35<>"",Synthèse!Q35,"") ->  | K36: =IF(Synthèse!R35<>"",Synthèse!R35,"") -> Revenus des immeubles.
C37: =IF(Synthèse!C36<>"",Synthèse!C36,"") ->  | D37: =IF(Synthèse!D36<>"",Synthèse!D36,"") -> Publicité, relations publiques, | J37: =IF(Synthèse!Q36<>"",Synthèse!Q36,"") ->  | K37: =IF(Synthèse!R36<>"",Synthèse!R36,"") ->  | L37: =IF(Synthèse!S36<>"",Synthèse!S36,"") -> 
C38: =IF(Synthèse!C37<>"",Synthèse!C37,"") ->  | D38: =IF(Synthèse!D37<>"",Synthèse!D37,"") -> Transports de biens et transports du personnel, | J38: =IF(Synthèse!Q37<>"",Synthèse!Q37,"") ->  | K38: =IF(Synthèse!R37<>"",Synthèse!R37,"") ->  | L38: =IF(Synthèse!S37<>"",Synthèse!S37,"") -> 
C39: =IF(Synthèse!C38<>"",Synthèse!C38,"") ->  | D39: =IF(Synthèse!D38<>"",Synthèse!D38,"") -> Déplacements, missions, réceptions, | J39: =IF(Synthèse!Q38<>"",Synthèse!Q38,"") ->  | K39: =IF(Synthèse!R38<>"",Synthèse!R38,"") ->  | L39: =IF(Synthèse!S38<>"",Synthèse!S38,"") -> 
C40: =IF(Synthèse!C39<>"",Synthèse!C39,"") ->  | D40: =IF(Synthèse!D39<>"",Synthèse!D39,"") -> Frais postaux et de télécommunications, | J40: =IF(Synthèse!Q39<>"",Synthèse!Q39,"") ->  | K40: =IF(Synthèse!R39<>"",Synthèse!R39,"") ->  | L40: =IF(Synthèse!S39<>"",Synthèse!S39,"") -> 
C41: =IF(Synthèse!C40<>"",Synthèse!C40,"") ->  | D41: =IF(Synthèse!D40<>"",Synthèse!D40,"") -> Services bancaires. | J41: =IF(Synthèse!Q40<>"",Synthèse!Q40,"") ->  | K41: =IF(Synthèse!R40<>"",Synthèse!R40,"") ->  | L41: =IF(Synthèse!S40<>"",Synthèse!S40,"") -> 
C42: =IF(Synthèse!C41<>"",Synthèse!C41,"") -> Impôts, taxes et versements assimilés. | G42: =SUM(G43:G50) -> 0 | J42: =IF(Synthèse!Q41<>"",Synthèse!Q41,"") ->  | K42: =IF(Synthèse!R41<>"",Synthèse!R41,"") ->  | L42: =IF(Synthèse!S41<>"",Synthèse!S41,"") -> 
C43: =IF(Synthèse!C42<>"",Synthèse!C42,"") ->  | D43: =IF(Synthèse!D42<>"",Synthèse!D42,"") -> CET, | J43: =IF(Synthèse!Q42<>"",Synthèse!Q42,"") ->  | K43: =IF(Synthèse!R42<>"",Synthèse!R42,"") ->  | L43: =IF(Synthèse!S42<>"",Synthèse!S42,"") -> 
C44: =IF(Synthèse!C43<>"",Synthèse!C43,"") ->  | D44: =IF(Synthèse!D43<>"",Synthèse!D43,"") -> Taxe sur les salaires, | J44: =IF(Synthèse!Q43<>"",Synthèse!Q43,"") ->  | K44: =IF(Synthèse!R43<>"",Synthèse!R43,"") ->  | L44: =IF(Synthèse!S43<>"",Synthèse!S43,"") -> 
C45: =IF(Synthèse!C44<>"",Synthèse!C44,"") ->  | D45: =IF(Synthèse!D44<>"",Synthèse!D44,"") -> Taxe d’apprentissage, | J45: =IF(Synthèse!Q44<>"",Synthèse!Q44,"") ->  | K45: =IF(Synthèse!R44<>"",Synthèse!R44,"") ->  | L45: =IF(Synthèse!S44<>"",Synthèse!S44,"") -> 
C46: =IF(Synthèse!C45<>"",Synthèse!C45,"") ->  | D46: =IF(Synthèse!D45<>"",Synthèse!D45,"") -> Droits d’enregistrement, | J46: =IF(Synthèse!Q45<>"",Synthèse!Q45,"") ->  | K46: =IF(Synthèse!R45<>"",Synthèse!R45,"") ->  | L46: =IF(Synthèse!S45<>"",Synthèse!S45,"") -> 
C47: =IF(Synthèse!C46<>"",Synthèse!C46,"") ->  | D47: =IF(Synthèse!D46<>"",Synthèse!D46,"") -> Impôts locaux, | J47: =IF(Synthèse!Q46<>"",Synthèse!Q46,"") ->  | K47: =IF(Synthèse!R46<>"",Synthèse!R46,"") ->  | L47: =IF(Synthèse!S46<>"",Synthèse!S46,"") -> 
C48: =IF(Synthèse!C47<>"",Synthèse!C47,"") ->  | D48: =IF(Synthèse!D47<>"",Synthèse!D47,"") -> Contribution à la formation continue, | J48: =IF(Synthèse!Q47<>"",Synthèse!Q47,"") ->  | K48: =IF(Synthèse!R47<>"",Synthèse!R47,"") ->  | L48: =IF(Synthèse!S47<>"",Synthèse!S47,"") -> 
C49: =IF(Synthèse!C48<>"",Synthèse!C48,"") ->  | D49: =IF(Synthèse!D48<>"",Synthèse!D48,"") -> Contribution sociale de solidarité, | J49: =IF(Synthèse!Q48<>"",Synthèse!Q48,"") ->  | K49: =IF(Synthèse!R48<>"",Synthèse!R48,"") ->  | L49: =IF(Synthèse!S48<>"",Synthèse!S48,"") -> 
C50: =IF(Synthèse!C49<>"",Synthèse!C49,"") ->  | D50: =IF(Synthèse!D49<>"",Synthèse!D49,"") -> Timbres fiscaux. | J50: =IF(Synthèse!Q49<>"",Synthèse!Q49,"") ->  | K50: =IF(Synthèse!R49<>"",Synthèse!R49,"") ->  | L50: =IF(Synthèse!S49<>"",Synthèse!S49,"") -> 
C51: =IF(Synthèse!C50<>"",Synthèse!C50,"") -> Charges de personnel. | G51: =SUM(G52:G56) -> 11799.5924 | J51: =IF(Synthèse!Q50<>"",Synthèse!Q50,"") ->  | K51: =IF(Synthèse!R50<>"",Synthèse!R50,"") ->  | L51: =IF(Synthèse!S50<>"",Synthèse!S50,"") -> 
C52: =IF(Synthèse!C51<>"",Synthèse!C51,"") ->  | D52: =IF(Synthèse!D51<>"",Synthèse!D51,"") -> Rémunérations, salaires, | G52: =Activités!M15 -> 11799.5924 | J52: =IF(Synthèse!Q51<>"",Synthèse!Q51,"") ->  | K52: =IF(Synthèse!R51<>"",Synthèse!R51,"") ->  | L52: =IF(Synthèse!S51<>"",Synthèse!S51,"") -> 
C53: =IF(Synthèse!C52<>"",Synthèse!C52,"") ->  | D53: =IF(Synthèse!D52<>"",Synthèse!D52,"") -> Congés payés, | J53: =IF(Synthèse!Q52<>"",Synthèse!Q52,"") ->  | K53: =IF(Synthèse!R52<>"",Synthèse!R52,"") ->  | L53: =IF(Synthèse!S52<>"",Synthèse!S52,"") -> 
C54: =IF(Synthèse!C53<>"",Synthèse!C53,"") ->  | D54: =IF(Synthèse!D53<>"",Synthèse!D53,"") -> Primes, indemnités, | J54: =IF(Synthèse!Q53<>"",Synthèse!Q53,"") ->  | K54: =IF(Synthèse!R53<>"",Synthèse!R53,"") ->  | L54: =IF(Synthèse!S53<>"",Synthèse!S53,"") -> 
C55: =IF(Synthèse!C54<>"",Synthèse!C54,"") ->  | D55: =IF(Synthèse!D54<>"",Synthèse!D54,"") -> Charges sociales, | J55: =IF(Synthèse!Q54<>"",Synthèse!Q54,"") ->  | K55: =IF(Synthèse!R54<>"",Synthèse!R54,"") ->  | L55: =IF(Synthèse!S54<>"",Synthèse!S54,"") -> 
C56: =IF(Synthèse!C55<>"",Synthèse!C55,"") ->  | D56: =IF(Synthèse!D55<>"",Synthèse!D55,"") -> Œuvres sociales. | J56: =IF(Synthèse!Q55<>"",Synthèse!Q55,"") ->  | K56: =IF(Synthèse!R55<>"",Synthèse!R55,"") ->  | L56: =IF(Synthèse!S55<>"",Synthèse!S55,"") -> 
C57: =IF(Synthèse!C56<>"",Synthèse!C56,"") -> Autres charges de gestion courante. | G57: =SUM(G58:G60) ->  | J57: =IF(Synthèse!Q56<>"",Synthèse!Q56,"") ->  | K57: =IF(Synthèse!R56<>"",Synthèse!R56,"") ->  | L57: =IF(Synthèse!S56<>"",Synthèse!S56,"") -> 
C58: =IF(Synthèse!C57<>"",Synthèse!C57,"") ->  | D58: =IF(Synthèse!D57<>"",Synthèse!D57,"") -> Redevances versées pour brevets, licences, marques, | G58: =Licences!Y4+Licences!W4*FabCafé!G4 ->  | J58: =IF(Synthèse!Q57<>"",Synthèse!Q57,"") ->  | K58: =IF(Synthèse!R57<>"",Synthèse!R57,"") ->  | L58: =IF(Synthèse!S57<>"",Synthèse!S57,"") -> 
C59: =IF(Synthèse!C58<>"",Synthèse!C58,"") ->  | D59: =IF(Synthèse!D58<>"",Synthèse!D58,"") -> Pertes sur créances irrécouvrables, | J59: =IF(Synthèse!Q58<>"",Synthèse!Q58,"") ->  | K59: =IF(Synthèse!R58<>"",Synthèse!R58,"") ->  | L59: =IF(Synthèse!S58<>"",Synthèse!S58,"") -> 
C60: =IF(Synthèse!C59<>"",Synthèse!C59,"") ->  | D60: =IF(Synthèse!D59<>"",Synthèse!D59,"") -> Charges diverses. | J60: =IF(Synthèse!Q59<>"",Synthèse!Q59,"") ->  | K60: =IF(Synthèse!R59<>"",Synthèse!R59,"") ->  | L60: =IF(Synthèse!S59<>"",Synthèse!S59,"") -> 
C61: =IF(Synthèse!C60<>"",Synthèse!C60,"") -> Charges financières. | G61: =SUM(G62:G65) ->  | J61: =IF(Synthèse!Q60<>"",Synthèse!Q60,"") -> Produits financiers. | M61: =SUM(M62:M65) -> 0
C62: =IF(Synthèse!C61<>"",Synthèse!C61,"") ->  | D62: =IF(Synthèse!D61<>"",Synthèse!D61,"") -> Intérêts des emprunts, | G62: =Emprunt!O6*G4 ->  | J62: =IF(Synthèse!Q61<>"",Synthèse!Q61,"") ->  | K62: =IF(Synthèse!R61<>"",Synthèse!R61,"") -> Revenus des titres (dividendes, intérêts),
C63: =IF(Synthèse!C62<>"",Synthèse!C62,"") ->  | D63: =IF(Synthèse!D62<>"",Synthèse!D62,"") -> Escomptes accordés, | J63: =IF(Synthèse!Q62<>"",Synthèse!Q62,"") ->  | K63: =IF(Synthèse!R62<>"",Synthèse!R62,"") -> Intérêts des prêts,
C64: =IF(Synthèse!C63<>"",Synthèse!C63,"") ->  | D64: =IF(Synthèse!D63<>"",Synthèse!D63,"") -> Intérêts bancaires, | J64: =IF(Synthèse!Q63<>"",Synthèse!Q63,"") ->  | K64: =IF(Synthèse!R63<>"",Synthèse!R63,"") -> Escomptes obtenus,
C65: =IF(Synthèse!C64<>"",Synthèse!C64,"") ->  | D65: =IF(Synthèse!D64<>"",Synthèse!D64,"") -> Pertes de change. | J65: =IF(Synthèse!Q64<>"",Synthèse!Q64,"") ->  | K65: =IF(Synthèse!R64<>"",Synthèse!R64,"") -> Gains de change.
C66: =IF(Synthèse!C65<>"",Synthèse!C65,"") -> Charges exceptionnelles. | G66: =SUM(G67:G69) -> 0 | J66: =IF(Synthèse!Q65<>"",Synthèse!Q65,"") -> Produits exceptionnels. | M66: =SUM(M67:M68) -> 0
C67: =IF(Synthèse!C66<>"",Synthèse!C66,"") ->  | D67: =IF(Synthèse!D66<>"",Synthèse!D66,"") -> Valeurs comptables des éléments d’actif cédés, | J67: =IF(Synthèse!Q66<>"",Synthèse!Q66,"") ->  | K67: =IF(Synthèse!R66<>"",Synthèse!R66,"") -> Produits exceptionnels sur opérations de gestion,
C68: =IF(Synthèse!C67<>"",Synthèse!C67,"") ->  | D68: =IF(Synthèse!D67<>"",Synthèse!D67,"") -> Pénalités, amendes fiscales et pénales, | J68: =IF(Synthèse!Q67<>"",Synthèse!Q67,"") ->  | K68: =IF(Synthèse!R67<>"",Synthèse!R67,"") -> Prix de cession d’éléments d’actif.
C69: =IF(Synthèse!C68<>"",Synthèse!C68,"") ->  | D69: =IF(Synthèse!D68<>"",Synthèse!D68,"") -> Dons et libéralités. | J69: =IF(Synthèse!Q68<>"",Synthèse!Q68,"") ->  | K69: =IF(Synthèse!R68<>"",Synthèse!R68,"") -> 
C70: =IF(Synthèse!C69<>"",Synthèse!C69,"") -> Dotations. | G70: =SUM(G71:G73) -> 0 | J70: =IF(Synthèse!Q69<>"",Synthèse!Q69,"") -> Reprises. | M70: =SUM(M71:M73) -> 0
C71: =IF(Synthèse!C70<>"",Synthèse!C70,"") ->  | D71: =IF(Synthèse!D70<>"",Synthèse!D70,"") -> Dotations aux amortissements, aux dépréciations et aux provisions – Charges d’exploitation, | G71: 0 | J71: =IF(Synthèse!Q70<>"",Synthèse!Q70,"") ->  | K71: =IF(Synthèse!R70<>"",Synthèse!R70,"") -> Reprises sur amortissements, dépréciations et provisions – Produits d’exploitation,
C72: =IF(Synthèse!C71<>"",Synthèse!C71,"") ->  | D72: =IF(Synthèse!D71<>"",Synthèse!D71,"") -> Dotations aux amortissements, aux dépréciations et aux provisions – Charges financières, | J72: =IF(Synthèse!Q71<>"",Synthèse!Q71,"") ->  | K72: =IF(Synthèse!R71<>"",Synthèse!R71,"") -> Reprises sur dépréciations et provisions – Produits financiers,
C73: =IF(Synthèse!C72<>"",Synthèse!C72,"") ->  | D73: =IF(Synthèse!D72<>"",Synthèse!D72,"") -> Dotations aux amortissements, aux dépréciations et aux provisions – Charges exceptionnelles, | J73: =IF(Synthèse!Q72<>"",Synthèse!Q72,"") ->  | K73: =IF(Synthèse!R72<>"",Synthèse!R72,"") -> Reprises sur dépréciations et provisions – Produits
J74: =IF(Synthèse!Q73<>"",Synthèse!Q73,"") -> Transferts de charges. | M74: =SUM(M75:M77) -> 0
J75: =IF(Synthèse!Q74<>"",Synthèse!Q74,"") ->  | K75: =IF(Synthèse!R74<>"",Synthèse!R74,"") -> Transferts de charges d’exploitation,
J76: =IF(Synthèse!Q75<>"",Synthèse!Q75,"") ->  | K76: =IF(Synthèse!R75<>"",Synthèse!R75,"") -> Transferts de charges financières,
J77: =IF(Synthèse!Q76<>"",Synthèse!Q76,"") ->  | K77: =IF(Synthèse!R76<>"",Synthèse!R76,"") -> Transferts de charges exceptionnelles.
C79: Charges fixes | G79: =G70+G13+G66+G61+G57+G51+G42+G27 -> 
C80: Charges variables | G80: =G10+G34 -> 
G82: =G7 -> Année 0 | M82: =G82 -> Année 0
B83: Total des charges | G83: =SUM(G70,G66,G61,G57,G51,G42,G34,G27,G8) ->  | I83: Total des produits | M83: =SUM(M74,M70,M66,M61,M34,M8) -> 
B85: Solde créditeur : bénéfice | G85: =IF(M83>G83,M83-G83,"") ->  | I85: Solde débiteur : perte | M85: =IF(G83>M83,G83-M83,"") -> 
G88: =G82 -> Année 0
B89: Résultat net avant impôts | G89: =M83-G83 -> 

Sheet Boutiques (hidden)
B2: Boutiques
B4: Clé de répartition | G4: =Activités!Q19 -> 
B6: Charges | I6: Produits
G7: Année 0 | M7: =G7 -> Année 0
C8: =IF(Synthèse!C7<>"",Synthèse!C7,"") -> Achats | E8: =IF(Synthèse!E7<>"",Synthèse!E7,"") ->  | G8: =SUM(G9,G15) ->  | J8: =IF(Synthèse!Q7<>"",Synthèse!Q7,"") -> Ventes. | M8: =SUM(M9:M14) -> 
C9: =IF(Synthèse!C8<>"",Synthèse!C8,"") ->  | D9: =IF(Synthèse!D8<>"",Synthèse!D8,"") -> Achats stockés : | G9: =SUM(G10:G14) ->  | J9: =IF(Synthèse!Q8<>"",Synthèse!Q8,"") ->  | K9: =IF(Synthèse!R8<>"",Synthèse!R8,"") -> Ventes de produits finis | M9: ='Ventes Produits'!L5 -> 
C10: =IF(Synthèse!C9<>"",Synthèse!C9,"") ->  | D10: =IF(Synthèse!D9<>"",Synthèse!D9,"") ->  | E10: =IF(Synthèse!E9<>"",Synthèse!E9,"") -> Achats de marchandises, | G10: =Stock!Z4+Boutiques!G4*Stock!W4 ->  | J10: =IF(Synthèse!Q9<>"",Synthèse!Q9,"") ->  | K10: =IF(Synthèse!R9<>"",Synthèse!R9,"") -> Ventes de matières premières | M10: ='Ventes Stock'!M5-SUM('Ventes Stock'!#REF!) -> 
C11: =IF(Synthèse!C10<>"",Synthèse!C10,"") ->  | D11: =IF(Synthèse!D10<>"",Synthèse!D10,"") ->  | E11: =IF(Synthèse!E10<>"",Synthèse!E10,"") -> Achats de matières premières, | J11: =IF(Synthèse!Q10<>"",Synthèse!Q10,"") -> 
C12: =IF(Synthèse!C11<>"",Synthèse!C11,"") ->  | D12: =IF(Synthèse!D11<>"",Synthèse!D11,"") ->  | E12: =IF(Synthèse!E11<>"",Synthèse!E11,"") -> Achats d’emballages, | J12: =IF(Synthèse!Q11<>"",Synthèse!Q11,"") -> 
C13: =IF(Synthèse!C12<>"",Synthèse!C12,"") ->  | D13: =IF(Synthèse!D12<>"",Synthèse!D12,"") ->  | E13: =IF(Synthèse!E12<>"",Synthèse!E12,"") -> Achats de fournitures consommables : | G13: =Consommables!Z4+Consommables!W4*Boutiques!G4 ->  | J13: =IF(Synthèse!Q12<>"",Synthèse!Q12,"") ->  | K13: =IF(Synthèse!R12<>"",Synthèse!R12,"") -> Prestations de services | M13: 0
C14: =IF(Synthèse!C13<>"",Synthèse!C13,"") ->  | D14: =IF(Synthèse!D13<>"",Synthèse!D13,"") ->  | E14: =IF(Synthèse!E13<>"",Synthèse!E13,"") -> Achats d’études, équipements, travaux. | G14: 0 | J14: =IF(Synthèse!Q13<>"",Synthèse!Q13,"") ->  | K14: =IF(Synthèse!R13<>"",Synthèse!R13,"") -> Produits et activités annexes | M14: =SUM(M15:M25) -> 0
C15: =IF(Synthèse!C14<>"",Synthèse!C14,"") ->  | D15: =IF(Synthèse!D14<>"",Synthèse!D14,"") -> Achats non stockés : | G15: =SUM(G16:G20) -> 0 | J15: =IF(Synthèse!Q14<>"",Synthèse!Q14,"") ->  | K15: =IF(Synthèse!R14<>"",Synthèse!R14,"") ->  | L15: =IF(Synthèse!S14<>"",Synthèse!S14,"") -> Locations | M15: 0
C16: =IF(Synthèse!C15<>"",Synthèse!C15,"") ->  | D16: =IF(Synthèse!D15<>"",Synthèse!D15,"") ->  | E16: =IF(Synthèse!E15<>"",Synthèse!E15,"") -> Eau, | J16: =IF(Synthèse!Q15<>"",Synthèse!Q15,"") ->  | K16: =IF(Synthèse!R15<>"",Synthèse!R15,"") ->  | L16: =IF(Synthèse!S15<>"",Synthèse!S15,"") -> 
C17: =IF(Synthèse!C16<>"",Synthèse!C16,"") ->  | D17: =IF(Synthèse!D16<>"",Synthèse!D16,"") ->  | E17: =IF(Synthèse!E16<>"",Synthèse!E16,"") -> Energie, | J17: =IF(Synthèse!Q16<>"",Synthèse!Q16,"") ->  | K17: =IF(Synthèse!R16<>"",Synthèse!R16,"") ->  | L17: =IF(Synthèse!S16<>"",Synthèse!S16,"") -> 
C18: =IF(Synthèse!C17<>"",Synthèse!C17,"") ->  | D18: =IF(Synthèse!D17<>"",Synthèse!D17,"") ->  | E18: =IF(Synthèse!E17<>"",Synthèse!E17,"") -> Carburant, | J18: =IF(Synthèse!Q17<>"",Synthèse!Q17,"") ->  | K18: =IF(Synthèse!R17<>"",Synthèse!R17,"") ->  | L18: =IF(Synthèse!S17<>"",Synthèse!S17,"") -> 
C19: =IF(Synthèse!C18<>"",Synthèse!C18,"") ->  | D19: =IF(Synthèse!D18<>"",Synthèse!D18,"") ->  | E19: =IF(Synthèse!E18<>"",Synthèse!E18,"") -> Fournitures administratives, | J19: =IF(Synthèse!Q18<>"",Synthèse!Q18,"") ->  | K19: =IF(Synthèse!R18<>"",Synthèse!R18,"") ->  | L19: =IF(Synthèse!S18<>"",Synthèse!S18,"") -> 
C20: =IF(Synthèse!C19<>"",Synthèse!C19,"") ->  | D20: =IF(Synthèse!D19<>"",Synthèse!D19,"") ->  | E20: =IF(Synthèse!E19<>"",Synthèse!E19,"") -> Fournitures d’entretien, petit équipement. | J20: =IF(Synthèse!Q19<>"",Synthèse!Q19,"") ->  | K20: =IF(Synthèse!R19<>"",Synthèse!R19,"") ->  | L20: =IF(Synthèse!S19<>"",Synthèse!S19,"") -> 
L21: =IF(Synthèse!S20<>"",Synthèse!S20,"") -> Abonnements | M21: 0
K26: =IF(Synthèse!R25<>"",Synthèse!R25,"") -> 
C27: =IF(Synthèse!C26<>"",Synthèse!C26,"") -> Services extérieurs. | G27: =SUM(G28:G33) -> 
C28: =IF(Synthèse!C27<>"",Synthèse!C27,"") ->  | D28: =IF(Synthèse!D27<>"",Synthèse!D27,"") -> Locations immobilières et mobilières, | G28: =Loyers!Z4+Loyers!W4*Boutiques!G4 -> 
C29: =IF(Synthèse!C28<>"",Synthèse!C28,"") ->  | D29: =IF(Synthèse!D28<>"",Synthèse!D28,"") -> Redevances de crédit bail,
C30: =IF(Synthèse!C29<>"",Synthèse!C29,"") ->  | D30: =IF(Synthèse!D29<>"",Synthèse!D29,"") -> Charges locatives et de copropriété, | J30: =IF(Synthèse!Q29<>"",Synthèse!Q29,"") ->  | K30: =IF(Synthèse!R29<>"",Synthèse!R29,"") ->  | L30: =IF(Synthèse!S29<>"",Synthèse!S29,"") -> 
C31: =IF(Synthèse!C30<>"",Synthèse!C30,"") ->  | D31: =IF(Synthèse!D30<>"",Synthèse!D30,"") -> Entretien et réparations, | J31: =IF(Synthèse!Q30<>"",Synthèse!Q30,"") ->  | K31: =IF(Synthèse!R30<>"",Synthèse!R30,"") ->  | L31: =IF(Synthèse!S30<>"",Synthèse!S30,"") -> 
C32: =IF(Synthèse!C31<>"",Synthèse!C31,"") ->  | D32: =IF(Synthèse!D31<>"",Synthèse!D31,"") -> Assurances, | J32: =IF(Synthèse!Q31<>"",Synthèse!Q31,"") ->  | K32: =IF(Synthèse!R31<>"",Synthèse!R31,"") ->  | L32: =IF(Synthèse!S31<>"",Synthèse!S31,"") -> 
C33: =IF(Synthèse!C32<>"",Synthèse!C32,"") ->  | D33: =IF(Synthèse!D32<>"",Synthèse!D32,"") -> Etudes et recherches. | J33: =IF(Synthèse!Q32<>"",Synthèse!Q32,"") ->  | K33: =IF(Synthèse!R32<>"",Synthèse!R32,"") ->  | L33: =IF(Synthèse!S32<>"",Synthèse!S32,"") -> 
C34: =IF(Synthèse!C33<>"",Synthèse!C33,"") -> Autres services extérieurs. | G34: =SUM(G35:G41) ->  | J34: =IF(Synthèse!Q33<>"",Synthèse!Q33,"") -> Autres produits de gestion courante. | M34: =SUM(M35:M36) -> 0
C35: =IF(Synthèse!C34<>"",Synthèse!C34,"") ->  | D35: =IF(Synthèse!D34<>"",Synthèse!D34,"") -> Frais extérieurs, publicité, déplacements, … | G35: =G4*'Charges Ext'!W4+'Charges Ext'!Z4 ->  | J35: =IF(Synthèse!Q34<>"",Synthèse!Q34,"") ->  | K35: =IF(Synthèse!R34<>"",Synthèse!R34,"") -> Redevances reçues pour brevets, licences, marques,
C36: =IF(Synthèse!C35<>"",Synthèse!C35,"") ->  | D36: =IF(Synthèse!D35<>"",Synthèse!D35,"") -> Honoraires et rémunérations d’intermédiaires, | J36: =IF(Synthèse!Q35<>"",Synthèse!Q35,"") ->  | K36: =IF(Synthèse!R35<>"",Synthèse!R35,"") -> Revenus des immeubles.
C37: =IF(Synthèse!C36<>"",Synthèse!C36,"") ->  | D37: =IF(Synthèse!D36<>"",Synthèse!D36,"") -> Publicité, relations publiques, | J37: =IF(Synthèse!Q36<>"",Synthèse!Q36,"") ->  | K37: =IF(Synthèse!R36<>"",Synthèse!R36,"") ->  | L37: =IF(Synthèse!S36<>"",Synthèse!S36,"") -> 
C38: =IF(Synthèse!C37<>"",Synthèse!C37,"") ->  | D38: =IF(Synthèse!D37<>"",Synthèse!D37,"") -> Transports de biens et transports du personnel, | J38: =IF(Synthèse!Q37<>"",Synthèse!Q37,"") ->  | K38: =IF(Synthèse!R37<>"",Synthèse!R37,"") ->  | L38: =IF(Synthèse!S37<>"",Synthèse!S37,"") -> 
C39: =IF(Synthèse!C38<>"",Synthèse!C38,"") ->  | D39: =IF(Synthèse!D38<>"",Synthèse!D38,"") -> Déplacements, missions, réceptions, | J39: =IF(Synthèse!Q38<>"",Synthèse!Q38,"") ->  | K39: =IF(Synthèse!R38<>"",Synthèse!R38,"") ->  | L39: =IF(Synthèse!S38<>"",Synthèse!S38,"") -> 
C40: =IF(Synthèse!C39<>"",Synthèse!C39,"") ->  | D40: =IF(Synthèse!D39<>"",Synthèse!D39,"") -> Frais postaux et de télécommunications, | J40: =IF(Synthèse!Q39<>"",Synthèse!Q39,"") ->  | K40: =IF(Synthèse!R39<>"",Synthèse!R39,"") ->  | L40: =IF(Synthèse!S39<>"",Synthèse!S39,"") -> 
C41: =IF(Synthèse!C40<>"",Synthèse!C40,"") ->  | D41: =IF(Synthèse!D40<>"",Synthèse!D40,"") -> Services bancaires. | J41: =IF(Synthèse!Q40<>"",Synthèse!Q40,"") ->  | K41: =IF(Synthèse!R40<>"",Synthèse!R40,"") ->  | L41: =IF(Synthèse!S40<>"",Synthèse!S40,"") -> 
C42: =IF(Synthèse!C41<>"",Synthèse!C41,"") -> Impôts, taxes et versements assimilés. | G42: =SUM(G43:G50) -> 0 | J42: =IF(Synthèse!Q41<>"",Synthèse!Q41,"") ->  | K42: =IF(Synthèse!R41<>"",Synthèse!R41,"") ->  | L42: =IF(Synthèse!S41<>"",Synthèse!S41,"") -> 
C43: =IF(Synthèse!C42<>"",Synthèse!C42,"") ->  | D43: =IF(Synthèse!D42<>"",Synthèse!D42,"") -> CET, | J43: =IF(Synthèse!Q42<>"",Synthèse!Q42,"") ->  | K43: =IF(Synthèse!R42<>"",Synthèse!R42,"") ->  | L43: =IF(Synthèse!S42<>"",Synthèse!S42,"") -> 
C44: =IF(Synthèse!C43<>"",Synthèse!C43,"") ->  | D44: =IF(Synthèse!D43<>"",Synthèse!D43,"") -> Taxe sur les salaires, | J44: =IF(Synthèse!Q43<>"",Synthèse!Q43,"") ->  | K44: =IF(Synthèse!R43<>"",Synthèse!R43,"") ->  | L44: =IF(Synthèse!S43<>"",Synthèse!S43,"") -> 
C45: =IF(Synthèse!C44<>"",Synthèse!C44,"") ->  | D45: =IF(Synthèse!D44<>"",Synthèse!D44,"") -> Taxe d’apprentissage, | J45: =IF(Synthèse!Q44<>"",Synthèse!Q44,"") ->  | K45: =IF(Synthèse!R44<>"",Synthèse!R44,"") ->  | L45: =IF(Synthèse!S44<>"",Synthèse!S44,"") -> 
C46: =IF(Synthèse!C45<>"",Synthèse!C45,"") ->  | D46: =IF(Synthèse!D45<>"",Synthèse!D45,"") -> Droits d’enregistrement, | J46: =IF(Synthèse!Q45<>"",Synthèse!Q45,"") ->  | K46: =IF(Synthèse!R45<>"",Synthèse!R45,"") ->  | L46: =IF(Synthèse!S45<>"",Synthèse!S45,"") -> 
C47: =IF(Synthèse!C46<>"",Synthèse!C46,"") ->  | D47: =IF(Synthèse!D46<>"",Synthèse!D46,"") -> Impôts locaux, | J47: =IF(Synthèse!Q46<>"",Synthèse!Q46,"") ->  | K47: =IF(Synthèse!R46<>"",Synthèse!R46,"") ->  | L47: =IF(Synthèse!S46<>"",Synthèse!S46,"") -> 
C48: =IF(Synthèse!C47<>"",Synthèse!C47,"") ->  | D48: =IF(Synthèse!D47<>"",Synthèse!D47,"") -> Contribution à la formation continue, | J48: =IF(Synthèse!Q47<>"",Synthèse!Q47,"") ->  | K48: =IF(Synthèse!R47<>"",Synthèse!R47,"") ->  | L48: =IF(Synthèse!S47<>"",Synthèse!S47,"") -> 
C49: =IF(Synthèse!C48<>"",Synthèse!C48,"") ->  | D49: =IF(Synthèse!D48<>"",Synthèse!D48,"") -> Contribution sociale de solidarité, | J49: =IF(Synthèse!Q48<>"",Synthèse!Q48,"") ->  | K49: =IF(Synthèse!R48<>"",Synthèse!R48,"") ->  | L49: =IF(Synthèse!S48<>"",Synthèse!S48,"") -> 
C50: =IF(Synthèse!C49<>"",Synthèse!C49,"") ->  | D50: =IF(Synthèse!D49<>"",Synthèse!D49,"") -> Timbres fiscaux. | J50: =IF(Synthèse!Q49<>"",Synthèse!Q49,"") ->  | K50: =IF(Synthèse!R49<>"",Synthèse!R49,"") ->  | L50: =IF(Synthèse!S49<>"",Synthèse!S49,"") -> 
C51: =IF(Synthèse!C50<>"",Synthèse!C50,"") -> Charges de personnel. | G51: =SUM(G52:G56) -> 13734.3016 | J51: =IF(Synthèse!Q50<>"",Synthèse!Q50,"") ->  | K51: =IF(Synthèse!R50<>"",Synthèse!R50,"") ->  | L51: =IF(Synthèse!S50<>"",Synthèse!S50,"") -> 
C52: =IF(Synthèse!C51<>"",Synthèse!C51,"") ->  | D52: =IF(Synthèse!D51<>"",Synthèse!D51,"") -> Rémunérations, salaires, | G52: =Activités!Q15 -> 13734.3016 | J52: =IF(Synthèse!Q51<>"",Synthèse!Q51,"") ->  | K52: =IF(Synthèse!R51<>"",Synthèse!R51,"") ->  | L52: =IF(Synthèse!S51<>"",Synthèse!S51,"") -> 
C53: =IF(Synthèse!C52<>"",Synthèse!C52,"") ->  | D53: =IF(Synthèse!D52<>"",Synthèse!D52,"") -> Congés payés, | J53: =IF(Synthèse!Q52<>"",Synthèse!Q52,"") ->  | K53: =IF(Synthèse!R52<>"",Synthèse!R52,"") ->  | L53: =IF(Synthèse!S52<>"",Synthèse!S52,"") -> 
C54: =IF(Synthèse!C53<>"",Synthèse!C53,"") ->  | D54: =IF(Synthèse!D53<>"",Synthèse!D53,"") -> Primes, indemnités, | J54: =IF(Synthèse!Q53<>"",Synthèse!Q53,"") ->  | K54: =IF(Synthèse!R53<>"",Synthèse!R53,"") ->  | L54: =IF(Synthèse!S53<>"",Synthèse!S53,"") -> 
C55: =IF(Synthèse!C54<>"",Synthèse!C54,"") ->  | D55: =IF(Synthèse!D54<>"",Synthèse!D54,"") -> Charges sociales, | J55: =IF(Synthèse!Q54<>"",Synthèse!Q54,"") ->  | K55: =IF(Synthèse!R54<>"",Synthèse!R54,"") ->  | L55: =IF(Synthèse!S54<>"",Synthèse!S54,"") -> 
C56: =IF(Synthèse!C55<>"",Synthèse!C55,"") ->  | D56: =IF(Synthèse!D55<>"",Synthèse!D55,"") -> Œuvres sociales. | J56: =IF(Synthèse!Q55<>"",Synthèse!Q55,"") ->  | K56: =IF(Synthèse!R55<>"",Synthèse!R55,"") ->  | L56: =IF(Synthèse!S55<>"",Synthèse!S55,"") -> 
C57: =IF(Synthèse!C56<>"",Synthèse!C56,"") -> Autres charges de gestion courante. | G57: =SUM(G58:G60) ->  | J57: =IF(Synthèse!Q56<>"",Synthèse!Q56,"") ->  | K57: =IF(Synthèse!R56<>"",Synthèse!R56,"") ->  | L57: =IF(Synthèse!S56<>"",Synthèse!S56,"") -> 
C58: =IF(Synthèse!C57<>"",Synthèse!C57,"") ->  | D58: =IF(Synthèse!D57<>"",Synthèse!D57,"") -> Redevances versées pour brevets, licences, marques, | G58: =Licences!Z4+Licences!W4*Boutiques!G4 ->  | J58: =IF(Synthèse!Q57<>"",Synthèse!Q57,"") ->  | K58: =IF(Synthèse!R57<>"",Synthèse!R57,"") ->  | L58: =IF(Synthèse!S57<>"",Synthèse!S57,"") -> 
C59: =IF(Synthèse!C58<>"",Synthèse!C58,"") ->  | D59: =IF(Synthèse!D58<>"",Synthèse!D58,"") -> Pertes sur créances irrécouvrables, | J59: =IF(Synthèse!Q58<>"",Synthèse!Q58,"") ->  | K59: =IF(Synthèse!R58<>"",Synthèse!R58,"") ->  | L59: =IF(Synthèse!S58<>"",Synthèse!S58,"") -> 
C60: =IF(Synthèse!C59<>"",Synthèse!C59,"") ->  | D60: =IF(Synthèse!D59<>"",Synthèse!D59,"") -> Charges diverses. | J60: =IF(Synthèse!Q59<>"",Synthèse!Q59,"") ->  | K60: =IF(Synthèse!R59<>"",Synthèse!R59,"") ->  | L60: =IF(Synthèse!S59<>"",Synthèse!S59,"") -> 
C61: =IF(Synthèse!C60<>"",Synthèse!C60,"") -> Charges financières. | G61: =SUM(G62:G65) ->  | J61: =IF(Synthèse!Q60<>"",Synthèse!Q60,"") -> Produits financiers. | M61: =SUM(M62:M65) -> 0
C62: =IF(Synthèse!C61<>"",Synthèse!C61,"") ->  | D62: =IF(Synthèse!D61<>"",Synthèse!D61,"") -> Intérêts des emprunts, | G62: =Emprunt!O6*G4 ->  | J62: =IF(Synthèse!Q61<>"",Synthèse!Q61,"") ->  | K62: =IF(Synthèse!R61<>"",Synthèse!R61,"") -> Revenus des titres (dividendes, intérêts),
C63: =IF(Synthèse!C62<>"",Synthèse!C62,"") ->  | D63: =IF(Synthèse!D62<>"",Synthèse!D62,"") -> Escomptes accordés, | J63: =IF(Synthèse!Q62<>"",Synthèse!Q62,"") ->  | K63: =IF(Synthèse!R62<>"",Synthèse!R62,"") -> Intérêts des prêts,
C64: =IF(Synthèse!C63<>"",Synthèse!C63,"") ->  | D64: =IF(Synthèse!D63<>"",Synthèse!D63,"") -> Intérêts bancaires, | J64: =IF(Synthèse!Q63<>"",Synthèse!Q63,"") ->  | K64: =IF(Synthèse!R63<>"",Synthèse!R63,"") -> Escomptes obtenus,
C65: =IF(Synthèse!C64<>"",Synthèse!C64,"") ->  | D65: =IF(Synthèse!D64<>"",Synthèse!D64,"") -> Pertes de change. | J65: =IF(Synthèse!Q64<>"",Synthèse!Q64,"") ->  | K65: =IF(Synthèse!R64<>"",Synthèse!R64,"") -> Gains de change.
C66: =IF(Synthèse!C65<>"",Synthèse!C65,"") -> Charges exceptionnelles. | G66: =SUM(G67:G69) -> 0 | J66: =IF(Synthèse!Q65<>"",Synthèse!Q65,"") -> Produits exceptionnels. | M66: =SUM(M67:M68) -> 0
C67: =IF(Synthèse!C66<>"",Synthèse!C66,"") ->  | D67: =IF(Synthèse!D66<>"",Synthèse!D66,"") -> Valeurs comptables des éléments d’actif cédés, | J67: =IF(Synthèse!Q66<>"",Synthèse!Q66,"") ->  | K67: =IF(Synthèse!R66<>"",Synthèse!R66,"") -> Produits exceptionnels sur opérations de gestion,
C68: =IF(Synthèse!C67<>"",Synthèse!C67,"") ->  | D68: =IF(Synthèse!D67<>"",Synthèse!D67,"") -> Pénalités, amendes fiscales et pénales, | J68: =IF(Synthèse!Q67<>"",Synthèse!Q67,"") ->  | K68: =IF(Synthèse!R67<>"",Synthèse!R67,"") -> Prix de cession d’éléments d’actif.
C69: =IF(Synthèse!C68<>"",Synthèse!C68,"") ->  | D69: =IF(Synthèse!D68<>"",Synthèse!D68,"") -> Dons et libéralités. | J69: =IF(Synthèse!Q68<>"",Synthèse!Q68,"") ->  | K69: =IF(Synthèse!R68<>"",Synthèse!R68,"") -> 
C70: =IF(Synthèse!C69<>"",Synthèse!C69,"") -> Dotations. | G70: =SUM(G71:G73) -> 0 | J70: =IF(Synthèse!Q69<>"",Synthèse!Q69,"") -> Reprises. | M70: =SUM(M71:M73) -> 0
C71: =IF(Synthèse!C70<>"",Synthèse!C70,"") ->  | D71: =IF(Synthèse!D70<>"",Synthèse!D70,"") -> Dotations aux amortissements, aux dépréciations et aux provisions – Charges d’exploitation, | G71: 0 | J71: =IF(Synthèse!Q70<>"",Synthèse!Q70,"") ->  | K71: =IF(Synthèse!R70<>"",Synthèse!R70,"") -> Reprises sur amortissements, dépréciations et provisions – Produits d’exploitation,
C72: =IF(Synthèse!C71<>"",Synthèse!C71,"") ->  | D72: =IF(Synthèse!D71<>"",Synthèse!D71,"") -> Dotations aux amortissements, aux dépréciations et aux provisions – Charges financières, | J72: =IF(Synthèse!Q71<>"",Synthèse!Q71,"") ->  | K72: =IF(Synthèse!R71<>"",Synthèse!R71,"") -> Reprises sur dépréciations et provisions – Produits financiers,
C73: =IF(Synthèse!C72<>"",Synthèse!C72,"") ->  | D73: =IF(Synthèse!D72<>"",Synthèse!D72,"") -> Dotations aux amortissements, aux dépréciations et aux provisions – Charges exceptionnelles, | J73: =IF(Synthèse!Q72<>"",Synthèse!Q72,"") ->  | K73: =IF(Synthèse!R72<>"",Synthèse!R72,"") -> Reprises sur dépréciations et provisions – Produits
J74: =IF(Synthèse!Q73<>"",Synthèse!Q73,"") -> Transferts de charges. | M74: =SUM(M75:M77) -> 0
J75: =IF(Synthèse!Q74<>"",Synthèse!Q74,"") ->  | K75: =IF(Synthèse!R74<>"",Synthèse!R74,"") -> Transferts de charges d’exploitation,
J76: =IF(Synthèse!Q75<>"",Synthèse!Q75,"") ->  | K76: =IF(Synthèse!R75<>"",Synthèse!R75,"") -> Transferts de charges financières,
J77: =IF(Synthèse!Q76<>"",Synthèse!Q76,"") ->  | K77: =IF(Synthèse!R76<>"",Synthèse!R76,"") -> Transferts de charges exceptionnelles.
C79: Charges fixes | G79: =G70+G13+G66+G61+G57+G51+G42+G27 -> 
C80: Charges variables | G80: =G10+G34 -> 
G82: =G7 -> Année 0 | M82: =G82 -> Année 0
B83: Total des charges | G83: =SUM(G70,G66,G61,G57,G51,G42,G34,G27,G8) ->  | I83: Total des produits | M83: =SUM(M74,M70,M66,M61,M34,M8) -> 
B85: Solde créditeur : bénéfice | G85: =IF(M83>G83,M83-G83,"") ->  | I85: Solde débiteur : perte | M85: =IF(G83>M83,G83-M83,"") -> 
G88: =G82 -> Année 0
B89: Résultat net avant impôts | G89: =M83-G83 -> 

Sheet Coworking (hidden)
B2: Coworking
B4: Clé de répartition | G4: =Activités!U19 -> 
B6: Charges | I6: Produits
G7: Année 0 | M7: =G7 -> Année 0
C8: =IF(Synthèse!C7<>"",Synthèse!C7,"") -> Achats | E8: =IF(Synthèse!E7<>"",Synthèse!E7,"") ->  | G8: =SUM(G9,G15) ->  | J8: =IF(Synthèse!Q7<>"",Synthèse!Q7,"") -> Ventes. | M8: =SUM(M9:M14) -> 
C9: =IF(Synthèse!C8<>"",Synthèse!C8,"") ->  | D9: =IF(Synthèse!D8<>"",Synthèse!D8,"") -> Achats stockés : | G9: =SUM(G10:G14) ->  | J9: =IF(Synthèse!Q8<>"",Synthèse!Q8,"") ->  | K9: =IF(Synthèse!R8<>"",Synthèse!R8,"") -> Ventes de produits finis | M9: ='Ventes Produits'!L5 -> 
C10: =IF(Synthèse!C9<>"",Synthèse!C9,"") ->  | D10: =IF(Synthèse!D9<>"",Synthèse!D9,"") ->  | E10: =IF(Synthèse!E9<>"",Synthèse!E9,"") -> Achats de marchandises, | G10: =Stock!AA4+Coworking!G4*Stock!W4 ->  | J10: =IF(Synthèse!Q9<>"",Synthèse!Q9,"") ->  | K10: =IF(Synthèse!R9<>"",Synthèse!R9,"") -> Ventes de matières premières | M10: 0
C11: =IF(Synthèse!C10<>"",Synthèse!C10,"") ->  | D11: =IF(Synthèse!D10<>"",Synthèse!D10,"") ->  | E11: =IF(Synthèse!E10<>"",Synthèse!E10,"") -> Achats de matières premières, | J11: =IF(Synthèse!Q10<>"",Synthèse!Q10,"") -> 
C12: =IF(Synthèse!C11<>"",Synthèse!C11,"") ->  | D12: =IF(Synthèse!D11<>"",Synthèse!D11,"") ->  | E12: =IF(Synthèse!E11<>"",Synthèse!E11,"") -> Achats d’emballages, | J12: =IF(Synthèse!Q11<>"",Synthèse!Q11,"") -> 
C13: =IF(Synthèse!C12<>"",Synthèse!C12,"") ->  | D13: =IF(Synthèse!D12<>"",Synthèse!D12,"") ->  | E13: =IF(Synthèse!E12<>"",Synthèse!E12,"") -> Achats de fournitures consommables : | G13: =Consommables!AA4+Consommables!W4*Coworking!G4 ->  | J13: =IF(Synthèse!Q12<>"",Synthèse!Q12,"") ->  | K13: =IF(Synthèse!R12<>"",Synthèse!R12,"") -> Prestations de services | M13: =Prestations!M12*Pilotage!M36 -> 0
C14: =IF(Synthèse!C13<>"",Synthèse!C13,"") ->  | D14: =IF(Synthèse!D13<>"",Synthèse!D13,"") ->  | E14: =IF(Synthèse!E13<>"",Synthèse!E13,"") -> Achats d’études, équipements, travaux. | G14: 0 | J14: =IF(Synthèse!Q13<>"",Synthèse!Q13,"") ->  | K14: =IF(Synthèse!R13<>"",Synthèse!R13,"") -> Produits et activités annexes | M14: =SUM(M15:M25) -> 0
C15: =IF(Synthèse!C14<>"",Synthèse!C14,"") ->  | D15: =IF(Synthèse!D14<>"",Synthèse!D14,"") -> Achats non stockés : | G15: =SUM(G16:G20) -> 0 | J15: =IF(Synthèse!Q14<>"",Synthèse!Q14,"") ->  | K15: =IF(Synthèse!R14<>"",Synthèse!R14,"") ->  | L15: =IF(Synthèse!S14<>"",Synthèse!S14,"") -> Locations | M15: 0
C16: =IF(Synthèse!C15<>"",Synthèse!C15,"") ->  | D16: =IF(Synthèse!D15<>"",Synthèse!D15,"") ->  | E16: =IF(Synthèse!E15<>"",Synthèse!E15,"") -> Eau, | J16: =IF(Synthèse!Q15<>"",Synthèse!Q15,"") ->  | K16: =IF(Synthèse!R15<>"",Synthèse!R15,"") ->  | L16: =IF(Synthèse!S15<>"",Synthèse!S15,"") -> 
C17: =IF(Synthèse!C16<>"",Synthèse!C16,"") ->  | D17: =IF(Synthèse!D16<>"",Synthèse!D16,"") ->  | E17: =IF(Synthèse!E16<>"",Synthèse!E16,"") -> Energie, | J17: =IF(Synthèse!Q16<>"",Synthèse!Q16,"") ->  | K17: =IF(Synthèse!R16<>"",Synthèse!R16,"") ->  | L17: =IF(Synthèse!S16<>"",Synthèse!S16,"") -> 
C18: =IF(Synthèse!C17<>"",Synthèse!C17,"") ->  | D18: =IF(Synthèse!D17<>"",Synthèse!D17,"") ->  | E18: =IF(Synthèse!E17<>"",Synthèse!E17,"") -> Carburant, | J18: =IF(Synthèse!Q17<>"",Synthèse!Q17,"") ->  | K18: =IF(Synthèse!R17<>"",Synthèse!R17,"") ->  | L18: =IF(Synthèse!S17<>"",Synthèse!S17,"") -> 
C19: =IF(Synthèse!C18<>"",Synthèse!C18,"") ->  | D19: =IF(Synthèse!D18<>"",Synthèse!D18,"") ->  | E19: =IF(Synthèse!E18<>"",Synthèse!E18,"") -> Fournitures administratives, | J19: =IF(Synthèse!Q18<>"",Synthèse!Q18,"") ->  | K19: =IF(Synthèse!R18<>"",Synthèse!R18,"") ->  | L19: =IF(Synthèse!S18<>"",Synthèse!S18,"") -> 
C20: =IF(Synthèse!C19<>"",Synthèse!C19,"") ->  | D20: =IF(Synthèse!D19<>"",Synthèse!D19,"") ->  | E20: =IF(Synthèse!E19<>"",Synthèse!E19,"") -> Fournitures d’entretien, petit équipement. | J20: =IF(Synthèse!Q19<>"",Synthèse!Q19,"") ->  | K20: =IF(Synthèse!R19<>"",Synthèse!R19,"") ->  | L20: =IF(Synthèse!S19<>"",Synthèse!S19,"") -> 
L21: =IF(Synthèse!S20<>"",Synthèse!S20,"") -> Abonnements | M21: 0
K26: =IF(Synthèse!R25<>"",Synthèse!R25,"") -> 
C27: =IF(Synthèse!C26<>"",Synthèse!C26,"") -> Services extérieurs. | G27: =SUM(G28:G33) -> 
C28: =IF(Synthèse!C27<>"",Synthèse!C27,"") ->  | D28: =IF(Synthèse!D27<>"",Synthèse!D27,"") -> Locations immobilières et mobilières, | G28: =Loyers!AA4+Loyers!W4*Coworking!G4 -> 
C29: =IF(Synthèse!C28<>"",Synthèse!C28,"") ->  | D29: =IF(Synthèse!D28<>"",Synthèse!D28,"") -> Redevances de crédit bail,
C30: =IF(Synthèse!C29<>"",Synthèse!C29,"") ->  | D30: =IF(Synthèse!D29<>"",Synthèse!D29,"") -> Charges locatives et de copropriété, | J30: =IF(Synthèse!Q29<>"",Synthèse!Q29,"") ->  | K30: =IF(Synthèse!R29<>"",Synthèse!R29,"") ->  | L30: =IF(Synthèse!S29<>"",Synthèse!S29,"") -> 
C31: =IF(Synthèse!C30<>"",Synthèse!C30,"") ->  | D31: =IF(Synthèse!D30<>"",Synthèse!D30,"") -> Entretien et réparations, | J31: =IF(Synthèse!Q30<>"",Synthèse!Q30,"") ->  | K31: =IF(Synthèse!R30<>"",Synthèse!R30,"") ->  | L31: =IF(Synthèse!S30<>"",Synthèse!S30,"") -> 
C32: =IF(Synthèse!C31<>"",Synthèse!C31,"") ->  | D32: =IF(Synthèse!D31<>"",Synthèse!D31,"") -> Assurances, | J32: =IF(Synthèse!Q31<>"",Synthèse!Q31,"") ->  | K32: =IF(Synthèse!R31<>"",Synthèse!R31,"") ->  | L32: =IF(Synthèse!S31<>"",Synthèse!S31,"") -> 
C33: =IF(Synthèse!C32<>"",Synthèse!C32,"") ->  | D33: =IF(Synthèse!D32<>"",Synthèse!D32,"") -> Etudes et recherches. | J33: =IF(Synthèse!Q32<>"",Synthèse!Q32,"") ->  | K33: =IF(Synthèse!R32<>"",Synthèse!R32,"") ->  | L33: =IF(Synthèse!S32<>"",Synthèse!S32,"") -> 
C34: =IF(Synthèse!C33<>"",Synthèse!C33,"") -> Autres services extérieurs. | G34: =SUM(G35:G41) ->  | J34: =IF(Synthèse!Q33<>"",Synthèse!Q33,"") -> Autres produits de gestion courante. | M34: =SUM(M35:M36) -> 0
C35: =IF(Synthèse!C34<>"",Synthèse!C34,"") ->  | D35: =IF(Synthèse!D34<>"",Synthèse!D34,"") -> Frais extérieurs, publicité, déplacements, … | G35: =G4*'Charges Ext'!W4+'Charges Ext'!AA4 ->  | J35: =IF(Synthèse!Q34<>"",Synthèse!Q34,"") ->  | K35: =IF(Synthèse!R34<>"",Synthèse!R34,"") -> Redevances reçues pour brevets, licences, marques,
C36: =IF(Synthèse!C35<>"",Synthèse!C35,"") ->  | D36: =IF(Synthèse!D35<>"",Synthèse!D35,"") -> Honoraires et rémunérations d’intermédiaires, | J36: =IF(Synthèse!Q35<>"",Synthèse!Q35,"") ->  | K36: =IF(Synthèse!R35<>"",Synthèse!R35,"") -> Revenus des immeubles.
C37: =IF(Synthèse!C36<>"",Synthèse!C36,"") ->  | D37: =IF(Synthèse!D36<>"",Synthèse!D36,"") -> Publicité, relations publiques, | J37: =IF(Synthèse!Q36<>"",Synthèse!Q36,"") ->  | K37: =IF(Synthèse!R36<>"",Synthèse!R36,"") ->  | L37: =IF(Synthèse!S36<>"",Synthèse!S36,"") -> 
C38: =IF(Synthèse!C37<>"",Synthèse!C37,"") ->  | D38: =IF(Synthèse!D37<>"",Synthèse!D37,"") -> Transports de biens et transports du personnel, | J38: =IF(Synthèse!Q37<>"",Synthèse!Q37,"") ->  | K38: =IF(Synthèse!R37<>"",Synthèse!R37,"") ->  | L38: =IF(Synthèse!S37<>"",Synthèse!S37,"") -> 
C39: =IF(Synthèse!C38<>"",Synthèse!C38,"") ->  | D39: =IF(Synthèse!D38<>"",Synthèse!D38,"") -> Déplacements, missions, réceptions, | J39: =IF(Synthèse!Q38<>"",Synthèse!Q38,"") ->  | K39: =IF(Synthèse!R38<>"",Synthèse!R38,"") ->  | L39: =IF(Synthèse!S38<>"",Synthèse!S38,"") -> 
C40: =IF(Synthèse!C39<>"",Synthèse!C39,"") ->  | D40: =IF(Synthèse!D39<>"",Synthèse!D39,"") -> Frais postaux et de télécommunications, | J40: =IF(Synthèse!Q39<>"",Synthèse!Q39,"") ->  | K40: =IF(Synthèse!R39<>"",Synthèse!R39,"") ->  | L40: =IF(Synthèse!S39<>"",Synthèse!S39,"") -> 
C41: =IF(Synthèse!C40<>"",Synthèse!C40,"") ->  | D41: =IF(Synthèse!D40<>"",Synthèse!D40,"") -> Services bancaires. | J41: =IF(Synthèse!Q40<>"",Synthèse!Q40,"") ->  | K41: =IF(Synthèse!R40<>"",Synthèse!R40,"") ->  | L41: =IF(Synthèse!S40<>"",Synthèse!S40,"") -> 
C42: =IF(Synthèse!C41<>"",Synthèse!C41,"") -> Impôts, taxes et versements assimilés. | G42: =SUM(G43:G50) -> 0 | J42: =IF(Synthèse!Q41<>"",Synthèse!Q41,"") ->  | K42: =IF(Synthèse!R41<>"",Synthèse!R41,"") ->  | L42: =IF(Synthèse!S41<>"",Synthèse!S41,"") -> 
C43: =IF(Synthèse!C42<>"",Synthèse!C42,"") ->  | D43: =IF(Synthèse!D42<>"",Synthèse!D42,"") -> CET, | J43: =IF(Synthèse!Q42<>"",Synthèse!Q42,"") ->  | K43: =IF(Synthèse!R42<>"",Synthèse!R42,"") ->  | L43: =IF(Synthèse!S42<>"",Synthèse!S42,"") -> 
C44: =IF(Synthèse!C43<>"",Synthèse!C43,"") ->  | D44: =IF(Synthèse!D43<>"",Synthèse!D43,"") -> Taxe sur les salaires, | J44: =IF(Synthèse!Q43<>"",Synthèse!Q43,"") ->  | K44: =IF(Synthèse!R43<>"",Synthèse!R43,"") ->  | L44: =IF(Synthèse!S43<>"",Synthèse!S43,"") -> 
C45: =IF(Synthèse!C44<>"",Synthèse!C44,"") ->  | D45: =IF(Synthèse!D44<>"",Synthèse!D44,"") -> Taxe d’apprentissage, | J45: =IF(Synthèse!Q44<>"",Synthèse!Q44,"") ->  | K45: =IF(Synthèse!R44<>"",Synthèse!R44,"") ->  | L45: =IF(Synthèse!S44<>"",Synthèse!S44,"") -> 
C46: =IF(Synthèse!C45<>"",Synthèse!C45,"") ->  | D46: =IF(Synthèse!D45<>"",Synthèse!D45,"") -> Droits d’enregistrement, | J46: =IF(Synthèse!Q45<>"",Synthèse!Q45,"") ->  | K46: =IF(Synthèse!R45<>"",Synthèse!R45,"") ->  | L46: =IF(Synthèse!S45<>"",Synthèse!S45,"") -> 
C47: =IF(Synthèse!C46<>"",Synthèse!C46,"") ->  | D47: =IF(Synthèse!D46<>"",Synthèse!D46,"") -> Impôts locaux, | J47: =IF(Synthèse!Q46<>"",Synthèse!Q46,"") ->  | K47: =IF(Synthèse!R46<>"",Synthèse!R46,"") ->  | L47: =IF(Synthèse!S46<>"",Synthèse!S46,"") -> 
C48: =IF(Synthèse!C47<>"",Synthèse!C47,"") ->  | D48: =IF(Synthèse!D47<>"",Synthèse!D47,"") -> Contribution à la formation continue, | J48: =IF(Synthèse!Q47<>"",Synthèse!Q47,"") ->  | K48: =IF(Synthèse!R47<>"",Synthèse!R47,"") ->  | L48: =IF(Synthèse!S47<>"",Synthèse!S47,"") -> 
C49: =IF(Synthèse!C48<>"",Synthèse!C48,"") ->  | D49: =IF(Synthèse!D48<>"",Synthèse!D48,"") -> Contribution sociale de solidarité, | J49: =IF(Synthèse!Q48<>"",Synthèse!Q48,"") ->  | K49: =IF(Synthèse!R48<>"",Synthèse!R48,"") ->  | L49: =IF(Synthèse!S48<>"",Synthèse!S48,"") -> 
C50: =IF(Synthèse!C49<>"",Synthèse!C49,"") ->  | D50: =IF(Synthèse!D49<>"",Synthèse!D49,"") -> Timbres fiscaux. | J50: =IF(Synthèse!Q49<>"",Synthèse!Q49,"") ->  | K50: =IF(Synthèse!R49<>"",Synthèse!R49,"") ->  | L50: =IF(Synthèse!S49<>"",Synthèse!S49,"") -> 
C51: =IF(Synthèse!C50<>"",Synthèse!C50,"") -> Charges de personnel. | G51: =SUM(G52:G56) -> 2287.3836 | J51: =IF(Synthèse!Q50<>"",Synthèse!Q50,"") ->  | K51: =IF(Synthèse!R50<>"",Synthèse!R50,"") ->  | L51: =IF(Synthèse!S50<>"",Synthèse!S50,"") -> 
C52: =IF(Synthèse!C51<>"",Synthèse!C51,"") ->  | D52: =IF(Synthèse!D51<>"",Synthèse!D51,"") -> Rémunérations, salaires, | G52: =Activités!U15 -> 2287.3836 | J52: =IF(Synthèse!Q51<>"",Synthèse!Q51,"") ->  | K52: =IF(Synthèse!R51<>"",Synthèse!R51,"") ->  | L52: =IF(Synthèse!S51<>"",Synthèse!S51,"") -> 
C53: =IF(Synthèse!C52<>"",Synthèse!C52,"") ->  | D53: =IF(Synthèse!D52<>"",Synthèse!D52,"") -> Congés payés, | J53: =IF(Synthèse!Q52<>"",Synthèse!Q52,"") ->  | K53: =IF(Synthèse!R52<>"",Synthèse!R52,"") ->  | L53: =IF(Synthèse!S52<>"",Synthèse!S52,"") -> 
C54: =IF(Synthèse!C53<>"",Synthèse!C53,"") ->  | D54: =IF(Synthèse!D53<>"",Synthèse!D53,"") -> Primes, indemnités, | J54: =IF(Synthèse!Q53<>"",Synthèse!Q53,"") ->  | K54: =IF(Synthèse!R53<>"",Synthèse!R53,"") ->  | L54: =IF(Synthèse!S53<>"",Synthèse!S53,"") -> 
C55: =IF(Synthèse!C54<>"",Synthèse!C54,"") ->  | D55: =IF(Synthèse!D54<>"",Synthèse!D54,"") -> Charges sociales, | J55: =IF(Synthèse!Q54<>"",Synthèse!Q54,"") ->  | K55: =IF(Synthèse!R54<>"",Synthèse!R54,"") ->  | L55: =IF(Synthèse!S54<>"",Synthèse!S54,"") -> 
C56: =IF(Synthèse!C55<>"",Synthèse!C55,"") ->  | D56: =IF(Synthèse!D55<>"",Synthèse!D55,"") -> Œuvres sociales. | J56: =IF(Synthèse!Q55<>"",Synthèse!Q55,"") ->  | K56: =IF(Synthèse!R55<>"",Synthèse!R55,"") ->  | L56: =IF(Synthèse!S55<>"",Synthèse!S55,"") -> 
C57: =IF(Synthèse!C56<>"",Synthèse!C56,"") -> Autres charges de gestion courante. | G57: =SUM(G58:G60) ->  | J57: =IF(Synthèse!Q56<>"",Synthèse!Q56,"") ->  | K57: =IF(Synthèse!R56<>"",Synthèse!R56,"") ->  | L57: =IF(Synthèse!S56<>"",Synthèse!S56,"") -> 
C58: =IF(Synthèse!C57<>"",Synthèse!C57,"") ->  | D58: =IF(Synthèse!D57<>"",Synthèse!D57,"") -> Redevances versées pour brevets, licences, marques, | G58: =Licences!AA4+Licences!W4*Coworking!G4 ->  | J58: =IF(Synthèse!Q57<>"",Synthèse!Q57,"") ->  | K58: =IF(Synthèse!R57<>"",Synthèse!R57,"") ->  | L58: =IF(Synthèse!S57<>"",Synthèse!S57,"") -> 
C59: =IF(Synthèse!C58<>"",Synthèse!C58,"") ->  | D59: =IF(Synthèse!D58<>"",Synthèse!D58,"") -> Pertes sur créances irrécouvrables, | J59: =IF(Synthèse!Q58<>"",Synthèse!Q58,"") ->  | K59: =IF(Synthèse!R58<>"",Synthèse!R58,"") ->  | L59: =IF(Synthèse!S58<>"",Synthèse!S58,"") -> 
C60: =IF(Synthèse!C59<>"",Synthèse!C59,"") ->  | D60: =IF(Synthèse!D59<>"",Synthèse!D59,"") -> Charges diverses. | J60: =IF(Synthèse!Q59<>"",Synthèse!Q59,"") ->  | K60: =IF(Synthèse!R59<>"",Synthèse!R59,"") ->  | L60: =IF(Synthèse!S59<>"",Synthèse!S59,"") -> 
C61: =IF(Synthèse!C60<>"",Synthèse!C60,"") -> Charges financières. | G61: =SUM(G62:G65) ->  | J61: =IF(Synthèse!Q60<>"",Synthèse!Q60,"") -> Produits financiers. | M61: =SUM(M62:M65) -> 0
C62: =IF(Synthèse!C61<>"",Synthèse!C61,"") ->  | D62: =IF(Synthèse!D61<>"",Synthèse!D61,"") -> Intérêts des emprunts, | G62: =Emprunt!O6*G4 ->  | J62: =IF(Synthèse!Q61<>"",Synthèse!Q61,"") ->  | K62: =IF(Synthèse!R61<>"",Synthèse!R61,"") -> Revenus des titres (dividendes, intérêts),
C63: =IF(Synthèse!C62<>"",Synthèse!C62,"") ->  | D63: =IF(Synthèse!D62<>"",Synthèse!D62,"") -> Escomptes accordés, | J63: =IF(Synthèse!Q62<>"",Synthèse!Q62,"") ->  | K63: =IF(Synthèse!R62<>"",Synthèse!R62,"") -> Intérêts des prêts,
C64: =IF(Synthèse!C63<>"",Synthèse!C63,"") ->  | D64: =IF(Synthèse!D63<>"",Synthèse!D63,"") -> Intérêts bancaires, | J64: =IF(Synthèse!Q63<>"",Synthèse!Q63,"") ->  | K64: =IF(Synthèse!R63<>"",Synthèse!R63,"") -> Escomptes obtenus,
C65: =IF(Synthèse!C64<>"",Synthèse!C64,"") ->  | D65: =IF(Synthèse!D64<>"",Synthèse!D64,"") -> Pertes de change. | J65: =IF(Synthèse!Q64<>"",Synthèse!Q64,"") ->  | K65: =IF(Synthèse!R64<>"",Synthèse!R64,"") -> Gains de change.
C66: =IF(Synthèse!C65<>"",Synthèse!C65,"") -> Charges exceptionnelles. | G66: =SUM(G67:G69) -> 0 | J66: =IF(Synthèse!Q65<>"",Synthèse!Q65,"") -> Produits exceptionnels. | M66: =SUM(M67:M68) -> 0
C67: =IF(Synthèse!C66<>"",Synthèse!C66,"") ->  | D67: =IF(Synthèse!D66<>"",Synthèse!D66,"") -> Valeurs comptables des éléments d’actif cédés, | J67: =IF(Synthèse!Q66<>"",Synthèse!Q66,"") ->  | K67: =IF(Synthèse!R66<>"",Synthèse!R66,"") -> Produits exceptionnels sur opérations de gestion,
C68: =IF(Synthèse!C67<>"",Synthèse!C67,"") ->  | D68: =IF(Synthèse!D67<>"",Synthèse!D67,"") -> Pénalités, amendes fiscales et pénales, | J68: =IF(Synthèse!Q67<>"",Synthèse!Q67,"") ->  | K68: =IF(Synthèse!R67<>"",Synthèse!R67,"") -> Prix de cession d’éléments d’actif.
C69: =IF(Synthèse!C68<>"",Synthèse!C68,"") ->  | D69: =IF(Synthèse!D68<>"",Synthèse!D68,"") -> Dons et libéralités. | J69: =IF(Synthèse!Q68<>"",Synthèse!Q68,"") ->  | K69: =IF(Synthèse!R68<>"",Synthèse!R68,"") -> 
C70: =IF(Synthèse!C69<>"",Synthèse!C69,"") -> Dotations. | G70: =SUM(G71:G73) -> 0 | J70: =IF(Synthèse!Q69<>"",Synthèse!Q69,"") -> Reprises. | M70: =SUM(M71:M73) -> 0
C71: =IF(Synthèse!C70<>"",Synthèse!C70,"") ->  | D71: =IF(Synthèse!D70<>"",Synthèse!D70,"") -> Dotations aux amortissements, aux dépréciations et aux provisions – Charges d’exploitation, | G71: 0 | J71: =IF(Synthèse!Q70<>"",Synthèse!Q70,"") ->  | K71: =IF(Synthèse!R70<>"",Synthèse!R70,"") -> Reprises sur amortissements, dépréciations et provisions – Produits d’exploitation,
C72: =IF(Synthèse!C71<>"",Synthèse!C71,"") ->  | D72: =IF(Synthèse!D71<>"",Synthèse!D71,"") -> Dotations aux amortissements, aux dépréciations et aux provisions – Charges financières, | J72: =IF(Synthèse!Q71<>"",Synthèse!Q71,"") ->  | K72: =IF(Synthèse!R71<>"",Synthèse!R71,"") -> Reprises sur dépréciations et provisions – Produits financiers,
C73: =IF(Synthèse!C72<>"",Synthèse!C72,"") ->  | D73: =IF(Synthèse!D72<>"",Synthèse!D72,"") -> Dotations aux amortissements, aux dépréciations et aux provisions – Charges exceptionnelles, | J73: =IF(Synthèse!Q72<>"",Synthèse!Q72,"") ->  | K73: =IF(Synthèse!R72<>"",Synthèse!R72,"") -> Reprises sur dépréciations et provisions – Produits
J74: =IF(Synthèse!Q73<>"",Synthèse!Q73,"") -> Transferts de charges. | M74: =SUM(M75:M77) -> 0
J75: =IF(Synthèse!Q74<>"",Synthèse!Q74,"") ->  | K75: =IF(Synthèse!R74<>"",Synthèse!R74,"") -> Transferts de charges d’exploitation,
J76: =IF(Synthèse!Q75<>"",Synthèse!Q75,"") ->  | K76: =IF(Synthèse!R75<>"",Synthèse!R75,"") -> Transferts de charges financières,
J77: =IF(Synthèse!Q76<>"",Synthèse!Q76,"") ->  | K77: =IF(Synthèse!R76<>"",Synthèse!R76,"") -> Transferts de charges exceptionnelles.
C79: Charges fixes | G79: =G70+G13+G66+G61+G57+G51+G42+G27 -> 
C80: Charges variables | G80: =G10+G34 -> 
G82: =G7 -> Année 0 | M82: =G82 -> Année 0
B83: Total des charges | G83: =SUM(G70,G66,G61,G57,G51,G42,G34,G27,G8) ->  | I83: Total des produits | M83: =SUM(M74,M70,M66,M61,M34,M8) -> 
B85: Solde créditeur : bénéfice | G85: =IF(M83>G83,M83-G83,"") ->  | I85: Solde débiteur : perte | M85: =IF(G83>M83,G83-M83,"") -> 
G88: =G82 -> Année 0
B89: Résultat net avant impôts | G89: =M83-G83 -> 

Sheet Travaux
A1: Qtt | B1: Catégorie | D1: Designation | E1: Commentaires | F1: Prix unitaire € | G1: Prix Unit. From $ | H1: Prix en $ | I1: Exprimé HT | J1: TVA | K1: Prix HT | L1: Prix TTC | M1: Sous totaux TTC | N1: Provenance | O1: Dont charges | Q1: * | R1: FL | S1: FC | T1: B | U1: CW | W1: * | X1: FL | Y1: FC | Z1: B | AA1: CW | AE1: Durée | AF1: Taux | AG1: Année 0 | AH1: Année 1 | AI1: Année 2 | AJ1: Année 3 | AK1: Année 4 | AL1: Année 5 | AM1: Année 6 | AN1: Année 7 | AO1: Année 8 | AP1: Année 9 | AQ1: Année 10 | AR1: Année 11 | AS1: Année 12
AG2: 0 | AH2: 1 | AI2: 2 | AJ2: 3 | AK2: 4 | AL2: 5 | AM2: 6 | AN2: 7 | AO2: 8 | AP2: 9 | AQ2: 10 | AR2: 11 | AS2: 12
K3: Total HT | L3: Total TTC | O3: Charges HT | W3: =W4/$K4 ->  | X3: =X4/$K4 ->  | Y3: =Y4/$K4 ->  | Z3: =Z4/$K4 ->  | AA3: =AA4/$K4 ->  | AB3: =SUM(W3:AA3) ->  | AG3: Total DAT | AH3: Total DAT | AI3: Total DAT | AJ3: Total DAT | AK3: Total DAT | AL3: Total DAT | AM3: Total DAT | AN3: Total DAT | AO3: Total DAT | AP3: Total DAT | AQ3: Total DAT | AR3: Total DAT | AS3: Total DAT
K4: =L4*(100/(100 + 100*Pilotage!$D$14)) -> 0 | L4: =SUM(M:M) -> 0 | O4: =SUM($O$8:$O812) -> 4000 | W4: =SUM(W6:W20) -> 0 | X4: =SUM(X8:X20) -> 0 | Y4: =SUM(Y8:Y20) -> 0 | Z4: =SUM(Z8:Z20) -> 0 | AA4: =SUM(AA8:AA20) -> 0 | AB4: =SUM(W4:AA4) -> 0 | AG4: =SUM(AG8:AG108) -> 0 | AH4: 0 | AI4: 0 | AJ4: 0 | AK4: 0 | AL4: 0 | AM4: 0 | AN4: 0 | AO4: 0 | AP4: 0 | AQ4: 0 | AR4: 0 | AS4: 0
L5: =IF(L4<>SUM($L$6:$L$812),"ERREUR Page Investissements","") ->  | AB5: =K4-AB4 -> 0
B6: Aléas | D6: =Pilotage!$D$17 -> 0.02 | G6: =IF(H6="","",H6*$G$4) ->  | J6: =IF(A6="","",SUM(F6:G6)*Pilotage!$D$14*I6) ->  | K6: =IF(A6="","",#REF!*(100/(100 + 100*Pilotage!$D$14))) ->  | L6: =D6*SUM(K$8:K$714)*(1+Pilotage!$D$14) -> 0 | M6: =L6 -> 0 | Q6: 1 | W6: =L6*Pilotage!D15 -> 0 | X6: 0 | Y6: 0 | Z6: 0 | AA6: 0
B8: Travaux & mise aux normes | G8: =IF(H8="","",H8*Pilotage!$D$16) ->  | J8: =IF(A8="","",SUM(F8:G8)*Pilotage!$D$14*I8) ->  | K8: =IF(A8="","",L8*(100/(100 + 100*Pilotage!$D$14))) ->  | L8: =IF(A8="","",(SUM(F8:G8)+J8)*A8) ->  | W8: =IF($A8<>"",Q8*$K8,"") ->  | X8: =IF($A8<>"",R8*$K8,"") ->  | Y8: =IF($A8<>"",S8*$K8,"") ->  | Z8: =IF($A8<>"",T8*$K8,"") ->  | AA8: =IF($A8<>"",U8*$K8,"") ->  | AE8: =IF(A8<>"",IF($AD8<>"",VLOOKUP($AD8,Immobilisations[],7),0),"") ->  | AF8: =IF(A8<>"",IF($AD8<>"",VLOOKUP($AD8,Immobilisations[],8),""),"") ->  | AG8: =IF(AND($A8<>"",$AF8<>""),IF(AG$2=0,0,IF(ROUNDDOWN(AG$2/($AE8+1),0)=0,$K8*$AE8/100,0)),"") ->  | AI8: =IF(AND($A8<>"",$AF8<>""),IF(AI$2=0,0,IF(ROUNDDOWN(AI$2/($AE8+1),0)=0,$K8*$AE8/100,0)),"") -> 
C9: Mise état des lieux | F9: 0 | G9: =IF(H9="","",H9*Pilotage!$D$16) ->  | I9: 0 | J9: =IF(A9="","",SUM(F9:G9)*Pilotage!$D$14*I9) ->  | K9: =IF(A9="","",L9*(100/(100 + 100*Pilotage!$D$14))) ->  | L9: =IF(A9="","",(SUM(F9:G9)+J9)*A9) ->  | O9: =IF(A9>0,IF(SUM(F9:G9)-J9<500,K9,""),"") ->  | Q9: 1 | AD9: Frais d’installation | AE9: =IF(A9<>"",IF($AD9<>"",VLOOKUP($AD9,Immobilisations[],7),0),"") ->  | AF9: =IF(A9<>"",IF($AD9<>"",VLOOKUP($AD9,Immobilisations[],8),""),"") -> 
C10: Alarme anti intrusion | F10: 0 | G10: =IF(H10="","",H10*Pilotage!$D$16) ->  | I10: 1 | J10: =IF(A10="","",SUM(F10:G10)*Pilotage!$D$14*I10) ->  | K10: =IF(A10="","",L10*(100/(100 + 100*Pilotage!$D$14))) ->  | N10: =IF(SUM(F10:G10)-J10<500,K10,"") ->  | O10: =IF(A10>0,IF(SUM(F10:G10)-J10<500,K10,""),"") ->  | Q10: 1 | AD10: Matériel fixe | AE10: =IF(A10<>"",IF($AD10<>"",VLOOKUP($AD10,Immobilisations[],7),0),"") ->  | AF10: =IF(A10<>"",IF($AD10<>"",VLOOKUP($AD10,Immobilisations[],8),""),"") -> 
C11: Travaux et fournitures élect. | F11: 0 | G11: =IF(H11="","",H11*Pilotage!$D$16) ->  | I11: 1 | J11: =IF(A11="","",SUM(F11:G11)*Pilotage!$D$14*I11) ->  | K11: =IF(A11="","",L11*(100/(100 + 100*Pilotage!$D$14))) ->  | N11: =IF(SUM(F11:G11)-J11<500,K11,"") ->  | O11: 2000 | Q11: 1 | AD11: Frais d’installation | AE11: =IF(A11<>"",IF($AD11<>"",VLOOKUP($AD11,Immobilisations[],7),0),"") ->  | AF11: =IF(A11<>"",IF($AD11<>"",VLOOKUP($AD11,Immobilisations[],8),""),"") -> 
C12: Contrôle du système électrique | F12: 0 | G12: =IF(H12="","",H12*Pilotage!$D$16) ->  | I12: 1 | J12: =IF(A12="","",SUM(F12:G12)*Pilotage!$D$14*I12) ->  | K12: =IF(A12="","",L12*(100/(100 + 100*Pilotage!$D$14))) ->  | O12: =IF(A12<>"",IF(SUM(F12:G12)-J12<500,K12,""),"") ->  | Q12: 1 | AD12: Frais d’installation | AE12: =IF(A12<>"",IF($AD12<>"",VLOOKUP($AD12,Immobilisations[],7),0),"") ->  | AF12: =IF(A12<>"",IF($AD12<>"",VLOOKUP($AD12,Immobilisations[],8),""),"") -> 
C13: Système incendie | F13: 0 | G13: =IF(H13="","",H13*Pilotage!$D$16) ->  | I13: 1 | J13: =IF(A13="","",SUM(F13:G13)*Pilotage!$D$14*I13) ->  | K13: =IF(A13="","",L13*(100/(100 + 100*Pilotage!$D$14))) ->  | O13: =IF(A13<>"",IF(SUM(F13:G13)-J13<500,K13,""),"") ->  | Q13: 1 | AE13: =IF(A13<>"",IF($AD13<>"",VLOOKUP($AD13,Immobilisations[],7),0),"") ->  | AF13: =IF(A13<>"",IF($AD13<>"",VLOOKUP($AD13,Immobilisations[],8),""),"") -> 
C14: Instincteurs | F14: 0 | G14: =IF(H14="","",H14*Pilotage!$D$16) ->  | I14: 1 | J14: =IF(A14="","",SUM(F14:G14)*Pilotage!$D$14*I14) ->  | K14: =IF(A14="","",L14*(100/(100 + 100*Pilotage!$D$14))) ->  | Q14: 1 | AE14: =IF(A14<>"",IF($AD14<>"",VLOOKUP($AD14,Immobilisations[],7),0),"") ->  | AF14: =IF(A14<>"",IF($AD14<>"",VLOOKUP($AD14,Immobilisations[],8),""),"") -> 
C15: Bloc sortie de secours | F15: 0 | G15: =IF(H15="","",H15*Pilotage!$D$16) ->  | I15: 1 | J15: =IF(A15="","",SUM(F15:G15)*Pilotage!$D$14*I15) ->  | K15: =IF(A15="","",L15*(100/(100 + 100*Pilotage!$D$14))) ->  | Q15: 1 | AE15: =IF(A15<>"",IF($AD15<>"",VLOOKUP($AD15,Immobilisations[],7),0),"") ->  | AF15: =IF(A15<>"",IF($AD15<>"",VLOOKUP($AD15,Immobilisations[],8),""),"") -> 
C16: Intervention BET sécurité incendie | F16: 0 | I16: 1 | J16: =IF(A16="","",SUM(F16:G16)*Pilotage!$D$14*I16) ->  | K16: =IF(A16="","",L16*(100/(100 + 100*Pilotage!$D$14))) ->  | Q16: 1 | AD16: Frais d’installation | AE16: =IF(A16<>"",IF($AD16<>"",VLOOKUP($AD16,Immobilisations[],7),0),"") ->  | AF16: =IF(A16<>"",IF($AD16<>"",VLOOKUP($AD16,Immobilisations[],8),""),"") -> 
C17: Intervention BET accessibilité | F17: 0 | G17: =IF(H17="","",H17*Pilotage!$D$16) ->  | I17: 1 | J17: =IF(A17="","",SUM(F17:G17)*Pilotage!$D$14*I17) ->  | K17: =IF(A17="","",L17*(100/(100 + 100*Pilotage!$D$14))) ->  | Q17: 1 | AD17: Frais d’installation | AE17: =IF(A17<>"",IF($AD17<>"",VLOOKUP($AD17,Immobilisations[],7),0),"") ->  | AF17: =IF(A17<>"",IF($AD17<>"",VLOOKUP($AD17,Immobilisations[],8),""),"") -> 
C18: Sanitaires | F18: 0 | J18: =IF(A18="","",SUM(F18:G18)*Pilotage!$D$14*I18) ->  | K18: =IF(A18="","",L18*(100/(100 + 100*Pilotage!$D$14))) ->  | O18: 2000 | Q18: 1 | AD18: Frais d’installation | AE18: =IF(A18<>"",IF($AD18<>"",VLOOKUP($AD18,Immobilisations[],7),0),"") ->  | AF18: =IF(A18<>"",IF($AD18<>"",VLOOKUP($AD18,Immobilisations[],8),""),"") -> 
J19: =IF(A19="","",SUM(F19:G19)*Pilotage!$D$14*I19) ->  | K19: =IF(A19="","",L19*(100/(100 + 100*Pilotage!$D$14))) ->  | M19: =SUM(L9:L18) -> 0 | AE19: =IF(A19<>"",IF($AD19<>"",VLOOKUP($AD19,Immobilisations[],7),0),"") ->  | AF19: =IF(A19<>"",IF($AD19<>"",VLOOKUP($AD19,Immobilisations[],8),""),"") -> 
B20: Installation & ameublement | J20: =IF(A20="","",SUM(F20:G20)*Pilotage!$D$14*I20) ->  | K20: =IF(A20="","",L20*(100/(100 + 100*Pilotage!$D$14))) ->  | AE20: =IF(A20<>"",IF($AD20<>"",VLOOKUP($AD20,Immobilisations[],7),0),"") ->  | AF20: =IF(A20<>"",IF($AD20<>"",VLOOKUP($AD20,Immobilisations[],8),""),"") -> 
J21: =IF(A21="","",SUM(F21:G21)*Pilotage!$D$14*I21) ->  | K21: =IF(A21="","",L21*(100/(100 + 100*Pilotage!$D$14))) ->  | O21: =IF(A21>0,IF(SUM(F21:G21)-J21<500,K21,""),"") ->  | AE21: =IF(A21<>"",IF($AD21<>"",VLOOKUP($AD21,Immobilisations[],7),0),"") ->  | AF21: =IF(A21<>"",IF($AD21<>"",VLOOKUP($AD21,Immobilisations[],8),""),"") ->  | AG21: =IF(AND($A21<>"",$AF21<>""),IF(AG$2=0,0,IF(ROUNDDOWN(AG$2/($AE21+1),0)=0,$K21*$AE21/100,0)),"") ->  | AI21: =IF(AND($A21<>"",$AF21<>""),IF(AI$2=0,0,IF(ROUNDDOWN(AI$2/($AE21+1),0)=0,$K21*$AE21/100,0)),"") -> 
G22: =IF(H22="","",H22*Pilotage!$D$16) ->  | J22: =IF(A22="","",SUM(F22:G22)*Pilotage!$D$14*I22) ->  | K22: =IF(A22="","",L22*(100/(100 + 100*Pilotage!$D$14))) ->  | L22: =IF(A22="","",(SUM(F22:G22)+J22)*A22) ->  | O22: =IF(A22>0,IF(SUM(F22:G22)-J22<500,K22,""),"") ->  | AE22: =IF(A22<>"",IF($AD22<>"",VLOOKUP($AD22,Immobilisations[],7),0),"") ->  | AF22: =IF(A22<>"",IF($AD22<>"",VLOOKUP($AD22,Immobilisations[],8),""),"") -> 
G23: =IF(H23="","",H23*Pilotage!$D$16) ->  | J23: =IF(A23="","",SUM(F23:G23)*Pilotage!$D$14*I23) ->  | K23: =IF(A23="","",L23*(100/(100 + 100*Pilotage!$D$14))) ->  | AE23: =IF(A23<>"",IF($AD23<>"",VLOOKUP($AD23,Immobilisations[],7),0),"") ->  | AF23: =IF(A23<>"",IF($AD23<>"",VLOOKUP($AD23,Immobilisations[],8),""),"") -> 
G24: =IF(H24="","",H24*Pilotage!$D$16) ->  | J24: =IF(A24="","",SUM(F24:G24)*Pilotage!$D$14*I24) ->  | K24: =IF(A24="","",L24*(100/(100 + 100*Pilotage!$D$14))) ->  | AE24: =IF(A24<>"",IF($AD24<>"",VLOOKUP($AD24,Immobilisations[],7),0),"") ->  | AF24: =IF(A24<>"",IF($AD24<>"",VLOOKUP($AD24,Immobilisations[],8),""),"") -> 
G25: =IF(H25="","",H25*Pilotage!$D$16) ->  | J25: =IF(A25="","",SUM(F25:G25)*Pilotage!$D$14*I25) ->  | K25: =IF(A25="","",L25*(100/(100 + 100*Pilotage!$D$14))) ->  | AE25: =IF(A25<>"",IF($AD25<>"",VLOOKUP($AD25,Immobilisations[],7),0),"") ->  | AF25: =IF(A25<>"",IF($AD25<>"",VLOOKUP($AD25,Immobilisations[],8),""),"") -> 
G26: =IF(H26="","",H26*Pilotage!$D$16) ->  | J26: =IF(A26="","",SUM(F26:G26)*Pilotage!$D$14*I26) ->  | K26: =IF(A26="","",L26*(100/(100 + 100*Pilotage!$D$14))) ->  | AE26: =IF(A26<>"",IF($AD26<>"",VLOOKUP($AD26,Immobilisations[],7),0),"") ->  | AF26: =IF(A26<>"",IF($AD26<>"",VLOOKUP($AD26,Immobilisations[],8),""),"") -> 
G27: =IF(H27="","",H27*Pilotage!$D$16) ->  | J27: =IF(A27="","",SUM(F27:G27)*Pilotage!$D$14*I27) ->  | K27: =IF(A27="","",L27*(100/(100 + 100*Pilotage!$D$14))) ->  | AE27: =IF(A27<>"",IF($AD27<>"",VLOOKUP($AD27,Immobilisations[],7),0),"") ->  | AF27: =IF(A27<>"",IF($AD27<>"",VLOOKUP($AD27,Immobilisations[],8),""),"") -> 
G28: =IF(H28="","",H28*Pilotage!$D$16) ->  | J28: =IF(A28="","",SUM(F28:G28)*Pilotage!$D$14*I28) ->  | K28: =IF(A28="","",L28*(100/(100 + 100*Pilotage!$D$14))) ->  | AE28: =IF(A28<>"",IF($AD28<>"",VLOOKUP($AD28,Immobilisations[],7),0),"") ->  | AF28: =IF(A28<>"",IF($AD28<>"",VLOOKUP($AD28,Immobilisations[],8),""),"") -> 
G29: =IF(H29="","",H29*Pilotage!$D$16) ->  | J29: =IF(A29="","",SUM(F29:G29)*Pilotage!$D$14*I29) ->  | K29: =IF(A29="","",L29*(100/(100 + 100*Pilotage!$D$14))) ->  | AE29: =IF(A29<>"",IF($AD29<>"",VLOOKUP($AD29,Immobilisations[],7),0),"") ->  | AF29: =IF(A29<>"",IF($AD29<>"",VLOOKUP($AD29,Immobilisations[],8),""),"") -> 
